Workbook

Sheet Portada
F2: Modelo Empresa Eficiente Fija | O2: Desarrollado por:
E3: Portada
B6: Diagrama de Modelo

Sheet Parámetros
D2: Modelo Empresa Eficiente Fija
D3: Parámetros
B6: Parámetros financieros
C8: Parámetros
C9: Tasa de Costo de Capital [%] | D9: [%] | E9: 0.1254 | F9: tcc | H9: Nota: Mismo valor que modelo móvil
C10: Tasa de Tributación [%] | D10: [%] | E10: 0.35 | F10: tax | H10: Nota: Proporcionado por CRC
C11: Tipo de Cambio Dólar | D11: [$] | E11: 4810.2 | F11: tc.dolar | H11: Nota: 31 de diciembre de 2022
C12: Tipo de Cambio Euro | D12: [$] | E12: 5134.40748 | H12: Nota: 31 de diciembre de 2022
C13: Porcentaje de Contraprestaciones Mensuales | D13: [%] | E13: 0.05 | F13: porc.contraprestaciones | H13: Nota: Se aplica a tarifa final
C14: Razón Dólar/Euro | E14: =+E12/tc.dolar -> 1.0674 | F14: raz.eur.dolar
C16: Parámetros
C17: Días Año | D17: [días] | E17: 365
C18: Dias de Facuturación | D18: [días] | E18: 60
C19: Valor Proporción Costo Capital | D19: [%] | E19: =E18/E17 -> 0.1643835616 | F19: r.trab
C21: Parámetros
C22: Años de estudio | E22: 0 | F22: 1 | G22: 2 | H22: 3 | I22: 4 | J22: 5 | K22: años
C23: Años calendario | E23: 2022 | F23: 2023 | G23: 2024 | H23: 2025 | I23: 2026 | J23: 2027 | K23: años.calendario
C24: Columnas | E24: 1 | F24: 2 | G24: 3 | H24: 4 | I24: 5 | J24: 6 | K24: columnas
C26: Parámetros
C27: Factor conversión a cargo por capacidad modelo móvil | E27: =2.57172881617131E-06 -> 2.571728816e-06 | F27: porc.conv.cacc.cap.modelo.móvil
B30: Lista de departamentos
E32: Nota: Criterio de ordenamiento es el orden ascendente en el código DANE
E33: id | F33: Departamento | G33: aux.id.cap | H33: Municipio capital | I33: Check | J33: POI | K33: Nearest | L33: id Nearest
E34: 1 | F34: Antioquia | G34: 5001 | H34: Medellín | I34: =INDEX(list.dpto2mpio.nom,MATCH(G34,$E$74:$E$1195,0))=F34 -> TRUE | J34: 1 | K34: Medellín | L34: =SUM((K34=$H$34:$H$66)*$G$34:$G$66) -> 5001 | M34: =INT(G34/1000) -> 5
E35: 2 | F35: Atlántico | G35: 8001 | H35: Barranquilla | I35: TRUE | J35: 1 | K35: Barranquilla | L35: =SUM((K35=$H$34:$H$66)*$G$34:$G$66) -> 8001 | M35: =INT(G35/1000) -> 8
E36: 3 | F36: Bogotá, D.C. | G36: 11001 | H36: Bogotá, D.C. | I36: TRUE | J36: 1 | K36: Bogotá, D.C. | L36: =SUM((K36=$H$34:$H$66)*$G$34:$G$66) -> 11001 | M36: 11
E37: 4 | F37: Bolívar | G37: 13001 | H37: Cartagena | I37: TRUE | J37: 0 | K37: Barranquilla | L37: =SUM((K37=$H$34:$H$66)*$G$34:$G$66) -> 8001 | M37: 13
E38: 5 | F38: Boyacá | G38: 15001 | H38: Tunja | I38: TRUE | J38: 0 | K38: Bogotá, D.C. | L38: =SUM((K38=$H$34:$H$66)*$G$34:$G$66) -> 11001 | M38: 15
E39: 6 | F39: Caldas | G39: 17001 | H39: Manizales | I39: TRUE | J39: 0 | K39: Medellín | L39: =SUM((K39=$H$34:$H$66)*$G$34:$G$66) -> 5001 | M39: 17
E40: 7 | F40: Caquetá | G40: 18001 | H40: Florencia | I40: TRUE | J40: 0 | K40: Cali | L40: =SUM((K40=$H$34:$H$66)*$G$34:$G$66) -> 76001 | M40: 18
E41: 8 | F41: Cauca | G41: 19001 | H41: Popayán | I41: TRUE | J41: 0 | K41: Cali | L41: =SUM((K41=$H$34:$H$66)*$G$34:$G$66) -> 76001 | M41: 19
E42: 9 | F42: Cesar | G42: 20001 | H42: Valledupar | I42: TRUE | J42: 0 | K42: Barranquilla | L42: =SUM((K42=$H$34:$H$66)*$G$34:$G$66) -> 8001 | M42: 20
E43: 10 | F43: Córdoba | G43: 23001 | H43: Montería | I43: TRUE | J43: 0 | K43: Barranquilla | L43: =SUM((K43=$H$34:$H$66)*$G$34:$G$66) -> 8001 | M43: 23
E44: 11 | F44: Cundinamarca | G44: 25001 | H44: Agua de Dios | I44: TRUE | J44: 0 | K44: Bogotá, D.C. | L44: =SUM((K44=$H$34:$H$66)*$G$34:$G$66) -> 11001 | M44: 25
E45: 12 | F45: Chocó | G45: 27001 | H45: Quibdó | I45: TRUE | J45: 0 | K45: Cali | L45: =SUM((K45=$H$34:$H$66)*$G$34:$G$66) -> 76001 | M45: 27
E46: 13 | F46: Huila | G46: 41001 | H46: Neiva | I46: TRUE | J46: 0 | K46: Bogotá, D.C. | L46: =SUM((K46=$H$34:$H$66)*$G$34:$G$66) -> 11001 | M46: 41
E47: 14 | F47: La Guajira | G47: 44001 | H47: Riohacha | I47: TRUE | J47: 0 | K47: Barranquilla | L47: =SUM((K47=$H$34:$H$66)*$G$34:$G$66) -> 8001 | M47: 44
E48: 15 | F48: Magdalena | G48: 47001 | H48: Santa Marta | I48: TRUE | J48: 0 | K48: Barranquilla | L48: =SUM((K48=$H$34:$H$66)*$G$34:$G$66) -> 8001 | M48: 47
E49: 16 | F49: Meta | G49: 50001 | H49: Villavicencio | I49: TRUE | J49: 0 | K49: Bogotá, D.C. | L49: =SUM((K49=$H$34:$H$66)*$G$34:$G$66) -> 11001 | M49: 50
E50: 17 | F50: Nariño | G50: 52001 | H50: Pasto | I50: TRUE | J50: 0 | K50: Cali | L50: =SUM((K50=$H$34:$H$66)*$G$34:$G$66) -> 76001 | M50: 52
E51: 18 | F51: Norte de Santander | G51: 54001 | H51: Cúcuta | I51: TRUE | J51: 0 | K51: Bogotá, D.C. | L51: =SUM((K51=$H$34:$H$66)*$G$34:$G$66) -> 11001 | M51: 54
E52: 19 | F52: Quindio | G52: 63001 | H52: Armenia | I52: TRUE | J52: 0 | K52: Medellín | L52: =SUM((K52=$H$34:$H$66)*$G$34:$G$66) -> 5001 | M52: 63
E53: 20 | F53: Risaralda | G53: 66001 | H53: Pereira | I53: TRUE | J53: 0 | K53: Medellín | L53: =SUM((K53=$H$34:$H$66)*$G$34:$G$66) -> 5001 | M53: 66
E54: 21 | F54: Santander | G54: 68001 | H54: Bucaramanga | I54: TRUE | J54: 0 | K54: Bogotá, D.C. | L54: =SUM((K54=$H$34:$H$66)*$G$34:$G$66) -> 11001 | M54: 68
E55: 22 | F55: Sucre | G55: 70001 | H55: Sincelejo | I55: TRUE | J55: 0 | K55: Barranquilla | L55: =SUM((K55=$H$34:$H$66)*$G$34:$G$66) -> 8001 | M55: 70
E56: 23 | F56: Tolima | G56: 73001 | H56: Ibagué | I56: TRUE | J56: 0 | K56: Bogotá, D.C. | L56: =SUM((K56=$H$34:$H$66)*$G$34:$G$66) -> 11001 | M56: 73
E57: 24 | F57: Valle del Cauca | G57: 76001 | H57: Cali | I57: TRUE | J57: 1 | K57: Cali | L57: =SUM((K57=$H$34:$H$66)*$G$34:$G$66) -> 76001 | M57: 76
E58: 25 | F58: Arauca | G58: 81001 | H58: Arauca | I58: TRUE | J58: 0 | K58: Bogotá, D.C. | L58: =SUM((K58=$H$34:$H$66)*$G$34:$G$66) -> 11001 | M58: 81
E59: 26 | F59: Casanare | G59: 85001 | H59: Yopal | I59: TRUE | J59: 0 | K59: Bogotá, D.C. | L59: =SUM((K59=$H$34:$H$66)*$G$34:$G$66) -> 11001 | M59: 85
E60: 27 | F60: Putumayo | G60: 86001 | H60: Mocoa | I60: TRUE | J60: 0 | K60: Bogotá, D.C. | L60: =SUM((K60=$H$34:$H$66)*$G$34:$G$66) -> 11001 | M60: 86
E61: 28 | F61: Archipiélago de San Andrés | G61: 88001 | H61: San Andrés | I61: TRUE | J61: 0 | K61: Bogotá, D.C. | L61: =SUM((K61=$H$34:$H$66)*$G$34:$G$66) -> 11001 | M61: 88
E62: 29 | F62: Amazonas | G62: 91001 | H62: Leticia | I62: TRUE | J62: 0 | K62: Bogotá, D.C. | L62: =SUM((K62=$H$34:$H$66)*$G$34:$G$66) -> 11001 | M62: 91
E63: 30 | F63: Guainía | G63: 94001 | H63: Inírida | I63: TRUE | J63: 0 | K63: Bogotá, D.C. | L63: =SUM((K63=$H$34:$H$66)*$G$34:$G$66) -> 11001 | M63: 94
E64: 31 | F64: Guaviare | G64: 95001 | H64: San José del Guaviare | I64: TRUE | J64: 0 | K64: Bogotá, D.C. | L64: =SUM((K64=$H$34:$H$66)*$G$34:$G$66) -> 11001 | M64: 95
E65: 32 | F65: Vaupés | G65: 97001 | H65: Mitú | I65: TRUE | J65: 0 | K65: Bogotá, D.C. | L65: =SUM((K65=$H$34:$H$66)*$G$34:$G$66) -> 11001 | M65: 97
E66: 33 | F66: Vichada | G66: 99001 | H66: Puerto Carreño | I66: TRUE | J66: 0 | K66: Bogotá, D.C. | L66: =SUM((K66=$H$34:$H$66)*$G$34:$G$66) -> 11001 | M66: 99
F68: list.dpto.nom | G68: list.depto.cod.dane | H68: list.depto.mpio.capital
B70: Lista de municipios
E72: Nota: Criterio de ordenamiento es el orden ascendente en el código DANE | H72: =+SUM(H74:H1195) -> 33 | I72: =+SUM(I74:I1195) -> 4
D73: id | E73: id DANE | F73: Departamento | G73: Municipio | H73: Aux.Cap | I73: Aux.POI | J73: Capital
D74: 1 | E74: 5001 | F74: Antioquia | G74: Medellín | H74: =IF(RIGHT(E74,3)="001",1,0) -> 1 | I74: 1 | J74: =SUM((F74=$F$34:$F$66)*$G$34:$G$66) -> 5001
D75: 2 | E75: 5002 | F75: Antioquia | G75: Abejorral | H75: 0 | I75: 0 | J75: =SUM((F75=$F$34:$F$66)*$G$34:$G$66) -> 5001
D76: 3 | E76: 5004 | F76: Antioquia | G76: Abriaquí | H76: 0 | I76: 0 | J76: =SUM((F76=$F$34:$F$66)*$G$34:$G$66) -> 5001
D77: 4 | E77: 5021 | F77: Antioquia | G77: Alejandría | H77: 0 | I77: 0 | J77: =SUM((F77=$F$34:$F$66)*$G$34:$G$66) -> 5001
D78: 5 | E78: 5030 | F78: Antioquia | G78: Amagá | H78: 0 | I78: 0 | J78: =SUM((F78=$F$34:$F$66)*$G$34:$G$66) -> 5001
D79: 6 | E79: 5031 | F79: Antioquia | G79: Amalfi | H79: 0 | I79: 0 | J79: =SUM((F79=$F$34:$F$66)*$G$34:$G$66) -> 5001
D80: 7 | E80: 5034 | F80: Antioquia | G80: Andes | H80: 0 | I80: 0 | J80: =SUM((F80=$F$34:$F$66)*$G$34:$G$66) -> 5001
D81: 8 | E81: 5036 | F81: Antioquia | G81: Angelópolis | H81: 0 | I81: 0 | J81: =SUM((F81=$F$34:$F$66)*$G$34:$G$66) -> 5001
D82: 9 | E82: 5038 | F82: Antioquia | G82: Angostura | H82: 0 | I82: 0 | J82: =SUM((F82=$F$34:$F$66)*$G$34:$G$66) -> 5001
D83: 10 | E83: 5040 | F83: Antioquia | G83: Anorí | H83: 0 | I83: 0 | J83: =SUM((F83=$F$34:$F$66)*$G$34:$G$66) -> 5001
D84: 11 | E84: 5042 | F84: Antioquia | G84: Santafé de Antioquia | H84: 0 | I84: 0 | J84: =SUM((F84=$F$34:$F$66)*$G$34:$G$66) -> 5001
D85: 12 | E85: 5044 | F85: Antioquia | G85: Anza | H85: 0 | I85: 0 | J85: =SUM((F85=$F$34:$F$66)*$G$34:$G$66) -> 5001
D86: 13 | E86: 5045 | F86: Antioquia | G86: Apartadó | H86: 0 | I86: 0 | J86: =SUM((F86=$F$34:$F$66)*$G$34:$G$66) -> 5001
D87: 14 | E87: 5051 | F87: Antioquia | G87: Arboletes | H87: 0 | I87: 0 | J87: =SUM((F87=$F$34:$F$66)*$G$34:$G$66) -> 5001
D88: 15 | E88: 5055 | F88: Antioquia | G88: Argelia | H88: 0 | I88: 0 | J88: =SUM((F88=$F$34:$F$66)*$G$34:$G$66) -> 5001
D89: 16 | E89: 5059 | F89: Antioquia | G89: Armenia | H89: 0 | I89: 0 | J89: =SUM((F89=$F$34:$F$66)*$G$34:$G$66) -> 5001
D90: 17 | E90: 5079 | F90: Antioquia | G90: Barbosa | H90: 0 | I90: 0 | J90: =SUM((F90=$F$34:$F$66)*$G$34:$G$66) -> 5001
D91: 18 | E91: 5086 | F91: Antioquia | G91: Belmira | H91: 0 | I91: 0 | J91: =SUM((F91=$F$34:$F$66)*$G$34:$G$66) -> 5001
D92: 19 | E92: 5088 | F92: Antioquia | G92: Bello | H92: 0 | I92: 0 | J92: =SUM((F92=$F$34:$F$66)*$G$34:$G$66) -> 5001
D93: 20 | E93: 5091 | F93: Antioquia | G93: Betania | H93: 0 | I93: 0 | J93: =SUM((F93=$F$34:$F$66)*$G$34:$G$66) -> 5001
D94: 21 | E94: 5093 | F94: Antioquia | G94: Betulia | H94: 0 | I94: 0 | J94: =SUM((F94=$F$34:$F$66)*$G$34:$G$66) -> 5001
D95: 22 | E95: 5101 | F95: Antioquia | G95: Ciudad Bolívar | H95: 0 | I95: 0 | J95: =SUM((F95=$F$34:$F$66)*$G$34:$G$66) -> 5001
D96: 23 | E96: 5107 | F96: Antioquia | G96: Briceño | H96: 0 | I96: 0 | J96: =SUM((F96=$F$34:$F$66)*$G$34:$G$66) -> 5001
D97: 24 | E97: 5113 | F97: Antioquia | G97: Buriticá | H97: 0 | I97: 0 | J97: =SUM((F97=$F$34:$F$66)*$G$34:$G$66) -> 5001
D98: 25 | E98: 5120 | F98: Antioquia | G98: Cáceres | H98: 0 | I98: 0 | J98: =SUM((F98=$F$34:$F$66)*$G$34:$G$66) -> 5001
D99: 26 | E99: 5125 | F99: Antioquia | G99: Caicedo | H99: 0 | I99: 0 | J99: =SUM((F99=$F$34:$F$66)*$G$34:$G$66) -> 5001
D100: 27 | E100: 5129 | F100: Antioquia | G100: Caldas | H100: 0 | I100: 0 | J100: =SUM((F100=$F$34:$F$66)*$G$34:$G$66) -> 5001
D101: 28 | E101: 5134 | F101: Antioquia | G101: Campamento | H101: 0 | I101: 0 | J101: =SUM((F101=$F$34:$F$66)*$G$34:$G$66) -> 5001
D102: 29 | E102: 5138 | F102: Antioquia | G102: Cañasgordas | H102: 0 | I102: 0 | J102: =SUM((F102=$F$34:$F$66)*$G$34:$G$66) -> 5001
D103: 30 | E103: 5142 | F103: Antioquia | G103: Caracolí | H103: 0 | I103: 0 | J103: =SUM((F103=$F$34:$F$66)*$G$34:$G$66) -> 5001
D104: 31 | E104: 5145 | F104: Antioquia | G104: Caramanta | H104: 0 | I104: 0 | J104: =SUM((F104=$F$34:$F$66)*$G$34:$G$66) -> 5001
D105: 32 | E105: 5147 | F105: Antioquia | G105: Carepa | H105: 0 | I105: 0 | J105: =SUM((F105=$F$34:$F$66)*$G$34:$G$66) -> 5001
D106: 33 | E106: 5148 | F106: Antioquia | G106: El Carmen de Viboral | H106: 0 | I106: 0 | J106: =SUM((F106=$F$34:$F$66)*$G$34:$G$66) -> 5001
D107: 34 | E107: 5150 | F107: Antioquia | G107: Carolina | H107: 0 | I107: 0 | J107: =SUM((F107=$F$34:$F$66)*$G$34:$G$66) -> 5001
D108: 35 | E108: 5154 | F108: Antioquia | G108: Caucasia | H108: 0 | I108: 0 | J108: =SUM((F108=$F$34:$F$66)*$G$34:$G$66) -> 5001
D109: 36 | E109: 5172 | F109: Antioquia | G109: Chigorodó | H109: 0 | I109: 0 | J109: =SUM((F109=$F$34:$F$66)*$G$34:$G$66) -> 5001
D110: 37 | E110: 5190 | F110: Antioquia | G110: Cisneros | H110: 0 | I110: 0 | J110: =SUM((F110=$F$34:$F$66)*$G$34:$G$66) -> 5001
D111: 38 | E111: 5197 | F111: Antioquia | G111: Cocorná | H111: 0 | I111: 0 | J111: =SUM((F111=$F$34:$F$66)*$G$34:$G$66) -> 5001
D112: 39 | E112: 5206 | F112: Antioquia | G112: Concepción | H112: 0 | I112: 0 | J112: =SUM((F112=$F$34:$F$66)*$G$34:$G$66) -> 5001
D113: 40 | E113: 5209 | F113: Antioquia | G113: Concordia | H113: 0 | I113: 0 | J113: =SUM((F113=$F$34:$F$66)*$G$34:$G$66) -> 5001
D114: 41 | E114: 5212 | F114: Antioquia | G114: Copacabana | H114: 0 | I114: 0 | J114: =SUM((F114=$F$34:$F$66)*$G$34:$G$66) -> 5001
D115: 42 | E115: 5234 | F115: Antioquia | G115: Dabeiba | H115: 0 | I115: 0 | J115: =SUM((F115=$F$34:$F$66)*$G$34:$G$66) -> 5001
D116: 43 | E116: 5237 | F116: Antioquia | G116: Don Matías | H116: 0 | I116: 0 | J116: =SUM((F116=$F$34:$F$66)*$G$34:$G$66) -> 5001
D117: 44 | E117: 5240 | F117: Antioquia | G117: Ebéjico | H117: 0 | I117: 0 | J117: =SUM((F117=$F$34:$F$66)*$G$34:$G$66) -> 5001
D118: 45 | E118: 5250 | F118: Antioquia | G118: El Bagre | H118: 0 | I118: 0 | J118: =SUM((F118=$F$34:$F$66)*$G$34:$G$66) -> 5001
D119: 46 | E119: 5264 | F119: Antioquia | G119: Entrerrios | H119: 0 | I119: 0 | J119: =SUM((F119=$F$34:$F$66)*$G$34:$G$66) -> 5001
D120: 47 | E120: 5266 | F120: Antioquia | G120: Envigado | H120: 0 | I120: 0 | J120: =SUM((F120=$F$34:$F$66)*$G$34:$G$66) -> 5001
D121: 48 | E121: 5282 | F121: Antioquia | G121: Fredonia | H121: 0 | I121: 0 | J121: =SUM((F121=$F$34:$F$66)*$G$34:$G$66) -> 5001
D122: 49 | E122: 5284 | F122: Antioquia | G122: Frontino | H122: 0 | I122: 0 | J122: =SUM((F122=$F$34:$F$66)*$G$34:$G$66) -> 5001
D123: 50 | E123: 5306 | F123: Antioquia | G123: Giraldo | H123: 0 | I123: 0 | J123: =SUM((F123=$F$34:$F$66)*$G$34:$G$66) -> 5001
D124: 51 | E124: 5308 | F124: Antioquia | G124: Girardota | H124: 0 | I124: 0 | J124: =SUM((F124=$F$34:$F$66)*$G$34:$G$66) -> 5001
D125: 52 | E125: 5310 | F125: Antioquia | G125: Gómez Plata | H125: 0 | I125: 0 | J125: =SUM((F125=$F$34:$F$66)*$G$34:$G$66) -> 5001
D126: 53 | E126: 5313 | F126: Antioquia | G126: Granada | H126: 0 | I126: 0 | J126: =SUM((F126=$F$34:$F$66)*$G$34:$G$66) -> 5001
D127: 54 | E127: 5315 | F127: Antioquia | G127: Guadalupe | H127: 0 | I127: 0 | J127: =SUM((F127=$F$34:$F$66)*$G$34:$G$66) -> 5001
D128: 55 | E128: 5318 | F128: Antioquia | G128: Guarne | H128: 0 | I128: 0 | J128: =SUM((F128=$F$34:$F$66)*$G$34:$G$66) -> 5001
D129: 56 | E129: 5321 | F129: Antioquia | G129: Guatapé | H129: 0 | I129: 0 | J129: =SUM((F129=$F$34:$F$66)*$G$34:$G$66) -> 5001
D130: 57 | E130: 5347 | F130: Antioquia | G130: Heliconia | H130: 0 | I130: 0 | J130: =SUM((F130=$F$34:$F$66)*$G$34:$G$66) -> 5001
D131: 58 | E131: 5353 | F131: Antioquia | G131: Hispania | H131: 0 | I131: 0 | J131: =SUM((F131=$F$34:$F$66)*$G$34:$G$66) -> 5001
D132: 59 | E132: 5360 | F132: Antioquia | G132: Itagui | H132: 0 | I132: 0 | J132: =SUM((F132=$F$34:$F$66)*$G$34:$G$66) -> 5001
D133: 60 | E133: 5361 | F133: Antioquia | G133: Ituango | H133: 0 | I133: 0 | J133: =SUM((F133=$F$34:$F$66)*$G$34:$G$66) -> 5001
D134: 61 | E134: 5364 | F134: Antioquia | G134: Jardín | H134: 0 | I134: 0 | J134: =SUM((F134=$F$34:$F$66)*$G$34:$G$66) -> 5001
D135: 62 | E135: 5368 | F135: Antioquia | G135: Jericó | H135: 0 | I135: 0 | J135: =SUM((F135=$F$34:$F$66)*$G$34:$G$66) -> 5001
D136: 63 | E136: 5376 | F136: Antioquia | G136: La Ceja | H136: 0 | I136: 0 | J136: =SUM((F136=$F$34:$F$66)*$G$34:$G$66) -> 5001
D137: 64 | E137: 5380 | F137: Antioquia | G137: La Estrella | H137: 0 | I137: 0 | J137: =SUM((F137=$F$34:$F$66)*$G$34:$G$66) -> 5001
D138: 65 | E138: 5390 | F138: Antioquia | G138: La Pintada | H138: =IF(RIGHT(E138,3)="001",1,0) -> 0 | I138: 0 | J138: =SUM((F138=$F$34:$F$66)*$G$34:$G$66) -> 5001
D139: 66 | E139: 5400 | F139: Antioquia | G139: La Unión | H139: 0 | I139: 0 | J139: =SUM((F139=$F$34:$F$66)*$G$34:$G$66) -> 5001
D140: 67 | E140: 5411 | F140: Antioquia | G140: Liborina | H140: 0 | I140: 0 | J140: =SUM((F140=$F$34:$F$66)*$G$34:$G$66) -> 5001
D141: 68 | E141: 5425 | F141: Antioquia | G141: Maceo | H141: 0 | I141: 0 | J141: =SUM((F141=$F$34:$F$66)*$G$34:$G$66) -> 5001
D142: 69 | E142: 5440 | F142: Antioquia | G142: Marinilla | H142: 0 | I142: 0 | J142: =SUM((F142=$F$34:$F$66)*$G$34:$G$66) -> 5001
D143: 70 | E143: 5467 | F143: Antioquia | G143: Montebello | H143: 0 | I143: 0 | J143: =SUM((F143=$F$34:$F$66)*$G$34:$G$66) -> 5001
D144: 71 | E144: 5475 | F144: Antioquia | G144: Murindó | H144: 0 | I144: 0 | J144: =SUM((F144=$F$34:$F$66)*$G$34:$G$66) -> 5001
D145: 72 | E145: 5480 | F145: Antioquia | G145: Mutatá | H145: 0 | I145: 0 | J145: =SUM((F145=$F$34:$F$66)*$G$34:$G$66) -> 5001
D146: 73 | E146: 5483 | F146: Antioquia | G146: Nariño | H146: 0 | I146: 0 | J146: =SUM((F146=$F$34:$F$66)*$G$34:$G$66) -> 5001
D147: 74 | E147: 5490 | F147: Antioquia | G147: Necoclí | H147: 0 | I147: 0 | J147: =SUM((F147=$F$34:$F$66)*$G$34:$G$66) -> 5001
D148: 75 | E148: 5495 | F148: Antioquia | G148: Nechí | H148: 0 | I148: 0 | J148: =SUM((F148=$F$34:$F$66)*$G$34:$G$66) -> 5001
D149: 76 | E149: 5501 | F149: Antioquia | G149: Olaya | H149: 0 | I149: 0 | J149: =SUM((F149=$F$34:$F$66)*$G$34:$G$66) -> 5001
D150: 77 | E150: 5541 | F150: Antioquia | G150: Peñol | H150: 0 | I150: 0 | J150: =SUM((F150=$F$34:$F$66)*$G$34:$G$66) -> 5001
D151: 78 | E151: 5543 | F151: Antioquia | G151: Peque | H151: 0 | I151: 0 | J151: =SUM((F151=$F$34:$F$66)*$G$34:$G$66) -> 5001
D152: 79 | E152: 5576 | F152: Antioquia | G152: Pueblorrico | H152: 0 | I152: 0 | J152: =SUM((F152=$F$34:$F$66)*$G$34:$G$66) -> 5001
D153: 80 | E153: 5579 | F153: Antioquia | G153: Puerto Berrío | H153: 0 | I153: 0 | J153: =SUM((F153=$F$34:$F$66)*$G$34:$G$66) -> 5001
D154: 81 | E154: 5585 | F154: Antioquia | G154: Puerto Nare | H154: 0 | I154: 0 | J154: =SUM((F154=$F$34:$F$66)*$G$34:$G$66) -> 5001
D155: 82 | E155: 5591 | F155: Antioquia | G155: Puerto Triunfo | H155: 0 | I155: 0 | J155: =SUM((F155=$F$34:$F$66)*$G$34:$G$66) -> 5001
D156: 83 | E156: 5604 | F156: Antioquia | G156: Remedios | H156: 0 | I156: 0 | J156: =SUM((F156=$F$34:$F$66)*$G$34:$G$66) -> 5001
D157: 84 | E157: 5607 | F157: Antioquia | G157: Retiro | H157: 0 | I157: 0 | J157: =SUM((F157=$F$34:$F$66)*$G$34:$G$66) -> 5001
D158: 85 | E158: 5615 | F158: Antioquia | G158: Rionegro | H158: 0 | I158: 0 | J158: =SUM((F158=$F$34:$F$66)*$G$34:$G$66) -> 5001
D159: 86 | E159: 5628 | F159: Antioquia | G159: Sabanalarga | H159: 0 | I159: 0 | J159: =SUM((F159=$F$34:$F$66)*$G$34:$G$66) -> 5001
D160: 87 | E160: 5631 | F160: Antioquia | G160: Sabaneta | H160: 0 | I160: 0 | J160: =SUM((F160=$F$34:$F$66)*$G$34:$G$66) -> 5001
D161: 88 | E161: 5642 | F161: Antioquia | G161: Salgar | H161: 0 | I161: 0 | J161: =SUM((F161=$F$34:$F$66)*$G$34:$G$66) -> 5001
D162: 89 | E162: 5647 | F162: Antioquia | G162: San Andrés de Cuerquía | H162: 0 | I162: 0 | J162: =SUM((F162=$F$34:$F$66)*$G$34:$G$66) -> 5001
D163: 90 | E163: 5649 | F163: Antioquia | G163: San Carlos | H163: 0 | I163: 0 | J163: =SUM((F163=$F$34:$F$66)*$G$34:$G$66) -> 5001
D164: 91 | E164: 5652 | F164: Antioquia | G164: San Francisco | H164: 0 | I164: 0 | J164: =SUM((F164=$F$34:$F$66)*$G$34:$G$66) -> 5001
D165: 92 | E165: 5656 | F165: Antioquia | G165: San Jerónimo | H165: 0 | I165: 0 | J165: =SUM((F165=$F$34:$F$66)*$G$34:$G$66) -> 5001
D166: 93 | E166: 5658 | F166: Antioquia | G166: San José de La Montaña | H166: 0 | I166: 0 | J166: =SUM((F166=$F$34:$F$66)*$G$34:$G$66) -> 5001
D167: 94 | E167: 5659 | F167: Antioquia | G167: San Juan de Urabá | H167: 0 | I167: 0 | J167: =SUM((F167=$F$34:$F$66)*$G$34:$G$66) -> 5001
D168: 95 | E168: 5660 | F168: Antioquia | G168: San Luis | H168: 0 | I168: 0 | J168: =SUM((F168=$F$34:$F$66)*$G$34:$G$66) -> 5001
D169: 96 | E169: 5664 | F169: Antioquia | G169: San Pedro | H169: 0 | I169: 0 | J169: =SUM((F169=$F$34:$F$66)*$G$34:$G$66) -> 5001
D170: 97 | E170: 5665 | F170: Antioquia | G170: San Pedro de Uraba | H170: 0 | I170: 0 | J170: =SUM((F170=$F$34:$F$66)*$G$34:$G$66) -> 5001
D171: 98 | E171: 5667 | F171: Antioquia | G171: San Rafael | H171: 0 | I171: 0 | J171: =SUM((F171=$F$34:$F$66)*$G$34:$G$66) -> 5001
D172: 99 | E172: 5670 | F172: Antioquia | G172: San Roque | H172: 0 | I172: 0 | J172: =SUM((F172=$F$34:$F$66)*$G$34:$G$66) -> 5001
D173: 100 | E173: 5674 | F173: Antioquia | G173: San Vicente | H173: 0 | I173: 0 | J173: =SUM((F173=$F$34:$F$66)*$G$34:$G$66) -> 5001
D174: 101 | E174: 5679 | F174: Antioquia | G174: Santa Bárbara | H174: 0 | I174: 0 | J174: =SUM((F174=$F$34:$F$66)*$G$34:$G$66) -> 5001
D175: 102 | E175: 5686 | F175: Antioquia | G175: Santa Rosa de Osos | H175: 0 | I175: 0 | J175: =SUM((F175=$F$34:$F$66)*$G$34:$G$66) -> 5001
D176: 103 | E176: 5690 | F176: Antioquia | G176: Santo Domingo | H176: 0 | I176: 0 | J176: =SUM((F176=$F$34:$F$66)*$G$34:$G$66) -> 5001
D177: 104 | E177: 5697 | F177: Antioquia | G177: El Santuario | H177: 0 | I177: 0 | J177: =SUM((F177=$F$34:$F$66)*$G$34:$G$66) -> 5001
D178: 105 | E178: 5736 | F178: Antioquia | G178: Segovia | H178: 0 | I178: 0 | J178: =SUM((F178=$F$34:$F$66)*$G$34:$G$66) -> 5001
D179: 106 | E179: 5756 | F179: Antioquia | G179: Sonson | H179: 0 | I179: 0 | J179: =SUM((F179=$F$34:$F$66)*$G$34:$G$66) -> 5001
D180: 107 | E180: 5761 | F180: Antioquia | G180: Sopetrán | H180: 0 | I180: 0 | J180: =SUM((F180=$F$34:$F$66)*$G$34:$G$66) -> 5001
D181: 108 | E181: 5789 | F181: Antioquia | G181: Támesis | H181: 0 | I181: 0 | J181: =SUM((F181=$F$34:$F$66)*$G$34:$G$66) -> 5001
D182: 109 | E182: 5790 | F182: Antioquia | G182: Tarazá | H182: 0 | I182: 0 | J182: =SUM((F182=$F$34:$F$66)*$G$34:$G$66) -> 5001
D183: 110 | E183: 5792 | F183: Antioquia | G183: Tarso | H183: 0 | I183: 0 | J183: =SUM((F183=$F$34:$F$66)*$G$34:$G$66) -> 5001
D184: 111 | E184: 5809 | F184: Antioquia | G184: Titiribí | H184: 0 | I184: 0 | J184: =SUM((F184=$F$34:$F$66)*$G$34:$G$66) -> 5001
D185: 112 | E185: 5819 | F185: Antioquia | G185: Toledo | H185: 0 | I185: 0 | J185: =SUM((F185=$F$34:$F$66)*$G$34:$G$66) -> 5001
D186: 113 | E186: 5837 | F186: Antioquia | G186: Turbo | H186: 0 | I186: 0 | J186: =SUM((F186=$F$34:$F$66)*$G$34:$G$66) -> 5001
D187: 114 | E187: 5842 | F187: Antioquia | G187: Uramita | H187: 0 | I187: 0 | J187: =SUM((F187=$F$34:$F$66)*$G$34:$G$66) -> 5001
D188: 115 | E188: 5847 | F188: Antioquia | G188: Urrao | H188: 0 | I188: 0 | J188: =SUM((F188=$F$34:$F$66)*$G$34:$G$66) -> 5001
D189: 116 | E189: 5854 | F189: Antioquia | G189: Valdivia | H189: 0 | I189: 0 | J189: =SUM((F189=$F$34:$F$66)*$G$34:$G$66) -> 5001
D190: 117 | E190: 5856 | F190: Antioquia | G190: Valparaíso | H190: 0 | I190: 0 | J190: =SUM((F190=$F$34:$F$66)*$G$34:$G$66) -> 5001
D191: 118 | E191: 5858 | F191: Antioquia | G191: Vegachí | H191: 0 | I191: 0 | J191: =SUM((F191=$F$34:$F$66)*$G$34:$G$66) -> 5001
D192: 119 | E192: 5861 | F192: Antioquia | G192: Venecia | H192: 0 | I192: 0 | J192: =SUM((F192=$F$34:$F$66)*$G$34:$G$66) -> 5001
D193: 120 | E193: 5873 | F193: Antioquia | G193: Vigía del Fuerte | H193: 0 | I193: 0 | J193: =SUM((F193=$F$34:$F$66)*$G$34:$G$66) -> 5001
D194: 121 | E194: 5885 | F194: Antioquia | G194: Yalí | H194: 0 | I194: 0 | J194: =SUM((F194=$F$34:$F$66)*$G$34:$G$66) -> 5001
D195: 122 | E195: 5887 | F195: Antioquia | G195: Yarumal | H195: 0 | I195: 0 | J195: =SUM((F195=$F$34:$F$66)*$G$34:$G$66) -> 5001
D196: 123 | E196: 5890 | F196: Antioquia | G196: Yolombó | H196: 0 | I196: 0 | J196: =SUM((F196=$F$34:$F$66)*$G$34:$G$66) -> 5001
D197: 124 | E197: 5893 | F197: Antioquia | G197: Yondó | H197: 0 | I197: 0 | J197: =SUM((F197=$F$34:$F$66)*$G$34:$G$66) -> 5001
D198: 125 | E198: 5895 | F198: Antioquia | G198: Zaragoza | H198: 0 | I198: 0 | J198: =SUM((F198=$F$34:$F$66)*$G$34:$G$66) -> 5001
D199: 126 | E199: 8001 | F199: Atlántico | G199: Barranquilla | H199: 1 | I199: 1 | J199: =SUM((F199=$F$34:$F$66)*$G$34:$G$66) -> 8001
D200: 127 | E200: 8078 | F200: Atlántico | G200: Baranoa | H200: 0 | I200: 0 | J200: =SUM((F200=$F$34:$F$66)*$G$34:$G$66) -> 8001
D201: 128 | E201: 8137 | F201: Atlántico | G201: Campo de La Cruz | H201: 0 | I201: 0 | J201: =SUM((F201=$F$34:$F$66)*$G$34:$G$66) -> 8001
D202: 129 | E202: 8141 | F202: Atlántico | G202: Candelaria | H202: =IF(RIGHT(E202,3)="001",1,0) -> 0 | I202: 0 | J202: =SUM((F202=$F$34:$F$66)*$G$34:$G$66) -> 8001
D203: 130 | E203: 8296 | F203: Atlántico | G203: Galapa | H203: 0 | I203: 0 | J203: =SUM((F203=$F$34:$F$66)*$G$34:$G$66) -> 8001
D204: 131 | E204: 8372 | F204: Atlántico | G204: Juan de Acosta | H204: 0 | I204: 0 | J204: =SUM((F204=$F$34:$F$66)*$G$34:$G$66) -> 8001
D205: 132 | E205: 8421 | F205: Atlántico | G205: Luruaco | H205: 0 | I205: 0 | J205: =SUM((F205=$F$34:$F$66)*$G$34:$G$66) -> 8001
D206: 133 | E206: 8433 | F206: Atlántico | G206: Malambo | H206: 0 | I206: 0 | J206: =SUM((F206=$F$34:$F$66)*$G$34:$G$66) -> 8001
D207: 134 | E207: 8436 | F207: Atlántico | G207: Manatí | H207: 0 | I207: 0 | J207: =SUM((F207=$F$34:$F$66)*$G$34:$G$66) -> 8001
D208: 135 | E208: 8520 | F208: Atlántico | G208: Palmar de Varela | H208: 0 | I208: 0 | J208: =SUM((F208=$F$34:$F$66)*$G$34:$G$66) -> 8001
D209: 136 | E209: 8549 | F209: Atlántico | G209: Piojó | H209: 0 | I209: 0 | J209: =SUM((F209=$F$34:$F$66)*$G$34:$G$66) -> 8001
D210: 137 | E210: 8558 | F210: Atlántico | G210: Polonuevo | H210: 0 | I210: 0 | J210: =SUM((F210=$F$34:$F$66)*$G$34:$G$66) -> 8001
D211: 138 | E211: 8560 | F211: Atlántico | G211: Ponedera | H211: 0 | I211: 0 | J211: =SUM((F211=$F$34:$F$66)*$G$34:$G$66) -> 8001
D212: 139 | E212: 8573 | F212: Atlántico | G212: Puerto Colombia | H212: 0 | I212: 0 | J212: =SUM((F212=$F$34:$F$66)*$G$34:$G$66) -> 8001
D213: 140 | E213: 8606 | F213: Atlántico | G213: Repelón | H213: 0 | I213: 0 | J213: =SUM((F213=$F$34:$F$66)*$G$34:$G$66) -> 8001
... 983 more rows

Sheet Clúster
G2: =Portada!$F$2 -> Modelo Empresa Eficiente Fija
G3: Información sobre agrupación de municipios
B6: Detalle de empaquetamiento de servicios
J8: Total 2022-4
E9: id | F9: id DANE | G9: Departamento | H9: Municipio | J9: Total Lineas | K9: TF | L9: IIF | M9: TV | N9: TF_IF | O9: TF_TV | P9: IF_TV | Q9: TF_IF_TV | R9: AuxT | S9: AuxItn | T9: AuxTV | V9: Check
E10: 1 | F10: 5001 | G10: Antioquia | H10: Medellín | J10: =+SUM(K10:Q10) -> 1008567 | K10: 159133 | L10: 143788 | M10: 64632 | N10: 91270 | O10: 16722 | P10: 85982 | Q10: 447040 | R10: =+K10 -> 159133 | S10: =+L10 -> 143788 | T10: =+M10 -> 64632 | U10: =+R10-K10 -> 0 | V10: =+S10-L10 -> 0 | W10: =+T10-M10 -> 0
E11: 2 | F11: 5002 | G11: Antioquia | H11: Abejorral | J11: 2806 | K11: 250 | L11: 1968 | M11: 236 | N11: 242 | O11: 2 | P11: 64 | Q11: 44 | R11: 250 | S11: 1968 | T11: 236 | U11: =+R11-K11 -> 0 | V11: 0 | W11: 0
E12: 3 | F12: 5004 | G12: Antioquia | H12: Abriaquí | J12: 452 | K12: 30 | L12: 95 | M12: 273 | N12: 54 | O12: 0 | P12: 0 | Q12: 0 | R12: 30 | S12: 95 | T12: 273 | U12: 0 | V12: 0 | W12: 0
E13: 4 | F13: 5021 | G13: Antioquia | H13: Alejandría | J13: 780 | K13: 46 | L13: 601 | M13: 102 | N13: 8 | O13: 0 | P13: 5 | Q13: 18 | R13: 46 | S13: 601 | T13: 102 | U13: 0 | V13: 0 | W13: 0
E14: 5 | F14: 5030 | G14: Antioquia | H14: Amagá | J14: 4476 | K14: 411 | L14: 2251 | M14: 665 | N14: 322 | O14: 3 | P14: 591 | Q14: 233 | R14: 411 | S14: 2251 | T14: 665 | U14: 0 | V14: 0 | W14: 0
E15: 6 | F15: 5031 | G15: Antioquia | H15: Amalfi | J15: 2462 | K15: 214 | L15: 1141 | M15: 876 | N15: 180 | O15: 0 | P15: 28 | Q15: 23 | R15: 214 | S15: 1141 | T15: 876 | U15: 0 | V15: 0 | W15: 0
E16: 7 | F16: 5034 | G16: Antioquia | H16: Andes | J16: 6518 | K16: 1424 | L16: 2327 | M16: 825 | N16: 890 | O16: 3 | P16: 686 | Q16: 363 | R16: 1424 | S16: 2327 | T16: 825 | U16: 0 | V16: 0 | W16: 0
E17: 8 | F17: 5036 | G17: Antioquia | H17: Angelópolis | J17: 716 | K17: 45 | L17: 514 | M17: 105 | N17: 10 | O17: 0 | P17: 25 | Q17: 17 | R17: 45 | S17: 514 | T17: 105 | U17: 0 | V17: 0 | W17: 0
E18: 9 | F18: 5038 | G18: Antioquia | H18: Angostura | J18: 562 | K18: 67 | L18: 258 | M18: 59 | N18: 92 | O18: 0 | P18: 62 | Q18: 24 | R18: 67 | S18: 258 | T18: 59 | U18: 0 | V18: 0 | W18: 0
E19: 10 | F19: 5040 | G19: Antioquia | H19: Anorí | J19: 2666 | K19: 76 | L19: 1608 | M19: 727 | N19: 163 | O19: 0 | P19: 67 | Q19: 25 | R19: 76 | S19: 1608 | T19: 727 | U19: 0 | V19: 0 | W19: 0
E20: 11 | F20: 5042 | G20: Antioquia | H20: Santafé de Antioquia | J20: 5512 | K20: 540 | L20: 1277 | M20: 1112 | N20: 662 | O20: 5 | P20: 483 | Q20: 1433 | R20: 540 | S20: 1277 | T20: 1112 | U20: 0 | V20: 0 | W20: 0
E21: 12 | F21: 5044 | G21: Antioquia | H21: Anza | J21: 1175 | K21: 34 | L21: 995 | M21: 92 | N21: 54 | O21: 0 | P21: 0 | Q21: 0 | R21: 34 | S21: 995 | T21: 92 | U21: 0 | V21: 0 | W21: 0
E22: 13 | F22: 5045 | G22: Antioquia | H22: Apartadó | J22: 33166 | K22: 1766 | L22: 9472 | M22: 2835 | N22: 4949 | O22: 133 | P22: 6080 | Q22: 7931 | R22: 1766 | S22: 9472 | T22: 2835 | U22: 0 | V22: 0 | W22: 0
E23: 14 | F23: 5051 | G23: Antioquia | H23: Arboletes | J23: 2426 | K23: 73 | L23: 1078 | M23: 867 | N23: 83 | O23: 1 | P23: 278 | Q23: 46 | R23: 73 | S23: 1078 | T23: 867 | U23: 0 | V23: 0 | W23: 0
E24: 15 | F24: 5055 | G24: Antioquia | H24: Argelia | J24: 341 | K24: 59 | L24: 174 | M24: 34 | N24: 74 | O24: 0 | P24: 0 | Q24: 0 | R24: 59 | S24: 174 | T24: 34 | U24: 0 | V24: 0 | W24: 0
E25: 16 | F25: 5059 | G25: Antioquia | H25: Armenia | J25: 1102 | K25: 56 | L25: 922 | M25: 53 | N25: 26 | O25: 0 | P25: 34 | Q25: 11 | R25: 56 | S25: 922 | T25: 53 | U25: 0 | V25: 0 | W25: 0
E26: 17 | F26: 5079 | G26: Antioquia | H26: Barbosa | J26: 12123 | K26: 1197 | L26: 1032 | M26: 1992 | N26: 734 | O26: 220 | P26: 1266 | Q26: 5682 | R26: 1197 | S26: 1032 | T26: 1992 | U26: 0 | V26: 0 | W26: 0
E27: 18 | F27: 5086 | G27: Antioquia | H27: Belmira | J27: 640 | K27: 72 | L27: 226 | M27: 182 | N27: 160 | O27: 0 | P27: 0 | Q27: 0 | R27: 72 | S27: 226 | T27: 182 | U27: 0 | V27: 0 | W27: 0
E28: 19 | F28: 5088 | G28: Antioquia | H28: Bello | J28: 180082 | K28: 17267 | L28: 14674 | M28: 18004 | N28: 13582 | O28: 2079 | P28: 20609 | Q28: 93867 | R28: 17267 | S28: 14674 | T28: 18004 | U28: 0 | V28: 0 | W28: 0
E29: 20 | F29: 5091 | G29: Antioquia | H29: Betania | J29: 1240 | K29: 74 | L29: 795 | M29: 227 | N29: 54 | O29: 0 | P29: 57 | Q29: 33 | R29: 74 | S29: 795 | T29: 227 | U29: 0 | V29: 0 | W29: 0
E30: 21 | F30: 5093 | G30: Antioquia | H30: Betulia | J30: 2838 | K30: 125 | L30: 2068 | M30: 229 | N30: 228 | O30: 0 | P30: 166 | Q30: 22 | R30: 125 | S30: 2068 | T30: 229 | U30: 0 | V30: 0 | W30: 0
E31: 22 | F31: 5101 | G31: Antioquia | H31: Ciudad Bolívar | J31: 4204 | K31: 429 | L31: 2009 | M31: 591 | N31: 513 | O31: 4 | P31: 282 | Q31: 376 | R31: 429 | S31: 2009 | T31: 591 | U31: 0 | V31: 0 | W31: 0
E32: 23 | F32: 5107 | G32: Antioquia | H32: Briceño | J32: 846 | K32: 33 | L32: 692 | M32: 59 | N32: 62 | O32: 0 | P32: 0 | Q32: 0 | R32: 33 | S32: 692 | T32: 59 | U32: 0 | V32: 0 | W32: 0
E33: 24 | F33: 5113 | G33: Antioquia | H33: Buriticá | J33: 1439 | K33: 51 | L33: 769 | M33: 359 | N33: 72 | O33: 0 | P33: 148 | Q33: 40 | R33: 51 | S33: 769 | T33: 359 | U33: 0 | V33: 0 | W33: 0
E34: 25 | F34: 5120 | G34: Antioquia | H34: Cáceres | J34: 2103 | K34: 68 | L34: 860 | M34: 530 | N34: 314 | O34: 1 | P34: 257 | Q34: 73 | R34: 68 | S34: 860 | T34: 530 | U34: 0 | V34: 0 | W34: 0
E35: 26 | F35: 5125 | G35: Antioquia | H35: Caicedo | J35: 505 | K35: 49 | L35: 276 | M35: 64 | N35: 64 | O35: 0 | P35: 35 | Q35: 17 | R35: 49 | S35: 276 | T35: 64 | U35: 0 | V35: 0 | W35: 0
E36: 27 | F36: 5129 | G36: Antioquia | H36: Caldas | J36: 27664 | K36: 3409 | L36: 2083 | M36: 2026 | N36: 1652 | O36: 632 | P36: 2636 | Q36: 15226 | R36: 3409 | S36: 2083 | T36: 2026 | U36: 0 | V36: 0 | W36: 0
E37: 28 | F37: 5134 | G37: Antioquia | H37: Campamento | J37: 658 | K37: 39 | L37: 274 | M37: 190 | N37: 71 | O37: 0 | P37: 66 | Q37: 18 | R37: 39 | S37: 274 | T37: 190 | U37: 0 | V37: 0 | W37: 0
E38: 29 | F38: 5138 | G38: Antioquia | H38: Cañasgordas | J38: 1513 | K38: 85 | L38: 662 | M38: 369 | N38: 234 | O38: 2 | P38: 96 | Q38: 65 | R38: 85 | S38: 662 | T38: 369 | U38: 0 | V38: 0 | W38: 0
E39: 30 | F39: 5142 | G39: Antioquia | H39: Caracolí | J39: 612 | K39: 64 | L39: 244 | M39: 127 | N39: 115 | O39: 0 | P39: 37 | Q39: 25 | R39: 64 | S39: 244 | T39: 127 | U39: 0 | V39: 0 | W39: 0
E40: 31 | F40: 5145 | G40: Antioquia | H40: Caramanta | J40: 1283 | K40: 60 | L40: 343 | M40: 742 | N40: 116 | O40: 0 | P40: 15 | Q40: 7 | R40: 60 | S40: 343 | T40: 742 | U40: 0 | V40: 0 | W40: 0
E41: 32 | F41: 5147 | G41: Antioquia | H41: Carepa | J41: 8228 | K41: 279 | L41: 2797 | M41: 958 | N41: 1436 | O41: 38 | P41: 1154 | Q41: 1566 | R41: 279 | S41: 2797 | T41: 958 | U41: 0 | V41: 0 | W41: 0
E42: 33 | F42: 5148 | G42: Antioquia | H42: El Carmen de Viboral | J42: 17606 | K42: 827 | L42: 10315 | M42: 1948 | N42: 1084 | O42: 71 | P42: 965 | Q42: 2396 | R42: 827 | S42: 10315 | T42: 1948 | U42: 0 | V42: 0 | W42: 0
E43: 34 | F43: 5150 | G43: Antioquia | H43: Carolina | J43: 727 | K43: 132 | L43: 184 | M43: 113 | N43: 90 | O43: 1 | P43: 66 | Q43: 141 | R43: 132 | S43: 184 | T43: 113 | U43: 0 | V43: 0 | W43: 0
E44: 35 | F44: 5154 | G44: Antioquia | H44: Caucasia | J44: 19520 | K44: 762 | L44: 7808 | M44: 2454 | N44: 2978 | O44: 32 | P44: 3405 | Q44: 2081 | R44: 762 | S44: 7808 | T44: 2454 | U44: 0 | V44: 0 | W44: 0
E45: 36 | F45: 5172 | G45: Antioquia | H45: Chigorodó | J45: 11884 | K45: 421 | L45: 5110 | M45: 1401 | N45: 1814 | O45: 44 | P45: 1402 | Q45: 1692 | R45: 421 | S45: 5110 | T45: 1401 | U45: 0 | V45: 0 | W45: 0
E46: 37 | F46: 5190 | G46: Antioquia | H46: Cisneros | J46: 2904 | K46: 185 | L46: 1641 | M46: 476 | N46: 450 | O46: 1 | P46: 80 | Q46: 71 | R46: 185 | S46: 1641 | T46: 476 | U46: 0 | V46: 0 | W46: 0
E47: 38 | F47: 5197 | G47: Antioquia | H47: Cocorná | J47: 6102 | K47: 102 | L47: 5378 | M47: 523 | N47: 72 | O47: 0 | P47: 19 | Q47: 8 | R47: 102 | S47: 5378 | T47: 523 | U47: 0 | V47: 0 | W47: 0
E48: 39 | F48: 5206 | G48: Antioquia | H48: Concepción | J48: 647 | K48: 88 | L48: 388 | M48: 102 | N48: 61 | O48: 0 | P48: 2 | Q48: 6 | R48: 88 | S48: 388 | T48: 102 | U48: 0 | V48: 0 | W48: 0
E49: 40 | F49: 5209 | G49: Antioquia | H49: Concordia | J49: 2028 | K49: 182 | L49: 842 | M49: 493 | N49: 146 | O49: 4 | P49: 230 | Q49: 131 | R49: 182 | S49: 842 | T49: 493 | U49: 0 | V49: 0 | W49: 0
E50: 41 | F50: 5212 | G50: Antioquia | H50: Copacabana | J50: 27631 | K50: 3197 | L50: 2215 | M50: 1535 | N50: 1883 | O50: 401 | P50: 3074 | Q50: 15326 | R50: 3197 | S50: 2215 | T50: 1535 | U50: 0 | V50: 0 | W50: 0
E51: 42 | F51: 5234 | G51: Antioquia | H51: Dabeiba | J51: 2377 | K51: 119 | L51: 1197 | M51: 611 | N51: 236 | O51: 0 | P51: 144 | Q51: 70 | R51: 119 | S51: 1197 | T51: 611 | U51: 0 | V51: 0 | W51: 0
E52: 43 | F52: 5237 | G52: Antioquia | H52: Don Matías | J52: 4937 | K52: 346 | L52: 1675 | M52: 2264 | N52: 376 | O52: 0 | P52: 132 | Q52: 144 | R52: 346 | S52: 1675 | T52: 2264 | U52: 0 | V52: 0 | W52: 0
E53: 44 | F53: 5240 | G53: Antioquia | H53: Ebéjico | J53: 2079 | K53: 148 | L53: 1319 | M53: 166 | N53: 126 | O53: 0 | P53: 183 | Q53: 137 | R53: 148 | S53: 1319 | T53: 166 | U53: 0 | V53: 0 | W53: 0
E54: 45 | F54: 5250 | G54: Antioquia | H54: El Bagre | J54: 14694 | K54: 161 | L54: 12086 | M54: 1354 | N54: 675 | O54: 2 | P54: 234 | Q54: 182 | R54: 161 | S54: 12086 | T54: 1354 | U54: 0 | V54: 0 | W54: 0
E55: 46 | F55: 5264 | G55: Antioquia | H55: Entrerrios | J55: 1400 | K55: 138 | L55: 501 | M55: 608 | N55: 63 | O55: 1 | P55: 41 | Q55: 48 | R55: 138 | S55: 501 | T55: 608 | U55: 0 | V55: 0 | W55: 0
E56: 47 | F56: 5266 | G56: Antioquia | H56: Envigado | J56: 109213 | K56: 13459 | L56: 11553 | M56: 7244 | N56: 9116 | O56: 2618 | P56: 9474 | Q56: 55749 | R56: 13459 | S56: 11553 | T56: 7244 | U56: 0 | V56: 0 | W56: 0
E57: 48 | F57: 5282 | G57: Antioquia | H57: Fredonia | J57: 2877 | K57: 362 | L57: 813 | M57: 746 | N57: 302 | O57: 4 | P57: 336 | Q57: 314 | R57: 362 | S57: 813 | T57: 746 | U57: 0 | V57: 0 | W57: 0
E58: 49 | F58: 5284 | G58: Antioquia | H58: Frontino | J58: 3901 | K58: 587 | L58: 1341 | M58: 1339 | N58: 384 | O58: 1 | P58: 128 | Q58: 121 | R58: 587 | S58: 1341 | T58: 1339 | U58: 0 | V58: 0 | W58: 0
E59: 50 | F59: 5306 | G59: Antioquia | H59: Giraldo | J59: 804 | K59: 42 | L59: 548 | M59: 164 | N59: 9 | O59: 0 | P59: 25 | Q59: 16 | R59: 42 | S59: 548 | T59: 164 | U59: 0 | V59: 0 | W59: 0
E60: 51 | F60: 5308 | G60: Antioquia | H60: Girardota | J60: 14684 | K60: 1952 | L60: 1354 | M60: 1644 | N60: 966 | O60: 295 | P60: 2034 | Q60: 6439 | R60: 1952 | S60: 1354 | T60: 1644 | U60: 0 | V60: 0 | W60: 0
E61: 52 | F61: 5310 | G61: Antioquia | H61: Gómez Plata | J61: 1289 | K61: 176 | L61: 462 | M61: 257 | N61: 182 | O61: 1 | P61: 102 | Q61: 109 | R61: 176 | S61: 462 | T61: 257 | U61: 0 | V61: 0 | W61: 0
E62: 53 | F62: 5313 | G62: Antioquia | H62: Granada | J62: 3703 | K62: 53 | L62: 3404 | M62: 189 | N62: 36 | O62: 0 | P62: 20 | Q62: 1 | R62: 53 | S62: 3404 | T62: 189 | U62: 0 | V62: 0 | W62: 0
E63: 54 | F63: 5315 | G63: Antioquia | H63: Guadalupe | J63: 538 | K63: 48 | L63: 211 | M63: 75 | N63: 39 | O63: 5 | P63: 76 | Q63: 84 | R63: 48 | S63: 211 | T63: 75 | U63: 0 | V63: 0 | W63: 0
E64: 55 | F64: 5318 | G64: Antioquia | H64: Guarne | J64: 27814 | K64: 1297 | L64: 14619 | M64: 3521 | N64: 1753 | O64: 128 | P64: 1519 | Q64: 4977 | R64: 1297 | S64: 14619 | T64: 3521 | U64: 0 | V64: 0 | W64: 0
E65: 56 | F65: 5321 | G65: Antioquia | H65: Guatapé | J65: 2787 | K65: 149 | L65: 1735 | M65: 520 | N65: 128 | O65: 0 | P65: 146 | Q65: 109 | R65: 149 | S65: 1735 | T65: 520 | U65: 0 | V65: 0 | W65: 0
E66: 57 | F66: 5347 | G66: Antioquia | H66: Heliconia | J66: 1043 | K66: 91 | L66: 737 | M66: 62 | N66: 57 | O66: 1 | P66: 53 | Q66: 42 | R66: 91 | S66: 737 | T66: 62 | U66: 0 | V66: 0 | W66: 0
E67: 58 | F67: 5353 | G67: Antioquia | H67: Hispania | J67: 727 | K67: 57 | L67: 365 | M67: 114 | N67: 60 | O67: 1 | P67: 70 | Q67: 60 | R67: 57 | S67: 365 | T67: 114 | U67: 0 | V67: 0 | W67: 0
E68: 59 | F68: 5360 | G68: Antioquia | H68: Itagui | J68: 108344 | K68: 14010 | L68: 11495 | M68: 5582 | N68: 7876 | O68: 2734 | P68: 9938 | Q68: 56709 | R68: 14010 | S68: 11495 | T68: 5582 | U68: 0 | V68: 0 | W68: 0
E69: 60 | F69: 5361 | G69: Antioquia | H69: Ituango | J69: 1617 | K69: 90 | L69: 683 | M69: 374 | N69: 228 | O69: 0 | P69: 154 | Q69: 88 | R69: 90 | S69: 683 | T69: 374 | U69: 0 | V69: 0 | W69: 0
E70: 61 | F70: 5364 | G70: Antioquia | H70: Jardín | J70: 2601 | K70: 247 | L70: 1499 | M70: 365 | N70: 202 | O70: 4 | P70: 136 | Q70: 148 | R70: 247 | S70: 1499 | T70: 365 | U70: 0 | V70: 0 | W70: 0
E71: 62 | F71: 5368 | G71: Antioquia | H71: Jericó | J71: 4422 | K71: 308 | L71: 1070 | M71: 322 | N71: 128 | O71: 2 | P71: 2450 | Q71: 142 | R71: 308 | S71: 1070 | T71: 322 | U71: 0 | V71: 0 | W71: 0
E72: 63 | F72: 5376 | G72: Antioquia | H72: La Ceja | J72: 29822 | K72: 2651 | L72: 9546 | M72: 6119 | N72: 2575 | O72: 202 | P72: 2666 | Q72: 6063 | R72: 2651 | S72: 9546 | T72: 6119 | U72: 0 | V72: 0 | W72: 0
E73: 64 | F73: 5380 | G73: Antioquia | H73: La Estrella | J73: 28876 | K73: 3096 | L73: 3106 | M73: 1715 | N73: 2183 | O73: 575 | P73: 2755 | Q73: 15446 | R73: 3096 | S73: 3106 | T73: 1715 | U73: 0 | V73: 0 | W73: 0
E74: 65 | F74: 5390 | G74: Antioquia | H74: La Pintada | J74: =+SUM(K74:Q74) -> 2068 | K74: 118 | L74: 520 | M74: 909 | N74: 153 | O74: 2 | P74: 203 | Q74: 163 | R74: =+K74 -> 118 | S74: =+L74 -> 520 | T74: =+M74 -> 909 | U74: =+R74-K74 -> 0 | V74: =+S74-L74 -> 0 | W74: =+T74-M74 -> 0
E75: 66 | F75: 5400 | G75: Antioquia | H75: La Unión | J75: 2809 | K75: 503 | L75: 780 | M75: 726 | N75: 238 | O75: 19 | P75: 103 | Q75: 440 | R75: 503 | S75: 780 | T75: 726 | U75: 0 | V75: 0 | W75: 0
E76: 67 | F76: 5411 | G76: Antioquia | H76: Liborina | J76: 601 | K76: 61 | L76: 217 | M76: 91 | N76: 88 | O76: 0 | P76: 87 | Q76: 57 | R76: 61 | S76: 217 | T76: 91 | U76: 0 | V76: 0 | W76: 0
E77: 68 | F77: 5425 | G77: Antioquia | H77: Maceo | J77: 879 | K77: 88 | L77: 230 | M77: 410 | N77: 52 | O77: 1 | P77: 51 | Q77: 47 | R77: 88 | S77: 230 | T77: 410 | U77: 0 | V77: 0 | W77: 0
E78: 69 | F78: 5440 | G78: Antioquia | H78: Marinilla | J78: 35150 | K78: 1250 | L78: 24359 | M78: 2078 | N78: 904 | O78: 119 | P78: 2419 | Q78: 4021 | R78: 1250 | S78: 24359 | T78: 2078 | U78: 0 | V78: 0 | W78: 0
E79: 70 | F79: 5467 | G79: Antioquia | H79: Montebello | J79: 704 | K79: 62 | L79: 437 | M79: 166 | N79: 39 | O79: 0 | P79: 0 | Q79: 0 | R79: 62 | S79: 437 | T79: 166 | U79: 0 | V79: 0 | W79: 0
E80: 71 | F80: 5475 | G80: Antioquia | H80: Murindó | J80: 188 | K80: 18 | L80: 78 | M80: 53 | N80: 39 | O80: 0 | P80: 0 | Q80: 0 | R80: 18 | S80: 78 | T80: 53 | U80: 0 | V80: 0 | W80: 0
E81: 72 | F81: 5480 | G81: Antioquia | H81: Mutatá | J81: 2688 | K81: 79 | L81: 775 | M81: 1493 | N81: 201 | O81: 0 | P81: 91 | Q81: 49 | R81: 79 | S81: 775 | T81: 1493 | U81: 0 | V81: 0 | W81: 0
E82: 73 | F82: 5483 | G82: Antioquia | H82: Nariño | J82: 588 | K82: 31 | L82: 411 | M82: 97 | N82: 49 | O82: 0 | P82: 0 | Q82: 0 | R82: 31 | S82: 411 | T82: 97 | U82: 0 | V82: 0 | W82: 0
E83: 74 | F83: 5490 | G83: Antioquia | H83: Necoclí | J83: 5306 | K83: 149 | L83: 1500 | M83: 2547 | N83: 534 | O83: 0 | P83: 432 | Q83: 144 | R83: 149 | S83: 1500 | T83: 2547 | U83: 0 | V83: 0 | W83: 0
E84: 75 | F84: 5495 | G84: Antioquia | H84: Nechí | J84: 3388 | K84: 45 | L84: 1948 | M84: 1122 | N84: 273 | O84: 0 | P84: 0 | Q84: 0 | R84: 45 | S84: 1948 | T84: 1122 | U84: 0 | V84: 0 | W84: 0
E85: 76 | F85: 5501 | G85: Antioquia | H85: Olaya | J85: 473 | K85: 53 | L85: 130 | M85: 68 | N85: 108 | O85: 1 | P85: 72 | Q85: 41 | R85: 53 | S85: 130 | T85: 68 | U85: 0 | V85: 0 | W85: 0
E86: 77 | F86: 5541 | G86: Antioquia | H86: Peñol | J86: 11087 | K86: 209 | L86: 8142 | M86: 2377 | N86: 284 | O86: 0 | P86: 44 | Q86: 31 | R86: 209 | S86: 8142 | T86: 2377 | U86: 0 | V86: 0 | W86: 0
E87: 78 | F87: 5543 | G87: Antioquia | H87: Peque | J87: 568 | K87: 34 | L87: 240 | M87: 140 | N87: 154 | O87: 0 | P87: 0 | Q87: 0 | R87: 34 | S87: 240 | T87: 140 | U87: 0 | V87: 0 | W87: 0
E88: 79 | F88: 5576 | G88: Antioquia | H88: Pueblorrico | J88: 1172 | K88: 82 | L88: 534 | M88: 335 | N88: 92 | O88: 1 | P88: 51 | Q88: 77 | R88: 82 | S88: 534 | T88: 335 | U88: 0 | V88: 0 | W88: 0
E89: 80 | F89: 5579 | G89: Antioquia | H89: Puerto Berrío | J89: 12058 | K89: 605 | L89: 6637 | M89: 2879 | N89: 1284 | O89: 1 | P89: 436 | Q89: 216 | R89: 605 | S89: 6637 | T89: 2879 | U89: 0 | V89: 0 | W89: 0
E90: 81 | F90: 5585 | G90: Antioquia | H90: Puerto Nare | J90: 1621 | K90: 85 | L90: 726 | M90: 221 | N90: 187 | O90: 0 | P90: 272 | Q90: 130 | R90: 85 | S90: 726 | T90: 221 | U90: 0 | V90: 0 | W90: 0
E91: 82 | F91: 5591 | G91: Antioquia | H91: Puerto Triunfo | J91: 2116 | K91: 116 | L91: 845 | M91: 761 | N91: 214 | O91: 0 | P91: 134 | Q91: 46 | R91: 116 | S91: 845 | T91: 761 | U91: 0 | V91: 0 | W91: 0
E92: 83 | F92: 5604 | G92: Antioquia | H92: Remedios | J92: 4980 | K92: 135 | L92: 2745 | M92: 1190 | N92: 491 | O92: 3 | P92: 267 | Q92: 149 | R92: 135 | S92: 2745 | T92: 1190 | U92: 0 | V92: 0 | W92: 0
E93: 84 | F93: 5607 | G93: Antioquia | H93: Retiro | J93: 10194 | K93: 792 | L93: 1674 | M93: 1697 | N93: 1427 | O93: 56 | P93: 958 | Q93: 3590 | R93: 792 | S93: 1674 | T93: 1697 | U93: 0 | V93: 0 | W93: 0
E94: 85 | F94: 5615 | G94: Antioquia | H94: Rionegro | J94: 56139 | K94: 5765 | L94: 9199 | M94: 5779 | N94: 5201 | O94: 645 | P94: 6028 | Q94: 23522 | R94: 5765 | S94: 9199 | T94: 5779 | U94: 0 | V94: 0 | W94: 0
E95: 86 | F95: 5628 | G95: Antioquia | H95: Sabanalarga | J95: 667 | K95: 38 | L95: 328 | M95: 177 | N95: 124 | O95: 0 | P95: 0 | Q95: 0 | R95: 38 | S95: 328 | T95: 177 | U95: 0 | V95: 0 | W95: 0
E96: 87 | F96: 5631 | G96: Antioquia | H96: Sabaneta | J96: 51083 | K96: 5238 | L96: 4818 | M96: 2203 | N96: 4392 | O96: 767 | P96: 4474 | Q96: 29191 | R96: 5238 | S96: 4818 | T96: 2203 | U96: 0 | V96: 0 | W96: 0
E97: 88 | F97: 5642 | G97: Antioquia | H97: Salgar | J97: 1068 | K97: 121 | L97: 351 | M97: 352 | N97: 142 | O97: 0 | P97: 46 | Q97: 56 | R97: 121 | S97: 351 | T97: 352 | U97: 0 | V97: 0 | W97: 0
E98: 89 | F98: 5647 | G98: Antioquia | H98: San Andrés de Cuerquía | J98: 854 | K98: 46 | L98: 467 | M98: 148 | N98: 45 | O98: 0 | P98: 116 | Q98: 32 | R98: 46 | S98: 467 | T98: 148 | U98: 0 | V98: 0 | W98: 0
E99: 90 | F99: 5649 | G99: Antioquia | H99: San Carlos | J99: 2428 | K99: 85 | L99: 1469 | M99: 414 | N99: 69 | O99: 0 | P99: 355 | Q99: 36 | R99: 85 | S99: 1469 | T99: 414 | U99: 0 | V99: 0 | W99: 0
E100: 91 | F100: 5652 | G100: Antioquia | H100: San Francisco | J100: 1037 | K100: 26 | L100: 920 | M100: 67 | N100: 11 | O100: 0 | P100: 10 | Q100: 3 | R100: 26 | S100: 920 | T100: 67 | U100: 0 | V100: 0 | W100: 0
E101: 92 | F101: 5656 | G101: Antioquia | H101: San Jerónimo | J101: 5408 | K101: 261 | L101: 3262 | M101: 1070 | N101: 204 | O101: 6 | P101: 333 | Q101: 272 | R101: 261 | S101: 3262 | T101: 1070 | U101: 0 | V101: 0 | W101: 0
E102: 93 | F102: 5658 | G102: Antioquia | H102: San José de La Montaña | J102: 714 | K102: 71 | L102: 202 | M102: 233 | N102: 99 | O102: 1 | P102: 75 | Q102: 33 | R102: 71 | S102: 202 | T102: 233 | U102: 0 | V102: 0 | W102: 0
E103: 94 | F103: 5659 | G103: Antioquia | H103: San Juan de Urabá | J103: 1487 | K103: 26 | L103: 627 | M103: 639 | N103: 82 | O103: 1 | P103: 75 | Q103: 37 | R103: 26 | S103: 627 | T103: 639 | U103: 0 | V103: 0 | W103: 0
E104: 95 | F104: 5660 | G104: Antioquia | H104: San Luis | J104: 3577 | K104: 70 | L104: 2927 | M104: 304 | N104: 187 | O104: 1 | P104: 61 | Q104: 27 | R104: 70 | S104: 2927 | T104: 304 | U104: 0 | V104: 0 | W104: 0
E105: 96 | F105: 5664 | G105: Antioquia | H105: San Pedro | J105: 4995 | K105: 249 | L105: 3127 | M105: 862 | N105: 411 | O105: 1 | P105: 88 | Q105: 257 | R105: 249 | S105: 3127 | T105: 862 | U105: 0 | V105: 0 | W105: 0
E106: 97 | F106: 5665 | G106: Antioquia | H106: San Pedro de Uraba | J106: 5296 | K106: 94 | L106: 1826 | M106: 1188 | N106: 464 | O106: 0 | P106: 1675 | Q106: 49 | R106: 94 | S106: 1826 | T106: 1188 | U106: 0 | V106: 0 | W106: 0
E107: 98 | F107: 5667 | G107: Antioquia | H107: San Rafael | J107: 2112 | K107: 75 | L107: 1105 | M107: 508 | N107: 173 | O107: 1 | P107: 167 | Q107: 83 | R107: 75 | S107: 1105 | T107: 508 | U107: 0 | V107: 0 | W107: 0
E108: 99 | F108: 5670 | G108: Antioquia | H108: San Roque | J108: 2967 | K108: 164 | L108: 1713 | M108: 506 | N108: 446 | O108: 0 | P108: 73 | Q108: 65 | R108: 164 | S108: 1713 | T108: 506 | U108: 0 | V108: 0 | W108: 0
E109: 100 | F109: 5674 | G109: Antioquia | H109: San Vicente | J109: 2961 | K109: 213 | L109: 2183 | M109: 408 | N109: 92 | O109: 0 | P109: 41 | Q109: 24 | R109: 213 | S109: 2183 | T109: 408 | U109: 0 | V109: 0 | W109: 0
E110: 101 | F110: 5679 | G110: Antioquia | H110: Santa Bárbara | J110: 3528 | K110: 306 | L110: 1545 | M110: 662 | N110: 512 | O110: 2 | P110: 173 | Q110: 328 | R110: 306 | S110: 1545 | T110: 662 | U110: 0 | V110: 0 | W110: 0
E111: 102 | F111: 5686 | G111: Antioquia | H111: Santa Rosa de Osos | J111: 7093 | K111: 547 | L111: 4162 | M111: 1276 | N111: 679 | O111: 2 | P111: 288 | Q111: 139 | R111: 547 | S111: 4162 | T111: 1276 | U111: 0 | V111: 0 | W111: 0
E112: 103 | F112: 5690 | G112: Antioquia | H112: Santo Domingo | J112: 943 | K112: 84 | L112: 233 | M112: 422 | N112: 72 | O112: 1 | P112: 90 | Q112: 41 | R112: 84 | S112: 233 | T112: 422 | U112: 0 | V112: 0 | W112: 0
E113: 104 | F113: 5697 | G113: Antioquia | H113: El Santuario | J113: 12933 | K113: 570 | L113: 10309 | M113: 1264 | N113: 243 | O113: 23 | P113: 140 | Q113: 384 | R113: 570 | S113: 10309 | T113: 1264 | U113: 0 | V113: 0 | W113: 0
E114: 105 | F114: 5736 | G114: Antioquia | H114: Segovia | J114: 12857 | K114: 174 | L114: 7628 | M114: 3781 | N114: 844 | O114: 2 | P114: 245 | Q114: 183 | R114: 174 | S114: 7628 | T114: 3781 | U114: 0 | V114: 0 | W114: 0
E115: 106 | F115: 5756 | G115: Antioquia | H115: Sonson | J115: 5678 | K115: 360 | L115: 3094 | M115: 1404 | N115: 444 | O115: 0 | P115: 227 | Q115: 149 | R115: 360 | S115: 3094 | T115: 1404 | U115: 0 | V115: 0 | W115: 0
E116: 107 | F116: 5761 | G116: Antioquia | H116: Sopetrán | J116: 5111 | K116: 249 | L116: 3478 | M116: 640 | N116: 311 | O116: 2 | P116: 199 | Q116: 232 | R116: 249 | S116: 3478 | T116: 640 | U116: 0 | V116: 0 | W116: 0
E117: 108 | F117: 5789 | G117: Antioquia | H117: Támesis | J117: 11770 | K117: 295 | L117: 4067 | M117: 6661 | N117: 348 | O117: 1 | P117: 172 | Q117: 226 | R117: 295 | S117: 4067 | T117: 6661 | U117: 0 | V117: 0 | W117: 0
E118: 109 | F118: 5790 | G118: Antioquia | H118: Tarazá | J118: 4127 | K118: 74 | L118: 2000 | M118: 1040 | N118: 474 | O118: 0 | P118: 446 | Q118: 93 | R118: 74 | S118: 2000 | T118: 1040 | U118: 0 | V118: 0 | W118: 0
E119: 110 | F119: 5792 | G119: Antioquia | H119: Tarso | J119: 698 | K119: 48 | L119: 135 | M119: 218 | N119: 58 | O119: 1 | P119: 102 | Q119: 136 | R119: 48 | S119: 135 | T119: 218 | U119: 0 | V119: 0 | W119: 0
E120: 111 | F120: 5809 | G120: Antioquia | H120: Titiribí | J120: 2360 | K120: 170 | L120: 1423 | M120: 326 | N120: 233 | O120: 2 | P120: 98 | Q120: 108 | R120: 170 | S120: 1423 | T120: 326 | U120: 0 | V120: 0 | W120: 0
E121: 112 | F121: 5819 | G121: Antioquia | H121: Toledo | J121: 356 | K121: 32 | L121: 119 | M121: 145 | N121: 23 | O121: 0 | P121: 25 | Q121: 12 | R121: 32 | S121: 119 | T121: 145 | U121: 0 | V121: 0 | W121: 0
E122: 113 | F122: 5837 | G122: Antioquia | H122: Turbo | J122: 21509 | K122: 719 | L122: 9061 | M122: 5043 | N122: 2659 | O122: 37 | P122: 2363 | Q122: 1627 | R122: 719 | S122: 9061 | T122: 5043 | U122: 0 | V122: 0 | W122: 0
E123: 114 | F123: 5842 | G123: Antioquia | H123: Uramita | J123: 578 | K123: 40 | L123: 82 | M123: 258 | N123: 100 | O123: 0 | P123: 38 | Q123: 60 | R123: 40 | S123: 82 | T123: 258 | U123: 0 | V123: 0 | W123: 0
E124: 115 | F124: 5847 | G124: Antioquia | H124: Urrao | J124: 3510 | K124: 244 | L124: 1786 | M124: 766 | N124: 497 | O124: 1 | P124: 114 | Q124: 102 | R124: 244 | S124: 1786 | T124: 766 | U124: 0 | V124: 0 | W124: 0
E125: 116 | F125: 5854 | G125: Antioquia | H125: Valdivia | J125: 1523 | K125: 39 | L125: 854 | M125: 467 | N125: 68 | O125: 2 | P125: 50 | Q125: 43 | R125: 39 | S125: 854 | T125: 467 | U125: 0 | V125: 0 | W125: 0
E126: 117 | F126: 5856 | G126: Antioquia | H126: Valparaíso | J126: 851 | K126: 90 | L126: 353 | M126: 159 | N126: 108 | O126: 1 | P126: 63 | Q126: 77 | R126: 90 | S126: 353 | T126: 159 | U126: 0 | V126: 0 | W126: 0
E127: 118 | F127: 5858 | G127: Antioquia | H127: Vegachí | J127: 1406 | K127: 84 | L127: 392 | M127: 581 | N127: 214 | O127: 0 | P127: 80 | Q127: 55 | R127: 84 | S127: 392 | T127: 581 | U127: 0 | V127: 0 | W127: 0
E128: 119 | F128: 5861 | G128: Antioquia | H128: Venecia | J128: 2322 | K128: 219 | L128: 736 | M128: 544 | N128: 234 | O128: 6 | P128: 267 | Q128: 316 | R128: 219 | S128: 736 | T128: 544 | U128: 0 | V128: 0 | W128: 0
E129: 120 | F129: 5873 | G129: Antioquia | H129: Vigía del Fuerte | J129: 319 | K129: 30 | L129: 99 | M129: 114 | N129: 76 | O129: 0 | P129: 0 | Q129: 0 | R129: 30 | S129: 99 | T129: 114 | U129: 0 | V129: 0 | W129: 0
E130: 121 | F130: 5885 | G130: Antioquia | H130: Yalí | J130: 452 | K130: 49 | L130: 91 | M130: 206 | N130: 51 | O130: 1 | P130: 23 | Q130: 31 | R130: 49 | S130: 91 | T130: 206 | U130: 0 | V130: 0 | W130: 0
E131: 122 | F131: 5887 | G131: Antioquia | H131: Yarumal | J131: 6334 | K131: 480 | L131: 3382 | M131: 903 | N131: 883 | O131: 8 | P131: 337 | Q131: 341 | R131: 480 | S131: 3382 | T131: 903 | U131: 0 | V131: 0 | W131: 0
E132: 123 | F132: 5890 | G132: Antioquia | H132: Yolombó | J132: 1938 | K132: 152 | L132: 437 | M132: 717 | N132: 294 | O132: 1 | P132: 177 | Q132: 160 | R132: 152 | S132: 437 | T132: 717 | U132: 0 | V132: 0 | W132: 0
E133: 124 | F133: 5893 | G133: Antioquia | H133: Yondó | J133: 2102 | K133: 45 | L133: 1055 | M133: 578 | N133: 122 | O133: 0 | P133: 291 | Q133: 11 | R133: 45 | S133: 1055 | T133: 578 | U133: 0 | V133: 0 | W133: 0
E134: 125 | F134: 5895 | G134: Antioquia | H134: Zaragoza | J134: 3803 | K134: 91 | L134: 1779 | M134: 1107 | N134: 415 | O134: 1 | P134: 256 | Q134: 154 | R134: 91 | S134: 1779 | T134: 1107 | U134: 0 | V134: 0 | W134: 0
E135: 126 | F135: 8001 | G135: Atlántico | H135: Barranquilla | J135: 371611 | K135: 34343 | L135: 64202 | M135: 27034 | N135: 60759 | O135: 2133 | P135: 13748 | Q135: 169392 | R135: 34343 | S135: 64202 | T135: 27034 | U135: 0 | V135: 0 | W135: 0
E136: 127 | F136: 8078 | G136: Atlántico | H136: Baranoa | J136: 6576 | K136: 67 | L136: 3255 | M136: 1115 | N136: 577 | O136: 8 | P136: 1219 | Q136: 335 | R136: 67 | S136: 3255 | T136: 1115 | U136: 0 | V136: 0 | W136: 0
E137: 128 | F137: 8137 | G137: Atlántico | H137: Campo de La Cruz | J137: 1513 | K137: 0 | L137: 817 | M137: 668 | N137: 0 | O137: 0 | P137: 28 | Q137: 0 | R137: 0 | S137: 817 | T137: 668 | U137: 0 | V137: 0 | W137: 0
E138: 129 | F138: 8141 | G138: Atlántico | H138: Candelaria | J138: =+SUM(K138:Q138) -> 959 | K138: 0 | L138: 617 | M138: 342 | N138: 0 | O138: 0 | P138: 0 | Q138: 0 | R138: =+K138 -> 0 | S138: =+L138 -> 617 | T138: =+M138 -> 342 | U138: =+R138-K138 -> 0 | V138: =+S138-L138 -> 0 | W138: =+T138-M138 -> 0
E139: 130 | F139: 8296 | G139: Atlántico | H139: Galapa | J139: 11576 | K139: 456 | L139: 4845 | M139: 574 | N139: 1114 | O139: 46 | P139: 1208 | Q139: 3333 | R139: 456 | S139: 4845 | T139: 574 | U139: 0 | V139: 0 | W139: 0
E140: 131 | F140: 8372 | G140: Atlántico | H140: Juan de Acosta | J140: 1100 | K140: 5 | L140: 366 | M140: 704 | N140: 6 | O140: 1 | P140: 16 | Q140: 2 | R140: 5 | S140: 366 | T140: 704 | U140: 0 | V140: 0 | W140: 0
E141: 132 | F141: 8421 | G141: Atlántico | H141: Luruaco | J141: 1598 | K141: 5 | L141: 448 | M141: 1000 | N141: 0 | O141: 0 | P141: 145 | Q141: 0 | R141: 5 | S141: 448 | T141: 1000 | U141: 0 | V141: 0 | W141: 0
E142: 133 | F142: 8433 | G142: Atlántico | H142: Malambo | J142: 16356 | K142: 1782 | L142: 2667 | M142: 1707 | N142: 3802 | O142: 73 | P142: 895 | Q142: 5430 | R142: 1782 | S142: 2667 | T142: 1707 | U142: 0 | V142: 0 | W142: 0
E143: 134 | F143: 8436 | G143: Atlántico | H143: Manatí | J143: 1368 | K143: 0 | L143: 875 | M143: 493 | N143: 0 | O143: 0 | P143: 0 | Q143: 0 | R143: 0 | S143: 875 | T143: 493 | U143: 0 | V143: 0 | W143: 0
E144: 135 | F144: 8520 | G144: Atlántico | H144: Palmar de Varela | J144: 1546 | K144: 24 | L144: 922 | M144: 172 | N144: 0 | O144: 4 | P144: 424 | Q144: 0 | R144: 24 | S144: 922 | T144: 172 | U144: 0 | V144: 0 | W144: 0
E145: 136 | F145: 8549 | G145: Atlántico | H145: Piojó | J145: 137 | K145: 0 | L145: 6 | M145: 124 | N145: 0 | O145: 0 | P145: 7 | Q145: 0 | R145: 0 | S145: 6 | T145: 124 | U145: 0 | V145: 0 | W145: 0
E146: 137 | F146: 8558 | G146: Atlántico | H146: Polonuevo | J146: 551 | K146: 0 | L146: 348 | M146: 203 | N146: 0 | O146: 0 | P146: 0 | Q146: 0 | R146: 0 | S146: 348 | T146: 203 | U146: 0 | V146: 0 | W146: 0
E147: 138 | F147: 8560 | G147: Atlántico | H147: Ponedera | J147: 945 | K147: 0 | L147: 421 | M147: 399 | N147: 0 | O147: 2 | P147: 123 | Q147: 0 | R147: 0 | S147: 421 | T147: 399 | U147: 0 | V147: 0 | W147: 0
E148: 139 | F148: 8573 | G148: Atlántico | H148: Puerto Colombia | J148: 8865 | K148: 513 | L148: 953 | M148: 1149 | N148: 915 | O148: 59 | P148: 751 | Q148: 4525 | R148: 513 | S148: 953 | T148: 1149 | U148: 0 | V148: 0 | W148: 0
E149: 140 | F149: 8606 | G149: Atlántico | H149: Repelón | J149: 1116 | K149: 1 | L149: 592 | M149: 355 | N149: 0 | O149: 0 | P149: 168 | Q149: 0 | R149: 1 | S149: 592 | T149: 355 | U149: 0 | V149: 0 | W149: 0
E150: 141 | F150: 8634 | G150: Atlántico | H150: Sabanagrande | J150: 2750 | K150: 27 | L150: 1892 | M150: 286 | N150: 0 | O150: 9 | P150: 536 | Q150: 0 | R150: 27 | S150: 1892 | T150: 286 | U150: 0 | V150: 0 | W150: 0
E151: 142 | F151: 8638 | G151: Atlántico | H151: Sabanalarga | J151: 8071 | K151: 153 | L151: 3166 | M151: 2608 | N151: 427 | O151: 16 | P151: 1356 | Q151: 345 | R151: 153 | S151: 3166 | T151: 2608 | U151: 0 | V151: 0 | W151: 0
E152: 143 | F152: 8675 | G152: Atlántico | H152: Santa Lucía | J152: 530 | K152: 0 | L152: 289 | M152: 241 | N152: 0 | O152: 0 | P152: 0 | Q152: 0 | R152: 0 | S152: 289 | T152: 241 | U152: 0 | V152: 0 | W152: 0
E153: 144 | F153: 8685 | G153: Atlántico | H153: Santo Tomás | J153: 2836 | K153: 63 | L153: 955 | M153: 431 | N153: 316 | O153: 3 | P153: 710 | Q153: 358 | R153: 63 | S153: 955 | T153: 431 | U153: 0 | V153: 0 | W153: 0
E154: 145 | F154: 8758 | G154: Atlántico | H154: Soledad | J154: 127568 | K154: 14327 | L154: 16532 | M154: 4925 | N154: 23779 | O154: 798 | P154: 6179 | Q154: 61028 | R154: 14327 | S154: 16532 | T154: 4925 | U154: 0 | V154: 0 | W154: 0
E155: 146 | F155: 8770 | G155: Atlántico | H155: Suan | J155: 602 | K155: 0 | L155: 324 | M155: 277 | N155: 0 | O155: 0 | P155: 1 | Q155: 0 | R155: 0 | S155: 324 | T155: 277 | U155: 0 | V155: 0 | W155: 0
E156: 147 | F156: 8832 | G156: Atlántico | H156: Tubará | J156: 1136 | K156: 2 | L156: 346 | M156: 771 | N156: 0 | O156: 1 | P156: 16 | Q156: 0 | R156: 2 | S156: 346 | T156: 771 | U156: 0 | V156: 0 | W156: 0
E157: 148 | F157: 8849 | G157: Atlántico | H157: Usiacurí | J157: 1297 | K157: 0 | L157: 1135 | M157: 162 | N157: 0 | O157: 0 | P157: 0 | Q157: 0 | R157: 0 | S157: 1135 | T157: 162 | U157: 0 | V157: 0 | W157: 0
E158: 149 | F158: 11001 | G158: Bogotá, D.C. | H158: Bogotá, D.C. | J158: 2823802 | K158: 388109 | L158: 228058 | M158: 150697 | N158: 786178 | O158: 18022 | P158: 86567 | Q158: 1166171 | R158: 388109 | S158: 228058 | T158: 150697 | U158: 0 | V158: 0 | W158: 0
E159: 150 | F159: 13001 | G159: Bolívar | H159: Cartagena | J159: 236391 | K159: 12658 | L159: 23215 | M159: 25415 | N159: 42248 | O159: 1807 | P159: 12011 | Q159: 119037 | R159: 12658 | S159: 23215 | T159: 25415 | U159: 0 | V159: 0 | W159: 0
E160: 151 | F160: 13006 | G160: Bolívar | H160: Achí | J160: 1121 | K160: 0 | L160: 209 | M160: 912 | N160: 0 | O160: 0 | P160: 0 | Q160: 0 | R160: 0 | S160: 209 | T160: 912 | U160: 0 | V160: 0 | W160: 0
E161: 152 | F161: 13030 | G161: Bolívar | H161: Altos del Rosario | J161: 1084 | K161: 0 | L161: 822 | M161: 262 | N161: 0 | O161: 0 | P161: 0 | Q161: 0 | R161: 0 | S161: 822 | T161: 262 | U161: 0 | V161: 0 | W161: 0
E162: 153 | F162: 13042 | G162: Bolívar | H162: Arenal | J162: 697 | K162: 0 | L162: 566 | M162: 131 | N162: 0 | O162: 0 | P162: 0 | Q162: 0 | R162: 0 | S162: 566 | T162: 131 | U162: 0 | V162: 0 | W162: 0
E163: 154 | F163: 13052 | G163: Bolívar | H163: Arjona | J163: 4277 | K163: 47 | L163: 1983 | M163: 1426 | N163: 18 | O163: 8 | P163: 753 | Q163: 42 | R163: 47 | S163: 1983 | T163: 1426 | U163: 0 | V163: 0 | W163: 0
E164: 155 | F164: 13062 | G164: Bolívar | H164: Arroyohondo | J164: 745 | K164: 0 | L164: 667 | M164: 71 | N164: 7 | O164: 0 | P164: 0 | Q164: 0 | R164: 0 | S164: 667 | T164: 71 | U164: 0 | V164: 0 | W164: 0
E165: 156 | F165: 13074 | G165: Bolívar | H165: Barranco de Loba | J165: 1969 | K165: 0 | L165: 1212 | M165: 757 | N165: 0 | O165: 0 | P165: 0 | Q165: 0 | R165: 0 | S165: 1212 | T165: 757 | U165: 0 | V165: 0 | W165: 0
E166: 157 | F166: 13140 | G166: Bolívar | H166: Calamar | J166: 1521 | K166: 0 | L166: 1106 | M166: 312 | N166: 0 | O166: 0 | P166: 103 | Q166: 0 | R166: 0 | S166: 1106 | T166: 312 | U166: 0 | V166: 0 | W166: 0
E167: 158 | F167: 13160 | G167: Bolívar | H167: Cantagallo | J167: 224 | K167: 0 | L167: 98 | M167: 126 | N167: 0 | O167: 0 | P167: 0 | Q167: 0 | R167: 0 | S167: 98 | T167: 126 | U167: 0 | V167: 0 | W167: 0
E168: 159 | F168: 13188 | G168: Bolívar | H168: Cicuco | J168: 830 | K168: 0 | L168: 632 | M168: 198 | N168: 0 | O168: 0 | P168: 0 | Q168: 0 | R168: 0 | S168: 632 | T168: 198 | U168: 0 | V168: 0 | W168: 0
E169: 160 | F169: 13212 | G169: Bolívar | H169: Córdoba | J169: 265 | K169: 0 | L169: 169 | M169: 95 | N169: 1 | O169: 0 | P169: 0 | Q169: 0 | R169: 0 | S169: 169 | T169: 95 | U169: 0 | V169: 0 | W169: 0
E170: 161 | F170: 13222 | G170: Bolívar | H170: Clemencia | J170: 1029 | K170: 0 | L170: 894 | M170: 118 | N170: 0 | O170: 0 | P170: 17 | Q170: 0 | R170: 0 | S170: 894 | T170: 118 | U170: 0 | V170: 0 | W170: 0
E171: 162 | F171: 13244 | G171: Bolívar | H171: El Carmen de Bolívar | J171: 3031 | K171: 37 | L171: 1860 | M171: 666 | N171: 97 | O171: 1 | P171: 331 | Q171: 39 | R171: 37 | S171: 1860 | T171: 666 | U171: 0 | V171: 0 | W171: 0
E172: 163 | F172: 13248 | G172: Bolívar | H172: El Guamo | J172: 278 | K172: 0 | L172: 20 | M172: 224 | N172: 0 | O172: 0 | P172: 34 | Q172: 0 | R172: 0 | S172: 20 | T172: 224 | U172: 0 | V172: 0 | W172: 0
E173: 164 | F173: 13268 | G173: Bolívar | H173: El Peñón | J173: 60 | K173: 0 | L173: 18 | M173: 42 | N173: 0 | O173: 0 | P173: 0 | Q173: 0 | R173: 0 | S173: 18 | T173: 42 | U173: 0 | V173: 0 | W173: 0
E174: 165 | F174: 13300 | G174: Bolívar | H174: Hatillo de Loba | J174: 216 | K174: 0 | L174: 18 | M174: 196 | N174: 0 | O174: 0 | P174: 2 | Q174: 0 | R174: 0 | S174: 18 | T174: 196 | U174: 0 | V174: 0 | W174: 0
E175: 166 | F175: 13430 | G175: Bolívar | H175: Magangué | J175: 7896 | K175: 105 | L175: 2042 | M175: 2229 | N175: 647 | O175: 7 | P175: 1805 | Q175: 1061 | R175: 105 | S175: 2042 | T175: 2229 | U175: 0 | V175: 0 | W175: 0
E176: 167 | F176: 13433 | G176: Bolívar | H176: Mahates | J176: 1628 | K176: 0 | L176: 1141 | M176: 465 | N176: 0 | O176: 0 | P176: 22 | Q176: 0 | R176: 0 | S176: 1141 | T176: 465 | U176: 0 | V176: 0 | W176: 0
E177: 168 | F177: 13440 | G177: Bolívar | H177: Margarita | J177: 125 | K177: 0 | L177: 33 | M177: 92 | N177: 0 | O177: 0 | P177: 0 | Q177: 0 | R177: 0 | S177: 33 | T177: 92 | U177: 0 | V177: 0 | W177: 0
E178: 169 | F178: 13442 | G178: Bolívar | H178: María La Baja | J178: 3787 | K178: 0 | L178: 2969 | M178: 811 | N178: 0 | O178: 0 | P178: 7 | Q178: 0 | R178: 0 | S178: 2969 | T178: 811 | U178: 0 | V178: 0 | W178: 0
E179: 170 | F179: 13458 | G179: Bolívar | H179: Montecristo | J179: 1068 | K179: 0 | L179: 1029 | M179: 39 | N179: 0 | O179: 0 | P179: 0 | Q179: 0 | R179: 0 | S179: 1029 | T179: 39 | U179: 0 | V179: 0 | W179: 0
E180: 171 | F180: 13468 | G180: Bolívar | H180: Mompós | J180: 4380 | K180: 34 | L180: 2002 | M180: 2257 | N180: 16 | O180: 7 | P180: 23 | Q180: 41 | R180: 34 | S180: 2002 | T180: 2257 | U180: 0 | V180: 0 | W180: 0
E181: 172 | F181: 13473 | G181: Bolívar | H181: Morales | J181: 1148 | K181: 0 | L181: 1014 | M181: 134 | N181: 0 | O181: 0 | P181: 0 | Q181: 0 | R181: 0 | S181: 1014 | T181: 134 | U181: 0 | V181: 0 | W181: 0
E182: 173 | F182: 13490 | G182: Bolívar | H182: Norosí (1) | J182: 232 | K182: 0 | L182: 175 | M182: 57 | N182: 0 | O182: 0 | P182: 0 | Q182: 0 | R182: 0 | S182: 175 | T182: 57 | U182: 0 | V182: 0 | W182: 0
E183: 174 | F183: 13549 | G183: Bolívar | H183: Pinillos | J183: 124 | K183: 0 | L183: 30 | M183: 94 | N183: 0 | O183: 0 | P183: 0 | Q183: 0 | R183: 0 | S183: 30 | T183: 94 | U183: 0 | V183: 0 | W183: 0
E184: 175 | F184: 13580 | G184: Bolívar | H184: Regidor | J184: 110 | K184: 0 | L184: 70 | M184: 40 | N184: 0 | O184: 0 | P184: 0 | Q184: 0 | R184: 0 | S184: 70 | T184: 40 | U184: 0 | V184: 0 | W184: 0
E185: 176 | F185: 13600 | G185: Bolívar | H185: Río Viejo (1)(3) | J185: 1166 | K185: 0 | L185: 1105 | M185: 61 | N185: 0 | O185: 0 | P185: 0 | Q185: 0 | R185: 0 | S185: 1105 | T185: 61 | U185: 0 | V185: 0 | W185: 0
E186: 177 | F186: 13620 | G186: Bolívar | H186: San Cristóbal | J186: 549 | K186: 0 | L186: 487 | M186: 62 | N186: 0 | O186: 0 | P186: 0 | Q186: 0 | R186: 0 | S186: 487 | T186: 62 | U186: 0 | V186: 0 | W186: 0
E187: 178 | F187: 13647 | G187: Bolívar | H187: San Estanislao | J187: 1183 | K187: 0 | L187: 980 | M187: 194 | N187: 0 | O187: 0 | P187: 9 | Q187: 0 | R187: 0 | S187: 980 | T187: 194 | U187: 0 | V187: 0 | W187: 0
E188: 179 | F188: 13650 | G188: Bolívar | H188: San Fernando | J188: 90 | K188: 0 | L188: 9 | M188: 81 | N188: 0 | O188: 0 | P188: 0 | Q188: 0 | R188: 0 | S188: 9 | T188: 81 | U188: 0 | V188: 0 | W188: 0
E189: 180 | F189: 13654 | G189: Bolívar | H189: San Jacinto | J189: 2737 | K189: 0 | L189: 1740 | M189: 442 | N189: 0 | O189: 0 | P189: 555 | Q189: 0 | R189: 0 | S189: 1740 | T189: 442 | U189: 0 | V189: 0 | W189: 0
E190: 181 | F190: 13655 | G190: Bolívar | H190: San Jacinto del Cauca | J190: 45 | K190: 0 | L190: 12 | M190: 33 | N190: 0 | O190: 0 | P190: 0 | Q190: 0 | R190: 0 | S190: 12 | T190: 33 | U190: 0 | V190: 0 | W190: 0
E191: 182 | F191: 13657 | G191: Bolívar | H191: San Juan Nepomuceno | J191: 1969 | K191: 37 | L191: 801 | M191: 897 | N191: 50 | O191: 4 | P191: 131 | Q191: 49 | R191: 37 | S191: 801 | T191: 897 | U191: 0 | V191: 0 | W191: 0
E192: 183 | F192: 13667 | G192: Bolívar | H192: San Martín de Loba | J192: 1120 | K192: 0 | L192: 813 | M192: 307 | N192: 0 | O192: 0 | P192: 0 | Q192: 0 | R192: 0 | S192: 813 | T192: 307 | U192: 0 | V192: 0 | W192: 0
E193: 184 | F193: 13670 | G193: Bolívar | H193: San Pablo | J193: 4862 | K193: 1 | L193: 3690 | M193: 797 | N193: 0 | O193: 0 | P193: 374 | Q193: 0 | R193: 1 | S193: 3690 | T193: 797 | U193: 0 | V193: 0 | W193: 0
E194: 185 | F194: 13673 | G194: Bolívar | H194: Santa Catalina | J194: 240 | K194: 0 | L194: 16 | M194: 202 | N194: 0 | O194: 0 | P194: 22 | Q194: 0 | R194: 0 | S194: 16 | T194: 202 | U194: 0 | V194: 0 | W194: 0
E195: 186 | F195: 13683 | G195: Bolívar | H195: Santa Rosa | J195: 672 | K195: 0 | L195: 102 | M195: 327 | N195: 0 | O195: 0 | P195: 243 | Q195: 0 | R195: 0 | S195: 102 | T195: 327 | U195: 0 | V195: 0 | W195: 0
E196: 187 | F196: 13688 | G196: Bolívar | H196: Santa Rosa del Sur | J196: 7261 | K196: 24 | L196: 5427 | M196: 1443 | N196: 0 | O196: 0 | P196: 367 | Q196: 0 | R196: 24 | S196: 5427 | T196: 1443 | U196: 0 | V196: 0 | W196: 0
E197: 188 | F197: 13744 | G197: Bolívar | H197: Simití | J197: 1998 | K197: 0 | L197: 1681 | M197: 317 | N197: 0 | O197: 0 | P197: 0 | Q197: 0 | R197: 0 | S197: 1681 | T197: 317 | U197: 0 | V197: 0 | W197: 0
E198: 189 | F198: 13760 | G198: Bolívar | H198: Soplaviento | J198: 931 | K198: 0 | L198: 698 | M198: 209 | N198: 1 | O198: 0 | P198: 23 | Q198: 0 | R198: 0 | S198: 698 | T198: 209 | U198: 0 | V198: 0 | W198: 0
E199: 190 | F199: 13780 | G199: Bolívar | H199: Talaigua Nuevo | J199: 679 | K199: 0 | L199: 443 | M199: 236 | N199: 0 | O199: 0 | P199: 0 | Q199: 0 | R199: 0 | S199: 443 | T199: 236 | U199: 0 | V199: 0 | W199: 0
E200: 191 | F200: 13810 | G200: Bolívar | H200: Tiquisio | J200: 962 | K200: 0 | L200: 589 | M200: 373 | N200: 0 | O200: 0 | P200: 0 | Q200: 0 | R200: 0 | S200: 589 | T200: 373 | U200: 0 | V200: 0 | W200: 0
E201: 192 | F201: 13836 | G201: Bolívar | H201: Turbaco | J201: 20305 | K201: 724 | L201: 2998 | M201: 1482 | N201: 2333 | O201: 219 | P201: 1352 | Q201: 11197 | R201: 724 | S201: 2998 | T201: 1482 | U201: 0 | V201: 0 | W201: 0
E202: 193 | F202: 13838 | G202: Bolívar | H202: Turbaná | J202: =+SUM(K202:Q202) -> 1017 | K202: 0 | L202: 670 | M202: 346 | N202: 0 | O202: 0 | P202: 0 | Q202: 1 | R202: =+K202 -> 0 | S202: =+L202 -> 670 | T202: =+M202 -> 346 | U202: =+R202-K202 -> 0 | V202: =+S202-L202 -> 0 | W202: =+T202-M202 -> 0
E203: 194 | F203: 13873 | G203: Bolívar | H203: Villanueva | J203: 1699 | K203: 0 | L203: 1363 | M203: 148 | N203: 0 | O203: 0 | P203: 188 | Q203: 0 | R203: 0 | S203: 1363 | T203: 148 | U203: 0 | V203: 0 | W203: 0
E204: 195 | F204: 13894 | G204: Bolívar | H204: Zambrano | J204: 1268 | K204: 2 | L204: 1114 | M204: 152 | N204: 0 | O204: 0 | P204: 0 | Q204: 0 | R204: 2 | S204: 1114 | T204: 152 | U204: 0 | V204: 0 | W204: 0
... 4318 more rows

Sheet Proyección
E2: =Portada!$F$2 -> Modelo Empresa Eficiente Fija
E3: Estimación y Proyección de Demanda por Servicios
B6: Accesos a Servicios
B8: Líneas en Servicio de Telefonía Fija Mercado por Municipio (EOP) | BT8: =+B8 -> Líneas en Servicio de Telefonía Fija Mercado por Municipio (EOP)
B10: N°Orden | C10: id DANE | D10: Departamento | E10: Municipio | G10: 2012-03-30 | H10: 2012-06-30 | I10: 2012-09-30 | J10: 2012-12-30 | K10: 2013-03-30 | L10: 2013-06-30 | M10: 2013-09-30 | N10: 2013-12-30 | O10: 2014-03-30 | P10: 2014-06-30 | Q10: 2014-09-30 | R10: 2014-12-30 | S10: 2015-03-30 | T10: 2015-06-30 | U10: 2015-09-30 | V10: 2015-12-30 | W10: 2016-03-30 | X10: 2016-06-30 | Y10: 2016-09-30 | Z10: 2016-12-30 | AA10: 2017-03-30 | AB10: 2017-06-30 | AC10: 2017-09-30 | AD10: 2017-12-30 | AE10: 2018-03-30 | AF10: 2018-06-30 | AG10: 2018-09-30 | AH10: 2018-12-30 | AI10: 2019-03-30 | AJ10: 2019-06-30 | AK10: 2019-09-30 | AL10: 2019-12-30 | AM10: 2020-03-30 | AN10: 2020-06-30 | AO10: 2020-09-30 | AP10: 2020-12-30 | AQ10: 2021-03-30 | AR10: 2021-06-30 | AS10: 2021-09-30 | AT10: 2021-12-30 | AU10: 2022-03-30 | AV10: 2022-06-30 | AW10: 2022-09-30 | AX10: 2022-12-30 | AY10: 2023-03-30 | AZ10: 2023-06-30 | BA10: 2023-09-30 | BB10: 2023-12-30 | BC10: 2024-03-30 | BD10: 2024-06-30 | BE10: 2024-09-30 | BF10: 2024-12-30 | BG10: 2025-03-30 | BH10: 2025-06-30 | BI10: 2025-09-30 | BJ10: 2025-12-30 | BK10: 2026-03-30 | BL10: 2026-06-30 | BM10: 2026-09-30 | BN10: 2026-12-30 | BO10: 2027-03-30 | BP10: 2027-06-30 | BQ10: 2027-09-30 | BR10: 2027-12-30 | BT10: N°Orden | BU10: id DANE | BV10: Departamento | BW10: Municipio | BY10: =+BZ10-1 -> 2021 | BZ10: =años.calendario -> 2022 | CA10: 2023 | CB10: 2024 | CC10: 2025 | CD10: 2026 | CE10: 2027
B11: 1 | C11: 5001 | D11: Antioquia | E11: Medellín | F11: [Lineas] | G11: 909631 | H11: 896982 | I11: 877584 | J11: 870964 | K11: 867253 | L11: 879190 | M11: 878332 | N11: 863804 | O11: 842699 | P11: 849908 | Q11: 835064 | R11: 822272 | S11: 821145 | T11: 814613 | U11: 800200 | V11: 793530 | W11: 786687 | X11: 799882 | Y11: 793882 | Z11: 787282 | AA11: 779111 | AB11: 773475 | AC11: 772322 | AD11: 770936 | AE11: 764406 | AF11: 756283 | AG11: 781659 | AH11: 761033 | AI11: 756513 | AJ11: 756241 | AK11: 752652 | AL11: 750729 | AM11: 748628 | AN11: 747157 | AO11: 740002 | AP11: 744141 | AQ11: 741299 | AR11: 744224 | AS11: 748010 | AT11: 757469 | AU11: 706565 | AV11: 697930 | AW11: 705324 | AX11: 714165 | AY11: 713154 | AZ11: 716316 | BA11: 710634 | BB11: 702855 | BC11: 702689 | BD11: 700407 | BE11: 677121 | BF11: 619858 | BG11: =MAX(IFERROR(IF(BF11>0,IF(_xlfn.FORECAST.ETS(BG$10,OFFSET($BF11,0,0,1,-10),OFFSET($BF$10,0,0,1,-10),4)<0,0,_xlfn.FORECAST.ETS(BG$10,OFFSET($BF11,0,0,1,-10),OFFSET($BF$10,0,0,1,-10),4)),0),BF11),0) -> 619858 | BH11: =MAX(IFERROR(IF(BG11>0,IF(_xlfn.FORECAST.ETS(BH$10,OFFSET($BF11,0,0,1,-10),OFFSET($BF$10,0,0,1,-10),4)<0,0,_xlfn.FORECAST.ETS(BH$10,OFFSET($BF11,0,0,1,-10),OFFSET($BF$10,0,0,1,-10),4)),0),BG11),0) -> 619858 | BI11: 619858 | BJ11: 619858 | BK11: 619858 | BL11: 619858 | BM11: 619858 | BN11: 619858 | BO11: 619858 | BP11: 619858 | BQ11: 619858 | BR11: 619858 | BT11: 1 | BU11: 5001 | BV11: Antioquia | BW11: Medellín | BX11: [Lineas] | BY11: =AT11 -> 757469 | BZ11: =AX11 -> 714165 | CA11: =BB11 -> 702855 | CB11: =BF11 -> 619858 | CC11: =BJ11 -> 619858 | CD11: =BN11 -> 619858 | CE11: =BR11 -> 619858
B12: 2 | C12: 5002 | D12: Antioquia | E12: Abejorral | F12: [Lineas] | G12: 1503 | H12: 1490 | I12: 1507 | J12: 1515 | K12: 1552 | L12: 1551 | M12: 1563 | N12: 1527 | O12: 1507 | P12: 1474 | Q12: 1462 | R12: 1451 | S12: 1444 | T12: 1414 | U12: 1284 | V12: 1253 | W12: 1206 | X12: 1169 | Y12: 1150 | Z12: 1125 | AA12: 1089 | AB12: 1054 | AC12: 929 | AD12: 1044 | AE12: 956 | AF12: 955 | AG12: 941 | AH12: 922 | AI12: 904 | AJ12: 884 | AK12: 871 | AL12: 842 | AM12: 806 | AN12: 783 | AO12: 728 | AP12: 690 | AQ12: 661 | AR12: 638 | AS12: 615 | AT12: 585 | AU12: 579 | AV12: 589 | AW12: 556 | AX12: 538 | AY12: 498 | AZ12: 471 | BA12: 448 | BB12: 423 | BC12: 407 | BD12: 358 | BE12: 325 | BF12: 294 | BG12: =MAX(IFERROR(IF(BF12>0,IF(_xlfn.FORECAST.ETS(BG$10,OFFSET($BF12,0,0,1,-10),OFFSET($BF$10,0,0,1,-10),4)<0,0,_xlfn.FORECAST.ETS(BG$10,OFFSET($BF12,0,0,1,-10),OFFSET($BF$10,0,0,1,-10),4)),0),BF12),0) -> 294 | BH12: 294 | BI12: 294 | BJ12: 294 | BK12: 294 | BL12: 294 | BM12: 294 | BN12: 294 | BO12: 294 | BP12: 294 | BQ12: 294 | BR12: 294 | BT12: 2 | BU12: 5002 | BV12: Antioquia | BW12: Abejorral | BX12: [Lineas] | BY12: =AT12 -> 585 | BZ12: =AX12 -> 538 | CA12: =BB12 -> 423 | CB12: =BF12 -> 294 | CC12: =BJ12 -> 294 | CD12: =BN12 -> 294 | CE12: =BR12 -> 294
B13: 3 | C13: 5004 | D13: Antioquia | E13: Abriaquí | F13: [Lineas] | G13: 92 | H13: 88 | I13: 88 | J13: 87 | K13: 100 | L13: 98 | M13: 98 | N13: 100 | O13: 99 | P13: 94 | Q13: 90 | R13: 89 | S13: 90 | T13: 88 | U13: 78 | V13: 76 | W13: 77 | X13: 76 | Y13: 77 | Z13: 73 | AA13: 74 | AB13: 61 | AC13: 63 | AD13: 67 | AE13: 64 | AF13: 62 | AG13: 60 | AH13: 59 | AI13: 60 | AJ13: 59 | AK13: 59 | AL13: 58 | AM13: 58 | AN13: 58 | AO13: 55 | AP13: 50 | AQ13: 50 | AR13: 48 | AS13: 48 | AT13: 47 | AU13: 56 | AV13: 79 | AW13: 79 | AX13: 84 | AY13: 80 | AZ13: 71 | BA13: 69 | BB13: 66 | BC13: 62 | BD13: 56 | BE13: 52 | BF13: 51 | BG13: 51 | BH13: 51 | BI13: 51 | BJ13: 51 | BK13: 51 | BL13: 51 | BM13: 51 | BN13: 51 | BO13: 51 | BP13: 51 | BQ13: 51 | BR13: 51 | BT13: 3 | BU13: 5004 | BV13: Antioquia | BW13: Abriaquí | BX13: [Lineas] | BY13: 47 | BZ13: 84 | CA13: 66 | CB13: 51 | CC13: 51 | CD13: 51 | CE13: 51
B14: 4 | C14: 5021 | D14: Antioquia | E14: Alejandría | F14: [Lineas] | G14: 287 | H14: 284 | I14: 285 | J14: 290 | K14: 301 | L14: 295 | M14: 287 | N14: 285 | O14: 285 | P14: 283 | Q14: 284 | R14: 279 | S14: 275 | T14: 268 | U14: 244 | V14: 244 | W14: 230 | X14: 224 | Y14: 223 | Z14: 210 | AA14: 202 | AB14: 190 | AC14: 166 | AD14: 192 | AE14: 190 | AF14: 183 | AG14: 181 | AH14: 180 | AI14: 170 | AJ14: 170 | AK14: 166 | AL14: 160 | AM14: 152 | AN14: 143 | AO14: 135 | AP14: 117 | AQ14: 107 | AR14: 99 | AS14: 92 | AT14: 90 | AU14: 80 | AV14: 79 | AW14: 75 | AX14: 72 | AY14: 71 | AZ14: 68 | BA14: 66 | BB14: 66 | BC14: 65 | BD14: 62 | BE14: 56 | BF14: 51 | BG14: 51 | BH14: 51 | BI14: 51 | BJ14: 51 | BK14: 51 | BL14: 51 | BM14: 51 | BN14: 51 | BO14: 51 | BP14: 51 | BQ14: 51 | BR14: 51 | BT14: 4 | BU14: 5021 | BV14: Antioquia | BW14: Alejandría | BX14: [Lineas] | BY14: 90 | BZ14: 72 | CA14: 66 | CB14: 51 | CC14: 51 | CD14: 51 | CE14: 51
B15: 5 | C15: 5030 | D15: Antioquia | E15: Amagá | F15: [Lineas] | G15: 3534 | H15: 3454 | I15: 3470 | J15: 3509 | K15: 3587 | L15: 3592 | M15: 3597 | N15: 3547 | O15: 3489 | P15: 3474 | Q15: 3438 | R15: 3403 | S15: 3410 | T15: 3311 | U15: 2850 | V15: 2803 | W15: 2724 | X15: 2631 | Y15: 2577 | Z15: 2511 | AA15: 2472 | AB15: 2480 | AC15: 2123 | AD15: 2435 | AE15: 2397 | AF15: 2375 | AG15: 2318 | AH15: 2298 | AI15: 2230 | AJ15: 2187 | AK15: 2178 | AL15: 2091 | AM15: 2002 | AN15: 1928 | AO15: 1699 | AP15: 1572 | AQ15: 1477 | AR15: 1396 | AS15: 1283 | AT15: 1205 | AU15: 1088 | AV15: 1099 | AW15: 1019 | AX15: 969 | AY15: 873 | AZ15: 787 | BA15: 679 | BB15: 592 | BC15: 510 | BD15: 452 | BE15: 417 | BF15: 377 | BG15: 377 | BH15: 377 | BI15: 377 | BJ15: 377 | BK15: 377 | BL15: 377 | BM15: 377 | BN15: 377 | BO15: 377 | BP15: 377 | BQ15: 377 | BR15: 377 | BT15: 5 | BU15: 5030 | BV15: Antioquia | BW15: Amagá | BX15: [Lineas] | BY15: 1205 | BZ15: 969 | CA15: 592 | CB15: 377 | CC15: 377 | CD15: 377 | CE15: 377
B16: 6 | C16: 5031 | D16: Antioquia | E16: Amalfi | F16: [Lineas] | G16: 1218 | H16: 1200 | I16: 1209 | J16: 1201 | K16: 1238 | L16: 1227 | M16: 1229 | N16: 1217 | O16: 1197 | P16: 1194 | Q16: 1181 | R16: 1180 | S16: 1154 | T16: 1122 | U16: 946 | V16: 927 | W16: 879 | X16: 853 | Y16: 837 | Z16: 817 | AA16: 808 | AB16: 790 | AC16: 629 | AD16: 790 | AE16: 740 | AF16: 723 | AG16: 705 | AH16: 677 | AI16: 640 | AJ16: 617 | AK16: 613 | AL16: 590 | AM16: 572 | AN16: 549 | AO16: 471 | AP16: 435 | AQ16: 415 | AR16: 386 | AS16: 377 | AT16: 364 | AU16: 381 | AV16: 406 | AW16: 417 | AX16: 417 | AY16: 402 | AZ16: 355 | BA16: 339 | BB16: 318 | BC16: 283 | BD16: 265 | BE16: 249 | BF16: 229 | BG16: 229 | BH16: 229 | BI16: 229 | BJ16: 229 | BK16: 229 | BL16: 229 | BM16: 229 | BN16: 229 | BO16: 229 | BP16: 229 | BQ16: 229 | BR16: 229 | BT16: 6 | BU16: 5031 | BV16: Antioquia | BW16: Amalfi | BX16: [Lineas] | BY16: 364 | BZ16: 417 | CA16: 318 | CB16: 229 | CC16: 229 | CD16: 229 | CE16: 229
B17: 7 | C17: 5034 | D17: Antioquia | E17: Andes | F17: [Lineas] | G17: 3588 | H17: 3545 | I17: 3597 | J17: 3642 | K17: 3875 | L17: 3878 | M17: 3893 | N17: 3763 | O17: 3774 | P17: 3675 | Q17: 3610 | R17: 3612 | S17: 3634 | T17: 3590 | U17: 2933 | V17: 2878 | W17: 2748 | X17: 2644 | Y17: 2597 | Z17: 2552 | AA17: 2479 | AB17: 2424 | AC17: 2007 | AD17: 2475 | AE17: 2385 | AF17: 2366 | AG17: 2303 | AH17: 3212 | AI17: 3173 | AJ17: 3118 | AK17: 3097 | AL17: 3007 | AM17: 2928 | AN17: 2880 | AO17: 2577 | AP17: 2522 | AQ17: 2458 | AR17: 2399 | AS17: 2372 | AT17: 2330 | AU17: 1406 | AV17: 2513 | AW17: 2643 | AX17: 2680 | AY17: 2599 | AZ17: 2474 | BA17: 2399 | BB17: 2314 | BC17: 2189 | BD17: 2092 | BE17: 2002 | BF17: 1940 | BG17: 1940 | BH17: 1940 | BI17: 1940 | BJ17: 1940 | BK17: 1940 | BL17: 1940 | BM17: 1940 | BN17: 1940 | BO17: 1940 | BP17: 1940 | BQ17: 1940 | BR17: 1940 | BT17: 7 | BU17: 5034 | BV17: Antioquia | BW17: Andes | BX17: [Lineas] | BY17: 2330 | BZ17: 2680 | CA17: 2314 | CB17: 1940 | CC17: 1940 | CD17: 1940 | CE17: 1940
B18: 8 | C18: 5036 | D18: Antioquia | E18: Angelópolis | F18: [Lineas] | G18: 362 | H18: 352 | I18: 335 | J18: 323 | K18: 313 | L18: 303 | M18: 284 | N18: 276 | O18: 275 | P18: 233 | Q18: 233 | R18: 229 | S18: 225 | T18: 220 | U18: 202 | V18: 199 | W18: 190 | X18: 186 | Y18: 177 | Z18: 170 | AA18: 174 | AB18: 174 | AC18: 169 | AD18: 193 | AE18: 187 | AF18: 189 | AG18: 177 | AH18: 171 | AI18: 174 | AJ18: 171 | AK18: 172 | AL18: 159 | AM18: 148 | AN18: 145 | AO18: 139 | AP18: 129 | AQ18: 123 | AR18: 122 | AS18: 117 | AT18: 112 | AU18: 94 | AV18: 96 | AW18: 80 | AX18: 72 | AY18: 67 | AZ18: 60 | BA18: 58 | BB18: 55 | BC18: 50 | BD18: 49 | BE18: 48 | BF18: 46 | BG18: 46 | BH18: 46 | BI18: 46 | BJ18: 46 | BK18: 46 | BL18: 46 | BM18: 46 | BN18: 46 | BO18: 46 | BP18: 46 | BQ18: 46 | BR18: 46 | BT18: 8 | BU18: 5036 | BV18: Antioquia | BW18: Angelópolis | BX18: [Lineas] | BY18: 112 | BZ18: 72 | CA18: 55 | CB18: 46 | CC18: 46 | CD18: 46 | CE18: 46
B19: 9 | C19: 5038 | D19: Antioquia | E19: Angostura | F19: [Lineas] | G19: 367 | H19: 362 | I19: 368 | J19: 370 | K19: 402 | L19: 399 | M19: 399 | N19: 395 | O19: 391 | P19: 389 | Q19: 334 | R19: 331 | S19: 325 | T19: 320 | U19: 259 | V19: 251 | W19: 238 | X19: 239 | Y19: 240 | Z19: 235 | AA19: 234 | AB19: 214 | AC19: 196 | AD19: 225 | AE19: 196 | AF19: 196 | AG19: 192 | AH19: 192 | AI19: 186 | AJ19: 186 | AK19: 186 | AL19: 175 | AM19: 173 | AN19: 171 | AO19: 157 | AP19: 146 | AQ19: 144 | AR19: 140 | AS19: 135 | AT19: 135 | AU19: 132 | AV19: 182 | AW19: 183 | AX19: 183 | AY19: 180 | AZ19: 158 | BA19: 151 | BB19: 139 | BC19: 131 | BD19: 117 | BE19: 106 | BF19: 99 | BG19: 99 | BH19: 99 | BI19: 99 | BJ19: 99 | BK19: 99 | BL19: 99 | BM19: 99 | BN19: 99 | BO19: 99 | BP19: 99 | BQ19: 99 | BR19: 99 | BT19: 9 | BU19: 5038 | BV19: Antioquia | BW19: Angostura | BX19: [Lineas] | BY19: 135 | BZ19: 183 | CA19: 139 | CB19: 99 | CC19: 99 | CD19: 99 | CE19: 99
B20: 10 | C20: 5040 | D20: Antioquia | E20: Anorí | F20: [Lineas] | G20: 549 | H20: 539 | I20: 553 | J20: 560 | K20: 582 | L20: 570 | M20: 571 | N20: 552 | O20: 547 | P20: 542 | Q20: 511 | R20: 503 | S20: 501 | T20: 483 | U20: 415 | V20: 411 | W20: 386 | X20: 372 | Y20: 362 | Z20: 353 | AA20: 341 | AB20: 325 | AC20: 271 | AD20: 319 | AE20: 307 | AF20: 303 | AG20: 303 | AH20: 309 | AI20: 304 | AJ20: 293 | AK20: 292 | AL20: 268 | AM20: 267 | AN20: 259 | AO20: 236 | AP20: 224 | AQ20: 211 | AR20: 189 | AS20: 183 | AT20: 181 | AU20: 203 | AV20: 239 | AW20: 260 | AX20: 264 | AY20: 263 | AZ20: 246 | BA20: 227 | BB20: 215 | BC20: 196 | BD20: 161 | BE20: 143 | BF20: 127 | BG20: 127 | BH20: 127 | BI20: 127 | BJ20: 127 | BK20: 127 | BL20: 127 | BM20: 127 | BN20: 127 | BO20: 127 | BP20: 127 | BQ20: 127 | BR20: 127 | BT20: 10 | BU20: 5040 | BV20: Antioquia | BW20: Anorí | BX20: [Lineas] | BY20: 181 | BZ20: 264 | CA20: 215 | CB20: 127 | CC20: 127 | CD20: 127 | CE20: 127
B21: 11 | C21: 5042 | D21: Antioquia | E21: Santafé de Antioquia | F21: [Lineas] | G21: 3491 | H21: 3446 | I21: 3462 | J21: 3452 | K21: 3503 | L21: 3509 | M21: 3524 | N21: 3546 | O21: 3572 | P21: 3443 | Q21: 3450 | R21: 3523 | S21: 3615 | T21: 3639 | U21: 3457 | V21: 3418 | W21: 3380 | X21: 3319 | Y21: 3285 | Z21: 3223 | AA21: 3262 | AB21: 3268 | AC21: 2884 | AD21: 3318 | AE21: 3225 | AF21: 3173 | AG21: 3084 | AH21: 2981 | AI21: 2912 | AJ21: 2815 | AK21: 2810 | AL21: 2723 | AM21: 2728 | AN21: 2691 | AO21: 2521 | AP21: 2426 | AQ21: 2380 | AR21: 2315 | AS21: 2235 | AT21: 2294 | AU21: 2194 | AV21: 2290 | AW21: 2523 | AX21: 2640 | AY21: 2624 | AZ21: 2613 | BA21: 2555 | BB21: 2512 | BC21: 2432 | BD21: 2327 | BE21: 2194 | BF21: 1998 | BG21: 1998 | BH21: 1998 | BI21: 1998 | BJ21: 1998 | BK21: 1998 | BL21: 1998 | BM21: 1998 | BN21: 1998 | BO21: 1998 | BP21: 1998 | BQ21: 1998 | BR21: 1998 | BT21: 11 | BU21: 5042 | BV21: Antioquia | BW21: Santafé de Antioquia | BX21: [Lineas] | BY21: 2294 | BZ21: 2640 | CA21: 2512 | CB21: 1998 | CC21: 1998 | CD21: 1998 | CE21: 1998
B22: 12 | C22: 5044 | D22: Antioquia | E22: Anza | F22: [Lineas] | G22: 172 | H22: 167 | I22: 175 | J22: 173 | K22: 181 | L22: 179 | M22: 183 | N22: 178 | O22: 173 | P22: 169 | Q22: 166 | R22: 166 | S22: 167 | T22: 165 | U22: 147 | V22: 149 | W22: 144 | X22: 131 | Y22: 128 | Z22: 121 | AA22: 120 | AB22: 115 | AC22: 96 | AD22: 111 | AE22: 110 | AF22: 113 | AG22: 110 | AH22: 104 | AI22: 99 | AJ22: 98 | AK22: 95 | AL22: 93 | AM22: 95 | AN22: 93 | AO22: 82 | AP22: 77 | AQ22: 77 | AR22: 74 | AS22: 73 | AT22: 68 | AU22: 85 | AV22: 88 | AW22: 89 | AX22: 88 | AY22: 90 | AZ22: 84 | BA22: 81 | BB22: 80 | BC22: 73 | BD22: 64 | BE22: 58 | BF22: 52 | BG22: 52 | BH22: 52 | BI22: 52 | BJ22: 52 | BK22: 52 | BL22: 52 | BM22: 52 | BN22: 52 | BO22: 52 | BP22: 52 | BQ22: 52 | BR22: 52 | BT22: 12 | BU22: 5044 | BV22: Antioquia | BW22: Anza | BX22: [Lineas] | BY22: 68 | BZ22: 88 | CA22: 80 | CB22: 52 | CC22: 52 | CD22: 52 | CE22: 52
B23: 13 | C23: 5045 | D23: Antioquia | E23: Apartadó | F23: [Lineas] | G23: 10993 | H23: 11022 | I23: 11426 | J23: 11752 | K23: 12163 | L23: 12266 | M23: 12456 | N23: 12330 | O23: 12271 | P23: 11755 | Q23: 11990 | R23: 12287 | S23: 12184 | T23: 11950 | U23: 10366 | V23: 10079 | W23: 9745 | X23: 9455 | Y23: 9320 | Z23: 9206 | AA23: 9421 | AB23: 9571 | AC23: 7862 | AD23: 9849 | AE23: 9788 | AF23: 9636 | AG23: 9338 | AH23: 9176 | AI23: 8627 | AJ23: 8270 | AK23: 8089 | AL23: 7940 | AM23: 7948 | AN23: 8147 | AO23: 7468 | AP23: 7487 | AQ23: 7797 | AR23: 8102 | AS23: 8428 | AT23: 8823 | AU23: 9797 | AV23: 11516 | AW23: 13292 | AX23: 14779 | AY23: 15611 | AZ23: 15583 | BA23: 15871 | BB23: 16089 | BC23: 17433 | BD23: 18611 | BE23: 19578 | BF23: 18926 | BG23: 18926 | BH23: 18926 | BI23: 18926 | BJ23: 18926 | BK23: 18926 | BL23: 18926 | BM23: 18926 | BN23: 18926 | BO23: 18926 | BP23: 18926 | BQ23: 18926 | BR23: 18926 | BT23: 13 | BU23: 5045 | BV23: Antioquia | BW23: Apartadó | BX23: [Lineas] | BY23: 8823 | BZ23: 14779 | CA23: 16089 | CB23: 18926 | CC23: 18926 | CD23: 18926 | CE23: 18926
B24: 14 | C24: 5051 | D24: Antioquia | E24: Arboletes | F24: [Lineas] | G24: 941 | H24: 917 | I24: 951 | J24: 957 | K24: 992 | L24: 992 | M24: 998 | N24: 992 | O24: 1012 | P24: 1033 | Q24: 1039 | R24: 1051 | S24: 1077 | T24: 1064 | U24: 928 | V24: 893 | W24: 850 | X24: 828 | Y24: 821 | Z24: 792 | AA24: 810 | AB24: 859 | AC24: 728 | AD24: 806 | AE24: 669 | AF24: 631 | AG24: 604 | AH24: 587 | AI24: 554 | AJ24: 506 | AK24: 476 | AL24: 453 | AM24: 409 | AN24: 391 | AO24: 350 | AP24: 320 | AQ24: 302 | AR24: 286 | AS24: 265 | AT24: 248 | AU24: 235 | AV24: 238 | AW24: 213 | AX24: 203 | AY24: 190 | AZ24: 167 | BA24: 142 | BB24: 125 | BC24: 115 | BD24: 100 | BE24: 88 | BF24: 84 | BG24: 84 | BH24: 84 | BI24: 84 | BJ24: 84 | BK24: 84 | BL24: 84 | BM24: 84 | BN24: 84 | BO24: 84 | BP24: 84 | BQ24: 84 | BR24: 84 | BT24: 14 | BU24: 5051 | BV24: Antioquia | BW24: Arboletes | BX24: [Lineas] | BY24: 248 | BZ24: 203 | CA24: 125 | CB24: 84 | CC24: 84 | CD24: 84 | CE24: 84
B25: 15 | C25: 5055 | D25: Antioquia | E25: Argelia | F25: [Lineas] | G25: 332 | H25: 328 | I25: 339 | J25: 353 | K25: 386 | L25: 380 | M25: 381 | N25: 358 | O25: 357 | P25: 362 | Q25: 310 | R25: 305 | S25: 306 | T25: 297 | U25: 220 | V25: 206 | W25: 193 | X25: 181 | Y25: 177 | Z25: 172 | AA25: 168 | AB25: 152 | AC25: 143 | AD25: 156 | AE25: 150 | AF25: 148 | AG25: 147 | AH25: 147 | AI25: 146 | AJ25: 141 | AK25: 139 | AL25: 133 | AM25: 132 | AN25: 135 | AO25: 123 | AP25: 112 | AQ25: 104 | AR25: 101 | AS25: 94 | AT25: 91 | AU25: 98 | AV25: 64 | AW25: 134 | AX25: 133 | AY25: 129 | AZ25: 116 | BA25: 109 | BB25: 106 | BC25: 98 | BD25: 86 | BE25: 81 | BF25: 75 | BG25: 75 | BH25: 75 | BI25: 75 | BJ25: 75 | BK25: 75 | BL25: 75 | BM25: 75 | BN25: 75 | BO25: 75 | BP25: 75 | BQ25: 75 | BR25: 75 | BT25: 15 | BU25: 5055 | BV25: Antioquia | BW25: Argelia | BX25: [Lineas] | BY25: 91 | BZ25: 133 | CA25: 106 | CB25: 75 | CC25: 75 | CD25: 75 | CE25: 75
B26: 16 | C26: 5059 | D26: Antioquia | E26: Armenia | F26: [Lineas] | G26: 326 | H26: 325 | I26: 380 | J26: 311 | K26: 318 | L26: 312 | M26: 306 | N26: 304 | O26: 296 | P26: 272 | Q26: 268 | R26: 266 | S26: 263 | T26: 415 | U26: 379 | V26: 358 | W26: 298 | X26: 206 | Y26: 208 | Z26: 198 | AA26: 1449 | AB26: 1430 | AC26: 1434 | AD26: 1476 | AE26: 161 | AF26: 153 | AG26: 140 | AH26: 130 | AI26: 127 | AJ26: 124 | AK26: 121 | AL26: 122 | AM26: 121 | AN26: 122 | AO26: 114 | AP26: 107 | AQ26: 101 | AR26: 96 | AS26: 94 | AT26: 93 | AU26: 30 | AV26: 1141 | AW26: 88 | AX26: 93 | AY26: 90 | AZ26: 88 | BA26: 86 | BB26: 85 | BC26: 71 | BD26: 69 | BE26: 65 | BF26: 85 | BG26: 85 | BH26: 85 | BI26: 85 | BJ26: 85 | BK26: 85 | BL26: 85 | BM26: 85 | BN26: 85 | BO26: 85 | BP26: 85 | BQ26: 85 | BR26: 85 | BT26: 16 | BU26: 5059 | BV26: Antioquia | BW26: Armenia | BX26: [Lineas] | BY26: 93 | BZ26: 93 | CA26: 85 | CB26: 85 | CC26: 85 | CD26: 85 | CE26: 85
B27: 17 | C27: 5079 | D27: Antioquia | E27: Barbosa | F27: [Lineas] | G27: 11560 | H27: 11339 | I27: 11139 | J27: 11161 | K27: 10933 | L27: 10966 | M27: 11024 | N27: 10700 | O27: 10454 | P27: 10446 | Q27: 10059 | R27: 9846 | S27: 9732 | T27: 9599 | U27: 9349 | V27: 9171 | W27: 8996 | X27: 8601 | Y27: 8426 | Z27: 8226 | AA27: 7965 | AB27: 7785 | AC27: 7604 | AD27: 7478 | AE27: 7292 | AF27: 7071 | AG27: 6838 | AH27: 6911 | AI27: 6805 | AJ27: 6738 | AK27: 6672 | AL27: 6568 | AM27: 6370 | AN27: 6413 | AO27: 7038 | AP27: 7522 | AQ27: 7513 | AR27: 7418 | AS27: 7449 | AT27: 7483 | AU27: 7051 | AV27: 6133 | AW27: 7556 | AX27: 7833 | AY27: 7962 | AZ27: 8092 | BA27: 8126 | BB27: 8105 | BC27: 8176 | BD27: 8172 | BE27: 7884 | BF27: 7142 | BG27: 7142 | BH27: 7142 | BI27: 7142 | BJ27: 7142 | BK27: 7142 | BL27: 7142 | BM27: 7142 | BN27: 7142 | BO27: 7142 | BP27: 7142 | BQ27: 7142 | BR27: 7142 | BT27: 17 | BU27: 5079 | BV27: Antioquia | BW27: Barbosa | BX27: [Lineas] | BY27: 7483 | BZ27: 7833 | CA27: 8105 | CB27: 7142 | CC27: 7142 | CD27: 7142 | CE27: 7142
B28: 18 | C28: 5086 | D28: Antioquia | E28: Belmira | F28: [Lineas] | G28: 342 | H28: 335 | I28: 334 | J28: 335 | K28: 344 | L28: 348 | M28: 351 | N28: 345 | O28: 347 | P28: 342 | Q28: 340 | R28: 344 | S28: 363 | T28: 355 | U28: 326 | V28: 321 | W28: 308 | X28: 300 | Y28: 297 | Z28: 291 | AA28: 279 | AB28: 275 | AC28: 261 | AD28: 278 | AE28: 250 | AF28: 254 | AG28: 250 | AH28: 246 | AI28: 239 | AJ28: 231 | AK28: 225 | AL28: 216 | AM28: 209 | AN28: 205 | AO28: 197 | AP28: 171 | AQ28: 165 | AR28: 157 | AS28: 154 | AT28: 152 | AU28: 177 | AV28: 210 | AW28: 235 | AX28: 232 | AY28: 223 | AZ28: 209 | BA28: 200 | BB28: 191 | BC28: 178 | BD28: 163 | BE28: 150 | BF28: 145 | BG28: 145 | BH28: 145 | BI28: 145 | BJ28: 145 | BK28: 145 | BL28: 145 | BM28: 145 | BN28: 145 | BO28: 145 | BP28: 145 | BQ28: 145 | BR28: 145 | BT28: 18 | BU28: 5086 | BV28: Antioquia | BW28: Belmira | BX28: [Lineas] | BY28: 152 | BZ28: 232 | CA28: 191 | CB28: 145 | CC28: 145 | CD28: 145 | CE28: 145
B29: 19 | C29: 5088 | D29: Antioquia | E29: Bello | F29: [Lineas] | G29: 122267 | H29: 119904 | I29: 119766 | J29: 118481 | K29: 116830 | L29: 120087 | M29: 120399 | N29: 117774 | O29: 114816 | P29: 116527 | Q29: 114897 | R29: 113981 | S29: 113526 | T29: 113317 | U29: 111728 | V29: 111576 | W29: 110912 | X29: 109570 | Y29: 109119 | Z29: 108849 | AA29: 108412 | AB29: 108807 | AC29: 109576 | AD29: 109733 | AE29: 110121 | AF29: 110012 | AG29: 109846 | AH29: 111280 | AI29: 112550 | AJ29: 110961 | AK29: 110119 | AL29: 111287 | AM29: 112120 | AN29: 113176 | AO29: 113078 | AP29: 112619 | AQ29: 112502 | AR29: 114017 | AS29: 115700 | AT29: 117347 | AU29: 114384 | AV29: 119973 | AW29: 123334 | AX29: 126795 | AY29: 129103 | AZ29: 131458 | BA29: 133064 | BB29: 132905 | BC29: 135229 | BD29: 135542 | BE29: 132423 | BF29: 117987 | BG29: 117987 | BH29: 117987 | BI29: 117987 | BJ29: 117987 | BK29: 117987 | BL29: =MAX(IFERROR(IF(BK29>0,IF(_xlfn.FORECAST.ETS(BL$10,OFFSET($BF29,0,0,1,-10),OFFSET($BF$10,0,0,1,-10),4)<0,0,_xlfn.FORECAST.ETS(BL$10,OFFSET($BF29,0,0,1,-10),OFFSET($BF$10,0,0,1,-10),4)),0),BK29),0) -> 117987 | BM29: 117987 | BN29: 117987 | BO29: 117987 | BP29: 117987 | BQ29: 117987 | BR29: 117987 | BT29: 19 | BU29: 5088 | BV29: Antioquia | BW29: Bello | BX29: [Lineas] | BY29: 117347 | BZ29: 126795 | CA29: 132905 | CB29: 117987 | CC29: 117987 | CD29: 117987 | CE29: 117987
B30: 20 | C30: 5091 | D30: Antioquia | E30: Betania | F30: [Lineas] | G30: 481 | H30: 471 | I30: 466 | J30: 467 | K30: 492 | L30: 485 | M30: 486 | N30: 484 | O30: 480 | P30: 472 | Q30: 487 | R30: 489 | S30: 501 | T30: 496 | U30: 418 | V30: 415 | W30: 389 | X30: 379 | Y30: 373 | Z30: 367 | AA30: 358 | AB30: 340 | AC30: 327 | AD30: 365 | AE30: 343 | AF30: 349 | AG30: 335 | AH30: 328 | AI30: 308 | AJ30: 298 | AK30: 294 | AL30: 286 | AM30: 274 | AN30: 269 | AO30: 247 | AP30: 237 | AQ30: 230 | AR30: 218 | AS30: 198 | AT30: 187 | AU30: 169 | AV30: 171 | AW30: 162 | AX30: 161 | AY30: 148 | AZ30: 137 | BA30: 129 | BB30: 125 | BC30: 115 | BD30: 109 | BE30: 99 | BF30: 88 | BG30: 88 | BH30: 88 | BI30: 88 | BJ30: 88 | BK30: 88 | BL30: 88 | BM30: 88 | BN30: 88 | BO30: 88 | BP30: 88 | BQ30: 88 | BR30: 88 | BT30: 20 | BU30: 5091 | BV30: Antioquia | BW30: Betania | BX30: [Lineas] | BY30: 187 | BZ30: 161 | CA30: 125 | CB30: 88 | CC30: 88 | CD30: 88 | CE30: 88
B31: 21 | C31: 5093 | D31: Antioquia | E31: Betulia | F31: [Lineas] | G31: 923 | H31: 908 | I31: 922 | J31: 935 | K31: 988 | L31: 991 | M31: 986 | N31: 977 | O31: 969 | P31: 958 | Q31: 858 | R31: 869 | S31: 880 | T31: 856 | U31: 684 | V31: 670 | W31: 633 | X31: 609 | Y31: 604 | Z31: 590 | AA31: 567 | AB31: 549 | AC31: 467 | AD31: 541 | AE31: 554 | AF31: 535 | AG31: 517 | AH31: 510 | AI31: 509 | AJ31: 503 | AK31: 493 | AL31: 473 | AM31: 468 | AN31: 452 | AO31: 378 | AP31: 358 | AQ31: 342 | AR31: 335 | AS31: 307 | AT31: 290 | AU31: 281 | AV31: 333 | AW31: 357 | AX31: 375 | AY31: 372 | AZ31: 350 | BA31: 323 | BB31: 303 | BC31: 281 | BD31: 252 | BE31: 220 | BF31: 208 | BG31: 208 | BH31: 208 | BI31: 208 | BJ31: 208 | BK31: 208 | BL31: 208 | BM31: 208 | BN31: 208 | BO31: 208 | BP31: 208 | BQ31: 208 | BR31: 208 | BT31: 21 | BU31: 5093 | BV31: Antioquia | BW31: Betulia | BX31: [Lineas] | BY31: 290 | BZ31: 375 | CA31: 303 | CB31: 208 | CC31: 208 | CD31: 208 | CE31: 208
B32: 22 | C32: 5101 | D32: Antioquia | E32: Ciudad Bolívar | F32: [Lineas] | G32: 3022 | H32: 2980 | I32: 3059 | J32: 3104 | K32: 3252 | L32: 3231 | M32: 3232 | N32: 3140 | O32: 3093 | P32: 3001 | Q32: 2903 | R32: 2927 | S32: 2949 | T32: 2895 | U32: 2497 | V32: 2464 | W32: 2394 | X32: 2289 | Y32: 2257 | Z32: 2211 | AA32: 2189 | AB32: 2193 | AC32: 1793 | AD32: 2197 | AE32: 2157 | AF32: 2113 | AG32: 2062 | AH32: 2004 | AI32: 1931 | AJ32: 1872 | AK32: 1846 | AL32: 1774 | AM32: 1763 | AN32: 1671 | AO32: 1460 | AP32: 1410 | AQ32: 1341 | AR32: 1289 | AS32: 1228 | AT32: 1209 | AU32: 1209 | AV32: 1314 | AW32: 1329 | AX32: 1322 | AY32: 1172 | AZ32: 1063 | BA32: 987 | BB32: 932 | BC32: 726 | BD32: 620 | BE32: 549 | BF32: 490 | BG32: 490 | BH32: 490 | BI32: 490 | BJ32: 490 | BK32: 490 | BL32: 490 | BM32: 490 | BN32: 490 | BO32: 490 | BP32: 490 | BQ32: 490 | BR32: 490 | BT32: 22 | BU32: 5101 | BV32: Antioquia | BW32: Ciudad Bolívar | BX32: [Lineas] | BY32: 1209 | BZ32: 1322 | CA32: 932 | CB32: 490 | CC32: 490 | CD32: 490 | CE32: 490
B33: 23 | C33: 5107 | D33: Antioquia | E33: Briceño | F33: [Lineas] | G33: 185 | H33: 179 | I33: 175 | J33: 166 | K33: 188 | L33: 184 | M33: 181 | N33: 171 | O33: 169 | P33: 167 | Q33: 163 | R33: 165 | S33: 170 | T33: 167 | U33: 142 | V33: 141 | W33: 136 | X33: 128 | Y33: 126 | Z33: 123 | AA33: 122 | AB33: 112 | AC33: 90 | AD33: 121 | AE33: 110 | AF33: 113 | AG33: 109 | AH33: 106 | AI33: 104 | AJ33: 103 | AK33: 99 | AL33: 96 | AM33: 89 | AN33: 86 | AO33: 78 | AP33: 76 | AQ33: 73 | AR33: 67 | AS33: 64 | AT33: 61 | AU33: 46 | AV33: 61 | AW33: 92 | AX33: 95 | AY33: 86 | AZ33: 76 | BA33: 64 | BB33: 61 | BC33: 57 | BD33: 55 | BE33: 51 | BF33: 48 | BG33: 48 | BH33: 48 | BI33: 48 | BJ33: 48 | BK33: 48 | BL33: 48 | BM33: 48 | BN33: 48 | BO33: 48 | BP33: 48 | BQ33: 48 | BR33: 48 | BT33: 23 | BU33: 5107 | BV33: Antioquia | BW33: Briceño | BX33: [Lineas] | BY33: 61 | BZ33: 95 | CA33: 61 | CB33: 48 | CC33: 48 | CD33: 48 | CE33: 48
B34: 24 | C34: 5113 | D34: Antioquia | E34: Buriticá | F34: [Lineas] | G34: 226 | H34: 226 | I34: 224 | J34: 223 | K34: 236 | L34: 236 | M34: 243 | N34: 247 | O34: 251 | P34: 257 | Q34: 263 | R34: 268 | S34: 281 | T34: 271 | U34: 271 | V34: 277 | W34: 271 | X34: 267 | Y34: 260 | Z34: 239 | AA34: 230 | AB34: 225 | AC34: 214 | AD34: 163 | AE34: 162 | AF34: 176 | AG34: 247 | AH34: 246 | AI34: 222 | AJ34: 219 | AK34: 227 | AL34: 211 | AM34: 205 | AN34: 202 | AO34: 191 | AP34: 179 | AQ34: 170 | AR34: 165 | AS34: 156 | AT34: 160 | AU34: 159 | AV34: 184 | AW34: 182 | AX34: 163 | AY34: 149 | AZ34: 132 | BA34: 128 | BB34: 120 | BC34: 111 | BD34: 101 | BE34: 90 | BF34: 89 | BG34: 89 | BH34: 89 | BI34: 89 | BJ34: 89 | BK34: 89 | BL34: 89 | BM34: 89 | BN34: 89 | BO34: 89 | BP34: 89 | BQ34: 89 | BR34: 89 | BT34: 24 | BU34: 5113 | BV34: Antioquia | BW34: Buriticá | BX34: [Lineas] | BY34: 160 | BZ34: 163 | CA34: 120 | CB34: 89 | CC34: 89 | CD34: 89 | CE34: 89
B35: 25 | C35: 5120 | D35: Antioquia | E35: Cáceres | F35: [Lineas] | G35: 954 | H35: 998 | I35: 1016 | J35: 1054 | K35: 1078 | L35: 1080 | M35: 1077 | N35: 1077 | O35: 1071 | P35: 1076 | Q35: 964 | R35: 953 | S35: 955 | T35: 950 | U35: 507 | V35: 502 | W35: 481 | X35: 468 | Y35: 460 | Z35: 447 | AA35: 467 | AB35: 456 | AC35: 488 | AD35: 486 | AE35: 491 | AF35: 457 | AG35: 431 | AH35: 407 | AI35: 404 | AJ35: 385 | AK35: 383 | AL35: 367 | AM35: 347 | AN35: 334 | AO35: 283 | AP35: 268 | AQ35: 268 | AR35: 257 | AS35: 238 | AT35: 224 | AU35: 315 | AV35: 401 | AW35: 452 | AX35: 456 | AY35: 461 | AZ35: 374 | BA35: 342 | BB35: 339 | BC35: 289 | BD35: 238 | BE35: 200 | BF35: 177 | BG35: 177 | BH35: 177 | BI35: 177 | BJ35: 177 | BK35: 177 | BL35: 177 | BM35: 177 | BN35: 177 | BO35: 177 | BP35: 177 | BQ35: 177 | BR35: 177 | BT35: 25 | BU35: 5120 | BV35: Antioquia | BW35: Cáceres | BX35: [Lineas] | BY35: 224 | BZ35: 456 | CA35: 339 | CB35: 177 | CC35: 177 | CD35: 177 | CE35: 177
B36: 26 | C36: 5125 | D36: Antioquia | E36: Caicedo | F36: [Lineas] | G36: 183 | H36: 180 | I36: 198 | J36: 194 | K36: 202 | L36: 200 | M36: 203 | N36: 201 | O36: 194 | P36: 193 | Q36: 191 | R36: 188 | S36: 190 | T36: 183 | U36: 158 | V36: 159 | W36: 154 | X36: 150 | Y36: 145 | Z36: 142 | AA36: 137 | AB36: 132 | AC36: 126 | AD36: 143 | AE36: 146 | AF36: 153 | AG36: 154 | AH36: 152 | AI36: 151 | AJ36: 144 | AK36: 143 | AL36: 140 | AM36: 140 | AN36: 133 | AO36: 129 | AP36: 118 | AQ36: 116 | AR36: 110 | AS36: 107 | AT36: 104 | AU36: 115 | AV36: 131 | AW36: 137 | AX36: 130 | AY36: 121 | AZ36: 116 | BA36: 114 | BB36: 109 | BC36: 103 | BD36: 86 | BE36: 75 | BF36: 71 | BG36: 71 | BH36: 71 | BI36: 71 | BJ36: 71 | BK36: 71 | BL36: 71 | BM36: 71 | BN36: 71 | BO36: 71 | BP36: 71 | BQ36: 71 | BR36: 71 | BT36: 26 | BU36: 5125 | BV36: Antioquia | BW36: Caicedo | BX36: [Lineas] | BY36: 104 | BZ36: 130 | CA36: 109 | CB36: 71 | CC36: 71 | CD36: 71 | CE36: 71
B37: 27 | C37: 5129 | D37: Antioquia | E37: Caldas | F37: [Lineas] | G37: 22692 | H37: 22005 | I37: 22253 | J37: 21879 | K37: 21452 | L37: 21878 | M37: 21878 | N37: 21540 | O37: 21086 | P37: 21327 | Q37: 21135 | R37: 20760 | S37: 20714 | T37: 20667 | U37: 20604 | V37: 20566 | W37: 20429 | X37: 20232 | Y37: 20150 | Z37: 20049 | AA37: 19988 | AB37: 19958 | AC37: 19942 | AD37: 19918 | AE37: 19860 | AF37: 19913 | AG37: 19805 | AH37: 20104 | AI37: 20046 | AJ37: 19993 | AK37: 19848 | AL37: 19833 | AM37: 19825 | AN37: 19801 | AO37: 19828 | AP37: 19625 | AQ37: 19614 | AR37: 19806 | AS37: 19953 | AT37: 20167 | AU37: 18278 | AV37: 17427 | AW37: 20706 | AX37: 20919 | AY37: 20956 | AZ37: 21070 | BA37: 20950 | BB37: 20734 | BC37: 20710 | BD37: 20814 | BE37: 20103 | BF37: 18012 | BG37: 18012 | BH37: 18012 | BI37: 18012 | BJ37: 18012 | BK37: 18012 | BL37: 18012 | BM37: 18012 | BN37: 18012 | BO37: 18012 | BP37: 18012 | BQ37: 18012 | BR37: 18012 | BT37: 27 | BU37: 5129 | BV37: Antioquia | BW37: Caldas | BX37: [Lineas] | BY37: 20167 | BZ37: 20919 | CA37: 20734 | CB37: 18012 | CC37: 18012 | CD37: 18012 | CE37: 18012
B38: 28 | C38: 5134 | D38: Antioquia | E38: Campamento | F38: [Lineas] | G38: 202 | H38: 201 | I38: 206 | J38: 209 | K38: 225 | L38: 224 | M38: 223 | N38: 214 | O38: 212 | P38: 209 | Q38: 206 | R38: 203 | S38: 203 | T38: 201 | U38: 176 | V38: 173 | W38: 165 | X38: 158 | Y38: 157 | Z38: 154 | AA38: 151 | AB38: 142 | AC38: 128 | AD38: 137 | AE38: 130 | AF38: 131 | AG38: 131 | AH38: 132 | AI38: 129 | AJ38: 127 | AK38: 127 | AL38: 126 | AM38: 121 | AN38: 118 | AO38: 103 | AP38: 98 | AQ38: 95 | AR38: 93 | AS38: 88 | AT38: 87 | AU38: 100 | AV38: 104 | AW38: 116 | AX38: 128 | AY38: 122 | AZ38: 114 | BA38: 111 | BB38: 108 | BC38: 101 | BD38: 86 | BE38: 75 | BF38: 66 | BG38: 66 | BH38: 66 | BI38: 66 | BJ38: 66 | BK38: 66 | BL38: 66 | BM38: 66 | BN38: 66 | BO38: 66 | BP38: 66 | BQ38: 66 | BR38: 66 | BT38: 28 | BU38: 5134 | BV38: Antioquia | BW38: Campamento | BX38: [Lineas] | BY38: 87 | BZ38: 128 | CA38: 108 | CB38: 66 | CC38: 66 | CD38: 66 | CE38: 66
B39: 29 | C39: 5138 | D39: Antioquia | E39: Cañasgordas | F39: [Lineas] | G39: 1002 | H39: 970 | I39: 964 | J39: 968 | K39: 1020 | L39: 1021 | M39: 1018 | N39: 1010 | O39: 999 | P39: 978 | Q39: 877 | R39: 878 | S39: 885 | T39: 879 | U39: 621 | V39: 621 | W39: 588 | X39: 560 | Y39: 545 | Z39: 530 | AA39: 522 | AB39: 493 | AC39: 448 | AD39: 501 | AE39: 495 | AF39: 500 | AG39: 494 | AH39: 484 | AI39: 469 | AJ39: 454 | AK39: 447 | AL39: 415 | AM39: 396 | AN39: 380 | AO39: 319 | AP39: 295 | AQ39: 281 | AR39: 256 | AS39: 236 | AT39: 225 | AU39: 226 | AV39: 320 | AW39: 353 | AX39: 386 | AY39: 397 | AZ39: 378 | BA39: 375 | BB39: 367 | BC39: 345 | BD39: 325 | BE39: 295 | BF39: 274 | BG39: 274 | BH39: 274 | BI39: 274 | BJ39: 274 | BK39: 274 | BL39: 274 | BM39: 274 | BN39: 274 | BO39: 274 | BP39: 274 | BQ39: 274 | BR39: 274 | BT39: 29 | BU39: 5138 | BV39: Antioquia | BW39: Cañasgordas | BX39: [Lineas] | BY39: 225 | BZ39: 386 | CA39: 367 | CB39: 274 | CC39: 274 | CD39: 274 | CE39: 274
B40: 30 | C40: 5142 | D40: Antioquia | E40: Caracolí | F40: [Lineas] | G40: 411 | H40: 404 | I40: 404 | J40: 402 | K40: 424 | L40: 413 | M40: 403 | N40: 397 | O40: 389 | P40: 378 | Q40: 362 | R40: 358 | S40: 361 | T40: 353 | U40: 282 | V40: 274 | W40: 261 | X40: 251 | Y40: 247 | Z40: 233 | AA40: 229 | AB40: 223 | AC40: 191 | AD40: 216 | AE40: 201 | AF40: 192 | AG40: 187 | AH40: 184 | AI40: 182 | AJ40: 174 | AK40: 168 | AL40: 161 | AM40: 155 | AN40: 151 | AO40: 137 | AP40: 131 | AQ40: 131 | AR40: 132 | AS40: 126 | AT40: 119 | AU40: 144 | AV40: 172 | AW40: 196 | AX40: 204 | AY40: 194 | AZ40: 178 | BA40: 172 | BB40: 166 | BC40: 153 | BD40: 141 | BE40: 131 | BF40: 124 | BG40: 124 | BH40: 124 | BI40: 124 | BJ40: 124 | BK40: 124 | BL40: 124 | BM40: 124 | BN40: 124 | BO40: 124 | BP40: 124 | BQ40: 124 | BR40: 124 | BT40: 30 | BU40: 5142 | BV40: Antioquia | BW40: Caracolí | BX40: [Lineas] | BY40: 119 | BZ40: 204 | CA40: 166 | CB40: 124 | CC40: 124 | CD40: 124 | CE40: 124
B41: 31 | C41: 5145 | D41: Antioquia | E41: Caramanta | F41: [Lineas] | G41: 427 | H41: 421 | I41: 413 | J41: 402 | K41: 420 | L41: 418 | M41: 420 | N41: 413 | O41: 404 | P41: 396 | Q41: 390 | R41: 387 | S41: 382 | T41: 372 | U41: 257 | V41: 254 | W41: 241 | X41: 232 | Y41: 232 | Z41: 224 | AA41: 216 | AB41: 201 | AC41: 176 | AD41: 198 | AE41: 191 | AF41: 197 | AG41: 199 | AH41: 198 | AI41: 187 | AJ41: 182 | AK41: 180 | AL41: 168 | AM41: 163 | AN41: 162 | AO41: 139 | AP41: 132 | AQ41: 129 | AR41: 122 | AS41: 123 | AT41: 118 | AU41: 126 | AV41: 154 | AW41: 169 | AX41: 183 | AY41: 181 | AZ41: 173 | BA41: 167 | BB41: 171 | BC41: 127 | BD41: 109 | BE41: 104 | BF41: 94 | BG41: 94 | BH41: 94 | BI41: 94 | BJ41: 94 | BK41: 94 | BL41: 94 | BM41: 94 | BN41: 94 | BO41: 94 | BP41: 94 | BQ41: 94 | BR41: 94 | BT41: 31 | BU41: 5145 | BV41: Antioquia | BW41: Caramanta | BX41: [Lineas] | BY41: 118 | BZ41: 183 | CA41: 171 | CB41: 94 | CC41: 94 | CD41: 94 | CE41: 94
B42: 32 | C42: 5147 | D42: Antioquia | E42: Carepa | F42: [Lineas] | G42: 2619 | H42: 2685 | I42: 2830 | J42: 2994 | K42: 3221 | L42: 3333 | M42: 3499 | N42: 3507 | O42: 3527 | P42: 3434 | Q42: 3617 | R42: 3636 | S42: 3657 | T42: 3589 | U42: 3102 | V42: 2952 | W42: 2797 | X42: 2716 | Y42: 2613 | Z42: 2628 | AA42: 2677 | AB42: 2713 | AC42: 2460 | AD42: 2737 | AE42: 2623 | AF42: 2589 | AG42: 2420 | AH42: 2264 | AI42: 2137 | AJ42: 2017 | AK42: 1960 | AL42: 1862 | AM42: 1801 | AN42: 1806 | AO42: 1612 | AP42: 1671 | AQ42: 1769 | AR42: 1965 | AS42: 2046 | AT42: 2218 | AU42: 2278 | AV42: 2489 | AW42: 2839 | AX42: 3319 | AY42: 3799 | AZ42: 3984 | BA42: 4125 | BB42: 4353 | BC42: 4792 | BD42: 4828 | BE42: 4647 | BF42: 4001 | BG42: 4001 | BH42: 4001 | BI42: 4001 | BJ42: 4001 | BK42: 4001 | BL42: 4001 | BM42: 4001 | BN42: 4001 | BO42: 4001 | BP42: 4001 | BQ42: 4001 | BR42: 4001 | BT42: 32 | BU42: 5147 | BV42: Antioquia | BW42: Carepa | BX42: [Lineas] | BY42: 2218 | BZ42: 3319 | CA42: 4353 | CB42: 4001 | CC42: 4001 | CD42: 4001 | CE42: 4001
B43: 33 | C43: 5148 | D43: Antioquia | E43: El Carmen de Viboral | F43: [Lineas] | G43: 7600 | H43: 7362 | I43: 7170 | J43: 7042 | K43: 6938 | L43: 6865 | M43: 6786 | N43: 6608 | O43: 6381 | P43: 6340 | Q43: 6039 | R43: 5930 | S43: 5863 | T43: 5611 | U43: 5355 | V43: 5196 | W43: 5068 | X43: 4900 | Y43: 4872 | Z43: 4808 | AA43: 4594 | AB43: 4568 | AC43: 4518 | AD43: 4549 | AE43: 4560 | AF43: 4562 | AG43: 4524 | AH43: 4537 | AI43: 4517 | AJ43: 4502 | AK43: 4447 | AL43: 4434 | AM43: 4370 | AN43: 4366 | AO43: 4339 | AP43: 4250 | AQ43: 4119 | AR43: 4186 | AS43: 4172 | AT43: 4252 | AU43: 3904 | AV43: 4156 | AW43: 4179 | AX43: 4378 | AY43: 4349 | AZ43: 4323 | BA43: 4356 | BB43: 4464 | BC43: 4595 | BD43: 4651 | BE43: 4475 | BF43: 4058 | BG43: 4058 | BH43: 4058 | BI43: 4058 | BJ43: 4058 | BK43: 4058 | BL43: 4058 | BM43: 4058 | BN43: 4058 | BO43: 4058 | BP43: 4058 | BQ43: 4058 | BR43: 4058 | BT43: 33 | BU43: 5148 | BV43: Antioquia | BW43: El Carmen de Viboral | BX43: [Lineas] | BY43: 4252 | BZ43: 4378 | CA43: 4464 | CB43: 4058 | CC43: 4058 | CD43: 4058 | CE43: 4058
B44: 34 | C44: 5150 | D44: Antioquia | E44: Carolina | F44: [Lineas] | G44: 660 | H44: 655 | I44: 669 | J44: 670 | K44: 680 | L44: 679 | M44: 678 | N44: 671 | O44: 664 | P44: 657 | Q44: 648 | R44: 650 | S44: 651 | T44: 641 | U44: 584 | V44: 577 | W44: 544 | X44: 533 | Y44: 529 | Z44: 514 | AA44: 498 | AB44: 482 | AC44: 464 | AD44: 493 | AE44: 470 | AF44: 466 | AG44: 467 | AH44: 463 | AI44: 453 | AJ44: 447 | AK44: 439 | AL44: 429 | AM44: 417 | AN44: 406 | AO44: 371 | AP44: 360 | AQ44: 354 | AR44: 339 | AS44: 332 | AT44: 325 | AU44: 321 | AV44: 353 | AW44: 361 | AX44: 364 | AY44: 359 | AZ44: 343 | BA44: 328 | BB44: 312 | BC44: 293 | BD44: 265 | BE44: 230 | BF44: 211 | BG44: 211 | BH44: 211 | BI44: 211 | BJ44: 211 | BK44: 211 | BL44: 211 | BM44: 211 | BN44: 211 | BO44: 211 | BP44: 211 | BQ44: 211 | BR44: 211 | BT44: 34 | BU44: 5150 | BV44: Antioquia | BW44: Carolina | BX44: [Lineas] | BY44: 325 | BZ44: 364 | CA44: 312 | CB44: 211 | CC44: 211 | CD44: 211 | CE44: 211
B45: 35 | C45: 5154 | D45: Antioquia | E45: Caucasia | F45: [Lineas] | G45: 7299 | H45: 7288 | I45: 7536 | J45: 7669 | K45: 7891 | L45: 7844 | M45: 7785 | N45: 7710 | O45: 7656 | P45: 7840 | Q45: 7554 | R45: 7773 | S45: 8042 | T45: 7916 | U45: 6411 | V45: 6036 | W45: 5666 | X45: 5394 | Y45: 5224 | Z45: 5196 | AA45: 5159 | AB45: 5019 | AC45: 4259 | AD45: 5156 | AE45: 4983 | AF45: 4840 | AG45: 4491 | AH45: 4202 | AI45: 3753 | AJ45: 3479 | AK45: 3384 | AL45: 3280 | AM45: 3110 | AN45: 3068 | AO45: 2653 | AP45: 2581 | AQ45: 2643 | AR45: 2706 | AS45: 2761 | AT45: 2995 | AU45: 3669 | AV45: 4359 | AW45: 5154 | AX45: 5853 | AY45: 6270 | AZ45: 5910 | BA45: 5654 | BB45: 5156 | BC45: 4948 | BD45: 4868 | BE45: 4947 | BF45: 4906 | BG45: 4906 | BH45: =MAX(IFERROR(IF(BG45>0,IF(_xlfn.FORECAST.ETS(BH$10,OFFSET($BF45,0,0,1,-10),OFFSET($BF$10,0,0,1,-10),4)<0,0,_xlfn.FORECAST.ETS(BH$10,OFFSET($BF45,0,0,1,-10),OFFSET($BF$10,0,0,1,-10),4)),0),BG45),0) -> 4906 | BI45: 4906 | BJ45: 4906 | BK45: 4906 | BL45: 4906 | BM45: 4906 | BN45: 4906 | BO45: 4906 | BP45: 4906 | BQ45: 4906 | BR45: 4906 | BT45: 35 | BU45: 5154 | BV45: Antioquia | BW45: Caucasia | BX45: [Lineas] | BY45: 2995 | BZ45: 5853 | CA45: 5156 | CB45: 4906 | CC45: 4906 | CD45: 4906 | CE45: 4906
B46: 36 | C46: 5172 | D46: Antioquia | E46: Chigorodó | F46: [Lineas] | G46: 3838 | H46: 3821 | I46: 3910 | J46: 4065 | K46: 4303 | L46: 4383 | M46: 4443 | N46: 4440 | O46: 4367 | P46: 4004 | Q46: 4207 | R46: 4336 | S46: 4310 | T46: 4215 | U46: 3372 | V46: 3177 | W46: 2999 | X46: 2849 | Y46: 2754 | Z46: 2667 | AA46: 2571 | AB46: 2486 | AC46: 2168 | AD46: 2542 | AE46: 2701 | AF46: 2665 | AG46: 2523 | AH46: 2417 | AI46: 2308 | AJ46: 2247 | AK46: 2200 | AL46: 2166 | AM46: 2215 | AN46: 2216 | AO46: 1954 | AP46: 1871 | AQ46: 2075 | AR46: 2189 | AS46: 2355 | AT46: 2571 | AU46: 2971 | AV46: 3370 | AW46: 3639 | AX46: 3971 | AY46: 4655 | AZ46: 4955 | BA46: 5348 | BB46: 5493 | BC46: 5794 | BD46: 6005 | BE46: 6068 | BF46: 5690 | BG46: 5690 | BH46: 5690 | BI46: 5690 | BJ46: 5690 | BK46: 5690 | BL46: 5690 | BM46: 5690 | BN46: 5690 | BO46: 5690 | BP46: 5690 | BQ46: 5690 | BR46: 5690 | BT46: 36 | BU46: 5172 | BV46: Antioquia | BW46: Chigorodó | BX46: [Lineas] | BY46: 2571 | BZ46: 3971 | CA46: 5493 | CB46: 5690 | CC46: 5690 | CD46: 5690 | CE46: 5690
B47: 37 | C47: 5190 | D47: Antioquia | E47: Cisneros | F47: [Lineas] | G47: 1410 | H47: 1384 | I47: 1357 | J47: 1360 | K47: 1446 | L47: 1438 | M47: 1441 | N47: 1434 | O47: 1426 | P47: 1412 | Q47: 1389 | R47: 1387 | S47: 1398 | T47: 1357 | U47: 1202 | V47: 1173 | W47: 1099 | X47: 1062 | Y47: 1027 | Z47: 1006 | AA47: 954 | AB47: 944 | AC47: 810 | AD47: 911 | AE47: 879 | AF47: 870 | AG47: 863 | AH47: 852 | AI47: 827 | AJ47: 796 | AK47: 764 | AL47: 735 | AM47: 716 | AN47: 686 | AO47: 621 | AP47: 595 | AQ47: 568 | AR47: 554 | AS47: 529 | AT47: 512 | AU47: 604 | AV47: 656 | AW47: 688 | AX47: 707 | AY47: 679 | AZ47: 634 | BA47: 591 | BB47: 525 | BC47: 488 | BD47: 445 | BE47: 413 | BF47: 383 | BG47: 383 | BH47: 383 | BI47: 383 | BJ47: 383 | BK47: 383 | BL47: 383 | BM47: 383 | BN47: 383 | BO47: 383 | BP47: 383 | BQ47: 383 | BR47: 383 | BT47: 37 | BU47: 5190 | BV47: Antioquia | BW47: Cisneros | BX47: [Lineas] | BY47: 512 | BZ47: 707 | CA47: 525 | CB47: 383 | CC47: 383 | CD47: 383 | CE47: 383
B48: 38 | C48: 5197 | D48: Antioquia | E48: Cocorná | F48: [Lineas] | G48: 683 | H48: 683 | I48: 677 | J48: 677 | K48: 694 | L48: 695 | M48: 699 | N48: 691 | O48: 704 | P48: 695 | Q48: 680 | R48: 677 | S48: 691 | T48: 681 | U48: 611 | V48: 591 | W48: 563 | X48: 556 | Y48: 552 | Z48: 547 | AA48: 544 | AB48: 524 | AC48: 471 | AD48: 529 | AE48: 440 | AF48: 437 | AG48: 406 | AH48: 391 | AI48: 378 | AJ48: 367 | AK48: 364 | AL48: 349 | AM48: 335 | AN48: 316 | AO48: 269 | AP48: 251 | AQ48: 234 | AR48: 226 | AS48: 210 | AT48: 205 | AU48: 193 | AV48: 196 | AW48: 190 | AX48: 182 | AY48: 166 | AZ48: 153 | BA48: 147 | BB48: 130 | BC48: 116 | BD48: 96 | BE48: 90 | BF48: 88 | BG48: 88 | BH48: 88 | BI48: 88 | BJ48: 88 | BK48: 88 | BL48: 88 | BM48: 88 | BN48: 88 | BO48: 88 | BP48: 88 | BQ48: 88 | BR48: 88 | BT48: 38 | BU48: 5197 | BV48: Antioquia | BW48: Cocorná | BX48: [Lineas] | BY48: 205 | BZ48: 182 | CA48: 130 | CB48: 88 | CC48: 88 | CD48: 88 | CE48: 88
B49: 39 | C49: 5206 | D49: Antioquia | E49: Concepción | F49: [Lineas] | G49: 388 | H49: 382 | I49: 375 | J49: 372 | K49: 376 | L49: 369 | M49: 365 | N49: 360 | O49: 359 | P49: 354 | Q49: 341 | R49: 338 | S49: 335 | T49: 327 | U49: 296 | V49: 295 | W49: 280 | X49: 270 | Y49: 267 | Z49: 263 | AA49: 256 | AB49: 245 | AC49: 227 | AD49: 248 | AE49: 239 | AF49: 237 | AG49: 230 | AH49: 223 | AI49: 222 | AJ49: 216 | AK49: 215 | AL49: 209 | AM49: 204 | AN49: 202 | AO49: 176 | AP49: 163 | AQ49: 153 | AR49: 147 | AS49: 142 | AT49: 134 | AU49: 43 | AV49: 148 | AW49: 153 | AX49: 155 | AY49: 150 | AZ49: 140 | BA49: 130 | BB49: 125 | BC49: 118 | BD49: 109 | BE49: 100 | BF49: 91 | BG49: 91 | BH49: 91 | BI49: 91 | BJ49: 91 | BK49: 91 | BL49: 91 | BM49: 91 | BN49: 91 | BO49: 91 | BP49: 91 | BQ49: 91 | BR49: 91 | BT49: 39 | BU49: 5206 | BV49: Antioquia | BW49: Concepción | BX49: [Lineas] | BY49: 134 | BZ49: 155 | CA49: 125 | CB49: 91 | CC49: 91 | CD49: 91 | CE49: 91
B50: 40 | C50: 5209 | D50: Antioquia | E50: Concordia | F50: [Lineas] | G50: 1126 | H50: 1104 | I50: 1100 | J50: 1106 | K50: 1124 | L50: 1120 | M50: 1109 | N50: 1103 | O50: 1098 | P50: 1064 | Q50: 1043 | R50: 1048 | S50: 1051 | T50: 1045 | U50: 908 | V50: 893 | W50: 838 | X50: 804 | Y50: 782 | Z50: 768 | AA50: 744 | AB50: 731 | AC50: 680 | AD50: 799 | AE50: 724 | AF50: 718 | AG50: 703 | AH50: 680 | AI50: 663 | AJ50: 646 | AK50: 636 | AL50: 610 | AM50: 584 | AN50: 563 | AO50: 528 | AP50: 504 | AQ50: 464 | AR50: 421 | AS50: 400 | AT50: 384 | AU50: 386 | AV50: 414 | AW50: 436 | AX50: 463 | AY50: 463 | AZ50: 469 | BA50: 485 | BB50: 454 | BC50: 440 | BD50: 410 | BE50: 379 | BF50: 358 | BG50: 358 | BH50: 358 | BI50: 358 | BJ50: 358 | BK50: 358 | BL50: 358 | BM50: 358 | BN50: 358 | BO50: 358 | BP50: 358 | BQ50: 358 | BR50: 358 | BT50: 40 | BU50: 5209 | BV50: Antioquia | BW50: Concordia | BX50: [Lineas] | BY50: 384 | BZ50: 463 | CA50: 454 | CB50: 358 | CC50: 358 | CD50: 358 | CE50: 358
B51: 41 | C51: 5212 | D51: Antioquia | E51: Copacabana | F51: [Lineas] | G51: 22919 | H51: 22460 | I51: 22678 | J51: 22365 | K51: 22789 | L51: 23277 | M51: 23137 | N51: 22701 | O51: 22181 | P51: 22537 | Q51: 22119 | R51: 21679 | S51: 21450 | T51: 21116 | U51: 20926 | V51: 20846 | W51: 20770 | X51: 22390 | Y51: 22184 | Z51: 21954 | AA51: 21687 | AB51: 21577 | AC51: 21455 | AD51: 21397 | AE51: 21450 | AF51: 21360 | AG51: 20992 | AH51: 21265 | AI51: 21229 | AJ51: 21069 | AK51: 20876 | AL51: 20549 | AM51: 20317 | AN51: 20208 | AO51: 20075 | AP51: 19760 | AQ51: 19623 | AR51: 19987 | AS51: 20114 | AT51: 20207 | AU51: 18995 | AV51: 20040 | AW51: 20271 | AX51: 20807 | AY51: 21109 | AZ51: 21302 | BA51: 21329 | BB51: 21242 | BC51: 21390 | BD51: 21380 | BE51: 20719 | BF51: 18204 | BG51: 18204 | BH51: 18204 | BI51: 18204 | BJ51: 18204 | BK51: 18204 | BL51: 18204 | BM51: 18204 | BN51: 18204 | BO51: 18204 | BP51: 18204 | BQ51: 18204 | BR51: 18204 | BT51: 41 | BU51: 5212 | BV51: Antioquia | BW51: Copacabana | BX51: [Lineas] | BY51: 20207 | BZ51: 20807 | CA51: 21242 | CB51: 18204 | CC51: 18204 | CD51: 18204 | CE51: 18204
B52: 42 | C52: 5234 | D52: Antioquia | E52: Dabeiba | F52: [Lineas] | G52: 745 | H52: 734 | I52: 731 | J52: 736 | K52: 774 | L52: 774 | M52: 772 | N52: 769 | O52: 757 | P52: 758 | Q52: 759 | R52: 752 | S52: 746 | T52: 740 | U52: 634 | V52: 622 | W52: 597 | X52: 590 | Y52: 589 | Z52: 580 | AA52: 592 | AB52: 586 | AC52: 529 | AD52: 603 | AE52: 606 | AF52: 607 | AG52: 593 | AH52: 569 | AI52: 545 | AJ52: 530 | AK52: 529 | AL52: 509 | AM52: 493 | AN52: 488 | AO52: 451 | AP52: 422 | AQ52: 394 | AR52: 341 | AS52: 326 | AT52: 311 | AU52: 329 | AV52: 392 | AW52: 416 | AX52: 425 | AY52: 410 | AZ52: 357 | BA52: 336 | BB52: 318 | BC52: 292 | BD52: 264 | BE52: 231 | BF52: 217 | BG52: 217 | BH52: 217 | BI52: 217 | BJ52: 217 | BK52: 217 | BL52: 217 | BM52: 217 | BN52: 217 | BO52: 217 | BP52: 217 | BQ52: 217 | BR52: 217 | BT52: 42 | BU52: 5234 | BV52: Antioquia | BW52: Dabeiba | BX52: [Lineas] | BY52: 311 | BZ52: 425 | CA52: 318 | CB52: 217 | CC52: 217 | CD52: 217 | CE52: 217
B53: 43 | C53: 5237 | D53: Antioquia | E53: Don Matías | F53: [Lineas] | G53: 2570 | H53: 2522 | I53: 2503 | J53: 2479 | K53: 2585 | L53: 2565 | M53: 2575 | N53: 2550 | O53: 2566 | P53: 2562 | Q53: 2554 | R53: 2568 | S53: 2612 | T53: 2559 | U53: 2337 | V53: 2303 | W53: 2230 | X53: 2160 | Y53: 2154 | Z53: 2128 | AA53: 2058 | AB53: 2070 | AC53: 1758 | AD53: 2066 | AE53: 1979 | AF53: 1953 | AG53: 1912 | AH53: 1875 | AI53: 1837 | AJ53: 1821 | AK53: 1829 | AL53: 1736 | AM53: 1670 | AN53: 1608 | AO53: 1491 | AP53: 1419 | AQ53: 1289 | AR53: 1178 | AS53: 1095 | AT53: 1013 | AU53: 980 | AV53: 979 | AW53: 911 | AX53: 866 | AY53: 804 | AZ53: 694 | BA53: 598 | BB53: 401 | BC53: 324 | BD53: 301 | BE53: 270 | BF53: 237 | BG53: 237 | BH53: 237 | BI53: 237 | BJ53: 237 | BK53: 237 | BL53: 237 | BM53: 237 | BN53: 237 | BO53: 237 | BP53: 237 | BQ53: 237 | BR53: 237 | BT53: 43 | BU53: 5237 | BV53: Antioquia | BW53: Don Matías | BX53: [Lineas] | BY53: 1013 | BZ53: 866 | CA53: 401 | CB53: 237 | CC53: 237 | CD53: 237 | CE53: 237
B54: 44 | C54: 5240 | D54: Antioquia | E54: Ebéjico | F54: [Lineas] | G54: 973 | H54: 955 | I54: 959 | J54: 960 | K54: 983 | L54: 976 | M54: 971 | N54: 961 | O54: 949 | P54: 939 | Q54: 943 | R54: 939 | S54: 954 | T54: 941 | U54: 864 | V54: 851 | W54: 821 | X54: 795 | Y54: 780 | Z54: 770 | AA54: 738 | AB54: 732 | AC54: 675 | AD54: 733 | AE54: 702 | AF54: 693 | AG54: 682 | AH54: 678 | AI54: 648 | AJ54: 601 | AK54: 588 | AL54: 563 | AM54: 542 | AN54: 531 | AO54: 492 | AP54: 475 | AQ54: 469 | AR54: 458 | AS54: 453 | AT54: 442 | AU54: 402 | AV54: 399 | AW54: 383 | AX54: 411 | AY54: 412 | AZ54: 407 | BA54: 399 | BB54: 393 | BC54: 366 | BD54: 344 | BE54: 317 | BF54: 293 | BG54: 293 | BH54: 293 | BI54: 293 | BJ54: 293 | BK54: 293 | BL54: 293 | BM54: 293 | BN54: 293 | BO54: 293 | BP54: 293 | BQ54: 293 | BR54: 293 | BT54: 44 | BU54: 5240 | BV54: Antioquia | BW54: Ebéjico | BX54: [Lineas] | BY54: 442 | BZ54: 411 | CA54: 393 | CB54: 293 | CC54: 293 | CD54: 293 | CE54: 293
B55: 45 | C55: 5250 | D55: Antioquia | E55: El Bagre | F55: [Lineas] | G55: 2707 | H55: 2683 | I55: 2718 | J55: 2778 | K55: 2898 | L55: 2943 | M55: 2910 | N55: 2886 | O55: 2846 | P55: 2801 | Q55: 2583 | R55: 2535 | S55: 2534 | T55: 2501 | U55: 1965 | V55: 1905 | W55: 1794 | X55: 1727 | Y55: 1653 | Z55: 1630 | AA55: 1629 | AB55: 1650 | AC55: 1440 | AD55: 1655 | AE55: 1679 | AF55: 1601 | AG55: 1520 | AH55: 1426 | AI55: 1331 | AJ55: 1260 | AK55: 1233 | AL55: 1150 | AM55: 1092 | AN55: 1064 | AO55: 914 | AP55: 836 | AQ55: 769 | AR55: 709 | AS55: 649 | AT55: 605 | AU55: 722 | AV55: 821 | AW55: 892 | AX55: 1020 | AY55: 1026 | AZ55: 965 | BA55: 1024 | BB55: 1028 | BC55: 934 | BD55: 857 | BE55: 759 | BF55: 649 | BG55: 649 | BH55: 649 | BI55: 649 | BJ55: 649 | BK55: 649 | BL55: 649 | BM55: 649 | BN55: 649 | BO55: 649 | BP55: 649 | BQ55: 649 | BR55: 649 | BT55: 45 | BU55: 5250 | BV55: Antioquia | BW55: El Bagre | BX55: [Lineas] | BY55: 605 | BZ55: 1020 | CA55: 1028 | CB55: 649 | CC55: 649 | CD55: 649 | CE55: 649
B56: 46 | C56: 5264 | D56: Antioquia | E56: Entrerrios | F56: [Lineas] | G56: 804 | H56: 786 | I56: 778 | J56: 767 | K56: 781 | L56: 774 | M56: 773 | N56: 762 | O56: 775 | P56: 786 | Q56: 766 | R56: 774 | S56: 813 | T56: 799 | U56: 736 | V56: 723 | W56: 707 | X56: 710 | Y56: 705 | Z56: 707 | AA56: 708 | AB56: 703 | AC56: 569 | AD56: 703 | AE56: 649 | AF56: 634 | AG56: 608 | AH56: 600 | AI56: 575 | AJ56: 558 | AK56: 541 | AL56: 522 | AM56: 498 | AN56: 470 | AO56: 413 | AP56: 379 | AQ56: 358 | AR56: 335 | AS56: 315 | AT56: 305 | AU56: 281 | AV56: 284 | AW56: 264 | AX56: 250 | AY56: 232 | AZ56: 217 | BA56: 194 | BB56: 189 | BC56: 183 | BD56: 169 | BE56: 150 | BF56: 143 | BG56: 143 | BH56: 143 | BI56: 143 | BJ56: 143 | BK56: 143 | BL56: 143 | BM56: 143 | BN56: 143 | BO56: 143 | BP56: 143 | BQ56: 143 | BR56: 143 | BT56: 46 | BU56: 5264 | BV56: Antioquia | BW56: Entrerrios | BX56: [Lineas] | BY56: 305 | BZ56: 250 | CA56: 189 | CB56: 143 | CC56: 143 | CD56: 143 | CE56: 143
B57: 47 | C57: 5266 | D57: Antioquia | E57: Envigado | F57: [Lineas] | G57: 79949 | H57: 79541 | I57: 79700 | J57: 79840 | K57: 79501 | L57: 80794 | M57: 80954 | N57: 80346 | O57: 79305 | P57: 79892 | Q57: 79310 | R57: 79012 | S57: 79006 | T57: 78714 | U57: 78708 | V57: 78637 | W57: 78803 | X57: 80935 | Y57: 81059 | Z57: 81068 | AA57: 81086 | AB57: 81937 | AC57: 81991 | AD57: 82156 | AE57: 82106 | AF57: 82301 | AG57: 78778 | AH57: 83239 | AI57: 83456 | AJ57: 83791 | AK57: 83906 | AL57: 83888 | AM57: 83585 | AN57: 82964 | AO57: 82354 | AP57: 81754 | AQ57: 82374 | AR57: 82197 | AS57: 83504 | AT57: 85123 | AU57: 76189 | AV57: 80228 | AW57: 80485 | AX57: 80942 | AY57: 80708 | AZ57: 80565 | BA57: 78993 | BB57: 78754 | BC57: 78402 | BD57: 77506 | BE57: 74192 | BF57: 69321 | BG57: 69321 | BH57: 69321 | BI57: 69321 | BJ57: 69321 | BK57: 69321 | BL57: 69321 | BM57: 69321 | BN57: 69321 | BO57: 69321 | BP57: 69321 | BQ57: 69321 | BR57: 69321 | BT57: 47 | BU57: 5266 | BV57: Antioquia | BW57: Envigado | BX57: [Lineas] | BY57: 85123 | BZ57: 80942 | CA57: 78754 | CB57: 69321 | CC57: 69321 | CD57: 69321 | CE57: 69321
B58: 48 | C58: 5282 | D58: Antioquia | E58: Fredonia | F58: [Lineas] | G58: 2370 | H58: 2327 | I58: 2345 | J58: 2345 | K58: 2403 | L58: 2414 | M58: 2404 | N58: 2372 | O58: 2370 | P58: 2364 | Q58: 2284 | R58: 2289 | S58: 2281 | T58: 2218 | U58: 1928 | V58: 1908 | W58: 1886 | X58: 1840 | Y58: 1803 | Z58: 1786 | AA58: 1761 | AB58: 1746 | AC58: 1521 | AD58: 1721 | AE58: 1681 | AF58: 1690 | AG58: 1664 | AH58: 1641 | AI58: 1631 | AJ58: 1575 | AK58: 1543 | AL58: 1516 | AM58: 1459 | AN58: 1428 | AO58: 1282 | AP58: 1253 | AQ58: 1227 | AR58: 1183 | AS58: 1134 | AT58: 1045 | AU58: 958 | AV58: 1000 | AW58: 977 | AX58: 982 | AY58: 919 | AZ58: 811 | BA58: 713 | BB58: 653 | BC58: 594 | BD58: 511 | BE58: 457 | BF58: 419 | BG58: 419 | BH58: 419 | BI58: 419 | BJ58: 419 | BK58: 419 | BL58: 419 | BM58: 419 | BN58: 419 | BO58: 419 | BP58: 419 | BQ58: 419 | BR58: 419 | BT58: 48 | BU58: 5282 | BV58: Antioquia | BW58: Fredonia | BX58: [Lineas] | BY58: 1045 | BZ58: 982 | CA58: 653 | CB58: 419 | CC58: 419 | CD58: 419 | CE58: 419
B59: 49 | C59: 5284 | D59: Antioquia | E59: Frontino | F59: [Lineas] | G59: 1249 | H59: 1244 | I59: 1272 | J59: 1300 | K59: 1404 | L59: 1415 | M59: 1406 | N59: 1393 | O59: 1380 | P59: 1272 | Q59: 1258 | R59: 1254 | S59: 1267 | T59: 1232 | U59: 1012 | V59: 995 | W59: 966 | X59: 942 | Y59: 921 | Z59: 901 | AA59: 875 | AB59: 851 | AC59: 757 | AD59: 849 | AE59: 822 | AF59: 798 | AG59: 776 | AH59: 1216 | AI59: 1130 | AJ59: 1114 | AK59: 1130 | AL59: 1114 | AM59: 1085 | AN59: 1060 | AO59: 997 | AP59: 954 | AQ59: 919 | AR59: 898 | AS59: 873 | AT59: 867 | AU59: 537 | AV59: 996 | AW59: 1048 | AX59: 1093 | AY59: 1076 | AZ59: 1023 | BA59: 973 | BB59: 944 | BC59: 908 | BD59: 853 | BE59: 825 | BF59: 802 | BG59: 802 | BH59: 802 | BI59: 802 | BJ59: 802 | BK59: 802 | BL59: 802 | BM59: 802 | BN59: 802 | BO59: 802 | BP59: 802 | BQ59: 802 | BR59: 802 | BT59: 49 | BU59: 5284 | BV59: Antioquia | BW59: Frontino | BX59: [Lineas] | BY59: 867 | BZ59: 1093 | CA59: 944 | CB59: 802 | CC59: 802 | CD59: 802 | CE59: 802
B60: 50 | C60: 5306 | D60: Antioquia | E60: Giraldo | F60: [Lineas] | G60: 205 | H60: 198 | I60: 193 | J60: 183 | K60: 194 | L60: 190 | M60: 189 | N60: 190 | O60: 187 | P60: 183 | Q60: 185 | R60: 183 | S60: 179 | T60: 177 | U60: 145 | V60: 140 | W60: 127 | X60: 124 | Y60: 120 | Z60: 113 | AA60: 114 | AB60: 106 | AC60: 106 | AD60: 114 | AE60: 117 | AF60: 118 | AG60: 113 | AH60: 109 | AI60: 108 | AJ60: 107 | AK60: 109 | AL60: 108 | AM60: 104 | AN60: 101 | AO60: 95 | AP60: 85 | AQ60: 79 | AR60: 78 | AS60: 74 | AT60: 73 | AU60: 60 | AV60: 71 | AW60: 69 | AX60: 67 | AY60: 65 | AZ60: 61 | BA60: 60 | BB60: 60 | BC60: 57 | BD60: 51 | BE60: 49 | BF60: 48 | BG60: 48 | BH60: 48 | BI60: 48 | BJ60: 48 | BK60: 48 | BL60: 48 | BM60: 48 | BN60: 48 | BO60: 48 | BP60: 48 | BQ60: 48 | BR60: 48 | BT60: 50 | BU60: 5306 | BV60: Antioquia | BW60: Giraldo | BX60: [Lineas] | BY60: 73 | BZ60: 67 | CA60: 60 | CB60: 48 | CC60: 48 | CD60: 48 | CE60: 48
B61: 51 | C61: 5308 | D61: Antioquia | E61: Girardota | F61: [Lineas] | G61: 13236 | H61: 13096 | I61: 12959 | J61: 12962 | K61: 12899 | L61: 13043 | M61: 13145 | N61: 12956 | O61: 12792 | P61: 12846 | Q61: 12450 | R61: 12344 | S61: 12217 | T61: 12103 | U61: 11943 | V61: 11838 | W61: 11719 | X61: 9646 | Y61: 9659 | Z61: 9591 | AA61: 9559 | AB61: 9476 | AC61: 9448 | AD61: 9295 | AE61: 9241 | AF61: 9293 | AG61: 9089 | AH61: 9266 | AI61: 9210 | AJ61: 9184 | AK61: 9163 | AL61: 9167 | AM61: 8982 | AN61: 9082 | AO61: 9442 | AP61: 9437 | AQ61: 9437 | AR61: 9497 | AS61: 9567 | AT61: 9559 | AU61: 8478 | AV61: 9250 | AW61: 9462 | AX61: 9652 | AY61: 9747 | AZ61: 9921 | BA61: 10012 | BB61: 10018 | BC61: 10208 | BD61: 10327 | BE61: 9943 | BF61: 9226 | BG61: 9226 | BH61: =MAX(IFERROR(IF(BG61>0,IF(_xlfn.FORECAST.ETS(BH$10,OFFSET($BF61,0,0,1,-10),OFFSET($BF$10,0,0,1,-10),4)<0,0,_xlfn.FORECAST.ETS(BH$10,OFFSET($BF61,0,0,1,-10),OFFSET($BF$10,0,0,1,-10),4)),0),BG61),0) -> 9226 | BI61: 9226 | BJ61: 9226 | BK61: 9226 | BL61: 9226 | BM61: 9226 | BN61: 9226 | BO61: 9226 | BP61: 9226 | BQ61: 9226 | BR61: 9226 | BT61: 51 | BU61: 5308 | BV61: Antioquia | BW61: Girardota | BX61: [Lineas] | BY61: 9559 | BZ61: 9652 | CA61: 10018 | CB61: 9226 | CC61: 9226 | CD61: 9226 | CE61: 9226
B62: 52 | C62: 5310 | D62: Antioquia | E62: Gómez Plata | F62: [Lineas] | G62: 1098 | H62: 1076 | I62: 1071 | J62: 1069 | K62: 1122 | L62: 1107 | M62: 1096 | N62: 1085 | O62: 1068 | P62: 1063 | Q62: 1032 | R62: 1028 | S62: 1045 | T62: 1028 | U62: 907 | V62: 888 | W62: 845 | X62: 813 | Y62: 802 | Z62: 774 | AA62: 764 | AB62: 738 | AC62: 693 | AD62: 754 | AE62: 712 | AF62: 715 | AG62: 702 | AH62: 685 | AI62: 671 | AJ62: 649 | AK62: 634 | AL62: 614 | AM62: 592 | AN62: 579 | AO62: 535 | AP62: 508 | AQ62: 475 | AR62: 456 | AS62: 441 | AT62: 430 | AU62: 429 | AV62: 456 | AW62: 471 | AX62: 468 | AY62: 449 | AZ62: 427 | BA62: 415 | BB62: 337 | BC62: 256 | BD62: 225 | BE62: 198 | BF62: 184 | BG62: 184 | BH62: 184 | BI62: 184 | BJ62: 184 | BK62: 184 | BL62: 184 | BM62: 184 | BN62: 184 | BO62: 184 | BP62: 184 | BQ62: 184 | BR62: 184 | BT62: 52 | BU62: 5310 | BV62: Antioquia | BW62: Gómez Plata | BX62: [Lineas] | BY62: 430 | BZ62: 468 | CA62: 337 | CB62: 184 | CC62: 184 | CD62: 184 | CE62: 184
B63: 53 | C63: 5313 | D63: Antioquia | E63: Granada | F63: [Lineas] | G63: 744 | H63: 733 | I63: 727 | J63: 725 | K63: 756 | L63: 759 | M63: 747 | N63: 741 | O63: 732 | P63: 724 | Q63: 597 | R63: 598 | S63: 599 | T63: 587 | U63: 384 | V63: 382 | W63: 356 | X63: 340 | Y63: 325 | Z63: 316 | AA63: 311 | AB63: 291 | AC63: 271 | AD63: 288 | AE63: 274 | AF63: 258 | AG63: 242 | AH63: 234 | AI63: 242 | AJ63: 232 | AK63: 217 | AL63: 207 | AM63: 201 | AN63: 200 | AO63: 117 | AP63: 100 | AQ63: 91 | AR63: 89 | AS63: 86 | AT63: 81 | AU63: 24 | AV63: 27 | AW63: 92 | AX63: 90 | AY63: 87 | AZ63: 82 | BA63: 80 | BB63: 80 | BC63: 67 | BD63: 62 | BE63: 61 | BF63: 55 | BG63: 55 | BH63: 55 | BI63: 55 | BJ63: 55 | BK63: 55 | BL63: 55 | BM63: 55 | BN63: 55 | BO63: 55 | BP63: 55 | BQ63: 55 | BR63: 55 | BT63: 53 | BU63: 5313 | BV63: Antioquia | BW63: Granada | BX63: [Lineas] | BY63: 81 | BZ63: 90 | CA63: 80 | CB63: 55 | CC63: 55 | CD63: 55 | CE63: 55
B64: 54 | C64: 5315 | D64: Antioquia | E64: Guadalupe | F64: [Lineas] | G64: 408 | H64: 395 | I64: 408 | J64: 412 | K64: 428 | L64: 417 | M64: 426 | N64: 424 | O64: 431 | P64: 431 | Q64: 433 | R64: 424 | S64: 430 | T64: 421 | U64: 387 | V64: 379 | W64: 348 | X64: 344 | Y64: 340 | Z64: 337 | AA64: 331 | AB64: 319 | AC64: 315 | AD64: 334 | AE64: 325 | AF64: 329 | AG64: 325 | AH64: 315 | AI64: 307 | AJ64: 303 | AK64: 294 | AL64: 290 | AM64: 277 | AN64: 266 | AO64: 246 | AP64: 234 | AQ64: 222 | AR64: 214 | AS64: 209 | AT64: 203 | AU64: 188 | AV64: 136 | AW64: 186 | AX64: 176 | AY64: 164 | AZ64: 158 | BA64: 150 | BB64: 143 | BC64: 118 | BD64: 100 | BE64: 83 | BF64: 77 | BG64: 77 | BH64: 77 | BI64: 77 | BJ64: 77 | BK64: 77 | BL64: 77 | BM64: 77 | BN64: 77 | BO64: 77 | BP64: 77 | BQ64: 77 | BR64: 77 | BT64: 54 | BU64: 5315 | BV64: Antioquia | BW64: Guadalupe | BX64: [Lineas] | BY64: 203 | BZ64: 176 | CA64: 143 | CB64: 77 | CC64: 77 | CD64: 77 | CE64: 77
B65: 55 | C65: 5318 | D65: Antioquia | E65: Guarne | F65: [Lineas] | G65: 11674 | H65: 11574 | I65: 11393 | J65: 11303 | K65: 11158 | L65: 11244 | M65: 11323 | N65: 11208 | O65: 10953 | P65: 10936 | Q65: 10610 | R65: 10442 | S65: 10265 | T65: 10117 | U65: 9849 | V65: 9724 | W65: 9546 | X65: 9262 | Y65: 9192 | Z65: 9013 | AA65: 8755 | AB65: 8611 | AC65: 8471 | AD65: 8301 | AE65: 8123 | AF65: 8034 | AG65: 7762 | AH65: 7998 | AI65: 7902 | AJ65: 7815 | AK65: 7794 | AL65: 7821 | AM65: 7749 | AN65: 7796 | AO65: 7876 | AP65: 7785 | AQ65: 7726 | AR65: 7788 | AS65: 7808 | AT65: 7816 | AU65: 6963 | AV65: 7592 | AW65: 7835 | AX65: 8155 | AY65: 8438 | AZ65: 8572 | BA65: 8574 | BB65: 8530 | BC65: 8715 | BD65: 8643 | BE65: 8017 | BF65: 7307 | BG65: 7307 | BH65: 7307 | BI65: 7307 | BJ65: 7307 | BK65: 7307 | BL65: 7307 | BM65: 7307 | BN65: 7307 | BO65: 7307 | BP65: 7307 | BQ65: 7307 | BR65: 7307 | BT65: 55 | BU65: 5318 | BV65: Antioquia | BW65: Guarne | BX65: [Lineas] | BY65: 7816 | BZ65: 8155 | CA65: 8530 | CB65: 7307 | CC65: 7307 | CD65: 7307 | CE65: 7307
B66: 56 | C66: 5321 | D66: Antioquia | E66: Guatapé | F66: [Lineas] | G66: 1092 | H66: 1087 | I66: 1090 | J66: 1102 | K66: 1151 | L66: 1151 | M66: 1146 | N66: 1132 | O66: 1141 | P66: 1141 | Q66: 1097 | R66: 1101 | S66: 1101 | T66: 1095 | U66: 969 | V66: 957 | W66: 915 | X66: 897 | Y66: 894 | Z66: 882 | AA66: 871 | AB66: 842 | AC66: 688 | AD66: 836 | AE66: 836 | AF66: 806 | AG66: 792 | AH66: 784 | AI66: 759 | AJ66: 742 | AK66: 735 | AL66: 692 | AM66: 667 | AN66: 630 | AO66: 547 | AP66: 525 | AQ66: 499 | AR66: 486 | AS66: 465 | AT66: 440 | AU66: 404 | AV66: 410 | AW66: 399 | AX66: 386 | AY66: 362 | AZ66: 323 | BA66: 301 | BB66: 285 | BC66: 257 | BD66: 229 | BE66: 197 | BF66: 162 | BG66: 162 | BH66: 162 | BI66: 162 | BJ66: 162 | BK66: 162 | BL66: 162 | BM66: 162 | BN66: 162 | BO66: 162 | BP66: 162 | BQ66: 162 | BR66: 162 | BT66: 56 | BU66: 5321 | BV66: Antioquia | BW66: Guatapé | BX66: [Lineas] | BY66: 440 | BZ66: 386 | CA66: 285 | CB66: 162 | CC66: 162 | CD66: 162 | CE66: 162
B67: 57 | C67: 5347 | D67: Antioquia | E67: Heliconia | F67: [Lineas] | G67: 439 | H67: 430 | I67: 422 | J67: 418 | K67: 428 | L67: 423 | M67: 415 | N67: 410 | O67: 405 | P67: 372 | Q67: 372 | R67: 388 | S67: 386 | T67: 383 | U67: 348 | V67: 343 | W67: 322 | X67: 316 | Y67: 312 | Z67: 309 | AA67: 299 | AB67: 281 | AC67: 274 | AD67: 291 | AE67: 278 | AF67: 271 | AG67: 264 | AH67: 252 | AI67: 247 | AJ67: 240 | AK67: 238 | AL67: 229 | AM67: 227 | AN67: 227 | AO67: 212 | AP67: 201 | AQ67: 196 | AR67: 193 | AS67: 190 | AT67: 187 | AU67: 176 | AV67: 184 | AW67: 189 | AX67: 191 | AY67: 206 | AZ67: 200 | BA67: 194 | BB67: 175 | BC67: 168 | BD67: 156 | BE67: 149 | BF67: 116 | BG67: 116 | BH67: 116 | BI67: 116 | BJ67: 116 | BK67: 116 | BL67: 116 | BM67: 116 | BN67: 116 | BO67: 116 | BP67: 116 | BQ67: 116 | BR67: 116 | BT67: 57 | BU67: 5347 | BV67: Antioquia | BW67: Heliconia | BX67: [Lineas] | BY67: 187 | BZ67: 191 | CA67: 175 | CB67: 116 | CC67: 116 | CD67: 116 | CE67: 116
B68: 58 | C68: 5353 | D68: Antioquia | E68: Hispania | F68: [Lineas] | G68: 431 | H68: 422 | I68: 419 | J68: 413 | K68: 422 | L68: 417 | M68: 409 | N68: 388 | O68: 389 | P68: 385 | Q68: 394 | R68: 392 | S68: 404 | T68: 397 | U68: 331 | V68: 326 | W68: 313 | X68: 302 | Y68: 295 | Z68: 296 | AA68: 288 | AB68: 287 | AC68: 261 | AD68: 290 | AE68: 296 | AF68: 307 | AG68: 297 | AH68: 294 | AI68: 292 | AJ68: 285 | AK68: 284 | AL68: 261 | AM68: 258 | AN68: 247 | AO68: 230 | AP68: 224 | AQ68: 204 | AR68: 199 | AS68: 183 | AT68: 176 | AU68: 166 | AV68: 175 | AW68: 180 | AX68: 178 | AY68: 172 | AZ68: 157 | BA68: 148 | BB68: 143 | BC68: 129 | BD68: 115 | BE68: 101 | BF68: 95 | BG68: 95 | BH68: 95 | BI68: 95 | BJ68: 95 | BK68: 95 | BL68: 95 | BM68: 95 | BN68: 95 | BO68: 95 | BP68: 95 | BQ68: 95 | BR68: 95 | BT68: 58 | BU68: 5353 | BV68: Antioquia | BW68: Hispania | BX68: [Lineas] | BY68: 176 | BZ68: 178 | CA68: 143 | CB68: 95 | CC68: 95 | CD68: 95 | CE68: 95
B69: 59 | C69: 5360 | D69: Antioquia | E69: Itagui | F69: [Lineas] | G69: 91497 | H69: 89557 | I69: 89232 | J69: 87750 | K69: 90114 | L69: 89176 | M69: 89349 | N69: 87280 | O69: 85211 | P69: 86306 | Q69: 84937 | R69: 83817 | S69: 83937 | T69: 83977 | U69: 82540 | V69: 82072 | W69: 81553 | X69: 83467 | Y69: 82669 | Z69: 82162 | AA69: 81948 | AB69: 82398 | AC69: 82065 | AD69: 82056 | AE69: 82795 | AF69: 82673 | AG69: 77929 | AH69: 82441 | AI69: 82543 | AJ69: 82520 | AK69: 83820 | AL69: 83906 | AM69: 82426 | AN69: 82647 | AO69: 82210 | AP69: 81656 | AQ69: 81910 | AR69: 83256 | AS69: 84821 | AT69: 86668 | AU69: 73878 | AV69: 79629 | AW69: 80290 | AX69: 81329 | AY69: 81413 | AZ69: 81727 | BA69: 81805 | BB69: 80934 | BC69: 81598 | BD69: 82034 | BE69: 79483 | BF69: 73327 | BG69: 73327 | BH69: 73327 | BI69: 73327 | BJ69: 73327 | BK69: 73327 | BL69: 73327 | BM69: 73327 | BN69: 73327 | BO69: 73327 | BP69: 73327 | BQ69: 73327 | BR69: 73327 | BT69: 59 | BU69: 5360 | BV69: Antioquia | BW69: Itagui | BX69: [Lineas] | BY69: 86668 | BZ69: 81329 | CA69: 80934 | CB69: 73327 | CC69: 73327 | CD69: 73327 | CE69: 73327
B70: 60 | C70: 5361 | D70: Antioquia | E70: Ituango | F70: [Lineas] | G70: 914 | H70: 920 | I70: 924 | J70: 920 | K70: 961 | L70: 970 | M70: 955 | N70: 936 | O70: 933 | P70: 918 | Q70: 884 | R70: 902 | S70: 921 | T70: 905 | U70: 819 | V70: 810 | W70: 766 | X70: 733 | Y70: 709 | Z70: 696 | AA70: 660 | AB70: 654 | AC70: 551 | AD70: 636 | AE70: 589 | AF70: 563 | AG70: 559 | AH70: 546 | AI70: 532 | AJ70: 514 | AK70: 510 | AL70: 487 | AM70: 473 | AN70: 455 | AO70: 415 | AP70: 399 | AQ70: 389 | AR70: 377 | AS70: 365 | AT70: 346 | AU70: 356 | AV70: 384 | AW70: 401 | AX70: 406 | AY70: 388 | AZ70: 367 | BA70: 349 | BB70: 331 | BC70: 308 | BD70: 274 | BE70: 246 | BF70: 225 | BG70: 225 | BH70: 225 | BI70: 225 | BJ70: 225 | BK70: 225 | BL70: 225 | BM70: 225 | BN70: 225 | BO70: 225 | BP70: 225 | BQ70: 225 | BR70: 225 | BT70: 60 | BU70: 5361 | BV70: Antioquia | BW70: Ituango | BX70: [Lineas] | BY70: 346 | BZ70: 406 | CA70: 331 | CB70: 225 | CC70: 225 | CD70: 225 | CE70: 225
B71: 61 | C71: 5364 | D71: Antioquia | E71: Jardín | F71: [Lineas] | G71: 1458 | H71: 1432 | I71: 1471 | J71: 1489 | K71: 1550 | L71: 1560 | M71: 1577 | N71: 1562 | O71: 1559 | P71: 1472 | Q71: 1391 | R71: 1389 | S71: 1387 | T71: 1363 | U71: 1210 | V71: 1191 | W71: 1170 | X71: 1136 | Y71: 1122 | Z71: 1085 | AA71: 1056 | AB71: 1032 | AC71: 870 | AD71: 1025 | AE71: 1010 | AF71: 1013 | AG71: 998 | AH71: 991 | AI71: 946 | AJ71: 901 | AK71: 873 | AL71: 823 | AM71: 805 | AN71: 777 | AO71: 676 | AP71: 643 | AQ71: 626 | AR71: 609 | AS71: 588 | AT71: 570 | AU71: 550 | AV71: 579 | AW71: 592 | AX71: 601 | AY71: 545 | AZ71: 490 | BA71: 467 | BB71: 444 | BC71: 416 | BD71: 394 | BE71: 365 | BF71: 331 | BG71: 331 | BH71: 331 | BI71: 331 | BJ71: 331 | BK71: 331 | BL71: 331 | BM71: 331 | BN71: 331 | BO71: 331 | BP71: 331 | BQ71: 331 | BR71: 331 | BT71: 61 | BU71: 5364 | BV71: Antioquia | BW71: Jardín | BX71: [Lineas] | BY71: 570 | BZ71: 601 | CA71: 444 | CB71: 331 | CC71: 331 | CD71: 331 | CE71: 331
B72: 62 | C72: 5368 | D72: Antioquia | E72: Jericó | F72: [Lineas] | G72: 1604 | H72: 1588 | I72: 1609 | J72: 1647 | K72: 1706 | L72: 1723 | M72: 1708 | N72: 1690 | O72: 1693 | P72: 1648 | Q72: 1649 | R72: 1634 | S72: 1649 | T72: 1613 | U72: 1484 | V72: 1454 | W72: 1401 | X72: 1365 | Y72: 1345 | Z72: 1313 | AA72: 1262 | AB72: 1235 | AC72: 1036 | AD72: 1206 | AE72: 1151 | AF72: 1115 | AG72: 1087 | AH72: 1058 | AI72: 1029 | AJ72: 988 | AK72: 982 | AL72: 924 | AM72: 888 | AN72: 863 | AO72: 795 | AP72: 753 | AQ72: 720 | AR72: 691 | AS72: 665 | AT72: 641 | AU72: 607 | AV72: 285 | AW72: 592 | AX72: 580 | AY72: 551 | AZ72: 527 | BA72: 513 | BB72: 494 | BC72: 471 | BD72: 450 | BE72: 436 | BF72: 418 | BG72: 418 | BH72: 418 | BI72: 418 | BJ72: 418 | BK72: 418 | BL72: 418 | BM72: 418 | BN72: 418 | BO72: 418 | BP72: 418 | BQ72: 418 | BR72: 418 | BT72: 62 | BU72: 5368 | BV72: Antioquia | BW72: Jericó | BX72: [Lineas] | BY72: 641 | BZ72: 580 | CA72: 494 | CB72: 418 | CC72: 418 | CD72: 418 | CE72: 418
B73: 63 | C73: 5376 | D73: Antioquia | E73: La Ceja | F73: [Lineas] | G73: 13700 | H73: 13467 | I73: 13254 | J73: 13051 | K73: 13051 | L73: 13098 | M73: 13102 | N73: 12948 | O73: 12665 | P73: 12743 | Q73: 12440 | R73: 12283 | S73: 12216 | T73: 12055 | U73: 11824 | V73: 11637 | W73: 11472 | X73: 11301 | Y73: 11225 | Z73: 11137 | AA73: 10855 | AB73: 10853 | AC73: 10845 | AD73: 10962 | AE73: 10933 | AF73: 10917 | AG73: 10784 | AH73: 10945 | AI73: 10945 | AJ73: 11011 | AK73: 11126 | AL73: 11213 | AM73: 11024 | AN73: 11016 | AO73: 10966 | AP73: 10874 | AQ73: 10867 | AR73: 11031 | AS73: 10977 | AT73: 10894 | AU73: 9847 | AV73: 10976 | AW73: 11281 | AX73: 11491 | AY73: 11489 | AZ73: 11539 | BA73: 11735 | BB73: 11980 | BC73: 12526 | BD73: 12909 | BE73: 12698 | BF73: 11886 | BG73: 11886 | BH73: 11886 | BI73: 11886 | BJ73: 11886 | BK73: 11886 | BL73: 11886 | BM73: 11886 | BN73: 11886 | BO73: 11886 | BP73: 11886 | BQ73: 11886 | BR73: 11886 | BT73: 63 | BU73: 5376 | BV73: Antioquia | BW73: La Ceja | BX73: [Lineas] | BY73: 10894 | BZ73: 11491 | CA73: 11980 | CB73: 11886 | CC73: 11886 | CD73: 11886 | CE73: 11886
B74: 64 | C74: 5380 | D74: Antioquia | E74: La Estrella | F74: [Lineas] | G74: 18845 | H74: 18567 | I74: 18579 | J74: 18442 | K74: 18510 | L74: 18788 | M74: 18849 | N74: 18847 | O74: 18375 | P74: 19136 | Q74: 18857 | R74: 18772 | S74: 18621 | T74: 18484 | U74: 18314 | V74: 18332 | W74: 18219 | X74: 19137 | Y74: 19012 | Z74: 19103 | AA74: 19207 | AB74: 19265 | AC74: 19542 | AD74: 19810 | AE74: 19902 | AF74: 20042 | AG74: 19157 | AH74: 20744 | AI74: 20831 | AJ74: 20989 | AK74: 21193 | AL74: 21371 | AM74: 21520 | AN74: 21558 | AO74: 21766 | AP74: 21720 | AQ74: 21741 | AR74: 22075 | AS74: 22521 | AT74: 22964 | AU74: 19305 | AV74: 20938 | AW74: 21056 | AX74: 21300 | AY74: 21370 | AZ74: 21381 | BA74: 21520 | BB74: 21477 | BC74: 21668 | BD74: 21969 | BE74: 21240 | BF74: 19465 | BG74: 19465 | BH74: 19465 | BI74: 19465 | BJ74: 19465 | BK74: 19465 | BL74: 19465 | BM74: 19465 | BN74: 19465 | BO74: 19465 | BP74: 19465 | BQ74: 19465 | BR74: 19465 | BT74: 64 | BU74: 5380 | BV74: Antioquia | BW74: La Estrella | BX74: [Lineas] | BY74: 22964 | BZ74: 21300 | CA74: 21477 | CB74: 19465 | CC74: 19465 | CD74: 19465 | CE74: 19465
B75: 65 | C75: 5390 | D75: Antioquia | E75: La Pintada | F75: [Lineas] | G75: 827 | H75: 815 | I75: 818 | J75: 839 | K75: 876 | L75: 874 | M75: 853 | N75: 839 | O75: 820 | P75: 801 | Q75: 819 | R75: 827 | S75: 825 | T75: 830 | U75: 719 | V75: 691 | W75: 673 | X75: 655 | Y75: 640 | Z75: 629 | AA75: 606 | AB75: 614 | AC75: 506 | AD75: 645 | AE75: 656 | AF75: 670 | AG75: 652 | AH75: 649 | AI75: 633 | AJ75: 622 | AK75: 626 | AL75: 607 | AM75: 577 | AN75: 554 | AO75: 496 | AP75: 469 | AQ75: 443 | AR75: 433 | AS75: 419 | AT75: 403 | AU75: 390 | AV75: 417 | AW75: 439 | AX75: 436 | AY75: 416 | AZ75: 381 | BA75: 362 | BB75: 338 | BC75: 291 | BD75: 244 | BE75: 208 | BF75: 182 | BG75: 182 | BH75: 182 | BI75: 182 | BJ75: 182 | BK75: 182 | BL75: 182 | BM75: 182 | BN75: 182 | BO75: 182 | BP75: 182 | BQ75: 182 | BR75: 182 | BT75: 65 | BU75: 5390 | BV75: Antioquia | BW75: La Pintada | BX75: [Lineas] | BY75: 403 | BZ75: 436 | CA75: 338 | CB75: 182 | CC75: 182 | CD75: 182 | CE75: 182
B76: 66 | C76: 5400 | D76: Antioquia | E76: La Unión | F76: [Lineas] | G76: 4092 | H76: 4018 | I76: 3946 | J76: 3894 | K76: 3847 | L76: 3851 | M76: 3805 | N76: 3703 | O76: 3563 | P76: 3553 | Q76: 3398 | R76: 3342 | S76: 3346 | T76: 3241 | U76: 3113 | V76: 2988 | W76: 2890 | X76: 2752 | Y76: 2713 | Z76: 2642 | AA76: 2521 | AB76: 2463 | AC76: 2408 | AD76: 2353 | AE76: 2333 | AF76: 2311 | AG76: 2265 | AH76: 2225 | AI76: 2189 | AJ76: 2158 | AK76: 2127 | AL76: 2077 | AM76: 1992 | AN76: 1932 | AO76: 1861 | AP76: 1763 | AQ76: 1631 | AR76: 1542 | AS76: 1442 | AT76: 1336 | AU76: 980 | AV76: 572 | AW76: 1228 | AX76: 1200 | AY76: 1115 | AZ76: 1104 | BA76: 969 | BB76: 901 | BC76: 855 | BD76: 805 | BE76: 736 | BF76: 668 | BG76: =MAX(IFERROR(IF(BF76>0,IF(_xlfn.FORECAST.ETS(BG$10,OFFSET($BF76,0,0,1,-10),OFFSET($BF$10,0,0,1,-10),4)<0,0,_xlfn.FORECAST.ETS(BG$10,OFFSET($BF76,0,0,1,-10),OFFSET($BF$10,0,0,1,-10),4)),0),BF76),0) -> 668 | BH76: 668 | BI76: 668 | BJ76: 668 | BK76: 668 | BL76: 668 | BM76: 668 | BN76: 668 | BO76: 668 | BP76: 668 | BQ76: 668 | BR76: 668 | BT76: 66 | BU76: 5400 | BV76: Antioquia | BW76: La Unión | BX76: [Lineas] | BY76: =AT76 -> 1336 | BZ76: =AX76 -> 1200 | CA76: =BB76 -> 901 | CB76: =BF76 -> 668 | CC76: =BJ76 -> 668 | CD76: =BN76 -> 668 | CE76: =BR76 -> 668
B77: 67 | C77: 5411 | D77: Antioquia | E77: Liborina | F77: [Lineas] | G77: 450 | H77: 440 | I77: 446 | J77: 454 | K77: 473 | L77: 466 | M77: 458 | N77: 451 | O77: 448 | P77: 452 | Q77: 452 | R77: 454 | S77: 461 | T77: 452 | U77: 420 | V77: 414 | W77: 399 | X77: 381 | Y77: 374 | Z77: 365 | AA77: 360 | AB77: 349 | AC77: 297 | AD77: 341 | AE77: 325 | AF77: 301 | AG77: 286 | AH77: 275 | AI77: 263 | AJ77: 251 | AK77: 248 | AL77: 237 | AM77: 230 | AN77: 223 | AO77: 212 | AP77: 203 | AQ77: 196 | AR77: 194 | AS77: 188 | AT77: 185 | AU77: 175 | AV77: 186 | AW77: 197 | AX77: 206 | AY77: 205 | AZ77: 191 | BA77: 186 | BB77: 178 | BC77: 168 | BD77: 143 | BE77: 126 | BF77: 118 | BG77: 118 | BH77: 118 | BI77: 118 | BJ77: 118 | BK77: 118 | BL77: 118 | BM77: 118 | BN77: 118 | BO77: 118 | BP77: 118 | BQ77: 118 | BR77: 118 | BT77: 67 | BU77: 5411 | BV77: Antioquia | BW77: Liborina | BX77: [Lineas] | BY77: 185 | BZ77: 206 | CA77: 178 | CB77: 118 | CC77: 118 | CD77: 118 | CE77: 118
B78: 68 | C78: 5425 | D78: Antioquia | E78: Maceo | F78: [Lineas] | G78: 558 | H78: 545 | I78: 552 | J78: 552 | K78: 572 | L78: 564 | M78: 561 | N78: 562 | O78: 564 | P78: 565 | Q78: 563 | R78: 574 | S78: 579 | T78: 585 | U78: 536 | V78: 527 | W78: 506 | X78: 488 | Y78: 475 | Z78: 468 | AA78: 461 | AB78: 446 | AC78: 394 | AD78: 433 | AE78: 390 | AF78: 382 | AG78: 380 | AH78: 374 | AI78: 364 | AJ78: 355 | AK78: 348 | AL78: 336 | AM78: 331 | AN78: 321 | AO78: 294 | AP78: 272 | AQ78: 256 | AR78: 240 | AS78: 225 | AT78: 215 | AU78: 194 | AV78: 199 | AW78: 192 | AX78: 188 | AY78: 190 | AZ78: 171 | BA78: 159 | BB78: 153 | BC78: 145 | BD78: 133 | BE78: 126 | BF78: 110 | BG78: 110 | BH78: 110 | BI78: 110 | BJ78: 110 | BK78: 110 | BL78: 110 | BM78: 110 | BN78: 110 | BO78: 110 | BP78: 110 | BQ78: 110 | BR78: 110 | BT78: 68 | BU78: 5425 | BV78: Antioquia | BW78: Maceo | BX78: [Lineas] | BY78: 215 | BZ78: 188 | CA78: 153 | CB78: 110 | CC78: 110 | CD78: 110 | CE78: 110
B79: 69 | C79: 5440 | D79: Antioquia | E79: Marinilla | F79: [Lineas] | G79: 11400 | H79: 11019 | I79: 10691 | J79: 10397 | K79: 10108 | L79: 10147 | M79: 10076 | N79: 9819 | O79: 9519 | P79: 9541 | Q79: 9265 | R79: 9119 | S79: 9013 | T79: 8756 | U79: 8544 | V79: 8355 | W79: 8187 | X79: 7936 | Y79: 7852 | Z79: 7741 | AA79: 7590 | AB79: 7509 | AC79: 7494 | AD79: 7527 | AE79: 7473 | AF79: 7428 | AG79: 7407 | AH79: 7549 | AI79: 7676 | AJ79: 7571 | AK79: 7486 | AL79: 7380 | AM79: 7126 | AN79: 7032 | AO79: 6856 | AP79: 6612 | AQ79: 6465 | AR79: 6416 | AS79: 6310 | AT79: 6215 | AU79: 5555 | AV79: 6102 | AW79: 6198 | AX79: 6294 | AY79: 6209 | AZ79: 6104 | BA79: 5930 | BB79: 5759 | BC79: 5659 | BD79: 5503 | BE79: 5102 | BF79: 4476 | BG79: 4476 | BH79: 4476 | BI79: 4476 | BJ79: 4476 | BK79: 4476 | BL79: 4476 | BM79: 4476 | BN79: 4476 | BO79: 4476 | BP79: 4476 | BQ79: 4476 | BR79: 4476 | BT79: 69 | BU79: 5440 | BV79: Antioquia | BW79: Marinilla | BX79: [Lineas] | BY79: 6215 | BZ79: 6294 | CA79: 5759 | CB79: 4476 | CC79: 4476 | CD79: 4476 | CE79: 4476
B80: 70 | C80: 5467 | D80: Antioquia | E80: Montebello | F80: [Lineas] | G80: 327 | H80: 323 | I80: 323 | J80: 321 | K80: 339 | L80: 337 | M80: 330 | N80: 327 | O80: 335 | P80: 330 | Q80: 323 | R80: 318 | S80: 318 | T80: 307 | U80: 251 | V80: 247 | W80: 228 | X80: 217 | Y80: 210 | Z80: 205 | AA80: 202 | AB80: 186 | AC80: 174 | AD80: 191 | AE80: 182 | AF80: 180 | AG80: 176 | AH80: 175 | AI80: 173 | AJ80: 169 | AK80: 165 | AL80: 152 | AM80: 145 | AN80: 139 | AO80: 125 | AP80: 113 | AQ80: 106 | AR80: 107 | AS80: 101 | AT80: 98 | AU80: 94 | AV80: 103 | AW80: 103 | AX80: 101 | AY80: 91 | AZ80: 81 | BA80: 79 | BB80: 76 | BC80: 63 | BD80: 55 | BE80: 50 | BF80: 47 | BG80: 47 | BH80: 47 | BI80: 47 | BJ80: 47 | BK80: 47 | BL80: 47 | BM80: 47 | BN80: 47 | BO80: 47 | BP80: 47 | BQ80: 47 | BR80: 47 | BT80: 70 | BU80: 5467 | BV80: Antioquia | BW80: Montebello | BX80: [Lineas] | BY80: 98 | BZ80: 101 | CA80: 76 | CB80: 47 | CC80: 47 | CD80: 47 | CE80: 47
B81: 71 | C81: 5475 | D81: Antioquia | E81: Murindó | F81: [Lineas] | G81: 48 | H81: 49 | I81: 47 | J81: 44 | K81: 47 | L81: 49 | M81: 48 | N81: 47 | O81: 51 | P81: 47 | Q81: 47 | R81: 46 | S81: 45 | T81: 46 | U81: 44 | V81: 42 | W81: 38 | X81: 37 | Y81: 36 | Z81: 35 | AA81: 34 | AB81: 29 | AC81: 25 | AD81: 30 | AE81: 35 | AF81: 57 | AG81: 47 | AH81: 44 | AI81: 39 | AJ81: 37 | AK81: 54 | AL81: 51 | AM81: 42 | AN81: 42 | AO81: 37 | AP81: 35 | AQ81: 34 | AR81: 33 | AS81: 36 | AT81: 35 | AU81: 45 | AV81: 56 | AW81: 56 | AX81: 57 | AY81: 53 | AZ81: 37 | BA81: 35 | BB81: 34 | BC81: 31 | BD81: 28 | BE81: 26 | BF81: 25 | BG81: 25 | BH81: 25 | BI81: 25 | BJ81: 25 | BK81: 25 | BL81: 25 | BM81: 25 | BN81: 25 | BO81: 25 | BP81: 25 | BQ81: 25 | BR81: 25 | BT81: 71 | BU81: 5475 | BV81: Antioquia | BW81: Murindó | BX81: [Lineas] | BY81: 35 | BZ81: 57 | CA81: 34 | CB81: 25 | CC81: 25 | CD81: 25 | CE81: 25
B82: 72 | C82: 5480 | D82: Antioquia | E82: Mutatá | F82: [Lineas] | G82: 443 | H82: 445 | I82: 435 | J82: 465 | K82: 491 | L82: 496 | M82: 517 | N82: 520 | O82: 514 | P82: 501 | Q82: 527 | R82: 520 | S82: 551 | T82: 530 | U82: 454 | V82: 438 | W82: 406 | X82: 390 | Y82: 390 | Z82: 378 | AA82: 380 | AB82: 360 | AC82: 310 | AD82: 383 | AE82: 388 | AF82: 375 | AG82: 376 | AH82: 368 | AI82: 360 | AJ82: 347 | AK82: 337 | AL82: 316 | AM82: 295 | AN82: 293 | AO82: 265 | AP82: 254 | AQ82: 236 | AR82: 229 | AS82: 210 | AT82: 191 | AU82: 300 | AV82: 333 | AW82: 331 | AX82: 329 | AY82: 324 | AZ82: 252 | BA82: 247 | BB82: 253 | BC82: 244 | BD82: 219 | BE82: 193 | BF82: 171 | BG82: 171 | BH82: 171 | BI82: 171 | BJ82: 171 | BK82: 171 | BL82: 171 | BM82: 171 | BN82: 171 | BO82: 171 | BP82: 171 | BQ82: 171 | BR82: 171 | BT82: 72 | BU82: 5480 | BV82: Antioquia | BW82: Mutatá | BX82: [Lineas] | BY82: 191 | BZ82: 329 | CA82: 253 | CB82: 171 | CC82: 171 | CD82: 171 | CE82: 171
B83: 73 | C83: 5483 | D83: Antioquia | E83: Nariño | F83: [Lineas] | G83: 276 | H83: 274 | I83: 274 | J83: 274 | K83: 300 | L83: 298 | M83: 299 | N83: 284 | O83: 286 | P83: 277 | Q83: 240 | R83: 236 | S83: 236 | T83: 232 | U83: 172 | V83: 167 | W83: 163 | X83: 153 | Y83: 156 | Z83: 149 | AA83: 144 | AB83: 142 | AC83: 121 | AD83: 137 | AE83: 128 | AF83: 123 | AG83: 121 | AH83: 119 | AI83: 115 | AJ83: 100 | AK83: 99 | AL83: 92 | AM83: 91 | AN83: 87 | AO83: 71 | AP83: 62 | AQ83: 56 | AR83: 48 | AS83: 45 | AT83: 45 | AU83: 23 | AV83: 35 | AW83: 81 | AX83: 80 | AY83: 75 | AZ83: 72 | BA83: 68 | BB83: 65 | BC83: 62 | BD83: 56 | BE83: 52 | BF83: 47 | BG83: 47 | BH83: 47 | BI83: 47 | BJ83: 47 | BK83: 47 | BL83: 47 | BM83: 47 | BN83: 47 | BO83: 47 | BP83: 47 | BQ83: 47 | BR83: 47 | BT83: 73 | BU83: 5483 | BV83: Antioquia | BW83: Nariño | BX83: [Lineas] | BY83: 45 | BZ83: 80 | CA83: 65 | CB83: 47 | CC83: 47 | CD83: 47 | CE83: 47
B84: 74 | C84: 5490 | D84: Antioquia | E84: Necoclí | F84: [Lineas] | G84: 1326 | H84: 1311 | I84: 1322 | J84: 1338 | K84: 1362 | L84: 1378 | M84: 1431 | N84: 1419 | O84: 1421 | P84: 1288 | Q84: 1336 | R84: 1373 | S84: 1392 | T84: 1383 | U84: 1308 | V84: 1295 | W84: 1249 | X84: 1212 | Y84: 1204 | Z84: 1181 | AA84: 1142 | AB84: 1068 | AC84: 944 | AD84: 1099 | AE84: 982 | AF84: 981 | AG84: 936 | AH84: 911 | AI84: 902 | AJ84: 885 | AK84: 881 | AL84: 854 | AM84: 817 | AN84: 810 | AO84: 727 | AP84: 698 | AQ84: 668 | AR84: 641 | AS84: 626 | AT84: 607 | AU84: 735 | AV84: 827 | AW84: 842 | AX84: 827 | AY84: 799 | AZ84: 661 | BA84: 601 | BB84: 557 | BC84: 493 | BD84: 442 | BE84: 401 | BF84: 373 | BG84: 373 | BH84: 373 | BI84: 373 | BJ84: 373 | BK84: 373 | BL84: 373 | BM84: 373 | BN84: 373 | BO84: 373 | BP84: 373 | BQ84: 373 | BR84: 373 | BT84: 74 | BU84: 5490 | BV84: Antioquia | BW84: Necoclí | BX84: [Lineas] | BY84: 607 | BZ84: 827 | CA84: 557 | CB84: 373 | CC84: 373 | CD84: 373 | CE84: 373
B85: 75 | C85: 5495 | D85: Antioquia | E85: Nechí | F85: [Lineas] | G85: 615 | H85: 611 | I85: 620 | J85: 611 | K85: 633 | L85: 632 | M85: 629 | N85: 626 | O85: 615 | P85: 615 | Q85: 592 | R85: 602 | S85: 633 | T85: 618 | U85: 445 | V85: 446 | W85: 439 | X85: 421 | Y85: 411 | Z85: 397 | AA85: 395 | AB85: 359 | AC85: 287 | AD85: 345 | AE85: 294 | AF85: 280 | AG85: 271 | AH85: 259 | AI85: 243 | AJ85: 228 | AK85: 220 | AL85: 204 | AM85: 178 | AN85: 176 | AO85: 156 | AP85: 139 | AQ85: 130 | AR85: 121 | AS85: 118 | AT85: 178 | AU85: 221 | AV85: 241 | AW85: 303 | AX85: 318 | AY85: 333 | AZ85: 371 | BA85: 361 | BB85: 392 | BC85: 367 | BD85: 332 | BE85: 286 | BF85: 247 | BG85: 247 | BH85: 247 | BI85: 247 | BJ85: 247 | BK85: 247 | BL85: 247 | BM85: 247 | BN85: 247 | BO85: 247 | BP85: 247 | BQ85: 247 | BR85: 247 | BT85: 75 | BU85: 5495 | BV85: Antioquia | BW85: Nechí | BX85: [Lineas] | BY85: 178 | BZ85: 318 | CA85: 392 | CB85: 247 | CC85: 247 | CD85: 247 | CE85: 247
B86: 76 | C86: 5501 | D86: Antioquia | E86: Olaya | F86: [Lineas] | G86: 291 | H86: 289 | I86: 286 | J86: 287 | K86: 304 | L86: 300 | M86: 294 | N86: 290 | O86: 285 | P86: 275 | Q86: 269 | R86: 262 | S86: 265 | T86: 265 | U86: 242 | V86: 237 | W86: 231 | X86: 221 | Y86: 213 | Z86: 210 | AA86: 211 | AB86: 194 | AC86: 187 | AD86: 202 | AE86: 199 | AF86: 196 | AG86: 188 | AH86: 186 | AI86: 179 | AJ86: 172 | AK86: 171 | AL86: 169 | AM86: 166 | AN86: 159 | AO86: 145 | AP86: 139 | AQ86: 143 | AR86: 141 | AS86: 140 | AT86: 136 | AU86: 130 | AV86: 167 | AW86: 189 | AX86: 203 | AY86: 207 | AZ86: 199 | BA86: 194 | BB86: 188 | BC86: 178 | BD86: 166 | BE86: 153 | BF86: 133 | BG86: 133 | BH86: 133 | BI86: 133 | BJ86: 133 | BK86: 133 | BL86: 133 | BM86: 133 | BN86: 133 | BO86: 133 | BP86: 133 | BQ86: 133 | BR86: 133 | BT86: 76 | BU86: 5501 | BV86: Antioquia | BW86: Olaya | BX86: [Lineas] | BY86: 136 | BZ86: 203 | CA86: 188 | CB86: 133 | CC86: 133 | CD86: 133 | CE86: 133
B87: 77 | C87: 5541 | D87: Antioquia | E87: Peñol | F87: [Lineas] | G87: 1830 | H87: 1822 | I87: 1730 | J87: 1737 | K87: 1821 | L87: 1819 | M87: 1829 | N87: 1816 | O87: 1798 | P87: 1786 | Q87: 1748 | R87: 1752 | S87: 1773 | T87: 1744 | U87: 1469 | V87: 1452 | W87: 1406 | X87: 1384 | Y87: 1367 | Z87: 1336 | AA87: 1272 | AB87: 1203 | AC87: 1024 | AD87: 1186 | AE87: 1074 | AF87: 1038 | AG87: 1003 | AH87: 971 | AI87: 955 | AJ87: 926 | AK87: 900 | AL87: 832 | AM87: 798 | AN87: 770 | AO87: 651 | AP87: 606 | AQ87: 572 | AR87: 541 | AS87: 520 | AT87: 502 | AU87: 481 | AV87: 300 | AW87: 530 | AX87: 524 | AY87: 514 | AZ87: 481 | BA87: 450 | BB87: 426 | BC87: 327 | BD87: 262 | BE87: 236 | BF87: 211 | BG87: 211 | BH87: 211 | BI87: 211 | BJ87: 211 | BK87: 211 | BL87: 211 | BM87: 211 | BN87: 211 | BO87: 211 | BP87: 211 | BQ87: 211 | BR87: 211 | BT87: 77 | BU87: 5541 | BV87: Antioquia | BW87: Peñol | BX87: [Lineas] | BY87: 502 | BZ87: 524 | CA87: 426 | CB87: 211 | CC87: 211 | CD87: 211 | CE87: 211
B88: 78 | C88: 5543 | D88: Antioquia | E88: Peque | F88: [Lineas] | G88: 193 | H88: 186 | I88: 194 | J88: 204 | K88: 235 | L88: 231 | M88: 228 | N88: 220 | O88: 228 | P88: 221 | Q88: 219 | R88: 220 | S88: 210 | T88: 199 | U88: 162 | V88: 158 | W88: 149 | X88: 143 | Y88: 138 | Z88: 134 | AA88: 129 | AB88: 114 | AC88: 107 | AD88: 121 | AE88: 120 | AF88: 121 | AG88: 121 | AH88: 119 | AI88: 117 | AJ88: 114 | AK88: 110 | AL88: 104 | AM88: 111 | AN88: 126 | AO88: 117 | AP88: 112 | AQ88: 122 | AR88: 152 | AS88: 161 | AT88: 162 | AU88: 163 | AV88: 175 | AW88: 190 | AX88: 188 | AY88: 186 | AZ88: 176 | BA88: 164 | BB88: 156 | BC88: 149 | BD88: 130 | BE88: 115 | BF88: 98 | BG88: 98 | BH88: 98 | BI88: 98 | BJ88: 98 | BK88: 98 | BL88: 98 | BM88: 98 | BN88: 98 | BO88: 98 | BP88: 98 | BQ88: 98 | BR88: 98 | BT88: 78 | BU88: 5543 | BV88: Antioquia | BW88: Peque | BX88: [Lineas] | BY88: 162 | BZ88: 188 | CA88: 156 | CB88: 98 | CC88: 98 | CD88: 98 | CE88: 98
B89: 79 | C89: 5576 | D89: Antioquia | E89: Pueblorrico | F89: [Lineas] | G89: 539 | H89: 536 | I89: 548 | J89: 552 | K89: 572 | L89: 567 | M89: 560 | N89: 554 | O89: 544 | P89: 530 | Q89: 522 | R89: 527 | S89: 522 | T89: 513 | U89: 446 | V89: 438 | W89: 409 | X89: 396 | Y89: 391 | Z89: 383 | AA89: 384 | AB89: 380 | AC89: 352 | AD89: 388 | AE89: 394 | AF89: 385 | AG89: 373 | AH89: 363 | AI89: 360 | AJ89: 356 | AK89: 348 | AL89: 329 | AM89: 308 | AN89: 300 | AO89: 254 | AP89: 236 | AQ89: 222 | AR89: 216 | AS89: 213 | AT89: 205 | AU89: 203 | AV89: 224 | AW89: 234 | AX89: 252 | AY89: 258 | AZ89: 253 | BA89: 248 | BB89: 241 | BC89: 227 | BD89: 196 | BE89: 182 | BF89: 172 | BG89: 172 | BH89: 172 | BI89: 172 | BJ89: 172 | BK89: 172 | BL89: 172 | BM89: 172 | BN89: 172 | BO89: 172 | BP89: 172 | BQ89: 172 | BR89: 172 | BT89: 79 | BU89: 5576 | BV89: Antioquia | BW89: Pueblorrico | BX89: [Lineas] | BY89: 205 | BZ89: 252 | CA89: 241 | CB89: 172 | CC89: 172 | CD89: 172 | CE89: 172
B90: 80 | C90: 5579 | D90: Antioquia | E90: Puerto Berrío | F90: [Lineas] | G90: 5096 | H90: 5049 | I90: 5044 | J90: 5045 | K90: 5259 | L90: 5178 | M90: 5207 | N90: 5184 | O90: 5126 | P90: 5113 | Q90: 5001 | R90: 5023 | S90: 5072 | T90: 4933 | U90: 3872 | V90: 3736 | W90: 3517 | X90: 3320 | Y90: 3233 | Z90: 3133 | AA90: 3044 | AB90: 2984 | AC90: 2370 | AD90: 2899 | AE90: 2707 | AF90: 2598 | AG90: 2504 | AH90: 2425 | AI90: 2353 | AJ90: 2287 | AK90: 2234 | AL90: 2153 | AM90: 2042 | AN90: 1990 | AO90: 1775 | AP90: 1680 | AQ90: 1591 | AR90: 1513 | AS90: 1448 | AT90: 1411 | AU90: 1556 | AV90: 1738 | AW90: 1961 | AX90: 2106 | AY90: 2061 | AZ90: 1833 | BA90: 1709 | BB90: 1613 | BC90: 1495 | BD90: 1377 | BE90: 1228 | BF90: 1125 | BG90: 1125 | BH90: 1125 | BI90: 1125 | BJ90: 1125 | BK90: 1125 | BL90: 1125 | BM90: 1125 | BN90: 1125 | BO90: 1125 | BP90: 1125 | BQ90: 1125 | BR90: 1125 | BT90: 80 | BU90: 5579 | BV90: Antioquia | BW90: Puerto Berrío | BX90: [Lineas] | BY90: 1411 | BZ90: 2106 | CA90: 1613 | CB90: 1125 | CC90: 1125 | CD90: 1125 | CE90: 1125
B91: 81 | C91: 5585 | D91: Antioquia | E91: Puerto Nare | F91: [Lineas] | G91: 1055 | H91: 1050 | I91: 1065 | J91: 1074 | K91: 1134 | L91: 1128 | M91: 1137 | N91: 1146 | O91: 1144 | P91: 1152 | Q91: 1072 | R91: 1083 | S91: 1110 | T91: 1084 | U91: 915 | V91: 885 | W91: 799 | X91: 745 | Y91: 731 | Z91: 710 | AA91: 707 | AB91: 701 | AC91: 606 | AD91: 696 | AE91: 678 | AF91: 640 | AG91: 594 | AH91: 577 | AI91: 554 | AJ91: 532 | AK91: 525 | AL91: 510 | AM91: 493 | AN91: 484 | AO91: 444 | AP91: 428 | AQ91: 411 | AR91: 388 | AS91: 369 | AT91: 352 | AU91: 334 | AV91: 377 | AW91: 393 | AX91: 402 | AY91: 373 | AZ91: 341 | BA91: 321 | BB91: 297 | BC91: 280 | BD91: 253 | BE91: 211 | BF91: 191 | BG91: 191 | BH91: 191 | BI91: 191 | BJ91: 191 | BK91: 191 | BL91: 191 | BM91: 191 | BN91: 191 | BO91: 191 | BP91: 191 | BQ91: 191 | BR91: 191 | BT91: 81 | BU91: 5585 | BV91: Antioquia | BW91: Puerto Nare | BX91: [Lineas] | BY91: 352 | BZ91: 402 | CA91: 297 | CB91: 191 | CC91: 191 | CD91: 191 | CE91: 191
B92: 82 | C92: 5591 | D92: Antioquia | E92: Puerto Triunfo | F92: [Lineas] | G92: 885 | H92: 874 | I92: 912 | J92: 928 | K92: 1024 | L92: 986 | M92: 969 | N92: 973 | O92: 969 | P92: 948 | Q92: 929 | R92: 931 | S92: 935 | T92: 898 | U92: 766 | V92: 767 | W92: 691 | X92: 669 | Y92: 663 | Z92: 636 | AA92: 606 | AB92: 578 | AC92: 528 | AD92: 598 | AE92: 580 | AF92: 563 | AG92: 536 | AH92: 534 | AI92: 514 | AJ92: 503 | AK92: 495 | AL92: 483 | AM92: 479 | AN92: 456 | AO92: 410 | AP92: 383 | AQ92: 356 | AR92: 323 | AS92: 302 | AT92: 278 | AU92: 273 | AV92: 335 | AW92: 361 | AX92: 376 | AY92: 383 | AZ92: 347 | BA92: 329 | BB92: 311 | BC92: 285 | BD92: 259 | BE92: 240 | BF92: 213 | BG92: 213 | BH92: 213 | BI92: 213 | BJ92: 213 | BK92: 213 | BL92: 213 | BM92: 213 | BN92: 213 | BO92: 213 | BP92: 213 | BQ92: 213 | BR92: 213 | BT92: 82 | BU92: 5591 | BV92: Antioquia | BW92: Puerto Triunfo | BX92: [Lineas] | BY92: 278 | BZ92: 376 | CA92: 311 | CB92: 213 | CC92: 213 | CD92: 213 | CE92: 213
B93: 83 | C93: 5604 | D93: Antioquia | E93: Remedios | F93: [Lineas] | G93: 1459 | H93: 1532 | I93: 1565 | J93: 1623 | K93: 1767 | L93: 1767 | M93: 1779 | N93: 1758 | O93: 1823 | P93: 1824 | Q93: 1763 | R93: 1799 | S93: 1821 | T93: 1796 | U93: 1472 | V93: 1441 | W93: 1344 | X93: 1292 | Y93: 1241 | Z93: 1199 | AA93: 1140 | AB93: 1095 | AC93: 969 | AD93: 1108 | AE93: 1080 | AF93: 1076 | AG93: 1030 | AH93: 969 | AI93: 897 | AJ93: 860 | AK93: 838 | AL93: 789 | AM93: 742 | AN93: 726 | AO93: 620 | AP93: 590 | AQ93: 565 | AR93: 542 | AS93: 523 | AT93: 502 | AU93: 543 | AV93: 646 | AW93: 725 | AX93: 778 | AY93: 755 | AZ93: 672 | BA93: 645 | BB93: 606 | BC93: 491 | BD93: 440 | BE93: 405 | BF93: 368 | BG93: 368 | BH93: 368 | BI93: 368 | BJ93: 368 | BK93: 368 | BL93: =MAX(IFERROR(IF(BK93>0,IF(_xlfn.FORECAST.ETS(BL$10,OFFSET($BF93,0,0,1,-10),OFFSET($BF$10,0,0,1,-10),4)<0,0,_xlfn.FORECAST.ETS(BL$10,OFFSET($BF93,0,0,1,-10),OFFSET($BF$10,0,0,1,-10),4)),0),BK93),0) -> 368 | BM93: 368 | BN93: 368 | BO93: 368 | BP93: 368 | BQ93: 368 | BR93: 368 | BT93: 83 | BU93: 5604 | BV93: Antioquia | BW93: Remedios | BX93: [Lineas] | BY93: 502 | BZ93: 778 | CA93: 606 | CB93: 368 | CC93: 368 | CD93: 368 | CE93: 368
B94: 84 | C94: 5607 | D94: Antioquia | E94: Retiro | F94: [Lineas] | G94: 6008 | H94: 5933 | I94: 5894 | J94: 5829 | K94: 5856 | L94: 5923 | M94: 5946 | N94: 5955 | O94: 5827 | P94: 5878 | Q94: 5712 | R94: 5716 | S94: 5679 | T94: 5653 | U94: 5612 | V94: 5640 | W94: 5616 | X94: 5679 | Y94: 5686 | Z94: 5616 | AA94: 5525 | AB94: 5507 | AC94: 5513 | AD94: 5488 | AE94: 5487 | AF94: 5448 | AG94: 5433 | AH94: 5447 | AI94: 5431 | AJ94: 5415 | AK94: 5401 | AL94: 5420 | AM94: 5346 | AN94: 5375 | AO94: 5356 | AP94: 5359 | AQ94: 5413 | AR94: 5420 | AS94: 5469 | AT94: 5448 | AU94: 4911 | AV94: 5425 | AW94: 5703 | AX94: 5865 | AY94: 5965 | AZ94: 5996 | BA94: 6017 | BB94: 6115 | BC94: 6315 | BD94: 6307 | BE94: 5989 | BF94: 5489 | BG94: 5489 | BH94: 5489 | BI94: 5489 | BJ94: 5489 | BK94: 5489 | BL94: 5489 | BM94: 5489 | BN94: 5489 | BO94: 5489 | BP94: 5489 | BQ94: 5489 | BR94: 5489 | BT94: 84 | BU94: 5607 | BV94: Antioquia | BW94: Retiro | BX94: [Lineas] | BY94: 5448 | BZ94: 5865 | CA94: 6115 | CB94: 5489 | CC94: 5489 | CD94: 5489 | CE94: 5489
B95: 85 | C95: 5615 | D95: Antioquia | E95: Rionegro | F95: [Lineas] | G95: 37105 | H95: 36305 | I95: 35504 | J95: 35193 | K95: 34921 | L95: 35162 | M95: 34978 | N95: 34529 | O95: 33750 | P95: 33561 | Q95: 32997 | R95: 32761 | S95: 32668 | T95: 32323 | U95: 32010 | V95: 31708 | W95: 31459 | X95: 31752 | Y95: 31918 | Z95: 31949 | AA95: 31853 | AB95: 31902 | AC95: 31892 | AD95: 32125 | AE95: 32460 | AF95: 32949 | AG95: 32224 | AH95: 33183 | AI95: 33122 | AJ95: 33047 | AK95: 33078 | AL95: 33046 | AM95: 33382 | AN95: 33265 | AO95: 33161 | AP95: 33171 | AQ95: 33349 | AR95: 33661 | AS95: 33657 | AT95: 34078 | AU95: 29623 | AV95: 33225 | AW95: 34246 | AX95: 35133 | AY95: 35625 | AZ95: 35705 | BA95: 35605 | BB95: 35572 | BC95: 36215 | BD95: 36112 | BE95: 34724 | BF95: 31671 | BG95: 31671 | BH95: 31671 | BI95: 31671 | BJ95: 31671 | BK95: 31671 | BL95: 31671 | BM95: 31671 | BN95: 31671 | BO95: 31671 | BP95: 31671 | BQ95: 31671 | BR95: 31671 | BT95: 85 | BU95: 5615 | BV95: Antioquia | BW95: Rionegro | BX95: [Lineas] | BY95: 34078 | BZ95: 35133 | CA95: 35572 | CB95: 31671 | CC95: 31671 | CD95: 31671 | CE95: 31671
B96: 86 | C96: 5628 | D96: Antioquia | E96: Sabanalarga | F96: [Lineas] | G96: 199 | H96: 193 | I96: 201 | J96: 197 | K96: 207 | L96: 209 | M96: 209 | N96: 209 | O96: 212 | P96: 216 | Q96: 218 | R96: 215 | S96: 220 | T96: 214 | U96: 183 | V96: 181 | W96: 173 | X96: 166 | Y96: 152 | Z96: 145 | AA96: 146 | AB96: 139 | AC96: 117 | AD96: 140 | AE96: 137 | AF96: 135 | AG96: 131 | AH96: 133 | AI96: 129 | AJ96: 125 | AK96: 123 | AL96: 119 | AM96: 121 | AN96: 120 | AO96: 116 | AP96: 114 | AQ96: 110 | AR96: 108 | AS96: 108 | AT96: 106 | AU96: 86 | AV96: 106 | AW96: 158 | AX96: 162 | AY96: 160 | AZ96: 140 | BA96: 125 | BB96: 117 | BC96: 108 | BD96: 91 | BE96: 78 | BF96: 71 | BG96: 71 | BH96: 71 | BI96: 71 | BJ96: 71 | BK96: 71 | BL96: 71 | BM96: 71 | BN96: 71 | BO96: 71 | BP96: 71 | BQ96: 71 | BR96: 71 | BT96: 86 | BU96: 5628 | BV96: Antioquia | BW96: Sabanalarga | BX96: [Lineas] | BY96: 106 | BZ96: 162 | CA96: 117 | CB96: 71 | CC96: 71 | CD96: 71 | CE96: 71
B97: 87 | C97: 5631 | D97: Antioquia | E97: Sabaneta | F97: [Lineas] | G97: 24567 | H97: 24369 | I97: 24269 | J97: 24365 | K97: 24827 | L97: 25708 | M97: 26127 | N97: 26340 | O97: 26204 | P97: 26912 | Q97: 27366 | R97: 27606 | S97: 27957 | T97: 28115 | U97: 28517 | V97: 29086 | W97: 29668 | X97: 31554 | Y97: 31809 | Z97: 32784 | AA97: 33286 | AB97: 33753 | AC97: 34230 | AD97: 34803 | AE97: 35156 | AF97: 35396 | AG97: 34072 | AH97: 36586 | AI97: 36963 | AJ97: 37342 | AK97: 37696 | AL97: 38231 | AM97: 38450 | AN97: 38276 | AO97: 38516 | AP97: 38342 | AQ97: 38463 | AR97: 38970 | AS97: 39812 | AT97: 40667 | AU97: 35919 | AV97: 38914 | AW97: 39158 | AX97: 39588 | AY97: 39624 | AZ97: 39153 | BA97: 38625 | BB97: 38071 | BC97: 37917 | BD97: 37299 | BE97: 35576 | BF97: 32235 | BG97: 32235 | BH97: 32235 | BI97: 32235 | BJ97: 32235 | BK97: 32235 | BL97: 32235 | BM97: 32235 | BN97: 32235 | BO97: 32235 | BP97: 32235 | BQ97: 32235 | BR97: 32235 | BT97: 87 | BU97: 5631 | BV97: Antioquia | BW97: Sabaneta | BX97: [Lineas] | BY97: 40667 | BZ97: 39588 | CA97: 38071 | CB97: 32235 | CC97: 32235 | CD97: 32235 | CE97: 32235
B98: 88 | C98: 5642 | D98: Antioquia | E98: Salgar | F98: [Lineas] | G98: 996 | H98: 976 | I98: 981 | J98: 993 | K98: 1017 | L98: 1011 | M98: 1001 | N98: 963 | O98: 960 | P98: 910 | Q98: 895 | R98: 898 | S98: 884 | T98: 860 | U98: 723 | V98: 710 | W98: 644 | X98: 629 | Y98: 616 | Z98: 606 | AA98: 591 | AB98: 581 | AC98: 486 | AD98: 602 | AE98: 580 | AF98: 569 | AG98: 572 | AH98: 572 | AI98: 562 | AJ98: 537 | AK98: 532 | AL98: 518 | AM98: 491 | AN98: 469 | AO98: 416 | AP98: 382 | AQ98: 361 | AR98: 345 | AS98: 326 | AT98: 311 | AU98: 307 | AV98: 314 | AW98: 321 | AX98: 319 | AY98: 314 | AZ98: 292 | BA98: 280 | BB98: 270 | BC98: 246 | BD98: 229 | BE98: 205 | BF98: 196 | BG98: 196 | BH98: 196 | BI98: 196 | BJ98: 196 | BK98: 196 | BL98: 196 | BM98: 196 | BN98: 196 | BO98: 196 | BP98: 196 | BQ98: 196 | BR98: 196 | BT98: 88 | BU98: 5642 | BV98: Antioquia | BW98: Salgar | BX98: [Lineas] | BY98: 311 | BZ98: 319 | CA98: 270 | CB98: 196 | CC98: 196 | CD98: 196 | CE98: 196
B99: 89 | C99: 5647 | D99: Antioquia | E99: San Andrés de Cuerquía | F99: [Lineas] | G99: 325 | H99: 317 | I99: 317 | J99: 319 | K99: 339 | L99: 330 | M99: 324 | N99: 301 | O99: 287 | P99: 281 | Q99: 271 | R99: 269 | S99: 266 | T99: 257 | U99: 216 | V99: 213 | W99: 202 | X99: 188 | Y99: 179 | Z99: 175 | AA99: 162 | AB99: 164 | AC99: 155 | AD99: 174 | AE99: 181 | AF99: 181 | AG99: 177 | AH99: 175 | AI99: 175 | AJ99: 176 | AK99: 182 | AL99: 173 | AM99: 171 | AN99: 169 | AO99: 153 | AP99: 143 | AQ99: 144 | AR99: 139 | AS99: 138 | AT99: 133 | AU99: 126 | AV99: 133 | AW99: 126 | AX99: 123 | AY99: 116 | AZ99: 100 | BA99: 94 | BB99: 87 | BC99: 77 | BD99: 72 | BE99: 71 | BF99: 70 | BG99: 70 | BH99: 70 | BI99: 70 | BJ99: 70 | BK99: 70 | BL99: 70 | BM99: 70 | BN99: 70 | BO99: 70 | BP99: 70 | BQ99: 70 | BR99: 70 | BT99: 89 | BU99: 5647 | BV99: Antioquia | BW99: San Andrés de Cuerquía | BX99: [Lineas] | BY99: 133 | BZ99: 123 | CA99: 87 | CB99: 70 | CC99: 70 | CD99: 70 | CE99: 70
B100: 90 | C100: 5649 | D100: Antioquia | E100: San Carlos | F100: [Lineas] | G100: 806 | H100: 788 | I100: 785 | J100: 805 | K100: 851 | L100: 850 | M100: 842 | N100: 826 | O100: 823 | P100: 823 | Q100: 767 | R100: 765 | S100: 758 | T100: 733 | U100: 509 | V100: 504 | W100: 477 | X100: 464 | Y100: 457 | Z100: 435 | AA100: 436 | AB100: 422 | AC100: 359 | AD100: 427 | AE100: 439 | AF100: 444 | AG100: 430 | AH100: 411 | AI100: 395 | AJ100: 391 | AK100: 385 | AL100: 373 | AM100: 349 | AN100: 328 | AO100: 256 | AP100: 234 | AQ100: 222 | AR100: 206 | AS100: 188 | AT100: 183 | AU100: 86 | AV100: 192 | AW100: 189 | AX100: 190 | AY100: 185 | AZ100: 164 | BA100: 145 | BB100: 136 | BC100: 125 | BD100: 96 | BE100: 77 | BF100: 69 | BG100: 69 | BH100: 69 | BI100: 69 | BJ100: 69 | BK100: 69 | BL100: 69 | BM100: 69 | BN100: 69 | BO100: 69 | BP100: 69 | BQ100: 69 | BR100: 69 | BT100: 90 | BU100: 5649 | BV100: Antioquia | BW100: San Carlos | BX100: [Lineas] | BY100: 183 | BZ100: 190 | CA100: 136 | CB100: 69 | CC100: 69 | CD100: 69 | CE100: 69
B101: 91 | C101: 5652 | D101: Antioquia | E101: San Francisco | F101: [Lineas] | G101: 202 | H101: 199 | I101: 203 | J101: 204 | K101: 214 | L101: 213 | M101: 212 | N101: 197 | O101: 196 | P101: 193 | Q101: 138 | R101: 136 | S101: 134 | T101: 134 | U101: 101 | V101: 99 | W101: 92 | X101: 89 | Y101: 88 | Z101: 86 | AA101: 87 | AB101: 78 | AC101: 61 | AD101: 74 | AE101: 73 | AF101: 74 | AG101: 74 | AH101: 73 | AI101: 71 | AJ101: 71 | AK101: 70 | AL101: 68 | AM101: 67 | AN101: 66 | AO101: 51 | AP101: 44 | AQ101: 43 | AR101: 42 | AS101: 42 | AT101: 42 | AU101: 11 | AV101: 10 | AW101: 43 | AX101: 40 | AY101: 39 | AZ101: 37 | BA101: 36 | BB101: 34 | BC101: 31 | BD101: 30 | BE101: 29 | BF101: 29 | BG101: 29 | BH101: 29 | BI101: 29 | BJ101: 29 | BK101: 29 | BL101: 29 | BM101: 29 | BN101: 29 | BO101: 29 | BP101: 29 | BQ101: 29 | BR101: 29 | BT101: 91 | BU101: 5652 | BV101: Antioquia | BW101: San Francisco | BX101: [Lineas] | BY101: 42 | BZ101: 40 | CA101: 34 | CB101: 29 | CC101: 29 | CD101: 29 | CE101: 29
B102: 92 | C102: 5656 | D102: Antioquia | E102: San Jerónimo | F102: [Lineas] | G102: 1968 | H102: 1903 | I102: 1897 | J102: 1893 | K102: 1926 | L102: 1914 | M102: 1905 | N102: 1830 | O102: 1827 | P102: 1760 | Q102: 1761 | R102: 1739 | S102: 1743 | T102: 1712 | U102: 1608 | V102: 1587 | W102: 1559 | X102: 1427 | Y102: 1477 | Z102: 1446 | AA102: 1417 | AB102: 1421 | AC102: 1213 | AD102: 1403 | AE102: 1338 | AF102: 1317 | AG102: 1313 | AH102: 1294 | AI102: 1254 | AJ102: 1232 | AK102: 1228 | AL102: 1217 | AM102: 1200 | AN102: 1187 | AO102: 1090 | AP102: 1065 | AQ102: 1027 | AR102: 990 | AS102: 930 | AT102: 871 | AU102: 800 | AV102: 801 | AW102: 762 | AX102: 743 | AY102: 707 | AZ102: 671 | BA102: 629 | BB102: 549 | BC102: 456 | BD102: 382 | BE102: 352 | BF102: 294 | BG102: 294 | BH102: 294 | BI102: 294 | BJ102: 294 | BK102: 294 | BL102: 294 | BM102: 294 | BN102: 294 | BO102: 294 | BP102: 294 | BQ102: 294 | BR102: 294 | BT102: 92 | BU102: 5656 | BV102: Antioquia | BW102: San Jerónimo | BX102: [Lineas] | BY102: 871 | BZ102: 743 | CA102: 549 | CB102: 294 | CC102: 294 | CD102: 294 | CE102: 294
B103: 93 | C103: 5658 | D103: Antioquia | E103: San José de La Montaña | F103: [Lineas] | G103: 370 | H103: 365 | I103: 360 | J103: 356 | K103: 386 | L103: 380 | M103: 379 | N103: 373 | O103: 372 | P103: 366 | Q103: 352 | R103: 346 | S103: 345 | T103: 337 | U103: 280 | V103: 269 | W103: 257 | X103: 255 | Y103: 242 | Z103: 236 | AA103: 226 | AB103: 216 | AC103: 194 | AD103: 219 | AE103: 211 | AF103: 209 | AG103: 218 | AH103: 214 | AI103: 213 | AJ103: 206 | AK103: 209 | AL103: 203 | AM103: 197 | AN103: 199 | AO103: 187 | AP103: 176 | AQ103: 173 | AR103: 172 | AS103: 172 | AT103: 173 | AU103: 175 | AV103: 208 | AW103: 206 | AX103: 204 | AY103: 200 | AZ103: 184 | BA103: 164 | BB103: 157 | BC103: 137 | BD103: 117 | BE103: 110 | BF103: 104 | BG103: 104 | BH103: 104 | BI103: 104 | BJ103: 104 | BK103: 104 | BL103: 104 | BM103: 104 | BN103: 104 | BO103: 104 | BP103: 104 | BQ103: 104 | BR103: 104 | BT103: 93 | BU103: 5658 | BV103: Antioquia | BW103: San José de La Montaña | BX103: [Lineas] | BY103: 173 | BZ103: 204 | CA103: 157 | CB103: 104 | CC103: 104 | CD103: 104 | CE103: 104
B104: 94 | C104: 5659 | D104: Antioquia | E104: San Juan de Urabá | F104: [Lineas] | G104: 343 | H104: 349 | I104: 369 | J104: 371 | K104: 398 | L104: 421 | M104: 427 | N104: 435 | O104: 450 | P104: 447 | Q104: 461 | R104: 468 | S104: 465 | T104: 471 | U104: 377 | V104: 359 | W104: 366 | X104: 363 | Y104: 354 | Z104: 349 | AA104: 399 | AB104: 392 | AC104: 388 | AD104: 406 | AE104: 319 | AF104: 313 | AG104: 318 | AH104: 303 | AI104: 284 | AJ104: 259 | AK104: 249 | AL104: 239 | AM104: 227 | AN104: 217 | AO104: 199 | AP104: 187 | AQ104: 190 | AR104: 184 | AS104: 166 | AT104: 162 | AU104: 164 | AV104: 158 | AW104: 149 | AX104: 146 | AY104: 144 | AZ104: 135 | BA104: 121 | BB104: 114 | BC104: 103 | BD104: 78 | BE104: 68 | BF104: 64 | BG104: 64 | BH104: 64 | BI104: 64 | BJ104: 64 | BK104: 64 | BL104: 64 | BM104: 64 | BN104: 64 | BO104: 64 | BP104: 64 | BQ104: 64 | BR104: 64 | BT104: 94 | BU104: 5659 | BV104: Antioquia | BW104: San Juan de Urabá | BX104: [Lineas] | BY104: 162 | BZ104: 146 | CA104: 114 | CB104: 64 | CC104: 64 | CD104: 64 | CE104: 64
B105: 95 | C105: 5660 | D105: Antioquia | E105: San Luis | F105: [Lineas] | G105: 774 | H105: 756 | I105: 777 | J105: 798 | K105: 891 | L105: 888 | M105: 887 | N105: 865 | O105: 871 | P105: 862 | Q105: 824 | R105: 826 | S105: 834 | T105: 812 | U105: 585 | V105: 577 | W105: 565 | X105: 538 | Y105: 520 | Z105: 504 | AA105: 488 | AB105: 458 | AC105: 417 | AD105: 469 | AE105: 432 | AF105: 420 | AG105: 410 | AH105: 400 | AI105: 391 | AJ105: 402 | AK105: 400 | AL105: 388 | AM105: 386 | AN105: 373 | AO105: 334 | AP105: 283 | AQ105: 260 | AR105: 238 | AS105: 222 | AT105: 210 | AU105: 187 | AV105: 148 | AW105: 260 | AX105: 270 | AY105: 253 | AZ105: 231 | BA105: 216 | BB105: 206 | BC105: 181 | BD105: 159 | BE105: 146 | BF105: 132 | BG105: 132 | BH105: 132 | BI105: 132 | BJ105: 132 | BK105: 132 | BL105: 132 | BM105: 132 | BN105: 132 | BO105: 132 | BP105: 132 | BQ105: 132 | BR105: 132 | BT105: 95 | BU105: 5660 | BV105: Antioquia | BW105: San Luis | BX105: [Lineas] | BY105: 210 | BZ105: 270 | CA105: 206 | CB105: 132 | CC105: 132 | CD105: 132 | CE105: 132
B106: 96 | C106: 5664 | D106: Antioquia | E106: San Pedro | F106: [Lineas] | G106: 2531 | H106: 2488 | I106: 2530 | J106: 2557 | K106: 2667 | L106: 2654 | M106: 2692 | N106: 2685 | O106: 2712 | P106: 2758 | Q106: 2782 | R106: 2808 | S106: 2889 | T106: 2835 | U106: 2633 | V106: 2575 | W106: 2528 | X106: 2279 | Y106: 2517 | Z106: 2498 | AA106: 2474 | AB106: 2508 | AC106: 2297 | AD106: 2556 | AE106: 2308 | AF106: 2208 | AG106: 2152 | AH106: 2083 | AI106: 2003 | AJ106: 1909 | AK106: 1825 | AL106: 1727 | AM106: 1610 | AN106: 1527 | AO106: 1347 | AP106: 1226 | AQ106: 1167 | AR106: 1098 | AS106: 1031 | AT106: 979 | AU106: 622 | AV106: 655 | AW106: 916 | AX106: 918 | AY106: 899 | AZ106: 736 | BA106: 643 | BB106: 591 | BC106: 557 | BD106: 516 | BE106: 471 | BF106: 403 | BG106: 403 | BH106: 403 | BI106: 403 | BJ106: 403 | BK106: 403 | BL106: 403 | BM106: 403 | BN106: 403 | BO106: 403 | BP106: 403 | BQ106: 403 | BR106: 403 | BT106: 96 | BU106: 5664 | BV106: Antioquia | BW106: San Pedro | BX106: [Lineas] | BY106: 979 | BZ106: 918 | CA106: 591 | CB106: 403 | CC106: 403 | CD106: 403 | CE106: 403
B107: 97 | C107: 5665 | D107: Antioquia | E107: San Pedro de Uraba | F107: [Lineas] | G107: 779 | H107: 782 | I107: 763 | J107: 775 | K107: 819 | L107: 835 | M107: 841 | N107: 847 | O107: 854 | P107: 838 | Q107: 869 | R107: 904 | S107: 932 | T107: 949 | U107: 824 | V107: 777 | W107: 724 | X107: 691 | Y107: 656 | Z107: 629 | AA107: 596 | AB107: 580 | AC107: 493 | AD107: 590 | AE107: 559 | AF107: 547 | AG107: 523 | AH107: 507 | AI107: 487 | AJ107: 459 | AK107: 452 | AL107: 414 | AM107: 392 | AN107: 382 | AO107: 334 | AP107: 320 | AQ107: 317 | AR107: 312 | AS107: 309 | AT107: 296 | AU107: 459 | AV107: 558 | AW107: 589 | AX107: 607 | AY107: 607 | AZ107: 623 | BA107: 588 | BB107: 514 | BC107: 447 | BD107: 370 | BE107: 324 | BF107: 302 | BG107: 302 | BH107: 302 | BI107: 302 | BJ107: 302 | BK107: 302 | BL107: 302 | BM107: 302 | BN107: 302 | BO107: 302 | BP107: 302 | BQ107: 302 | BR107: 302 | BT107: 97 | BU107: 5665 | BV107: Antioquia | BW107: San Pedro de Uraba | BX107: [Lineas] | BY107: 296 | BZ107: 607 | CA107: 514 | CB107: 302 | CC107: 302 | CD107: 302 | CE107: 302
B108: 98 | C108: 5667 | D108: Antioquia | E108: San Rafael | F108: [Lineas] | G108: 915 | H108: 906 | I108: 903 | J108: 944 | K108: 1015 | L108: 1024 | M108: 1013 | N108: 998 | O108: 999 | P108: 995 | Q108: 970 | R108: 961 | S108: 953 | T108: 924 | U108: 817 | V108: 788 | W108: 718 | X108: 694 | Y108: 687 | Z108: 677 | AA108: 640 | AB108: 608 | AC108: 527 | AD108: 599 | AE108: 560 | AF108: 561 | AG108: 543 | AH108: 535 | AI108: 516 | AJ108: 509 | AK108: 512 | AL108: 490 | AM108: 478 | AN108: 468 | AO108: 399 | AP108: 374 | AQ108: 353 | AR108: 334 | AS108: 311 | AT108: 300 | AU108: 299 | AV108: 337 | AW108: 339 | AX108: 332 | AY108: 315 | AZ108: 283 | BA108: 260 | BB108: 238 | BC108: 89 | BD108: 57 | BE108: 49 | BF108: 48 | BG108: 48 | BH108: 48 | BI108: 48 | BJ108: 48 | BK108: 48 | BL108: 48 | BM108: 48 | BN108: 48 | BO108: 48 | BP108: 48 | BQ108: 48 | BR108: 48 | BT108: 98 | BU108: 5667 | BV108: Antioquia | BW108: San Rafael | BX108: [Lineas] | BY108: 300 | BZ108: 332 | CA108: 238 | CB108: 48 | CC108: 48 | CD108: 48 | CE108: 48
B109: 99 | C109: 5670 | D109: Antioquia | E109: San Roque | F109: [Lineas] | G109: 1261 | H109: 1262 | I109: 1276 | J109: 1289 | K109: 1367 | L109: 1352 | M109: 1352 | N109: 1346 | O109: 1341 | P109: 1319 | Q109: 1218 | R109: 1227 | S109: 1259 | T109: 1233 | U109: 970 | V109: 955 | W109: 906 | X109: 887 | Y109: 869 | Z109: 861 | AA109: 849 | AB109: 847 | AC109: 728 | AD109: 833 | AE109: 765 | AF109: 747 | AG109: 737 | AH109: 720 | AI109: 714 | AJ109: 691 | AK109: 670 | AL109: 639 | AM109: 615 | AN109: 600 | AO109: 552 | AP109: 525 | AQ109: 514 | AR109: 490 | AS109: 469 | AT109: 453 | AU109: 494 | AV109: 554 | AW109: 618 | AX109: 675 | AY109: 706 | AZ109: 694 | BA109: 669 | BB109: 657 | BC109: 612 | BD109: 556 | BE109: 517 | BF109: 485 | BG109: 485 | BH109: =MAX(IFERROR(IF(BG109>0,IF(_xlfn.FORECAST.ETS(BH$10,OFFSET($BF109,0,0,1,-10),OFFSET($BF$10,0,0,1,-10),4)<0,0,_xlfn.FORECAST.ETS(BH$10,OFFSET($BF109,0,0,1,-10),OFFSET($BF$10,0,0,1,-10),4)),0),BG109),0) -> 485 | BI109: 485 | BJ109: 485 | BK109: 485 | BL109: 485 | BM109: 485 | BN109: 485 | BO109: 485 | BP109: 485 | BQ109: 485 | BR109: 485 | BT109: 99 | BU109: 5670 | BV109: Antioquia | BW109: San Roque | BX109: [Lineas] | BY109: 453 | BZ109: 675 | CA109: 657 | CB109: 485 | CC109: 485 | CD109: 485 | CE109: 485
B110: 100 | C110: 5674 | D110: Antioquia | E110: San Vicente | F110: [Lineas] | G110: 1546 | H110: 1517 | I110: 1498 | J110: 1495 | K110: 1506 | L110: 1485 | M110: 1489 | N110: 1470 | O110: 1449 | P110: 1439 | Q110: 1375 | R110: 1362 | S110: 1349 | T110: 1330 | U110: 1204 | V110: 1176 | W110: 1143 | X110: 696 | Y110: 1077 | Z110: 1049 | AA110: 997 | AB110: 966 | AC110: 856 | AD110: 919 | AE110: 839 | AF110: 810 | AG110: 777 | AH110: 723 | AI110: 664 | AJ110: 647 | AK110: 628 | AL110: 605 | AM110: 581 | AN110: 566 | AO110: 512 | AP110: 486 | AQ110: 470 | AR110: 457 | AS110: 419 | AT110: 393 | AU110: 271 | AV110: 347 | AW110: 335 | AX110: 329 | AY110: 272 | AZ110: 259 | BA110: 241 | BB110: 199 | BC110: 185 | BD110: 153 | BE110: 137 | BF110: 115 | BG110: 115 | BH110: 115 | BI110: 115 | BJ110: 115 | BK110: 115 | BL110: 115 | BM110: 115 | BN110: 115 | BO110: 115 | BP110: 115 | BQ110: 115 | BR110: 115 | BT110: 100 | BU110: 5674 | BV110: Antioquia | BW110: San Vicente | BX110: [Lineas] | BY110: 393 | BZ110: 329 | CA110: 199 | CB110: 115 | CC110: 115 | CD110: 115 | CE110: 115
B111: 101 | C111: 5679 | D111: Antioquia | E111: Santa Bárbara | F111: [Lineas] | G111: 2378 | H111: 2371 | I111: 2377 | J111: 2399 | K111: 2452 | L111: 2457 | M111: 2463 | N111: 2449 | O111: 2429 | P111: 2354 | Q111: 2326 | R111: 2331 | S111: 2364 | T111: 2329 | U111: 2100 | V111: 2068 | W111: 2038 | X111: 1990 | Y111: 1972 | Z111: 1948 | AA111: 1908 | AB111: 1857 | AC111: 1700 | AD111: 1873 | AE111: 1799 | AF111: 1809 | AG111: 1788 | AH111: 1745 | AI111: 1680 | AJ111: 1635 | AK111: 1618 | AL111: 1559 | AM111: 1551 | AN111: 1522 | AO111: 1372 | AP111: 1323 | AQ111: 1254 | AR111: 1216 | AS111: 1176 | AT111: 1141 | AU111: 796 | AV111: 832 | AW111: 1217 | AX111: 1148 | AY111: 1063 | AZ111: 991 | BA111: 913 | BB111: 857 | BC111: 585 | BD111: 416 | BE111: 311 | BF111: 263 | BG111: 263 | BH111: 263 | BI111: 263 | BJ111: 263 | BK111: 263 | BL111: 263 | BM111: 263 | BN111: 263 | BO111: 263 | BP111: 263 | BQ111: 263 | BR111: 263 | BT111: 101 | BU111: 5679 | BV111: Antioquia | BW111: Santa Bárbara | BX111: [Lineas] | BY111: 1141 | BZ111: 1148 | CA111: 857 | CB111: 263 | CC111: 263 | CD111: 263 | CE111: 263
B112: 102 | C112: 5686 | D112: Antioquia | E112: Santa Rosa de Osos | F112: [Lineas] | G112: 3380 | H112: 3316 | I112: 3300 | J112: 3328 | K112: 3511 | L112: 3479 | M112: 3499 | N112: 3464 | O112: 3449 | P112: 3442 | Q112: 3429 | R112: 3551 | S112: 3667 | T112: 3605 | U112: 3243 | V112: 3189 | W112: 3088 | X112: 3008 | Y112: 2978 | Z112: 2924 | AA112: 2867 | AB112: 2833 | AC112: 2325 | AD112: 2765 | AE112: 2633 | AF112: 2644 | AG112: 2594 | AH112: 2559 | AI112: 2460 | AJ112: 2384 | AK112: 2356 | AL112: 2246 | AM112: 2139 | AN112: 2032 | AO112: 1828 | AP112: 1725 | AQ112: 1612 | AR112: 1505 | AS112: 1418 | AT112: 1334 | AU112: 1282 | AV112: 1407 | AW112: 1392 | AX112: 1367 | AY112: 1287 | AZ112: 1180 | BA112: 1071 | BB112: 982 | BC112: 830 | BD112: 684 | BE112: 583 | BF112: 510 | BG112: 510 | BH112: 510 | BI112: 510 | BJ112: 510 | BK112: 510 | BL112: 510 | BM112: 510 | BN112: 510 | BO112: 510 | BP112: 510 | BQ112: 510 | BR112: 510 | BT112: 102 | BU112: 5686 | BV112: Antioquia | BW112: Santa Rosa de Osos | BX112: [Lineas] | BY112: 1334 | BZ112: 1367 | CA112: 982 | CB112: 510 | CC112: 510 | CD112: 510 | CE112: 510
B113: 103 | C113: 5690 | D113: Antioquia | E113: Santo Domingo | F113: [Lineas] | G113: 490 | H113: 476 | I113: 479 | J113: 476 | K113: 490 | L113: 476 | M113: 492 | N113: 491 | O113: 502 | P113: 508 | Q113: 503 | R113: 498 | S113: 506 | T113: 499 | U113: 452 | V113: 446 | W113: 430 | X113: 426 | Y113: 421 | Z113: 407 | AA113: 398 | AB113: 400 | AC113: 361 | AD113: 395 | AE113: 350 | AF113: 355 | AG113: 346 | AH113: 335 | AI113: 322 | AJ113: 304 | AK113: 299 | AL113: 292 | AM113: 281 | AN113: 271 | AO113: 245 | AP113: 233 | AQ113: 225 | AR113: 206 | AS113: 195 | AT113: 191 | AU113: 171 | AV113: 200 | AW113: 197 | AX113: 198 | AY113: 197 | AZ113: 197 | BA113: 200 | BB113: 203 | BC113: 202 | BD113: 195 | BE113: 176 | BF113: 171 | BG113: 171 | BH113: 171 | BI113: 171 | BJ113: 171 | BK113: 171 | BL113: 171 | BM113: 171 | BN113: 171 | BO113: 171 | BP113: 171 | BQ113: 171 | BR113: 171 | BT113: 103 | BU113: 5690 | BV113: Antioquia | BW113: Santo Domingo | BX113: [Lineas] | BY113: 191 | BZ113: 198 | CA113: 203 | CB113: 171 | CC113: 171 | CD113: 171 | CE113: 171
B114: 104 | C114: 5697 | D114: Antioquia | E114: El Santuario | F114: [Lineas] | G114: 6223 | H114: 5835 | I114: 5727 | J114: 5669 | K114: 5600 | L114: 5501 | M114: 5447 | N114: 5305 | O114: 5109 | P114: 5060 | Q114: 4845 | R114: 4728 | S114: 4633 | T114: 4460 | U114: 4249 | V114: 4092 | W114: 3966 | X114: 3732 | Y114: 3628 | Z114: 3506 | AA114: 3320 | AB114: 3213 | AC114: 3159 | AD114: 3120 | AE114: 3012 | AF114: 2915 | AG114: 2764 | AH114: 2734 | AI114: 2634 | AJ114: 2546 | AK114: 2448 | AL114: 2381 | AM114: 2307 | AN114: 2257 | AO114: 2189 | AP114: 2081 | AQ114: 2025 | AR114: 1940 | AS114: 1840 | AT114: 1731 | AU114: 1341 | AV114: 1425 | AW114: 1304 | AX114: 1220 | AY114: 922 | AZ114: 824 | BA114: 734 | BB114: 691 | BC114: 668 | BD114: 604 | BE114: 543 | BF114: 503 | BG114: 503 | BH114: 503 | BI114: 503 | BJ114: 503 | BK114: 503 | BL114: 503 | BM114: 503 | BN114: 503 | BO114: 503 | BP114: 503 | BQ114: 503 | BR114: 503 | BT114: 104 | BU114: 5697 | BV114: Antioquia | BW114: El Santuario | BX114: [Lineas] | BY114: 1731 | BZ114: 1220 | CA114: 691 | CB114: 503 | CC114: 503 | CD114: 503 | CE114: 503
B115: 105 | C115: 5736 | D115: Antioquia | E115: Segovia | F115: [Lineas] | G115: 2601 | H115: 2584 | I115: 2678 | J115: 2729 | K115: 2859 | L115: 2875 | M115: 2867 | N115: 2827 | O115: 2880 | P115: 2909 | Q115: 2716 | R115: 2823 | S115: 2805 | T115: 2743 | U115: 2200 | V115: 2045 | W115: 1776 | X115: 1704 | Y115: 1658 | Z115: 1625 | AA115: 1540 | AB115: 1488 | AC115: 1228 | AD115: 1400 | AE115: 1361 | AF115: 1432 | AG115: 1372 | AH115: 1305 | AI115: 1243 | AJ115: 1187 | AK115: 1185 | AL115: 1156 | AM115: 1124 | AN115: 1100 | AO115: 956 | AP115: 888 | AQ115: 831 | AR115: 779 | AS115: 746 | AT115: 712 | AU115: 758 | AV115: 895 | AW115: 1021 | AX115: 1203 | AY115: 1185 | AZ115: 1132 | BA115: 1080 | BB115: 1014 | BC115: 938 | BD115: 853 | BE115: 789 | BF115: 716 | BG115: 716 | BH115: 716 | BI115: 716 | BJ115: 716 | BK115: 716 | BL115: 716 | BM115: 716 | BN115: 716 | BO115: 716 | BP115: 716 | BQ115: 716 | BR115: 716 | BT115: 105 | BU115: 5736 | BV115: Antioquia | BW115: Segovia | BX115: [Lineas] | BY115: 712 | BZ115: 1203 | CA115: 1014 | CB115: 716 | CC115: 716 | CD115: 716 | CE115: 716
B116: 106 | C116: 5756 | D116: Antioquia | E116: Sonson | F116: [Lineas] | G116: 2506 | H116: 2471 | I116: 2499 | J116: 2519 | K116: 2652 | L116: 2664 | M116: 2657 | N116: 2618 | O116: 2582 | P116: 2547 | Q116: 2443 | R116: 2434 | S116: 2438 | T116: 2395 | U116: 1964 | V116: 1916 | W116: 1821 | X116: 1763 | Y116: 1745 | Z116: 1716 | AA116: 1658 | AB116: 1622 | AC116: 1383 | AD116: 1586 | AE116: 1510 | AF116: 1487 | AG116: 1459 | AH116: 1424 | AI116: 1381 | AJ116: 1351 | AK116: 1331 | AL116: 1275 | AM116: 1221 | AN116: 1174 | AO116: 1047 | AP116: 991 | AQ116: 964 | AR116: 935 | AS116: 895 | AT116: 870 | AU116: 927 | AV116: 988 | AW116: 979 | AX116: 953 | AY116: 923 | AZ116: 857 | BA116: 819 | BB116: 794 | BC116: 749 | BD116: 686 | BE116: 631 | BF116: 590 | BG116: 590 | BH116: 590 | BI116: 590 | BJ116: 590 | BK116: 590 | BL116: 590 | BM116: 590 | BN116: 590 | BO116: 590 | BP116: 590 | BQ116: 590 | BR116: 590 | BT116: 106 | BU116: 5756 | BV116: Antioquia | BW116: Sonson | BX116: [Lineas] | BY116: 870 | BZ116: 953 | CA116: 794 | CB116: 590 | CC116: 590 | CD116: 590 | CE116: 590
B117: 107 | C117: 5761 | D117: Antioquia | E117: Sopetrán | F117: [Lineas] | G117: 1658 | H117: 1645 | I117: 1637 | J117: 1656 | K117: 1683 | L117: 1685 | M117: 1688 | N117: 1662 | O117: 1668 | P117: 1611 | Q117: 1626 | R117: 1598 | S117: 1646 | T117: 1617 | U117: 1467 | V117: 1439 | W117: 1402 | X117: 1380 | Y117: 1364 | Z117: 1329 | AA117: 1311 | AB117: 1267 | AC117: 1092 | AD117: 1263 | AE117: 1226 | AF117: 1219 | AG117: 1195 | AH117: 1179 | AI117: 1168 | AJ117: 1151 | AK117: 1143 | AL117: 1114 | AM117: 1096 | AN117: 1072 | AO117: 1013 | AP117: 976 | AQ117: 938 | AR117: 886 | AS117: 848 | AT117: 820 | AU117: 778 | AV117: 835 | AW117: 805 | AX117: 794 | AY117: 757 | AZ117: 710 | BA117: 662 | BB117: 618 | BC117: 573 | BD117: 532 | BE117: 499 | BF117: 452 | BG117: 452 | BH117: 452 | BI117: 452 | BJ117: 452 | BK117: 452 | BL117: 452 | BM117: 452 | BN117: 452 | BO117: 452 | BP117: 452 | BQ117: 452 | BR117: 452 | BT117: 107 | BU117: 5761 | BV117: Antioquia | BW117: Sopetrán | BX117: [Lineas] | BY117: 820 | BZ117: 794 | CA117: 618 | CB117: 452 | CC117: 452 | CD117: 452 | CE117: 452
B118: 108 | C118: 5789 | D118: Antioquia | E118: Támesis | F118: [Lineas] | G118: 1826 | H118: 1789 | I118: 1808 | J118: 1838 | K118: 1927 | L118: 1944 | M118: 1949 | N118: 1948 | O118: 1927 | P118: 1797 | Q118: 1766 | R118: 1768 | S118: 1770 | T118: 1715 | U118: 1452 | V118: 1435 | W118: 1362 | X118: 1336 | Y118: 1332 | Z118: 1311 | AA118: 1289 | AB118: 1244 | AC118: 1129 | AD118: 1284 | AE118: 1259 | AF118: 1236 | AG118: 1181 | AH118: 1201 | AI118: 1179 | AJ118: 1171 | AK118: 1160 | AL118: 1102 | AM118: 1072 | AN118: 1061 | AO118: 908 | AP118: 872 | AQ118: 854 | AR118: 843 | AS118: 813 | AT118: 769 | AU118: 773 | AV118: 843 | AW118: 854 | AX118: 870 | AY118: 821 | AZ118: 743 | BA118: 683 | BB118: 659 | BC118: 540 | BD118: 473 | BE118: 434 | BF118: 401 | BG118: 401 | BH118: 401 | BI118: 401 | BJ118: 401 | BK118: 401 | BL118: 401 | BM118: 401 | BN118: 401 | BO118: 401 | BP118: 401 | BQ118: 401 | BR118: 401 | BT118: 108 | BU118: 5789 | BV118: Antioquia | BW118: Támesis | BX118: [Lineas] | BY118: 769 | BZ118: 870 | CA118: 659 | CB118: 401 | CC118: 401 | CD118: 401 | CE118: 401
B119: 109 | C119: 5790 | D119: Antioquia | E119: Tarazá | F119: [Lineas] | G119: 799 | H119: 807 | I119: 825 | J119: 833 | K119: 869 | L119: 893 | M119: 919 | N119: 915 | O119: 928 | P119: 970 | Q119: 974 | R119: 1003 | S119: 1055 | T119: 1065 | U119: 929 | V119: 871 | W119: 810 | X119: 762 | Y119: 725 | Z119: 712 | AA119: 724 | AB119: 713 | AC119: 673 | AD119: 762 | AE119: 662 | AF119: 636 | AG119: 592 | AH119: 566 | AI119: 535 | AJ119: 480 | AK119: 456 | AL119: 413 | AM119: 406 | AN119: 397 | AO119: 383 | AP119: 376 | AQ119: 359 | AR119: 319 | AS119: 295 | AT119: 270 | AU119: 406 | AV119: 522 | AW119: 625 | AX119: 641 | AY119: 641 | AZ119: 608 | BA119: 645 | BB119: 639 | BC119: 532 | BD119: 446 | BE119: 356 | BF119: 313 | BG119: 313 | BH119: 313 | BI119: 313 | BJ119: 313 | BK119: 313 | BL119: 313 | BM119: 313 | BN119: 313 | BO119: 313 | BP119: 313 | BQ119: 313 | BR119: 313 | BT119: 109 | BU119: 5790 | BV119: Antioquia | BW119: Tarazá | BX119: [Lineas] | BY119: 270 | BZ119: 641 | CA119: 639 | CB119: 313 | CC119: 313 | CD119: 313 | CE119: 313
B120: 110 | C120: 5792 | D120: Antioquia | E120: Tarso | F120: [Lineas] | G120: 328 | H120: 318 | I120: 317 | J120: 332 | K120: 347 | L120: 345 | M120: 337 | N120: 339 | O120: 337 | P120: 335 | Q120: 330 | R120: 334 | S120: 348 | T120: 348 | U120: 296 | V120: 302 | W120: 291 | X120: 277 | Y120: 275 | Z120: 279 | AA120: 291 | AB120: 310 | AC120: 322 | AD120: 349 | AE120: 359 | AF120: 367 | AG120: 363 | AH120: 353 | AI120: 341 | AJ120: 339 | AK120: 340 | AL120: 343 | AM120: 344 | AN120: 346 | AO120: 334 | AP120: 319 | AQ120: 305 | AR120: 275 | AS120: 259 | AT120: 247 | AU120: 226 | AV120: 230 | AW120: 228 | AX120: 243 | AY120: 231 | AZ120: 225 | BA120: 212 | BB120: 206 | BC120: 192 | BD120: 160 | BE120: 152 | BF120: 144 | BG120: 144 | BH120: 144 | BI120: 144 | BJ120: 144 | BK120: 144 | BL120: 144 | BM120: 144 | BN120: 144 | BO120: 144 | BP120: 144 | BQ120: 144 | BR120: 144 | BT120: 110 | BU120: 5792 | BV120: Antioquia | BW120: Tarso | BX120: [Lineas] | BY120: 247 | BZ120: 243 | CA120: 206 | CB120: 144 | CC120: 144 | CD120: 144 | CE120: 144
B121: 111 | C121: 5809 | D121: Antioquia | E121: Titiribí | F121: [Lineas] | G121: 991 | H121: 999 | I121: 989 | J121: 981 | K121: 996 | L121: 961 | M121: 965 | N121: 967 | O121: 963 | P121: 950 | Q121: 946 | R121: 951 | S121: 954 | T121: 925 | U121: 880 | V121: 869 | W121: 853 | X121: 831 | Y121: 806 | Z121: 787 | AA121: 750 | AB121: 719 | AC121: 622 | AD121: 678 | AE121: 630 | AF121: 626 | AG121: 617 | AH121: 630 | AI121: 616 | AJ121: 602 | AK121: 584 | AL121: 561 | AM121: 547 | AN121: 543 | AO121: 513 | AP121: 492 | AQ121: 475 | AR121: 469 | AS121: 445 | AT121: 423 | AU121: 438 | AV121: 483 | AW121: 502 | AX121: 513 | AY121: 529 | AZ121: 577 | BA121: 522 | BB121: 514 | BC121: 516 | BD121: 501 | BE121: 466 | BF121: 449 | BG121: 449 | BH121: 449 | BI121: 449 | BJ121: 449 | BK121: 449 | BL121: 449 | BM121: 449 | BN121: 449 | BO121: 449 | BP121: 449 | BQ121: 449 | BR121: 449 | BT121: 111 | BU121: 5809 | BV121: Antioquia | BW121: Titiribí | BX121: [Lineas] | BY121: 423 | BZ121: 513 | CA121: 514 | CB121: 449 | CC121: 449 | CD121: 449 | CE121: 449
B122: 112 | C122: 5819 | D122: Antioquia | E122: Toledo | F122: [Lineas] | G122: 161 | H122: 157 | I122: 164 | J122: 173 | K122: 186 | L122: 180 | M122: 178 | N122: 175 | O122: 170 | P122: 169 | Q122: 168 | R122: 169 | S122: 170 | T122: 165 | U122: 140 | V122: 137 | W122: 132 | X122: 132 | Y122: 130 | Z122: 122 | AA122: 117 | AB122: 107 | AC122: 93 | AD122: 110 | AE122: 98 | AF122: 100 | AG122: 101 | AH122: 97 | AI122: 96 | AJ122: 97 | AK122: 95 | AL122: 92 | AM122: 87 | AN122: 85 | AO122: 79 | AP122: 76 | AQ122: 76 | AR122: 73 | AS122: 70 | AT122: 66 | AU122: 33 | AV122: 34 | AW122: 66 | AX122: 67 | AY122: 64 | AZ122: 63 | BA122: 63 | BB122: 58 | BC122: 58 | BD122: 57 | BE122: 56 | BF122: 55 | BG122: 55 | BH122: 55 | BI122: 55 | BJ122: 55 | BK122: 55 | BL122: 55 | BM122: 55 | BN122: 55 | BO122: 55 | BP122: 55 | BQ122: 55 | BR122: 55 | BT122: 112 | BU122: 5819 | BV122: Antioquia | BW122: Toledo | BX122: [Lineas] | BY122: 66 | BZ122: 67 | CA122: 58 | CB122: 55 | CC122: 55 | CD122: 55 | CE122: 55
B123: 113 | C123: 5837 | D123: Antioquia | E123: Turbo | F123: [Lineas] | G123: 6141 | H123: 6161 | I123: 6514 | J123: 6866 | K123: 7266 | L123: 7415 | M123: 7610 | N123: 7548 | O123: 7433 | P123: 7212 | Q123: 7346 | R123: 7394 | S123: 7433 | T123: 7346 | U123: 6079 | V123: 5904 | W123: 5682 | X123: 5423 | Y123: 5324 | Z123: 5226 | AA123: 5216 | AB123: 5246 | AC123: 4670 | AD123: 5381 | AE123: 4955 | AF123: 4948 | AG123: 4744 | AH123: 4537 | AI123: 4345 | AJ123: 4148 | AK123: 3967 | AL123: 3872 | AM123: 3672 | AN123: 3603 | AO123: 3214 | AP123: 3198 | AQ123: 3215 | AR123: 3166 | AS123: 3167 | AT123: 3176 | AU123: 3660 | AV123: 4385 | AW123: 4922 | AX123: 5042 | AY123: 5279 | AZ123: 4970 | BA123: 5055 | BB123: 5108 | BC123: 4963 | BD123: 4888 | BE123: 5020 | BF123: 5272 | BG123: 5272 | BH123: 5272 | BI123: 5272 | BJ123: 5272 | BK123: 5272 | BL123: 5272 | BM123: 5272 | BN123: 5272 | BO123: 5272 | BP123: 5272 | BQ123: 5272 | BR123: 5272 | BT123: 113 | BU123: 5837 | BV123: Antioquia | BW123: Turbo | BX123: [Lineas] | BY123: 3176 | BZ123: 5042 | CA123: 5108 | CB123: 5272 | CC123: 5272 | CD123: 5272 | CE123: 5272
B124: 114 | C124: 5842 | D124: Antioquia | E124: Uramita | F124: [Lineas] | G124: 174 | H124: 173 | I124: 190 | J124: 195 | K124: 209 | L124: 211 | M124: 201 | N124: 201 | O124: 204 | P124: 198 | Q124: 190 | R124: 191 | S124: 203 | T124: 189 | U124: 162 | V124: 157 | W124: 141 | X124: 129 | Y124: 130 | Z124: 134 | AA124: 149 | AB124: 137 | AC124: 139 | AD124: 152 | AE124: 153 | AF124: 155 | AG124: 152 | AH124: 157 | AI124: 145 | AJ124: 141 | AK124: 148 | AL124: 148 | AM124: 160 | AN124: 182 | AO124: 185 | AP124: 181 | AQ124: 190 | AR124: 190 | AS124: 199 | AT124: 189 | AU124: 203 | AV124: 212 | AW124: 210 | AX124: 200 | AY124: 192 | AZ124: 174 | BA124: 162 | BB124: 157 | BC124: 156 | BD124: 131 | BE124: 116 | BF124: 104 | BG124: 104 | BH124: 104 | BI124: 104 | BJ124: 104 | BK124: 104 | BL124: 104 | BM124: 104 | BN124: 104 | BO124: 104 | BP124: 104 | BQ124: 104 | BR124: 104 | BT124: 114 | BU124: 5842 | BV124: Antioquia | BW124: Uramita | BX124: [Lineas] | BY124: 189 | BZ124: 200 | CA124: 157 | CB124: 104 | CC124: 104 | CD124: 104 | CE124: 104
B125: 115 | C125: 5847 | D125: Antioquia | E125: Urrao | F125: [Lineas] | G125: 1852 | H125: 1835 | I125: 1871 | J125: 1917 | K125: 1979 | L125: 1985 | M125: 1991 | N125: 1992 | O125: 2021 | P125: 1890 | Q125: 1824 | R125: 1840 | S125: 1891 | T125: 1871 | U125: 1672 | V125: 1650 | W125: 1567 | X125: 1523 | Y125: 1486 | Z125: 1457 | AA125: 1421 | AB125: 1394 | AC125: 1242 | AD125: 1379 | AE125: 1272 | AF125: 1240 | AG125: 1208 | AH125: 1187 | AI125: 1157 | AJ125: 1131 | AK125: 1118 | AL125: 1094 | AM125: 1069 | AN125: 1041 | AO125: 899 | AP125: 863 | AQ125: 804 | AR125: 737 | AS125: 704 | AT125: 681 | AU125: 745 | AV125: 796 | AW125: 840 | AX125: 844 | AY125: 800 | AZ125: 760 | BA125: 724 | BB125: 703 | BC125: 667 | BD125: 631 | BE125: 587 | BF125: 560 | BG125: 560 | BH125: =MAX(IFERROR(IF(BG125>0,IF(_xlfn.FORECAST.ETS(BH$10,OFFSET($BF125,0,0,1,-10),OFFSET($BF$10,0,0,1,-10),4)<0,0,_xlfn.FORECAST.ETS(BH$10,OFFSET($BF125,0,0,1,-10),OFFSET($BF$10,0,0,1,-10),4)),0),BG125),0) -> 560 | BI125: 560 | BJ125: 560 | BK125: 560 | BL125: 560 | BM125: 560 | BN125: 560 | BO125: 560 | BP125: 560 | BQ125: 560 | BR125: 560 | BT125: 115 | BU125: 5847 | BV125: Antioquia | BW125: Urrao | BX125: [Lineas] | BY125: 681 | BZ125: 844 | CA125: 703 | CB125: 560 | CC125: 560 | CD125: 560 | CE125: 560
B126: 116 | C126: 5854 | D126: Antioquia | E126: Valdivia | F126: [Lineas] | G126: 343 | H126: 338 | I126: 367 | J126: 371 | K126: 415 | L126: 418 | M126: 417 | N126: 400 | O126: 393 | P126: 385 | Q126: 371 | R126: 376 | S126: 385 | T126: 367 | U126: 323 | V126: 312 | W126: 293 | X126: 284 | Y126: 276 | Z126: 272 | AA126: 273 | AB126: 252 | AC126: 236 | AD126: 262 | AE126: 264 | AF126: 262 | AG126: 263 | AH126: 256 | AI126: 258 | AJ126: 253 | AK126: 254 | AL126: 224 | AM126: 210 | AN126: 198 | AO126: 173 | AP126: 161 | AQ126: 151 | AR126: 143 | AS126: 137 | AT126: 132 | AU126: 137 | AV126: 149 | AW126: 158 | AX126: 152 | AY126: 137 | AZ126: 115 | BA126: 90 | BB126: 84 | BC126: 72 | BD126: 63 | BE126: 53 | BF126: 49 | BG126: 49 | BH126: 49 | BI126: 49 | BJ126: 49 | BK126: 49 | BL126: 49 | BM126: 49 | BN126: 49 | BO126: 49 | BP126: 49 | BQ126: 49 | BR126: 49 | BT126: 116 | BU126: 5854 | BV126: Antioquia | BW126: Valdivia | BX126: [Lineas] | BY126: 132 | BZ126: 152 | CA126: 84 | CB126: 49 | CC126: 49 | CD126: 49 | CE126: 49
B127: 117 | C127: 5856 | D127: Antioquia | E127: Valparaíso | F127: [Lineas] | G127: 630 | H127: 627 | I127: 614 | J127: 614 | K127: 655 | L127: 638 | M127: 630 | N127: 613 | O127: 601 | P127: 593 | Q127: 581 | R127: 578 | S127: 569 | T127: 558 | U127: 469 | V127: 460 | W127: 435 | X127: 421 | Y127: 419 | Z127: 411 | AA127: 403 | AB127: 379 | AC127: 342 | AD127: 377 | AE127: 367 | AF127: 362 | AG127: 354 | AH127: 354 | AI127: 348 | AJ127: 339 | AK127: 339 | AL127: 330 | AM127: 318 | AN127: 315 | AO127: 281 | AP127: 270 | AQ127: 264 | AR127: 252 | AS127: 244 | AT127: 234 | AU127: 231 | AV127: 157 | AW127: 268 | AX127: 276 | AY127: 280 | AZ127: 276 | BA127: 269 | BB127: 268 | BC127: 249 | BD127: 223 | BE127: 196 | BF127: 172 | BG127: 172 | BH127: 172 | BI127: 172 | BJ127: 172 | BK127: 172 | BL127: 172 | BM127: 172 | BN127: 172 | BO127: 172 | BP127: 172 | BQ127: 172 | BR127: 172 | BT127: 117 | BU127: 5856 | BV127: Antioquia | BW127: Valparaíso | BX127: [Lineas] | BY127: 234 | BZ127: 276 | CA127: 268 | CB127: 172 | CC127: 172 | CD127: 172 | CE127: 172
B128: 118 | C128: 5858 | D128: Antioquia | E128: Vegachí | F128: [Lineas] | G128: 732 | H128: 728 | I128: 766 | J128: 783 | K128: 849 | L128: 839 | M128: 833 | N128: 819 | O128: 807 | P128: 816 | Q128: 784 | R128: 804 | S128: 831 | T128: 801 | U128: 666 | V128: 652 | W128: 604 | X128: 588 | Y128: 583 | Z128: 570 | AA128: 543 | AB128: 526 | AC128: 479 | AD128: 563 | AE128: 571 | AF128: 556 | AG128: 526 | AH128: 480 | AI128: 441 | AJ128: 401 | AK128: 390 | AL128: 366 | AM128: 348 | AN128: 339 | AO128: 297 | AP128: 283 | AQ128: 278 | AR128: 258 | AS128: 245 | AT128: 239 | AU128: 265 | AV128: 313 | AW128: 334 | AX128: 353 | AY128: 348 | AZ128: 312 | BA128: 295 | BB128: 273 | BC128: 186 | BD128: 153 | BE128: 139 | BF128: 126 | BG128: 126 | BH128: 126 | BI128: 126 | BJ128: 126 | BK128: 126 | BL128: 126 | BM128: 126 | BN128: 126 | BO128: 126 | BP128: 126 | BQ128: 126 | BR128: 126 | BT128: 118 | BU128: 5858 | BV128: Antioquia | BW128: Vegachí | BX128: [Lineas] | BY128: 239 | BZ128: 353 | CA128: 273 | CB128: 126 | CC128: 126 | CD128: 126 | CE128: 126
B129: 119 | C129: 5861 | D129: Antioquia | E129: Venecia | F129: [Lineas] | G129: 1468 | H129: 1449 | I129: 1451 | J129: 1481 | K129: 1579 | L129: 1569 | M129: 1520 | N129: 1510 | O129: 1485 | P129: 1425 | Q129: 1428 | R129: 1418 | S129: 1417 | T129: 1392 | U129: 1171 | V129: 1155 | W129: 1123 | X129: 1111 | Y129: 1105 | Z129: 1082 | AA129: 1101 | AB129: 1100 | AC129: 963 | AD129: 1183 | AE129: 1171 | AF129: 1170 | AG129: 1139 | AH129: 1138 | AI129: 1125 | AJ129: 1090 | AK129: 1072 | AL129: 1047 | AM129: 1033 | AN129: 1021 | AO129: 942 | AP129: 907 | AQ129: 857 | AR129: 810 | AS129: 763 | AT129: 737 | AU129: 507 | AV129: 762 | AW129: 780 | AX129: 775 | AY129: 751 | AZ129: 706 | BA129: 667 | BB129: 636 | BC129: 440 | BD129: 344 | BE129: 302 | BF129: 272 | BG129: 272 | BH129: 272 | BI129: 272 | BJ129: 272 | BK129: 272 | BL129: 272 | BM129: 272 | BN129: 272 | BO129: 272 | BP129: 272 | BQ129: 272 | BR129: 272 | BT129: 119 | BU129: 5861 | BV129: Antioquia | BW129: Venecia | BX129: [Lineas] | BY129: 737 | BZ129: 775 | CA129: 636 | CB129: 272 | CC129: 272 | CD129: 272 | CE129: 272
B130: 120 | C130: 5873 | D130: Antioquia | E130: Vigía del Fuerte | F130: [Lineas] | G130: 78 | H130: 76 | I130: 75 | J130: 73 | K130: 77 | L130: 77 | M130: 76 | N130: 77 | O130: 81 | P130: 78 | Q130: 77 | R130: 76 | S130: 75 | T130: 74 | U130: 70 | V130: 71 | W130: 67 | X130: 60 | Y130: 62 | Z130: 62 | AA130: 61 | AB130: 51 | AC130: 34 | AD130: 47 | AE130: 42 | AF130: 84 | AG130: 68 | AH130: 60 | AI130: 101 | AJ130: 89 | AK130: 80 | AL130: 65 | AM130: 68 | AN130: 74 | AO130: 67 | AP130: 63 | AQ130: 63 | AR130: 60 | AS130: 49 | AT130: 44 | AU130: 83 | AV130: 104 | AW130: 105 | AX130: 106 | AY130: 118 | AZ130: 92 | BA130: 77 | BB130: 67 | BC130: 56 | BD130: 50 | BE130: 46 | BF130: 45 | BG130: 45 | BH130: 45 | BI130: 45 | BJ130: 45 | BK130: 45 | BL130: 45 | BM130: 45 | BN130: 45 | BO130: 45 | BP130: 45 | BQ130: 45 | BR130: 45 | BT130: 120 | BU130: 5873 | BV130: Antioquia | BW130: Vigía del Fuerte | BX130: [Lineas] | BY130: 44 | BZ130: 106 | CA130: 67 | CB130: 45 | CC130: 45 | CD130: 45 | CE130: 45
B131: 121 | C131: 5885 | D131: Antioquia | E131: Yalí | F131: [Lineas] | G131: 422 | H131: 422 | I131: 422 | J131: 426 | K131: 441 | L131: 435 | M131: 437 | N131: 436 | O131: 427 | P131: 422 | Q131: 403 | R131: 405 | S131: 407 | T131: 396 | U131: 348 | V131: 331 | W131: 307 | X131: 293 | Y131: 289 | Z131: 274 | AA131: 260 | AB131: 249 | AC131: 221 | AD131: 239 | AE131: 206 | AF131: 204 | AG131: 194 | AH131: 191 | AI131: 188 | AJ131: 181 | AK131: 174 | AL131: 162 | AM131: 157 | AN131: 155 | AO131: 137 | AP131: 127 | AQ131: 123 | AR131: 118 | AS131: 113 | AT131: 109 | AU131: 97 | AV131: 128 | AW131: 127 | AX131: 132 | AY131: 125 | AZ131: 107 | BA131: 105 | BB131: 96 | BC131: 90 | BD131: 85 | BE131: 79 | BF131: 76 | BG131: 76 | BH131: 76 | BI131: 76 | BJ131: 76 | BK131: 76 | BL131: 76 | BM131: 76 | BN131: 76 | BO131: 76 | BP131: 76 | BQ131: 76 | BR131: 76 | BT131: 121 | BU131: 5885 | BV131: Antioquia | BW131: Yalí | BX131: [Lineas] | BY131: 109 | BZ131: 132 | CA131: 96 | CB131: 76 | CC131: 76 | CD131: 76 | CE131: 76
B132: 122 | C132: 5887 | D132: Antioquia | E132: Yarumal | F132: [Lineas] | G132: 4280 | H132: 4207 | I132: 4202 | J132: 4202 | K132: 4451 | L132: 4440 | M132: 4435 | N132: 4389 | O132: 4361 | P132: 4301 | Q132: 4304 | R132: 4311 | S132: 4315 | T132: 4285 | U132: 4024 | V132: 3946 | W132: 3820 | X132: 3710 | Y132: 3677 | Z132: 3591 | AA132: 3518 | AB132: 3461 | AC132: 3177 | AD132: 3436 | AE132: 3340 | AF132: 3290 | AG132: 3196 | AH132: 3112 | AI132: 3000 | AJ132: 2911 | AK132: 2867 | AL132: 2739 | AM132: 2472 | AN132: 2297 | AO132: 1991 | AP132: 1808 | AQ132: 1690 | AR132: 1595 | AS132: 1514 | AT132: 1456 | AU132: 1503 | AV132: 1631 | AW132: 1692 | AX132: 1712 | AY132: 1631 | AZ132: 1454 | BA132: 1322 | BB132: 1248 | BC132: 1148 | BD132: 868 | BE132: 799 | BF132: 837 | BG132: 837 | BH132: 837 | BI132: 837 | BJ132: 837 | BK132: 837 | BL132: 837 | BM132: 837 | BN132: 837 | BO132: 837 | BP132: 837 | BQ132: 837 | BR132: 837 | BT132: 122 | BU132: 5887 | BV132: Antioquia | BW132: Yarumal | BX132: [Lineas] | BY132: 1456 | BZ132: 1712 | CA132: 1248 | CB132: 837 | CC132: 837 | CD132: 837 | CE132: 837
B133: 123 | C133: 5890 | D133: Antioquia | E133: Yolombó | F133: [Lineas] | G133: 1141 | H133: 1140 | I133: 1146 | J133: 1172 | K133: 1242 | L133: 1240 | M133: 1239 | N133: 1240 | O133: 1241 | P133: 1236 | Q133: 1229 | R133: 1235 | S133: 1248 | T133: 1229 | U133: 1111 | V133: 1087 | W133: 1014 | X133: 993 | Y133: 984 | Z133: 966 | AA133: 955 | AB133: 950 | AC133: 861 | AD133: 938 | AE133: 878 | AF133: 870 | AG133: 844 | AH133: 814 | AI133: 791 | AJ133: 765 | AK133: 739 | AL133: 709 | AM133: 701 | AN133: 681 | AO133: 626 | AP133: 603 | AQ133: 581 | AR133: 553 | AS133: 519 | AT133: 501 | AU133: 488 | AV133: 527 | AW133: 580 | AX133: 607 | AY133: 590 | AZ133: 542 | BA133: 505 | BB133: 468 | BC133: 430 | BD133: 385 | BE133: 360 | BF133: 328 | BG133: 328 | BH133: 328 | BI133: 328 | BJ133: 328 | BK133: 328 | BL133: 328 | BM133: 328 | BN133: 328 | BO133: 328 | BP133: 328 | BQ133: 328 | BR133: 328 | BT133: 123 | BU133: 5890 | BV133: Antioquia | BW133: Yolombó | BX133: [Lineas] | BY133: 501 | BZ133: 607 | CA133: 468 | CB133: 328 | CC133: 328 | CD133: 328 | CE133: 328
B134: 124 | C134: 5893 | D134: Antioquia | E134: Yondó | F134: [Lineas] | G134: 515 | H134: 509 | I134: 515 | J134: 519 | K134: 554 | L134: 563 | M134: 563 | N134: 558 | O134: 556 | P134: 565 | Q134: 599 | R134: 625 | S134: 655 | T134: 623 | U134: 452 | V134: 401 | W134: 328 | X134: 302 | Y134: 275 | Z134: 254 | AA134: 237 | AB134: 225 | AC134: 198 | AD134: 229 | AE134: 201 | AF134: 193 | AG134: 187 | AH134: 186 | AI134: 187 | AJ134: 186 | AK134: 185 | AL134: 171 | AM134: 163 | AN134: 154 | AO134: 149 | AP134: 138 | AQ134: 133 | AR134: 124 | AS134: 116 | AT134: 114 | AU134: 110 | AV134: 140 | AW134: 153 | AX134: 178 | AY134: 197 | AZ134: 202 | BA134: 207 | BB134: 206 | BC134: 227 | BD134: 203 | BE134: 173 | BF134: 153 | BG134: 153 | BH134: 153 | BI134: 153 | BJ134: 153 | BK134: 153 | BL134: 153 | BM134: 153 | BN134: 153 | BO134: 153 | BP134: 153 | BQ134: 153 | BR134: 153 | BT134: 124 | BU134: 5893 | BV134: Antioquia | BW134: Yondó | BX134: [Lineas] | BY134: 114 | BZ134: 178 | CA134: 206 | CB134: 153 | CC134: 153 | CD134: 153 | CE134: 153
B135: 125 | C135: 5895 | D135: Antioquia | E135: Zaragoza | F135: [Lineas] | G135: 1085 | H135: 1062 | I135: 1087 | J135: 1101 | K135: 1144 | L135: 1148 | M135: 1143 | N135: 1147 | O135: 1148 | P135: 1156 | Q135: 1029 | R135: 1033 | S135: 1019 | T135: 978 | U135: 770 | V135: 746 | W135: 721 | X135: 689 | Y135: 676 | Z135: 626 | AA135: 614 | AB135: 662 | AC135: 633 | AD135: 690 | AE135: 677 | AF135: 673 | AG135: 631 | AH135: 613 | AI135: 579 | AJ135: 557 | AK135: 531 | AL135: 503 | AM135: 488 | AN135: 471 | AO135: 417 | AP135: 393 | AQ135: 381 | AR135: 366 | AS135: 355 | AT135: 343 | AU135: 394 | AV135: 480 | AW135: 571 | AX135: 661 | AY135: 724 | AZ135: 754 | BA135: 759 | BB135: 730 | BC135: 685 | BD135: 604 | BE135: 513 | BF135: 447 | BG135: 447 | BH135: 447 | BI135: 447 | BJ135: 447 | BK135: 447 | BL135: 447 | BM135: 447 | BN135: 447 | BO135: 447 | BP135: 447 | BQ135: 447 | BR135: 447 | BT135: 125 | BU135: 5895 | BV135: Antioquia | BW135: Zaragoza | BX135: [Lineas] | BY135: 343 | BZ135: 661 | CA135: 730 | CB135: 447 | CC135: 447 | CD135: 447 | CE135: 447
B136: 126 | C136: 8001 | D136: Atlántico | E136: Barranquilla | F136: [Lineas] | G136: 196345 | H136: 197515 | I136: 199649 | J136: 199283 | K136: 202584 | L136: 118044 | M136: 211003 | N136: 215667 | O136: 219770 | P136: 222309 | Q136: 225592 | R136: 226727 | S136: 229458 | T136: 231449 | U136: 234597 | V136: 232981 | W136: 234383 | X136: 239416 | Y136: 238531 | Z136: 239257 | AA136: 240555 | AB136: 236783 | AC136: 239309 | AD136: 239908 | AE136: 242081 | AF136: 229855 | AG136: 232082 | AH136: 231941 | AI136: 233714 | AJ136: 233145 | AK136: 234787 | AL136: 237965 | AM136: 241056 | AN136: 242470 | AO136: 242134 | AP136: 243876 | AQ136: 247839 | AR136: 250808 | AS136: 253324 | AT136: 262987 | AU136: 258926 | AV136: 260596 | AW136: 263571 | AX136: 266627 | AY136: 266783 | AZ136: 267703 | BA136: 264912 | BB136: 257252 | BC136: 256503 | BD136: 253297 | BE136: 247433 | BF136: 227576 | BG136: 227576 | BH136: 227576 | BI136: 227576 | BJ136: 227576 | BK136: 227576 | BL136: 227576 | BM136: 227576 | BN136: 227576 | BO136: 227576 | BP136: 227576 | BQ136: 227576 | BR136: 227576 | BT136: 126 | BU136: 8001 | BV136: Atlántico | BW136: Barranquilla | BX136: [Lineas] | BY136: 262987 | BZ136: 266627 | CA136: 257252 | CB136: 227576 | CC136: 227576 | CD136: 227576 | CE136: 227576
B137: 127 | C137: 8078 | D137: Atlántico | E137: Baranoa | F137: [Lineas] | G137: 1489 | H137: 1435 | I137: 1406 | J137: 1406 | K137: 1599 | L137: 1574 | M137: 1484 | N137: 1782 | O137: 1780 | P137: 1705 | Q137: 1637 | R137: 1559 | S137: 1471 | T137: 1649 | U137: 1650 | V137: 1602 | W137: 1637 | X137: 1846 | Y137: 1812 | Z137: 1685 | AA137: 1707 | AB137: 1757 | AC137: 1715 | AD137: 1679 | AE137: 1647 | AF137: 1617 | AG137: 1551 | AH137: 1512 | AI137: 1449 | AJ137: 1387 | AK137: 1310 | AL137: 1265 | AM137: 1226 | AN137: 1442 | AO137: 1399 | AP137: 1437 | AQ137: 1575 | AR137: 1527 | AS137: 1494 | AT137: 1408 | AU137: 1263 | AV137: 1156 | AW137: 1065 | AX137: 987 | AY137: 926 | AZ137: 865 | BA137: 794 | BB137: 710 | BC137: 641 | BD137: 547 | BE137: 440 | BF137: 365 | BG137: 365 | BH137: 365 | BI137: 365 | BJ137: 365 | BK137: 365 | BL137: 365 | BM137: 365 | BN137: 365 | BO137: 365 | BP137: 365 | BQ137: 365 | BR137: 365 | BT137: 127 | BU137: 8078 | BV137: Atlántico | BW137: Baranoa | BX137: [Lineas] | BY137: 1408 | BZ137: 987 | CA137: 710 | CB137: 365 | CC137: 365 | CD137: 365 | CE137: 365
B138: 128 | C138: 8137 | D138: Atlántico | E138: Campo de La Cruz | F138: [Lineas] | G138: 137 | H138: 123 | I138: 107 | J138: 98 | K138: 93 | L138: 47 | M138: 48 | N138: 47 | O138: 48 | P138: 41 | Q138: 37 | R138: 33 | S138: 28 | T138: 26 | U138: 25 | V138: 23 | W138: 23 | X138: 23 | Y138: 21 | Z138: 21 | AA138: 21 | AB138: 18 | AC138: 18 | AD138: 18 | AE138: 17 | AF138: 17 | AV138: 1 | AW138: 1 | BF138: 0 | BG138: 0 | BH138: 0 | BI138: 0 | BJ138: 0 | BK138: 0 | BL138: 0 | BM138: 0 | BN138: 0 | BO138: 0 | BP138: 0 | BQ138: 0 | BR138: 0 | BT138: 128 | BU138: 8137 | BV138: Atlántico | BW138: Campo de La Cruz | BX138: [Lineas] | BY138: 0 | BZ138: 0 | CA138: 0 | CB138: 0 | CC138: 0 | CD138: 0 | CE138: 0
B139: 129 | C139: 8141 | D139: Atlántico | E139: Candelaria | F139: [Lineas] | G139: 37 | H139: 31 | I139: 27 | J139: 23 | K139: 22 | L139: 14 | M139: 14 | N139: 14 | O139: 14 | P139: 13 | Q139: 11 | R139: 10 | S139: 7 | T139: 7 | U139: 9 | V139: 7 | W139: 7 | X139: 7 | Y139: 8 | Z139: 7 | AA139: 7 | AB139: 6 | AC139: 6 | AD139: 6 | AE139: 7 | AF139: 7 | AU139: 2 | BF139: 0 | BG139: 0 | BH139: 0 | BI139: 0 | BJ139: 0 | BK139: 0 | BL139: 0 | BM139: 0 | BN139: 0 | BO139: 0 | BP139: 0 | BQ139: 0 | BR139: 0 | BT139: 129 | BU139: 8141 | BV139: Atlántico | BW139: Candelaria | BX139: [Lineas] | BY139: 0 | BZ139: 0 | CA139: 0 | CB139: 0 | CC139: 0 | CD139: 0 | CE139: 0
B140: 130 | C140: 8296 | D140: Atlántico | E140: Galapa | F140: [Lineas] | G140: 1436 | H140: 1446 | I140: 1478 | J140: 1497 | K140: 1590 | L140: 1196 | M140: 1706 | N140: 1774 | O140: 1768 | P140: 1697 | Q140: 1922 | R140: 1926 | S140: 1893 | T140: 2317 | U140: 2461 | V140: 2562 | W140: 2667 | X140: 2785 | Y140: 2766 | Z140: 2628 | AA140: 2587 | AB140: 2595 | AC140: 2689 | AD140: 3045 | AE140: 3205 | AF140: 3090 | AG140: 3280 | AH140: 3560 | AI140: 3709 | AJ140: 3914 | AK140: 3941 | AL140: 4111 | AM140: 4187 | AN140: 4356 | AO140: 4193 | AP140: 4440 | AQ140: 4677 | AR140: 4753 | AS140: 4850 | AT140: 4772 | AU140: 4714 | AV140: 4580 | AW140: 4528 | AX140: 4949 | AY140: 4991 | AZ140: 5109 | BA140: 4621 | BB140: 3928 | BC140: 3853 | BD140: 3574 | BE140: 3085 | BF140: 2755 | BG140: =MAX(IFERROR(IF(BF140>0,IF(_xlfn.FORECAST.ETS(BG$10,OFFSET($BF140,0,0,1,-10),OFFSET($BF$10,0,0,1,-10),4)<0,0,_xlfn.FORECAST.ETS(BG$10,OFFSET($BF140,0,0,1,-10),OFFSET($BF$10,0,0,1,-10),4)),0),BF140),0) -> 2755 | BH140: 2755 | BI140: 2755 | BJ140: 2755 | BK140: 2755 | BL140: 2755 | BM140: 2755 | BN140: 2755 | BO140: 2755 | BP140: 2755 | BQ140: 2755 | BR140: 2755 | BT140: 130 | BU140: 8296 | BV140: Atlántico | BW140: Galapa | BX140: [Lineas] | BY140: =AT140 -> 4772 | BZ140: =AX140 -> 4949 | CA140: =BB140 -> 3928 | CB140: =BF140 -> 2755 | CC140: =BJ140 -> 2755 | CD140: =BN140 -> 2755 | CE140: =BR140 -> 2755
B141: 131 | C141: 8372 | D141: Atlántico | E141: Juan de Acosta | F141: [Lineas] | G141: 160 | H141: 156 | I141: 149 | J141: 141 | K141: 136 | L141: 95 | M141: 91 | N141: 87 | O141: 79 | P141: 74 | Q141: 72 | R141: 65 | S141: 56 | T141: 53 | U141: 53 | V141: 50 | W141: 48 | X141: 46 | Y141: 43 | Z141: 56 | AA141: 54 | AB141: 52 | AC141: 52 | AD141: 51 | AE141: 49 | AF141: 46 | AG141: 43 | AH141: 62 | AI141: 58 | AJ141: 57 | AK141: 34 | AL141: 32 | AM141: 30 | AN141: 34 | AO141: 40 | AP141: 41 | AQ141: 39 | AR141: 36 | AS141: 36 | AT141: 35 | AU141: 15 | AV141: 14 | AW141: 13 | AX141: 14 | AY141: 13 | AZ141: 13 | BA141: 13 | BB141: 13 | BC141: 15 | BD141: 15 | BE141: 12 | BF141: 12 | BG141: 12 | BH141: 12 | BI141: 12 | BJ141: 12 | BK141: 12 | BL141: 12 | BM141: 12 | BN141: 12 | BO141: 12 | BP141: 12 | BQ141: 12 | BR141: 12 | BT141: 131 | BU141: 8372 | BV141: Atlántico | BW141: Juan de Acosta | BX141: [Lineas] | BY141: 35 | BZ141: 14 | CA141: 13 | CB141: 12 | CC141: 12 | CD141: 12 | CE141: 12
B142: 132 | C142: 8421 | D142: Atlántico | E142: Luruaco | F142: [Lineas] | G142: 149 | H142: 144 | I142: 135 | J142: 128 | K142: 120 | L142: 100 | M142: 97 | N142: 94 | O142: 91 | P142: 88 | Q142: 87 | R142: 81 | S142: 69 | T142: 68 | U142: 72 | V142: 68 | W142: 64 | X142: 57 | Y142: 56 | Z142: 48 | AA142: 44 | AB142: 41 | AC142: 41 | AD142: 39 | AE142: 45 | AF142: 45 | AG142: 40 | AH142: 38 | AI142: 36 | AJ142: 32 | AK142: 31 | AL142: 27 | AM142: 25 | AN142: 29 | AO142: 25 | AP142: 24 | AQ142: 18 | AR142: 18 | AS142: 16 | AT142: 14 | AU142: 10 | AV142: 9 | AW142: 5 | AX142: 5 | AY142: 5 | AZ142: 5 | BA142: 3 | BB142: 3 | BC142: 1 | BE142: 1 | BF142: 0 | BG142: 0 | BH142: 0 | BI142: 0 | BJ142: 0 | BK142: 0 | BL142: 0 | BM142: 0 | BN142: 0 | BO142: 0 | BP142: 0 | BQ142: 0 | BR142: 0 | BT142: 132 | BU142: 8421 | BV142: Atlántico | BW142: Luruaco | BX142: [Lineas] | BY142: 14 | BZ142: 5 | CA142: 3 | CB142: 0 | CC142: 0 | CD142: 0 | CE142: 0
B143: 133 | C143: 8433 | D143: Atlántico | E143: Malambo | F143: [Lineas] | G143: 8800 | H143: 8899 | I143: 9181 | J143: 9648 | K143: 9778 | L143: 118 | M143: 10026 | N143: 10325 | O143: 10379 | P143: 10409 | Q143: 10444 | R143: 10311 | S143: 10552 | T143: 10612 | U143: 10929 | V143: 11043 | W143: 11086 | X143: 11213 | Y143: 11246 | Z143: 11101 | AA143: 11056 | AB143: 11142 | AC143: 11006 | AD143: 11353 | AE143: 11473 | AF143: 9165 | AG143: 9575 | AH143: 10180 | AI143: 10372 | AJ143: 10339 | AK143: 10438 | AL143: 10437 | AM143: 10466 | AN143: 10891 | AO143: 10868 | AP143: 11183 | AQ143: 11559 | AR143: 11711 | AS143: 11684 | AT143: 11605 | AU143: 11204 | AV143: 11076 | AW143: 10922 | AX143: 11087 | AY143: 11188 | AZ143: 11016 | BA143: 10316 | BB143: 9358 | BC143: 9317 | BD143: 9237 | BE143: 8648 | BF143: 7786 | BG143: 7786 | BH143: 7786 | BI143: 7786 | BJ143: 7786 | BK143: 7786 | BL143: 7786 | BM143: 7786 | BN143: 7786 | BO143: 7786 | BP143: 7786 | BQ143: 7786 | BR143: 7786 | BT143: 133 | BU143: 8433 | BV143: Atlántico | BW143: Malambo | BX143: [Lineas] | BY143: 11605 | BZ143: 11087 | CA143: 9358 | CB143: 7786 | CC143: 7786 | CD143: 7786 | CE143: 7786
B144: 134 | C144: 8436 | D144: Atlántico | E144: Manatí | F144: [Lineas] | G144: 60 | H144: 57 | I144: 56 | J144: 56 | K144: 50 | L144: 49 | M144: 49 | N144: 45 | O144: 44 | P144: 43 | Q144: 42 | R144: 39 | S144: 38 | T144: 37 | U144: 40 | V144: 35 | W144: 34 | X144: 34 | Y144: 33 | Z144: 32 | AA144: 31 | AB144: 30 | AC144: 29 | AD144: 29 | AE144: 29 | AF144: 30 | AG144: 2 | AH144: 1 | AI144: 1 | AJ144: 1 | AK144: 1 | AL144: 1 | AM144: 1 | AN144: 1 | AO144: 1 | AP144: 1 | BF144: 0 | BG144: 0 | BH144: 0 | BI144: 0 | BJ144: 0 | BK144: 0 | BL144: 0 | BM144: 0 | BN144: 0 | BO144: 0 | BP144: 0 | BQ144: 0 | BR144: 0 | BT144: 134 | BU144: 8436 | BV144: Atlántico | BW144: Manatí | BX144: [Lineas] | BY144: 0 | BZ144: 0 | CA144: 0 | CB144: 0 | CC144: 0 | CD144: 0 | CE144: 0
B145: 135 | C145: 8520 | D145: Atlántico | E145: Palmar de Varela | F145: [Lineas] | G145: 287 | H145: 288 | I145: 281 | J145: 273 | K145: 267 | L145: 246 | M145: 239 | N145: 239 | O145: 237 | P145: 228 | Q145: 221 | R145: 215 | S145: 201 | T145: 201 | U145: 198 | V145: 186 | W145: 184 | X145: 177 | Y145: 172 | Z145: 167 | AA145: 166 | AB145: 162 | AC145: 154 | AD145: 151 | AE145: 153 | AF145: 151 | AG145: 140 | AH145: 139 | AI145: 135 | AJ145: 132 | AK145: 72 | AL145: 67 | AM145: 56 | AN145: 54 | AO145: 50 | AP145: 49 | AQ145: 47 | AR145: 45 | AS145: 43 | AT145: 40 | AU145: 36 | AV145: 32 | AW145: 29 | AX145: 28 | AY145: 24 | AZ145: 15 | BA145: 12 | BB145: 7 | BC145: 5 | BD145: 2 | BE145: 1 | BF145: 1 | BG145: 1 | BH145: 1 | BI145: 1 | BJ145: 1 | BK145: 1 | BL145: 1 | BM145: 1 | BN145: 1 | BO145: 1 | BP145: 1 | BQ145: 1 | BR145: 1 | BT145: 135 | BU145: 8520 | BV145: Atlántico | BW145: Palmar de Varela | BX145: [Lineas] | BY145: 40 | BZ145: 28 | CA145: 7 | CB145: 1 | CC145: 1 | CD145: 1 | CE145: 1
B146: 136 | C146: 8549 | D146: Atlántico | E146: Piojó | F146: [Lineas] | G146: 90 | H146: 89 | I146: 83 | J146: 80 | K146: 72 | L146: 6 | M146: 4 | N146: 4 | O146: 2 | P146: 2 | Q146: 2 | R146: 2 | S146: 1 | T146: 1 | U146: 1 | V146: 1 | W146: 1 | X146: 1 | Y146: 1 | Z146: 1 | AA146: 1 | AB146: 1 | AC146: 1 | AD146: 1 | AE146: 1 | AF146: 1 | BF146: 0 | BG146: 0 | BH146: 0 | BI146: 0 | BJ146: 0 | BK146: 0 | BL146: 0 | BM146: 0 | BN146: 0 | BO146: 0 | BP146: 0 | BQ146: 0 | BR146: 0 | BT146: 136 | BU146: 8549 | BV146: Atlántico | BW146: Piojó | BX146: [Lineas] | BY146: 0 | BZ146: 0 | CA146: 0 | CB146: 0 | CC146: 0 | CD146: 0 | CE146: 0
B147: 137 | C147: 8558 | D147: Atlántico | E147: Polonuevo | F147: [Lineas] | G147: 138 | H147: 134 | I147: 127 | J147: 122 | K147: 111 | L147: 86 | M147: 84 | N147: 84 | O147: 83 | P147: 75 | Q147: 74 | R147: 73 | S147: 67 | T147: 66 | U147: 67 | V147: 63 | W147: 61 | X147: 58 | Y147: 59 | Z147: 52 | AA147: 47 | AB147: 43 | AC147: 41 | AD147: 45 | AE147: 41 | AF147: 44 | AG147: 39 | AH147: 39 | AI147: 37 | AJ147: 37 | AK147: 35 | AL147: 2 | AM147: 2 | AN147: 2 | AO147: 2 | AP147: 2 | BF147: 0 | BG147: 0 | BH147: 0 | BI147: 0 | BJ147: 0 | BK147: 0 | BL147: 0 | BM147: 0 | BN147: 0 | BO147: 0 | BP147: 0 | BQ147: 0 | BR147: 0 | BT147: 137 | BU147: 8558 | BV147: Atlántico | BW147: Polonuevo | BX147: [Lineas] | BY147: 0 | BZ147: 0 | CA147: 0 | CB147: 0 | CC147: 0 | CD147: 0 | CE147: 0
B148: 138 | C148: 8560 | D148: Atlántico | E148: Ponedera | F148: [Lineas] | G148: 165 | H148: 157 | I148: 142 | J148: 137 | K148: 126 | L148: 49 | M148: 49 | N148: 46 | O148: 43 | P148: 38 | Q148: 39 | R148: 39 | S148: 33 | T148: 33 | U148: 35 | V148: 32 | W148: 31 | X148: 30 | Y148: 30 | Z148: 25 | AA148: 23 | AB148: 18 | AC148: 18 | AD148: 16 | AE148: 19 | AF148: 18 | AG148: 15 | AH148: 15 | AI148: 15 | AJ148: 14 | AU148: 2 | AV148: 1 | AW148: 1 | AX148: 2 | AY148: 1 | BA148: 1 | BF148: 0 | BG148: 0 | BH148: 0 | BI148: 0 | BJ148: 0 | BK148: 0 | BL148: 0 | BM148: 0 | BN148: 0 | BO148: 0 | BP148: 0 | BQ148: 0 | BR148: 0 | BT148: 138 | BU148: 8560 | BV148: Atlántico | BW148: Ponedera | BX148: [Lineas] | BY148: 0 | BZ148: 2 | CA148: 0 | CB148: 0 | CC148: 0 | CD148: 0 | CE148: 0
B149: 139 | C149: 8573 | D149: Atlántico | E149: Puerto Colombia | F149: [Lineas] | G149: 2920 | H149: 2796 | I149: 2746 | J149: 2803 | K149: 2776 | L149: 2857 | M149: 2904 | N149: 2984 | O149: 3059 | P149: 2912 | Q149: 3270 | R149: 3440 | S149: 3492 | T149: 3626 | U149: 3827 | V149: 3930 | W149: 3869 | X149: 3787 | Y149: 3826 | Z149: 3936 | AA149: 4394 | AB149: 4980 | AC149: 5110 | AD149: 5101 | AE149: 5133 | AF149: 5249 | AG149: 5215 | AH149: 5209 | AI149: 5198 | AJ149: 5256 | AK149: 5262 | AL149: 5260 | AM149: 5255 | AN149: 5461 | AO149: 5492 | AP149: 5637 | AQ149: 5708 | AR149: 5719 | AS149: 5752 | AT149: 5906 | AU149: 5839 | AV149: 5904 | AW149: 5860 | AX149: 6012 | AY149: 6132 | AZ149: 6300 | BA149: 6127 | BB149: 6259 | BC149: 6965 | BD149: 7131 | BE149: 7132 | BF149: 6900 | BG149: 6900 | BH149: 6900 | BI149: 6900 | BJ149: 6900 | BK149: 6900 | BL149: 6900 | BM149: 6900 | BN149: 6900 | BO149: 6900 | BP149: 6900 | BQ149: 6900 | BR149: 6900 | BT149: 139 | BU149: 8573 | BV149: Atlántico | BW149: Puerto Colombia | BX149: [Lineas] | BY149: 5906 | BZ149: 6012 | CA149: 6259 | CB149: 6900 | CC149: 6900 | CD149: 6900 | CE149: 6900
B150: 140 | C150: 8606 | D150: Atlántico | E150: Repelón | F150: [Lineas] | G150: 103 | H150: 98 | I150: 92 | J150: 89 | K150: 85 | L150: 63 | M150: 58 | N150: 54 | O150: 52 | P150: 47 | Q150: 48 | R150: 48 | S150: 43 | T150: 43 | U150: 43 | V150: 42 | W150: 41 | X150: 39 | Y150: 37 | Z150: 36 | AA150: 33 | AB150: 30 | AC150: 26 | AD150: 23 | AE150: 25 | AF150: 25 | AG150: 19 | AH150: 18 | AI150: 17 | AJ150: 16 | AK150: 15 | AL150: 15 | AM150: 14 | AN150: 13 | AO150: 12 | AP150: 6 | AQ150: 5 | AR150: 4 | AS150: 4 | AT150: 4 | AU150: 3 | AV150: 3 | AX150: 1 | AY150: 1 | AZ150: 1 | BA150: 1 | BB150: 1 | BC150: 1 | BF150: 0 | BG150: 0 | BH150: 0 | BI150: 0 | BJ150: 0 | BK150: 0 | BL150: 0 | BM150: 0 | BN150: 0 | BO150: 0 | BP150: 0 | BQ150: 0 | BR150: 0 | BT150: 140 | BU150: 8606 | BV150: Atlántico | BW150: Repelón | BX150: [Lineas] | BY150: 4 | BZ150: 1 | CA150: 1 | CB150: 0 | CC150: 0 | CD150: 0 | CE150: 0
B151: 141 | C151: 8634 | D151: Atlántico | E151: Sabanagrande | F151: [Lineas] | G151: 439 | H151: 442 | I151: 426 | J151: 413 | K151: 403 | L151: 398 | M151: 385 | N151: 378 | O151: 372 | P151: 364 | Q151: 361 | R151: 351 | S151: 335 | T151: 331 | U151: 327 | V151: 315 | W151: 309 | X151: 301 | Y151: 296 | Z151: 284 | AA151: 273 | AB151: 257 | AC151: 251 | AD151: 249 | AE151: 250 | AF151: 240 | AG151: 226 | AH151: 225 | AI151: 215 | AJ151: 210 | AK151: 199 | AL151: 190 | AM151: 181 | AN151: 179 | AO151: 171 | AP151: 162 | AQ151: 153 | AR151: 139 | AS151: 120 | AT151: 106 | AU151: 67 | AV151: 47 | AW151: 38 | AX151: 36 | AY151: 33 | AZ151: 29 | BA151: 24 | BB151: 11 | BC151: 6 | BD151: 3 | BE151: 2 | BF151: 2 | BG151: 2 | BH151: 2 | BI151: 2 | BJ151: 2 | BK151: 2 | BL151: 2 | BM151: 2 | BN151: 2 | BO151: 2 | BP151: 2 | BQ151: 2 | BR151: 2 | BT151: 141 | BU151: 8634 | BV151: Atlántico | BW151: Sabanagrande | BX151: [Lineas] | BY151: 106 | BZ151: 36 | CA151: 11 | CB151: 2 | CC151: 2 | CD151: 2 | CE151: 2
B152: 142 | C152: 8638 | D152: Atlántico | E152: Sabanalarga | F152: [Lineas] | G152: 2301 | H152: 2390 | I152: 2355 | J152: 2308 | K152: 2395 | L152: 2310 | M152: 2433 | N152: 2387 | O152: 2313 | P152: 2137 | Q152: 2051 | R152: 1977 | S152: 1894 | T152: 2007 | U152: 2122 | V152: 2076 | W152: 2023 | X152: 2046 | Y152: 2238 | Z152: 2145 | AA152: 2094 | AB152: 2009 | AC152: 1953 | AD152: 1898 | AE152: 1852 | AF152: 1814 | AG152: 1714 | AH152: 1671 | AI152: 1615 | AJ152: 1550 | AK152: 1496 | AL152: 1466 | AM152: 1429 | AN152: 1546 | AO152: 1534 | AP152: 1641 | AQ152: 1583 | AR152: 1479 | AS152: 1398 | AT152: 1344 | AU152: 1198 | AV152: 1139 | AW152: 1007 | AX152: 941 | AY152: 889 | AZ152: 816 | BA152: 707 | BB152: 618 | BC152: 551 | BD152: 444 | BE152: 481 | BF152: 808 | BG152: 808 | BH152: 808 | BI152: 808 | BJ152: 808 | BK152: 808 | BL152: 808 | BM152: 808 | BN152: 808 | BO152: 808 | BP152: 808 | BQ152: 808 | BR152: 808 | BT152: 142 | BU152: 8638 | BV152: Atlántico | BW152: Sabanalarga | BX152: [Lineas] | BY152: 1344 | BZ152: 941 | CA152: 618 | CB152: 808 | CC152: 808 | CD152: 808 | CE152: 808
B153: 143 | C153: 8675 | D153: Atlántico | E153: Santa Lucía | F153: [Lineas] | G153: 2 | H153: 2 | I153: 2 | J153: 2 | K153: 2 | L153: 2 | M153: 2 | N153: 2 | O153: 2 | P153: 2 | Q153: 2 | R153: 2 | S153: 1 | T153: 1 | U153: 1 | V153: 1 | W153: 1 | X153: 1 | Y153: 1 | Z153: 1 | AA153: 1 | AB153: 1 | AC153: 1 | AD153: 1 | AE153: 1 | AF153: 1 | BA153: 1 | BF153: 0 | BG153: 0 | BH153: 0 | BI153: 0 | BJ153: 0 | BK153: 0 | BL153: 0 | BM153: 0 | BN153: 0 | BO153: 0 | BP153: 0 | BQ153: 0 | BR153: 0 | BT153: 143 | BU153: 8675 | BV153: Atlántico | BW153: Santa Lucía | BX153: [Lineas] | BY153: 0 | BZ153: 0 | CA153: 0 | CB153: 0 | CC153: 0 | CD153: 0 | CE153: 0
B154: 144 | C154: 8685 | D154: Atlántico | E154: Santo Tomás | F154: [Lineas] | G154: 1087 | H154: 1138 | I154: 1174 | J154: 1166 | K154: 1174 | L154: 1196 | M154: 1150 | N154: 1199 | O154: 1190 | P154: 1172 | Q154: 1151 | R154: 1135 | S154: 1138 | T154: 1158 | U154: 1166 | V154: 1163 | W154: 1167 | X154: 1174 | Y154: 1128 | Z154: 1069 | AA154: 1047 | AB154: 1058 | AC154: 1033 | AD154: 1015 | AE154: 1000 | AF154: 1091 | AG154: 1104 | AH154: 1129 | AI154: 1096 | AJ154: 1068 | AK154: 1042 | AL154: 1022 | AM154: 1044 | AN154: 1030 | AO154: 1013 | AP154: 963 | AQ154: 952 | AR154: 945 | AS154: 955 | AT154: 951 | AU154: 895 | AV154: 833 | AW154: 778 | AX154: 740 | AY154: 712 | AZ154: 682 | BA154: 642 | BB154: 595 | BC154: 537 | BD154: 473 | BE154: 423 | BF154: 4 | BG154: 4 | BH154: 4 | BI154: 4 | BJ154: 4 | BK154: 4 | BL154: 4 | BM154: 4 | BN154: 4 | BO154: 4 | BP154: 4 | BQ154: 4 | BR154: 4 | BT154: 144 | BU154: 8685 | BV154: Atlántico | BW154: Santo Tomás | BX154: [Lineas] | BY154: 951 | BZ154: 740 | CA154: 595 | CB154: 4 | CC154: 4 | CD154: 4 | CE154: 4
B155: 145 | C155: 8758 | D155: Atlántico | E155: Soledad | F155: [Lineas] | G155: 48830 | H155: 49648 | I155: 50593 | J155: 51692 | K155: 52720 | L155: 20995 | M155: 54533 | N155: 55845 | O155: 56749 | P155: 57512 | Q155: 60394 | R155: 60862 | S155: 61369 | T155: 62035 | U155: 62732 | V155: 63107 | W155: 63728 | X155: 64151 | Y155: 65008 | Z155: 65654 | AA155: 67457 | AB155: 69624 | AC155: 71757 | AD155: 73060 | AE155: 75313 | AF155: 69162 | AG155: 68595 | AH155: 71436 | AI155: 72353 | AJ155: 73274 | AK155: 73781 | AL155: 74819 | AM155: 75798 | AN155: 78951 | AO155: 79666 | AP155: 81702 | AQ155: 85097 | AR155: 87832 | AS155: 89551 | AT155: 92759 | AU155: 92206 | AV155: 93747 | AW155: 96079 | AX155: 99932 | AY155: 101997 | AZ155: 102724 | BA155: 99921 | BB155: 95084 | BC155: 94917 | BD155: 93851 | BE155: 91757 | BF155: 85458 | BG155: 85458 | BH155: 85458 | BI155: 85458 | BJ155: 85458 | BK155: 85458 | BL155: 85458 | BM155: 85458 | BN155: 85458 | BO155: 85458 | BP155: 85458 | BQ155: 85458 | BR155: 85458 | BT155: 145 | BU155: 8758 | BV155: Atlántico | BW155: Soledad | BX155: [Lineas] | BY155: 92759 | BZ155: 99932 | CA155: 95084 | CB155: 85458 | CC155: 85458 | CD155: 85458 | CE155: 85458
B156: 146 | C156: 8770 | D156: Atlántico | E156: Suan | F156: [Lineas] | G156: 35 | H156: 33 | I156: 28 | J156: 27 | K156: 27 | L156: 24 | M156: 22 | N156: 22 | O156: 22 | P156: 21 | Q156: 20 | R156: 17 | S156: 15 | T156: 16 | U156: 16 | V156: 15 | W156: 14 | X156: 14 | Y156: 14 | Z156: 11 | AA156: 10 | AB156: 10 | AC156: 10 | AD156: 10 | AE156: 10 | AF156: 10 | AG156: 8 | AH156: 8 | AI156: 8 | AJ156: 8 | AK156: 8 | AL156: 8 | AM156: 8 | AN156: 7 | AO156: 7 | AU156: 1 | AV156: 1 | BF156: 0 | BG156: 0 | BH156: 0 | BI156: 0 | BJ156: 0 | BK156: 0 | BL156: 0 | BM156: 0 | BN156: 0 | BO156: 0 | BP156: 0 | BQ156: 0 | BR156: 0 | BT156: 146 | BU156: 8770 | BV156: Atlántico | BW156: Suan | BX156: [Lineas] | BY156: 0 | BZ156: 0 | CA156: 0 | CB156: 0 | CC156: 0 | CD156: 0 | CE156: 0
B157: 147 | C157: 8832 | D157: Atlántico | E157: Tubará | F157: [Lineas] | G157: 111 | H157: 111 | I157: 104 | J157: 101 | K157: 90 | L157: 36 | M157: 36 | N157: 33 | O157: 33 | P157: 32 | Q157: 32 | R157: 30 | S157: 30 | T157: 30 | U157: 31 | V157: 28 | W157: 26 | X157: 24 | Y157: 25 | Z157: 24 | AA157: 22 | AB157: 22 | AC157: 22 | AD157: 21 | AE157: 24 | AF157: 25 | AG157: 21 | AH157: 22 | AI157: 21 | AJ157: 20 | AK157: 19 | AL157: 14 | AM157: 11 | AN157: 11 | AO157: 8 | AP157: 8 | AQ157: 6 | AR157: 6 | AS157: 6 | AT157: 6 | AU157: 4 | AV157: 3 | AW157: 2 | AX157: 3 | AY157: 3 | AZ157: 3 | BA157: 2 | BB157: 3 | BC157: 2 | BF157: 0 | BG157: 0 | BH157: 0 | BI157: 0 | BJ157: 0 | BK157: 0 | BL157: =MAX(IFERROR(IF(BK157>0,IF(_xlfn.FORECAST.ETS(BL$10,OFFSET($BF157,0,0,1,-10),OFFSET($BF$10,0,0,1,-10),4)<0,0,_xlfn.FORECAST.ETS(BL$10,OFFSET($BF157,0,0,1,-10),OFFSET($BF$10,0,0,1,-10),4)),0),BK157),0) -> 0 | BM157: 0 | BN157: 0 | BO157: 0 | BP157: 0 | BQ157: 0 | BR157: 0 | BT157: 147 | BU157: 8832 | BV157: Atlántico | BW157: Tubará | BX157: [Lineas] | BY157: 6 | BZ157: 3 | CA157: 3 | CB157: 0 | CC157: 0 | CD157: 0 | CE157: 0
B158: 148 | C158: 8849 | D158: Atlántico | E158: Usiacurí | F158: [Lineas] | G158: 51 | H158: 51 | I158: 50 | J158: 50 | K158: 48 | L158: 45 | M158: 45 | N158: 44 | O158: 42 | P158: 43 | Q158: 42 | R158: 42 | S158: 41 | T158: 40 | U158: 42 | V158: 38 | W158: 37 | X158: 35 | Y158: 33 | Z158: 24 | AA158: 24 | AB158: 23 | AC158: 20 | AD158: 20 | AE158: 19 | AF158: 19 | AG158: 16 | AH158: 16 | AI158: 16 | AJ158: 1 | AK158: 1 | AL158: 1 | AM158: 1 | AN158: 1 | AO158: 1 | AP158: 1 | BF158: 0 | BG158: 0 | BH158: 0 | BI158: 0 | BJ158: 0 | BK158: 0 | BL158: 0 | BM158: 0 | BN158: 0 | BO158: 0 | BP158: 0 | BQ158: 0 | BR158: 0 | BT158: 148 | BU158: 8849 | BV158: Atlántico | BW158: Usiacurí | BX158: [Lineas] | BY158: 0 | BZ158: 0 | CA158: 0 | CB158: 0 | CC158: 0 | CD158: 0 | CE158: 0
B159: 149 | C159: 11001 | D159: Bogotá, D.C. | E159: Bogotá, D.C. | F159: [Lineas] | G159: 2400116 | H159: 2380769 | I159: 2359595 | J159: 2347261 | K159: 2342554 | L159: 2349673 | M159: 2343762 | N159: 2343229 | O159: 2340430 | P159: 2343947 | Q159: 2379704 | R159: 2365784 | S159: 2368165 | T159: 2364666 | U159: 2362000 | V159: 2347112 | W159: 2333410 | X159: 2240038 | Y159: 2314279 | Z159: 2317270 | AA159: 2322207 | AB159: 2286028 | AC159: 2287085 | AD159: 2274586 | AE159: 2262804 | AF159: 2268815 | AG159: 2269162 | AH159: 2250774 | AI159: 2247095 | AJ159: 2255594 | AK159: 2248390 | AL159: 2259472 | AM159: 2294598 | AN159: 2327144 | AO159: 2370600 | AP159: 2392098 | AQ159: 2398201 | AR159: 2413932 | AS159: 2401222 | AT159: 2441157 | AU159: 2455761 | AV159: 2475820 | AW159: 2474648 | AX159: 2471304 | AY159: 2462969 | AZ159: 2442348 | BA159: 2384028 | BB159: 2325615 | BC159: 2267761 | BD159: 2211965 | BE159: 2178648 | BF159: 2064850 | BG159: 2064850 | BH159: 2064850 | BI159: 2064850 | BJ159: 2064850 | BK159: 2064850 | BL159: 2064850 | BM159: 2064850 | BN159: 2064850 | BO159: 2064850 | BP159: 2064850 | BQ159: 2064850 | BR159: 2064850 | BT159: 149 | BU159: 11001 | BV159: Bogotá, D.C. | BW159: Bogotá, D.C. | BX159: [Lineas] | BY159: 2441157 | BZ159: 2471304 | CA159: 2325615 | CB159: 2064850 | CC159: 2064850 | CD159: 2064850 | CE159: 2064850
B160: 150 | C160: 13001 | D160: Bolívar | E160: Cartagena | F160: [Lineas] | G160: 114832 | H160: 116536 | I160: 118042 | J160: 118342 | K160: 120564 | L160: 123801 | M160: 128425 | N160: 130672 | O160: 132746 | P160: 130261 | Q160: 130295 | R160: 130233 | S160: 131125 | T160: 131648 | U160: 132849 | V160: 132087 | W160: 132699 | X160: 136940 | Y160: 136773 | Z160: 137047 | AA160: 141442 | AB160: 137368 | AC160: 140797 | AD160: 142592 | AE160: 144371 | AF160: 145357 | AG160: 149556 | AH160: 150856 | AI160: 152713 | AJ160: 153775 | AK160: 155625 | AL160: 159884 | AM160: 161268 | AN160: 163218 | AO160: 159416 | AP160: 159731 | AQ160: 163351 | AR160: 165946 | AS160: 168819 | AT160: 175140 | AU160: 162771 | AV160: 166394 | AW160: 170131 | AX160: 175750 | AY160: 179221 | AZ160: 182970 | BA160: 176005 | BB160: 167548 | BC160: 165416 | BD160: 161948 | BE160: 155372 | BF160: 144785 | BG160: 144785 | BH160: 144785 | BI160: 144785 | BJ160: 144785 | BK160: 144785 | BL160: 144785 | BM160: 144785 | BN160: 144785 | BO160: 144785 | BP160: 144785 | BQ160: 144785 | BR160: 144785 | BT160: 150 | BU160: 13001 | BV160: Bolívar | BW160: Cartagena | BX160: [Lineas] | BY160: 175140 | BZ160: 175750 | CA160: 167548 | CB160: 144785 | CC160: 144785 | CD160: 144785 | CE160: 144785
B161: 151 | C161: 13006 | D161: Bolívar | E161: Achí | F161: [Lineas] | G161: 66 | H161: 64 | I161: 57 | J161: 55 | K161: 52 | L161: 23 | M161: 21 | N161: 21 | O161: 20 | P161: 15 | Q161: 13 | R161: 13 | S161: 12 | T161: 11 | U161: 21 | V161: 35 | W161: 33 | X161: 33 | Y161: 33 | Z161: 33 | AA161: 35 | AB161: 34 | AC161: 34 | AD161: 34 | AE161: 33 | AF161: 33 | AG161: 28 | AH161: 28 | AI161: 28 | AJ161: 28 | BF161: 0 | BG161: 0 | BH161: 0 | BI161: 0 | BJ161: 0 | BK161: 0 | BL161: 0 | BM161: 0 | BN161: 0 | BO161: 0 | BP161: 0 | BQ161: 0 | BR161: 0 | BT161: 151 | BU161: 13006 | BV161: Bolívar | BW161: Achí | BX161: [Lineas] | BY161: 0 | BZ161: 0 | CA161: 0 | CB161: 0 | CC161: 0 | CD161: 0 | CE161: 0
B162: 152 | C162: 13030 | D162: Bolívar | E162: Altos del Rosario | F162: [Lineas] | G162: 2 | H162: 1 | M162: 1 | U162: 3 | V162: 6 | W162: 6 | X162: 6 | Y162: 6 | Z162: 6 | AA162: 6 | AB162: 6 | AC162: 6 | AD162: 6 | AE162: 6 | AF162: 6 | AG162: 6 | AH162: 6 | AI162: 6 | AJ162: 6 | BF162: 0 | BG162: 0 | BH162: 0 | BI162: 0 | BJ162: 0 | BK162: 0 | BL162: 0 | BM162: 0 | BN162: 0 | BO162: 0 | BP162: 0 | BQ162: 0 | BR162: 0 | BT162: 152 | BU162: 13030 | BV162: Bolívar | BW162: Altos del Rosario | BX162: [Lineas] | BY162: 0 | BZ162: 0 | CA162: 0 | CB162: 0 | CC162: 0 | CD162: 0 | CE162: 0
B163: 153 | C163: 13042 | D163: Bolívar | E163: Arenal | F163: [Lineas] | K163: 1 | L163: 1 | M163: 1 | N163: 1 | O163: 1 | P163: 1 | R163: 2 | S163: 2 | T163: 2 | U163: 3 | V163: 6 | W163: 6 | X163: 6 | Y163: 6 | Z163: 6 | AA163: 6 | AB163: 6 | AC163: 6 | AD163: 6 | AE163: 6 | AF163: 6 | AG163: 6 | AH163: 6 | AI163: 6 | AJ163: 6 | AL163: 1 | AM163: 1 | AN163: 1 | BA163: 68 | BF163: 0 | BG163: 0 | BH163: 0 | BI163: 0 | BJ163: 0 | BK163: 0 | BL163: 0 | BM163: 0 | BN163: 0 | BO163: 0 | BP163: 0 | BQ163: 0 | BR163: 0 | BT163: 153 | BU163: 13042 | BV163: Bolívar | BW163: Arenal | BX163: [Lineas] | BY163: 0 | BZ163: 0 | CA163: 0 | CB163: 0 | CC163: 0 | CD163: 0 | CE163: 0
B164: 154 | C164: 13052 | D164: Bolívar | E164: Arjona | F164: [Lineas] | G164: 1609 | H164: 1641 | I164: 1660 | J164: 1657 | K164: 1700 | L164: 1745 | M164: 1704 | N164: 1665 | O164: 1628 | P164: 1524 | Q164: 1475 | R164: 1406 | S164: 1345 | T164: 1314 | U164: 1296 | V164: 1253 | W164: 1219 | X164: 1193 | Y164: 1165 | Z164: 1151 | AA164: 1108 | AB164: 1025 | AC164: 974 | AD164: 940 | AE164: 925 | AF164: 903 | AG164: 842 | AH164: 825 | AI164: 790 | AJ164: 761 | AK164: 718 | AL164: 683 | AM164: 654 | AN164: 626 | AO164: 572 | AP164: 510 | AQ164: 482 | AR164: 463 | AS164: 434 | AT164: 502 | AU164: 342 | AV164: 263 | AW164: 164 | AX164: 115 | AY164: 88 | AZ164: 107 | BA164: 60 | BB164: 27 | BC164: 12 | BD164: 11 | BE164: 2 | BF164: 2 | BG164: 2 | BH164: 2 | BI164: 2 | BJ164: 2 | BK164: 2 | BL164: 2 | BM164: 2 | BN164: 2 | BO164: 2 | BP164: 2 | BQ164: 2 | BR164: 2 | BT164: 154 | BU164: 13052 | BV164: Bolívar | BW164: Arjona | BX164: [Lineas] | BY164: 502 | BZ164: 115 | CA164: 27 | CB164: 2 | CC164: 2 | CD164: 2 | CE164: 2
B165: 155 | C165: 13062 | D165: Bolívar | E165: Arroyohondo | F165: [Lineas] | R165: 3 | S165: 3 | T165: 3 | U165: 5 | V165: 10 | W165: 10 | X165: 10 | Y165: 10 | Z165: 10 | AA165: 10 | AB165: 10 | AC165: 10 | AD165: 10 | AE165: 10 | AF165: 10 | AG165: 10 | AH165: 10 | AI165: 10 | AJ165: 10 | AU165: 10 | AV165: 10 | AW165: 7 | AX165: 7 | AY165: 7 | AZ165: 7 | BA165: 2 | BB165: 7 | BC165: 7 | BD165: 6 | BE165: 2 | BF165: 10 | BG165: 10 | BH165: 10 | BI165: 10 | BJ165: 10 | BK165: 10 | BL165: 10 | BM165: 10 | BN165: 10 | BO165: 10 | BP165: 10 | BQ165: 10 | BR165: 10 | BT165: 155 | BU165: 13062 | BV165: Bolívar | BW165: Arroyohondo | BX165: [Lineas] | BY165: 0 | BZ165: 7 | CA165: 7 | CB165: 10 | CC165: 10 | CD165: 10 | CE165: 10
B166: 156 | C166: 13074 | D166: Bolívar | E166: Barranco de Loba | F166: [Lineas] | G166: 19 | H166: 19 | I166: 16 | J166: 15 | K166: 16 | L166: 15 | M166: 13 | N166: 13 | O166: 13 | P166: 12 | Q166: 12 | R166: 12 | S166: 11 | T166: 11 | U166: 13 | V166: 18 | W166: 15 | X166: 13 | Y166: 12 | Z166: 12 | AA166: 13 | AB166: 13 | AC166: 13 | AD166: 13 | AE166: 13 | AF166: 13 | AG166: 9 | AH166: 9 | AI166: 9 | AJ166: 9 | AK166: 1 | AL166: 1 | AM166: 1 | AN166: 1 | AO166: 1 | AP166: 1 | AQ166: 1 | AR166: 1 | AS166: 1 | AT166: 1 | BF166: 0 | BG166: 0 | BH166: 0 | BI166: 0 | BJ166: 0 | BK166: 0 | BL166: 0 | BM166: 0 | BN166: 0 | BO166: 0 | BP166: 0 | BQ166: 0 | BR166: 0 | BT166: 156 | BU166: 13074 | BV166: Bolívar | BW166: Barranco de Loba | BX166: [Lineas] | BY166: 1 | BZ166: 0 | CA166: 0 | CB166: 0 | CC166: 0 | CD166: 0 | CE166: 0
B167: 157 | C167: 13140 | D167: Bolívar | E167: Calamar | F167: [Lineas] | G167: 74 | H167: 66 | I167: 62 | J167: 54 | K167: 46 | L167: 42 | M167: 39 | N167: 38 | O167: 37 | P167: 30 | Q167: 29 | R167: 26 | S167: 20 | T167: 20 | U167: 23 | V167: 21 | W167: 21 | X167: 20 | Y167: 19 | Z167: 18 | AA167: 19 | AB167: 17 | AC167: 18 | AD167: 18 | AE167: 21 | AF167: 21 | AG167: 12 | AH167: 9 | AI167: 9 | AJ167: 9 | AK167: 2 | AL167: 2 | AM167: 2 | AN167: 2 | AO167: 2 | AP167: 2 | AQ167: 2 | AR167: 2 | AS167: 2 | AT167: 2 | BF167: 0 | BG167: 0 | BH167: 0 | BI167: 0 | BJ167: 0 | BK167: 0 | BL167: 0 | BM167: 0 | BN167: 0 | BO167: 0 | BP167: 0 | BQ167: 0 | BR167: 0 | BT167: 157 | BU167: 13140 | BV167: Bolívar | BW167: Calamar | BX167: [Lineas] | BY167: 2 | BZ167: 0 | CA167: 0 | CB167: 0 | CC167: 0 | CD167: 0 | CE167: 0
B168: 158 | C168: 13160 | D168: Bolívar | E168: Cantagallo | F168: [Lineas] | G168: 1 | H168: 1 | I168: 1 | J168: 1 | K168: 1 | L168: 1 | M168: 1 | N168: 1 | O168: 1 | P168: 1 | Q168: 1 | R168: 1 | S168: 1 | T168: 1 | U168: 3 | V168: 5 | W168: 5 | X168: 5 | Y168: 5 | Z168: 5 | AA168: 5 | AB168: 5 | AC168: 5 | AD168: 5 | AE168: 5 | AF168: 5 | AG168: 5 | AH168: 5 | AI168: 5 | AJ168: 5 | AK168: 1 | BE168: 2 | BF168: 2 | BG168: 2 | BH168: 2 | BI168: 2 | BJ168: 2 | BK168: 2 | BL168: 2 | BM168: 2 | BN168: 2 | BO168: 2 | BP168: 2 | BQ168: 2 | BR168: 2 | BT168: 158 | BU168: 13160 | BV168: Bolívar | BW168: Cantagallo | BX168: [Lineas] | BY168: 0 | BZ168: 0 | CA168: 0 | CB168: 2 | CC168: 2 | CD168: 2 | CE168: 2
B169: 159 | C169: 13188 | D169: Bolívar | E169: Cicuco | F169: [Lineas] | G169: 4 | H169: 4 | I169: 3 | J169: 3 | K169: 1 | L169: 1 | M169: 1 | N169: 1 | R169: 1 | S169: 1 | T169: 1 | U169: 2 | V169: 4 | W169: 4 | X169: 4 | Y169: 4 | Z169: 4 | AA169: 4 | AB169: 4 | AC169: 4 | AD169: 4 | AE169: 4 | AF169: 4 | AG169: 4 | AH169: 4 | AI169: 4 | AJ169: 4 | BF169: 0 | BG169: 0 | BH169: 0 | BI169: 0 | BJ169: 0 | BK169: 0 | BL169: 0 | BM169: 0 | BN169: 0 | BO169: 0 | BP169: 0 | BQ169: 0 | BR169: 0 | BT169: 159 | BU169: 13188 | BV169: Bolívar | BW169: Cicuco | BX169: [Lineas] | BY169: 0 | BZ169: 0 | CA169: 0 | CB169: 0 | CC169: 0 | CD169: 0 | CE169: 0
B170: 160 | C170: 13212 | D170: Bolívar | E170: Córdoba | F170: [Lineas] | G170: 34 | H170: 34 | I170: 34 | J170: 34 | K170: 34 | L170: 6 | M170: 6 | N170: 6 | O170: 5 | P170: 5 | Q170: 5 | R170: 6 | S170: 5 | T170: 5 | U170: 7 | V170: 12 | W170: 11 | X170: 9 | Y170: 9 | Z170: 9 | AA170: 9 | AB170: 9 | AC170: 8 | AD170: 8 | AE170: 8 | AF170: 8 | AG170: 8 | AH170: 8 | AI170: 8 | AJ170: 8 | AU170: 1 | AV170: 1 | AW170: 1 | AX170: 1 | AY170: 1 | AZ170: 1 | BA170: 1 | BB170: 1 | BC170: 1 | BD170: 1 | BE170: 1 | BF170: 0 | BG170: 0 | BH170: 0 | BI170: 0 | BJ170: 0 | BK170: 0 | BL170: 0 | BM170: 0 | BN170: 0 | BO170: 0 | BP170: 0 | BQ170: 0 | BR170: 0 | BT170: 160 | BU170: 13212 | BV170: Bolívar | BW170: Córdoba | BX170: [Lineas] | BY170: 0 | BZ170: 1 | CA170: 1 | CB170: 0 | CC170: 0 | CD170: 0 | CE170: 0
B171: 161 | C171: 13222 | D171: Bolívar | E171: Clemencia | F171: [Lineas] | G171: 157 | H171: 143 | I171: 139 | J171: 119 | K171: 114 | L171: 112 | M171: 103 | N171: 101 | O171: 97 | P171: 88 | Q171: 78 | R171: 63 | S171: 54 | T171: 50 | U171: 49 | V171: 48 | W171: 47 | X171: 43 | Y171: 38 | Z171: 34 | AA171: 35 | AB171: 30 | AC171: 29 | AD171: 28 | AE171: 27 | AF171: 27 | AG171: 4 | AH171: 4 | AI171: 4 | AJ171: 4 | AU171: 2 | AV171: 1 | BE171: 1 | BF171: 0 | BG171: 0 | BH171: 0 | BI171: 0 | BJ171: 0 | BK171: 0 | BL171: 0 | BM171: 0 | BN171: 0 | BO171: 0 | BP171: 0 | BQ171: 0 | BR171: 0 | BT171: 161 | BU171: 13222 | BV171: Bolívar | BW171: Clemencia | BX171: [Lineas] | BY171: 0 | BZ171: 0 | CA171: 0 | CB171: 0 | CC171: 0 | CD171: 0 | CE171: 0
B172: 162 | C172: 13244 | D172: Bolívar | E172: El Carmen de Bolívar | F172: [Lineas] | G172: 1008 | H172: 1045 | I172: 1033 | J172: 1018 | K172: 1050 | L172: 1083 | M172: 1219 | N172: 1208 | O172: 1356 | P172: 1353 | Q172: 1295 | R172: 1216 | S172: 1131 | T172: 1074 | U172: 1055 | V172: 994 | W172: 954 | X172: 907 | Y172: 870 | Z172: 808 | AA172: 762 | AB172: 728 | AC172: 686 | AD172: 655 | AE172: 636 | AF172: 605 | AG172: 558 | AH172: 538 | AI172: 511 | AJ172: 485 | AK172: 425 | AL172: 407 | AM172: 391 | AN172: 406 | AO172: 366 | AP172: 337 | AQ172: 314 | AR172: 368 | AS172: 364 | AT172: 338 | AU172: 276 | AV172: 240 | AW172: 205 | AX172: 174 | AY172: 158 | AZ172: 146 | BA172: 141 | BB172: 124 | BC172: 110 | BD172: 83 | BE172: 66 | BF172: 43 | BG172: 43 | BH172: 43 | BI172: 43 | BJ172: 43 | BK172: 43 | BL172: 43 | BM172: 43 | BN172: 43 | BO172: 43 | BP172: 43 | BQ172: 43 | BR172: 43 | BT172: 162 | BU172: 13244 | BV172: Bolívar | BW172: El Carmen de Bolívar | BX172: [Lineas] | BY172: 338 | BZ172: 174 | CA172: 124 | CB172: 43 | CC172: 43 | CD172: 43 | CE172: 43
B173: 163 | C173: 13248 | D173: Bolívar | E173: El Guamo | F173: [Lineas] | G173: 37 | H173: 35 | I173: 32 | J173: 31 | K173: 31 | L173: 31 | M173: 29 | N173: 29 | O173: 27 | P173: 26 | Q173: 23 | R173: 29 | S173: 27 | T173: 27 | U173: 29 | V173: 31 | W173: 29 | X173: 29 | Y173: 29 | Z173: 28 | AA173: 27 | AB173: 27 | AC173: 26 | AD173: 26 | AE173: 26 | AF173: 24 | AG173: 23 | AH173: 23 | AI173: 22 | AJ173: 8 | BF173: 0 | BG173: 0 | BH173: =MAX(IFERROR(IF(BG173>0,IF(_xlfn.FORECAST.ETS(BH$10,OFFSET($BF173,0,0,1,-10),OFFSET($BF$10,0,0,1,-10),4)<0,0,_xlfn.FORECAST.ETS(BH$10,OFFSET($BF173,0,0,1,-10),OFFSET($BF$10,0,0,1,-10),4)),0),BG173),0) -> 0 | BI173: 0 | BJ173: 0 | BK173: 0 | BL173: 0 | BM173: 0 | BN173: 0 | BO173: 0 | BP173: 0 | BQ173: 0 | BR173: 0 | BT173: 163 | BU173: 13248 | BV173: Bolívar | BW173: El Guamo | BX173: [Lineas] | BY173: 0 | BZ173: 0 | CA173: 0 | CB173: 0 | CC173: 0 | CD173: 0 | CE173: 0
B174: 164 | C174: 13268 | D174: Bolívar | E174: El Peñón | F174: [Lineas] | G174: 39 | H174: 36 | I174: 32 | J174: 31 | K174: 27 | L174: 5 | M174: 5 | N174: 4 | O174: 5 | P174: 3 | Q174: 2 | R174: 4 | S174: 2 | T174: 2 | U174: 3 | V174: 6 | W174: 6 | X174: 6 | Y174: 6 | Z174: 6 | AA174: 6 | AB174: 6 | AC174: 6 | AD174: 6 | AE174: 6 | AF174: 6 | AG174: 6 | AH174: 6 | AI174: 6 | AJ174: 6 | BF174: 0 | BG174: 0 | BH174: 0 | BI174: 0 | BJ174: 0 | BK174: 0 | BL174: 0 | BM174: 0 | BN174: 0 | BO174: 0 | BP174: 0 | BQ174: 0 | BR174: 0 | BT174: 164 | BU174: 13268 | BV174: Bolívar | BW174: El Peñón | BX174: [Lineas] | BY174: 0 | BZ174: 0 | CA174: 0 | CB174: 0 | CC174: 0 | CD174: 0 | CE174: 0
B175: 165 | C175: 13300 | D175: Bolívar | E175: Hatillo de Loba | F175: [Lineas] | G175: 19 | H175: 18 | I175: 12 | J175: 11 | K175: 11 | R175: 3 | S175: 3 | T175: 3 | U175: 6 | V175: 12 | W175: 12 | X175: 12 | Y175: 12 | Z175: 12 | AA175: 10 | AB175: 10 | AC175: 10 | AD175: 10 | AE175: 10 | AF175: 10 | AG175: 10 | AH175: 10 | AI175: 10 | AJ175: 10 | BF175: 0 | BG175: 0 | BH175: 0 | BI175: 0 | BJ175: 0 | BK175: 0 | BL175: 0 | BM175: 0 | BN175: 0 | BO175: 0 | BP175: 0 | BQ175: 0 | BR175: 0 | BT175: 165 | BU175: 13300 | BV175: Bolívar | BW175: Hatillo de Loba | BX175: [Lineas] | BY175: 0 | BZ175: 0 | CA175: 0 | CB175: 0 | CC175: 0 | CD175: 0 | CE175: 0
B176: 166 | C176: 13430 | D176: Bolívar | E176: Magangué | F176: [Lineas] | G176: 2121 | H176: 2103 | I176: 2086 | J176: 2034 | K176: 2027 | L176: 1973 | M176: 1931 | N176: 1878 | O176: 1864 | P176: 1798 | Q176: 1733 | R176: 1659 | S176: 1816 | T176: 1783 | U176: 1794 | V176: 1904 | W176: 1863 | X176: 1814 | Y176: 1783 | Z176: 1689 | AA176: 1614 | AB176: 1562 | AC176: 1697 | AD176: 1790 | AE176: 1993 | AF176: 2117 | AG176: 2178 | AH176: 2280 | AI176: 2323 | AJ176: 2219 | AK176: 2074 | AL176: 2032 | AM176: 2058 | AN176: 1960 | AO176: 1748 | AP176: 1739 | AQ176: 1933 | AR176: 1972 | AS176: 1877 | AT176: 1829 | AU176: 1767 | AV176: 1737 | AW176: 1823 | AX176: 1820 | AY176: 1844 | AZ176: 1732 | BA176: 1661 | BB176: 1653 | BC176: 1601 | BD176: 1473 | BE176: 1391 | BF176: 1546 | BG176: 1546 | BH176: 1546 | BI176: 1546 | BJ176: 1546 | BK176: 1546 | BL176: 1546 | BM176: 1546 | BN176: 1546 | BO176: 1546 | BP176: 1546 | BQ176: 1546 | BR176: 1546 | BT176: 166 | BU176: 13430 | BV176: Bolívar | BW176: Magangué | BX176: [Lineas] | BY176: 1829 | BZ176: 1820 | CA176: 1653 | CB176: 1546 | CC176: 1546 | CD176: 1546 | CE176: 1546
B177: 167 | C177: 13433 | D177: Bolívar | E177: Mahates | F177: [Lineas] | G177: 65 | H177: 61 | I177: 59 | J177: 57 | K177: 52 | L177: 52 | M177: 47 | N177: 47 | O177: 46 | P177: 42 | Q177: 40 | R177: 39 | S177: 38 | T177: 37 | U177: 43 | V177: 46 | W177: 46 | X177: 45 | Y177: 41 | Z177: 39 | AA177: 38 | AB177: 37 | AC177: 37 | AD177: 36 | AE177: 38 | AF177: 38 | AG177: 13 | AH177: 13 | AI177: 12 | AJ177: 12 | BA177: 1 | BC177: 1 | BE177: 1 | BF177: 0 | BG177: 0 | BH177: 0 | BI177: 0 | BJ177: 0 | BK177: 0 | BL177: 0 | BM177: 0 | BN177: 0 | BO177: 0 | BP177: 0 | BQ177: 0 | BR177: 0 | BT177: 167 | BU177: 13433 | BV177: Bolívar | BW177: Mahates | BX177: [Lineas] | BY177: 0 | BZ177: 0 | CA177: 0 | CB177: 0 | CC177: 0 | CD177: 0 | CE177: 0
B178: 168 | C178: 13440 | D178: Bolívar | E178: Margarita | F178: [Lineas] | G178: 18 | H178: 16 | I178: 12 | J178: 11 | K178: 11 | L178: 10 | M178: 9 | N178: 7 | U178: 5 | V178: 10 | W178: 10 | X178: 10 | Y178: 10 | Z178: 10 | AA178: 8 | AB178: 8 | AC178: 8 | AD178: 8 | AE178: 8 | AF178: 8 | AG178: 8 | AH178: 8 | AI178: 8 | AJ178: 8 | BF178: 0 | BG178: 0 | BH178: 0 | BI178: 0 | BJ178: 0 | BK178: 0 | BL178: 0 | BM178: 0 | BN178: 0 | BO178: 0 | BP178: 0 | BQ178: 0 | BR178: 0 | BT178: 168 | BU178: 13440 | BV178: Bolívar | BW178: Margarita | BX178: [Lineas] | BY178: 0 | BZ178: 0 | CA178: 0 | CB178: 0 | CC178: 0 | CD178: 0 | CE178: 0
B179: 169 | C179: 13442 | D179: Bolívar | E179: María La Baja | F179: [Lineas] | G179: 225 | H179: 222 | I179: 218 | J179: 209 | K179: 203 | L179: 194 | M179: 193 | N179: 182 | O179: 179 | P179: 170 | Q179: 165 | R179: 164 | S179: 152 | T179: 143 | U179: 154 | V179: 164 | W179: 157 | X179: 151 | Y179: 143 | Z179: 133 | AA179: 124 | AB179: 121 | AC179: 120 | AD179: 116 | AE179: 109 | AF179: 102 | AG179: 94 | AH179: 90 | AI179: 88 | AJ179: 81 | AK179: 34 | AL179: 2 | AM179: 2 | AN179: 2 | BF179: 0 | BG179: 0 | BH179: 0 | BI179: 0 | BJ179: 0 | BK179: 0 | BL179: 0 | BM179: 0 | BN179: 0 | BO179: 0 | BP179: 0 | BQ179: 0 | BR179: 0 | BT179: 169 | BU179: 13442 | BV179: Bolívar | BW179: María La Baja | BX179: [Lineas] | BY179: 0 | BZ179: 0 | CA179: 0 | CB179: 0 | CC179: 0 | CD179: 0 | CE179: 0
B180: 170 | C180: 13458 | D180: Bolívar | E180: Montecristo | F180: [Lineas] | R180: 1 | S180: 1 | T180: 1 | U180: 10 | V180: 20 | W180: 20 | X180: 20 | Y180: 20 | Z180: 20 | AA180: 18 | AB180: 18 | AC180: 18 | AD180: 18 | AE180: 18 | AF180: 18 | AG180: 18 | AH180: 18 | AI180: 18 | AJ180: 18 | BF180: 0 | BG180: 0 | BH180: 0 | BI180: 0 | BJ180: 0 | BK180: 0 | BL180: 0 | BM180: 0 | BN180: 0 | BO180: 0 | BP180: 0 | BQ180: 0 | BR180: 0 | BT180: 170 | BU180: 13458 | BV180: Bolívar | BW180: Montecristo | BX180: [Lineas] | BY180: 0 | BZ180: 0 | CA180: 0 | CB180: 0 | CC180: 0 | CD180: 0 | CE180: 0
B181: 171 | C181: 13468 | D181: Bolívar | E181: Mompós | F181: [Lineas] | G181: 1271 | H181: 1254 | I181: 1222 | J181: 1210 | K181: 1203 | L181: 1046 | M181: 1036 | N181: 1047 | O181: 1061 | P181: 1035 | Q181: 1007 | R181: 976 | S181: 928 | T181: 894 | U181: 889 | V181: 870 | W181: 836 | X181: 817 | Y181: 803 | Z181: 762 | AA181: 735 | AB181: 713 | AC181: 689 | AD181: 672 | AE181: 648 | AF181: 627 | AG181: 594 | AH181: 576 | AI181: 554 | AJ181: 526 | AK181: 455 | AL181: 425 | AM181: 408 | AN181: 388 | AO181: 365 | AP181: 328 | AQ181: 317 | AR181: 281 | AS181: 242 | AT181: 201 | AU181: 156 | AV181: 135 | AW181: 115 | AX181: 98 | AY181: 81 | AZ181: 78 | BA181: 74 | BB181: 66 | BC181: 57 | BF181: 1 | BG181: 1 | BH181: 1 | BI181: 1 | BJ181: 1 | BK181: 1 | BL181: 1 | BM181: 1 | BN181: 1 | BO181: 1 | BP181: 1 | BQ181: 1 | BR181: 1 | BT181: 171 | BU181: 13468 | BV181: Bolívar | BW181: Mompós | BX181: [Lineas] | BY181: 201 | BZ181: 98 | CA181: 66 | CB181: 1 | CC181: 1 | CD181: 1 | CE181: 1
B182: 172 | C182: 13473 | D182: Bolívar | E182: Morales | F182: [Lineas] | G182: 61 | H182: 59 | I182: 54 | J182: 52 | K182: 48 | L182: 47 | M182: 43 | N182: 40 | O182: 40 | P182: 38 | Q182: 37 | R182: 47 | S182: 45 | T182: 44 | U182: 52 | V182: 69 | W182: 62 | X182: 59 | Y182: 58 | Z182: 57 | AA182: 59 | AB182: 59 | AC182: 59 | AD182: 59 | AE182: 58 | AF182: 58 | AG182: 57 | AH182: 57 | AI182: 56 | AJ182: 56 | AK182: 16 | BF182: 0 | BG182: 0 | BH182: 0 | BI182: 0 | BJ182: 0 | BK182: 0 | BL182: 0 | BM182: 0 | BN182: 0 | BO182: 0 | BP182: 0 | BQ182: 0 | BR182: 0 | BT182: 172 | BU182: 13473 | BV182: Bolívar | BW182: Morales | BX182: [Lineas] | BY182: 0 | BZ182: 0 | CA182: 0 | CB182: 0 | CC182: 0 | CD182: 0 | CE182: 0
B183: 173 | C183: 13490 | D183: Bolívar | E183: Norosí (1) | F183: [Lineas] | U183: 3 | V183: 6 | W183: 6 | X183: 6 | Y183: 6 | Z183: 6 | AA183: 6 | AB183: 6 | AC183: 6 | AD183: 6 | AE183: 6 | AF183: 6 | AG183: 6 | AH183: 6 | AI183: 6 | AJ183: 6 | BF183: 0 | BG183: 0 | BH183: 0 | BI183: 0 | BJ183: 0 | BK183: 0 | BL183: 0 | BM183: 0 | BN183: 0 | BO183: 0 | BP183: 0 | BQ183: 0 | BR183: 0 | BT183: 173 | BU183: 13490 | BV183: Bolívar | BW183: Norosí (1) | BX183: [Lineas] | BY183: 0 | BZ183: 0 | CA183: 0 | CB183: 0 | CC183: 0 | CD183: 0 | CE183: 0
B184: 174 | C184: 13549 | D184: Bolívar | E184: Pinillos | F184: [Lineas] | G184: 94 | H184: 93 | I184: 70 | J184: 70 | K184: 67 | L184: 33 | M184: 28 | N184: 24 | O184: 23 | P184: 19 | Q184: 18 | R184: 21 | S184: 20 | T184: 18 | U184: 23 | V184: 31 | W184: 31 | X184: 28 | Y184: 29 | Z184: 27 | AA184: 25 | AB184: 24 | AC184: 24 | AD184: 24 | AE184: 24 | AF184: 24 | AG184: 18 | AH184: 18 | AI184: 18 | AJ184: 18 | BF184: 0 | BG184: 0 | BH184: 0 | BI184: 0 | BJ184: 0 | BK184: 0 | BL184: 0 | BM184: 0 | BN184: 0 | BO184: 0 | BP184: 0 | BQ184: 0 | BR184: 0 | BT184: 174 | BU184: 13549 | BV184: Bolívar | BW184: Pinillos | BX184: [Lineas] | BY184: 0 | BZ184: 0 | CA184: 0 | CB184: 0 | CC184: 0 | CD184: 0 | CE184: 0
B185: 175 | C185: 13580 | D185: Bolívar | E185: Regidor | F185: [Lineas] | G185: 77 | H185: 76 | I185: 52 | J185: 49 | K185: 45 | L185: 4 | M185: 3 | N185: 3 | O185: 2 | P185: 1 | Q185: 1 | R185: 2 | S185: 1 | T185: 1 | U185: 2 | V185: 4 | W185: 4 | X185: 4 | Y185: 4 | Z185: 4 | AA185: 2 | AB185: 2 | AC185: 2 | AD185: 2 | AE185: 2 | AF185: 2 | AG185: 2 | AH185: 2 | AI185: 2 | AJ185: 2 | BF185: 0 | BG185: 0 | BH185: 0 | BI185: 0 | BJ185: 0 | BK185: 0 | BL185: 0 | BM185: 0 | BN185: 0 | BO185: 0 | BP185: 0 | BQ185: 0 | BR185: 0 | BT185: 175 | BU185: 13580 | BV185: Bolívar | BW185: Regidor | BX185: [Lineas] | BY185: 0 | BZ185: 0 | CA185: 0 | CB185: 0 | CC185: 0 | CD185: 0 | CE185: 0
B186: 176 | C186: 13600 | D186: Bolívar | E186: Río Viejo (1)(3) | F186: [Lineas] | G186: 1 | U186: 3 | V186: 6 | W186: 6 | X186: 6 | Y186: 6 | Z186: 6 | AA186: 6 | AB186: 6 | AC186: 6 | AD186: 6 | AE186: 6 | AF186: 6 | AG186: 6 | AH186: 6 | AI186: 6 | AJ186: 6 | BF186: 0 | BG186: 0 | BH186: 0 | BI186: 0 | BJ186: 0 | BK186: 0 | BL186: 0 | BM186: 0 | BN186: 0 | BO186: 0 | BP186: 0 | BQ186: 0 | BR186: 0 | BT186: 176 | BU186: 13600 | BV186: Bolívar | BW186: Río Viejo (1)(3) | BX186: [Lineas] | BY186: 0 | BZ186: 0 | CA186: 0 | CB186: 0 | CC186: 0 | CD186: 0 | CE186: 0
B187: 177 | C187: 13620 | D187: Bolívar | E187: San Cristóbal | F187: [Lineas] | U187: 1 | V187: 2 | W187: 2 | X187: 2 | Y187: 2 | Z187: 2 | AA187: 2 | AB187: 2 | AC187: 2 | AD187: 2 | AE187: 2 | AF187: 2 | AG187: 2 | AH187: 2 | AI187: 2 | AJ187: 2 | AY187: 1 | AZ187: 1 | BF187: 0 | BG187: 0 | BH187: 0 | BI187: 0 | BJ187: 0 | BK187: 0 | BL187: 0 | BM187: 0 | BN187: 0 | BO187: 0 | BP187: 0 | BQ187: 0 | BR187: 0 | BT187: 177 | BU187: 13620 | BV187: Bolívar | BW187: San Cristóbal | BX187: [Lineas] | BY187: 0 | BZ187: 0 | CA187: 0 | CB187: 0 | CC187: 0 | CD187: 0 | CE187: 0
B188: 178 | C188: 13647 | D188: Bolívar | E188: San Estanislao | F188: [Lineas] | G188: 7 | H188: 7 | I188: 8 | J188: 6 | K188: 5 | L188: 4 | M188: 4 | N188: 4 | O188: 4 | P188: 4 | Q188: 3 | R188: 2 | S188: 1 | T188: 1 | U188: 1 | V188: 1 | W188: 1 | X188: 1 | Y188: 1 | Z188: 1 | AA188: 1 | AB188: 1 | AC188: 1 | AD188: 1 | AE188: 1 | AF188: 1 | BE188: 1 | BF188: 0 | BG188: 0 | BH188: 0 | BI188: 0 | BJ188: 0 | BK188: 0 | BL188: 0 | BM188: 0 | BN188: 0 | BO188: 0 | BP188: 0 | BQ188: 0 | BR188: 0 | BT188: 178 | BU188: 13647 | BV188: Bolívar | BW188: San Estanislao | BX188: [Lineas] | BY188: 0 | BZ188: 0 | CA188: 0 | CB188: 0 | CC188: 0 | CD188: 0 | CE188: 0
B189: 179 | C189: 13650 | D189: Bolívar | E189: San Fernando | F189: [Lineas] | G189: 11 | H189: 11 | I189: 10 | J189: 9 | K189: 5 | L189: 5 | M189: 5 | N189: 3 | O189: 2 | P189: 2 | Q189: 2 | R189: 1 | U189: 7 | V189: 14 | W189: 14 | X189: 14 | Y189: 14 | Z189: 14 | AA189: 16 | AB189: 16 | AC189: 16 | AD189: 16 | AE189: 16 | AF189: 16 | AG189: 16 | AH189: 16 | AI189: 16 | AJ189: 16 | BF189: 0 | BG189: 0 | BH189: =MAX(IFERROR(IF(BG189>0,IF(_xlfn.FORECAST.ETS(BH$10,OFFSET($BF189,0,0,1,-10),OFFSET($BF$10,0,0,1,-10),4)<0,0,_xlfn.FORECAST.ETS(BH$10,OFFSET($BF189,0,0,1,-10),OFFSET($BF$10,0,0,1,-10),4)),0),BG189),0) -> 0 | BI189: 0 | BJ189: 0 | BK189: 0 | BL189: 0 | BM189: 0 | BN189: 0 | BO189: 0 | BP189: 0 | BQ189: 0 | BR189: 0 | BT189: 179 | BU189: 13650 | BV189: Bolívar | BW189: San Fernando | BX189: [Lineas] | BY189: 0 | BZ189: 0 | CA189: 0 | CB189: 0 | CC189: 0 | CD189: 0 | CE189: 0
B190: 180 | C190: 13654 | D190: Bolívar | E190: San Jacinto | F190: [Lineas] | G190: 149 | H190: 149 | I190: 150 | J190: 147 | K190: 141 | L190: 139 | M190: 134 | N190: 127 | O190: 129 | P190: 121 | Q190: 122 | R190: 115 | S190: 111 | T190: 109 | U190: 115 | V190: 110 | W190: 108 | X190: 105 | Y190: 108 | Z190: 101 | AA190: 98 | AB190: 94 | AC190: 90 | AD190: 89 | AE190: 90 | AF190: 83 | AG190: 76 | AH190: 75 | AI190: 71 | AJ190: 71 | AK190: 61 | BF190: 0 | BG190: 0 | BH190: 0 | BI190: 0 | BJ190: 0 | BK190: 0 | BL190: 0 | BM190: 0 | BN190: 0 | BO190: 0 | BP190: 0 | BQ190: 0 | BR190: 0 | BT190: 180 | BU190: 13654 | BV190: Bolívar | BW190: San Jacinto | BX190: [Lineas] | BY190: 0 | BZ190: 0 | CA190: 0 | CB190: 0 | CC190: 0 | CD190: 0 | CE190: 0
B191: 181 | C191: 13655 | D191: Bolívar | E191: San Jacinto del Cauca | F191: [Lineas] | U191: 3 | V191: 6 | W191: 6 | X191: 6 | Y191: 6 | Z191: 6 | AA191: 6 | AB191: 6 | AC191: 6 | AD191: 6 | AE191: 6 | AF191: 6 | AG191: 6 | AH191: 6 | AI191: 6 | AJ191: 6 | BF191: 0 | BG191: 0 | BH191: 0 | BI191: 0 | BJ191: 0 | BK191: 0 | BL191: 0 | BM191: 0 | BN191: 0 | BO191: 0 | BP191: 0 | BQ191: 0 | BR191: 0 | BT191: 181 | BU191: 13655 | BV191: Bolívar | BW191: San Jacinto del Cauca | BX191: [Lineas] | BY191: 0 | BZ191: 0 | CA191: 0 | CB191: 0 | CC191: 0 | CD191: 0 | CE191: 0
B192: 182 | C192: 13657 | D192: Bolívar | E192: San Juan Nepomuceno | F192: [Lineas] | G192: 737 | H192: 747 | I192: 756 | J192: 743 | K192: 731 | L192: 711 | M192: 694 | N192: 678 | O192: 669 | P192: 644 | Q192: 643 | R192: 630 | S192: 593 | T192: 678 | U192: 674 | V192: 658 | W192: 636 | X192: 616 | Y192: 596 | Z192: 556 | AA192: 538 | AB192: 517 | AC192: 497 | AD192: 487 | AE192: 480 | AF192: 469 | AG192: 444 | AH192: 430 | AI192: 407 | AJ192: 386 | AK192: 363 | AL192: 352 | AM192: 333 | AN192: 320 | AO192: 304 | AP192: 285 | AQ192: 266 | AR192: 247 | AS192: 221 | AT192: 208 | AU192: 187 | AV192: 173 | AW192: 156 | AX192: 140 | AY192: 127 | AZ192: 115 | BA192: 106 | BB192: 96 | BC192: 88 | BD192: 81 | BE192: 77 | BF192: 2 | BG192: 2 | BH192: 2 | BI192: 2 | BJ192: 2 | BK192: 2 | BL192: 2 | BM192: 2 | BN192: 2 | BO192: 2 | BP192: 2 | BQ192: 2 | BR192: 2 | BT192: 182 | BU192: 13657 | BV192: Bolívar | BW192: San Juan Nepomuceno | BX192: [Lineas] | BY192: 208 | BZ192: 140 | CA192: 96 | CB192: 2 | CC192: 2 | CD192: 2 | CE192: 2
B193: 183 | C193: 13667 | D193: Bolívar | E193: San Martín de Loba | F193: [Lineas] | G193: 53 | H193: 53 | I193: 45 | J193: 45 | K193: 43 | L193: 23 | M193: 23 | N193: 22 | O193: 21 | P193: 7 | Q193: 5 | R193: 5 | S193: 5 | T193: 5 | U193: 8 | V193: 13 | W193: 13 | X193: 13 | Y193: 13 | Z193: 13 | AA193: 12 | AB193: 11 | AC193: 11 | AD193: 11 | AE193: 11 | AF193: 11 | AG193: 10 | AH193: 10 | AI193: 10 | AJ193: 10 | BF193: 0 | BG193: 0 | BH193: 0 | BI193: 0 | BJ193: 0 | BK193: 0 | BL193: 0 | BM193: 0 | BN193: 0 | BO193: 0 | BP193: 0 | BQ193: 0 | BR193: 0 | BT193: 183 | BU193: 13667 | BV193: Bolívar | BW193: San Martín de Loba | BX193: [Lineas] | BY193: 0 | BZ193: 0 | CA193: 0 | CB193: 0 | CC193: 0 | CD193: 0 | CE193: 0
B194: 184 | C194: 13670 | D194: Bolívar | E194: San Pablo | F194: [Lineas] | G194: 242 | H194: 221 | I194: 195 | J194: 180 | K194: 155 | L194: 180 | M194: 160 | N194: 153 | O194: 146 | P194: 136 | Q194: 129 | R194: 120 | S194: 102 | T194: 96 | U194: 100 | V194: 96 | W194: 90 | X194: 85 | Y194: 87 | Z194: 84 | AA194: 85 | AB194: 82 | AC194: 80 | AD194: 79 | AE194: 79 | AF194: 78 | AG194: 78 | AH194: 75 | AI194: 70 | AJ194: 65 | AK194: 9 | AL194: 7 | AM194: 4 | AN194: 3 | AO194: 2 | AP194: 3 | AQ194: 2 | AR194: 2 | AS194: 2 | AT194: 2 | AU194: 1 | AV194: 1 | AW194: 1 | AX194: 1 | AY194: 1 | AZ194: 2 | BA194: 2 | BB194: 2 | BC194: 2 | BD194: 2 | BE194: 2 | BF194: 2 | BG194: 2 | BH194: 2 | BI194: 2 | BJ194: 2 | BK194: 2 | BL194: 2 | BM194: 2 | BN194: 2 | BO194: 2 | BP194: 2 | BQ194: 2 | BR194: 2 | BT194: 184 | BU194: 13670 | BV194: Bolívar | BW194: San Pablo | BX194: [Lineas] | BY194: 2 | BZ194: 1 | CA194: 2 | CB194: 2 | CC194: 2 | CD194: 2 | CE194: 2
B195: 185 | C195: 13673 | D195: Bolívar | E195: Santa Catalina | F195: [Lineas] | G195: 1 | H195: 1 | I195: 1 | J195: 1 | K195: 1 | L195: 1 | M195: 1 | R195: 1 | S195: 1 | T195: 1 | U195: 3 | V195: 6 | W195: 6 | X195: 6 | Y195: 6 | Z195: 6 | AA195: 6 | AB195: 6 | AC195: 6 | AD195: 6 | AE195: 6 | AF195: 6 | AG195: 6 | AH195: 6 | AI195: 6 | AJ195: 6 | BF195: 0 | BG195: 0 | BH195: 0 | BI195: 0 | BJ195: 0 | BK195: 0 | BL195: 0 | BM195: 0 | BN195: 0 | BO195: 0 | BP195: 0 | BQ195: 0 | BR195: 0 | BT195: 185 | BU195: 13673 | BV195: Bolívar | BW195: Santa Catalina | BX195: [Lineas] | BY195: 0 | BZ195: 0 | CA195: 0 | CB195: 0 | CC195: 0 | CD195: 0 | CE195: 0
B196: 186 | C196: 13683 | D196: Bolívar | E196: Santa Rosa | F196: [Lineas] | G196: 63 | H196: 62 | I196: 55 | J196: 52 | K196: 51 | L196: 47 | M196: 44 | N196: 38 | O196: 37 | P196: 32 | Q196: 30 | R196: 26 | S196: 24 | T196: 22 | U196: 21 | V196: 22 | W196: 20 | X196: 19 | Y196: 19 | Z196: 15 | AA196: 12 | AB196: 12 | AC196: 12 | AD196: 12 | AE196: 12 | AF196: 11 | AG196: 9 | AH196: 9 | AI196: 8 | AJ196: 2 | BF196: 0 | BG196: 0 | BH196: 0 | BI196: 0 | BJ196: 0 | BK196: 0 | BL196: 0 | BM196: 0 | BN196: 0 | BO196: 0 | BP196: 0 | BQ196: 0 | BR196: 0 | BT196: 186 | BU196: 13683 | BV196: Bolívar | BW196: Santa Rosa | BX196: [Lineas] | BY196: 0 | BZ196: 0 | CA196: 0 | CB196: 0 | CC196: 0 | CD196: 0 | CE196: 0
B197: 187 | C197: 13688 | D197: Bolívar | E197: Santa Rosa del Sur | F197: [Lineas] | G197: 294 | H197: 279 | I197: 267 | J197: 258 | K197: 250 | L197: 245 | M197: 232 | N197: 222 | O197: 219 | P197: 204 | Q197: 200 | R197: 193 | S197: 178 | T197: 169 | U197: 170 | V197: 165 | W197: 155 | X197: 146 | Y197: 140 | Z197: 130 | AA197: 121 | AB197: 113 | AC197: 113 | AD197: 109 | AE197: 109 | AF197: 105 | AG197: 97 | AH197: 95 | AI197: 89 | AJ197: 86 | AK197: 69 | AL197: 67 | AM197: 65 | AN197: 52 | AO197: 46 | AP197: 46 | AQ197: 45 | AR197: 44 | AS197: 41 | AT197: 37 | AU197: 35 | AV197: 29 | AW197: 27 | AX197: 24 | AY197: 21 | AZ197: 21 | BA197: 19 | BB197: 15 | BC197: 14 | BF197: 0 | BG197: 0 | BH197: 0 | BI197: 0 | BJ197: 0 | BK197: 0 | BL197: 0 | BM197: 0 | BN197: 0 | BO197: 0 | BP197: 0 | BQ197: 0 | BR197: 0 | BT197: 187 | BU197: 13688 | BV197: Bolívar | BW197: Santa Rosa del Sur | BX197: [Lineas] | BY197: 37 | BZ197: 24 | CA197: 15 | CB197: 0 | CC197: 0 | CD197: 0 | CE197: 0
B198: 188 | C198: 13744 | D198: Bolívar | E198: Simití | F198: [Lineas] | G198: 109 | H198: 107 | I198: 107 | J198: 100 | K198: 95 | L198: 87 | M198: 86 | N198: 86 | O198: 86 | P198: 79 | Q198: 77 | R198: 78 | S198: 73 | T198: 71 | U198: 75 | V198: 78 | W198: 71 | X198: 65 | Y198: 64 | Z198: 63 | AA198: 64 | AB198: 61 | AC198: 58 | AD198: 57 | AE198: 59 | AF198: 54 | AG198: 50 | AH198: 47 | AI198: 45 | AJ198: 45 | BF198: 0 | BG198: 0 | BH198: 0 | BI198: 0 | BJ198: 0 | BK198: 0 | BL198: 0 | BM198: 0 | BN198: 0 | BO198: 0 | BP198: 0 | BQ198: 0 | BR198: 0 | BT198: 188 | BU198: 13744 | BV198: Bolívar | BW198: Simití | BX198: [Lineas] | BY198: 0 | BZ198: 0 | CA198: 0 | CB198: 0 | CC198: 0 | CD198: 0 | CE198: 0
B199: 189 | C199: 13760 | D199: Bolívar | E199: Soplaviento | F199: [Lineas] | AU199: 1 | AV199: 1 | AW199: 1 | AX199: 1 | AY199: 1 | AZ199: 1 | BA199: 1 | BB199: 1 | BC199: 1 | BD199: 1 | BE199: 1 | BF199: 1 | BG199: 1 | BH199: 1 | BI199: 1 | BJ199: 1 | BK199: 1 | BL199: 1 | BM199: 1 | BN199: 1 | BO199: 1 | BP199: 1 | BQ199: 1 | BR199: 1 | BT199: 189 | BU199: 13760 | BV199: Bolívar | BW199: Soplaviento | BX199: [Lineas] | BY199: 0 | BZ199: 1 | CA199: 1 | CB199: 1 | CC199: 1 | CD199: 1 | CE199: 1
B200: 190 | C200: 13780 | D200: Bolívar | E200: Talaigua Nuevo | F200: [Lineas] | G200: 80 | H200: 78 | I200: 76 | J200: 73 | K200: 69 | L200: 58 | M200: 55 | N200: 51 | O200: 49 | P200: 46 | Q200: 44 | R200: 43 | S200: 34 | T200: 34 | U200: 36 | V200: 38 | W200: 38 | X200: 36 | Y200: 33 | Z200: 31 | AA200: 30 | AB200: 24 | AC200: 24 | AD200: 24 | AE200: 24 | AF200: 24 | AG200: 4 | AH200: 4 | AI200: 4 | AJ200: 4 | BF200: 0 | BG200: 0 | BH200: 0 | BI200: 0 | BJ200: 0 | BK200: 0 | BL200: 0 | BM200: 0 | BN200: 0 | BO200: 0 | BP200: 0 | BQ200: 0 | BR200: 0 | BT200: 190 | BU200: 13780 | BV200: Bolívar | BW200: Talaigua Nuevo | BX200: [Lineas] | BY200: 0 | BZ200: 0 | CA200: 0 | CB200: 0 | CC200: 0 | CD200: 0 | CE200: 0
B201: 191 | C201: 13810 | D201: Bolívar | E201: Tiquisio | F201: [Lineas] | U201: 6 | V201: 12 | W201: 12 | X201: 12 | Y201: 12 | Z201: 12 | AA201: 12 | AB201: 12 | AC201: 12 | AD201: 12 | AE201: 12 | AF201: 12 | AG201: 12 | AH201: 12 | AI201: 12 | AJ201: 12 | BF201: 0 | BG201: 0 | BH201: 0 | BI201: 0 | BJ201: 0 | BK201: 0 | BL201: 0 | BM201: 0 | BN201: 0 | BO201: 0 | BP201: 0 | BQ201: 0 | BR201: 0 | BT201: 191 | BU201: 13810 | BV201: Bolívar | BW201: Tiquisio | BX201: [Lineas] | BY201: 0 | BZ201: 0 | CA201: 0 | CB201: 0 | CC201: 0 | CD201: 0 | CE201: 0
B202: 192 | C202: 13836 | D202: Bolívar | E202: Turbaco | F202: [Lineas] | G202: 2797 | H202: 1835 | I202: 2002 | J202: 1998 | K202: 3136 | L202: 3351 | M202: 2355 | N202: 2463 | O202: 2584 | P202: 4110 | Q202: 4315 | R202: 4320 | S202: 4546 | T202: 4562 | U202: 4798 | V202: 4961 | W202: 5179 | X202: 5749 | Y202: 5821 | Z202: 5764 | AA202: 5938 | AB202: 5834 | AC202: 5996 | AD202: 6124 | AE202: 6309 | AF202: 6491 | AG202: 6736 | AH202: 6998 | AI202: 7365 | AJ202: 7721 | AK202: 8064 | AL202: 8664 | AM202: 9051 | AN202: 9492 | AO202: 9568 | AP202: 9977 | AQ202: 10633 | AR202: 11374 | AS202: 11914 | AT202: 12475 | AU202: 12685 | AV202: 13111 | AW202: 13493 | AX202: 14473 | AY202: 15191 | AZ202: 15679 | BA202: 15292 | BB202: 15226 | BC202: 15480 | BD202: 15598 | BE202: 15221 | BF202: 14230 | BG202: 14230 | BH202: 14230 | BI202: 14230 | BJ202: 14230 | BK202: 14230 | BL202: 14230 | BM202: 14230 | BN202: 14230 | BO202: 14230 | BP202: 14230 | BQ202: 14230 | BR202: 14230 | BT202: 192 | BU202: 13836 | BV202: Bolívar | BW202: Turbaco | BX202: [Lineas] | BY202: 12475 | BZ202: 14473 | CA202: 15226 | CB202: 14230 | CC202: 14230 | CD202: 14230 | CE202: 14230
B203: 193 | C203: 13838 | D203: Bolívar | E203: Turbaná | F203: [Lineas] | G203: 91 | H203: 87 | I203: 84 | J203: 81 | K203: 75 | L203: 73 | M203: 71 | N203: 68 | O203: 67 | P203: 64 | Q203: 64 | R203: 64 | S203: 55 | T203: 55 | U203: 56 | V203: 53 | W203: 50 | X203: 47 | Y203: 46 | Z203: 44 | AA203: 44 | AB203: 43 | AC203: 42 | AD203: 41 | AE203: 41 | AF203: 41 | AG203: 38 | AH203: 38 | AI203: 36 | AJ203: 36 | AO203: 1 | AP203: 1 | AQ203: 1 | AR203: 1 | AS203: 1 | AT203: 1 | AU203: 2 | AV203: 2 | AW203: 1 | AX203: 1 | AY203: 1 | AZ203: 1 | BA203: 1 | BB203: 1 | BC203: 1 | BD203: 1 | BE203: 1 | BF203: 0 | BG203: 0 | BH203: 0 | BI203: 0 | BJ203: 0 | BK203: 0 | BL203: 0 | BM203: 0 | BN203: 0 | BO203: 0 | BP203: 0 | BQ203: 0 | BR203: 0 | BT203: 193 | BU203: 13838 | BV203: Bolívar | BW203: Turbaná | BX203: [Lineas] | BY203: 1 | BZ203: 1 | CA203: 1 | CB203: 0 | CC203: 0 | CD203: 0 | CE203: 0
B204: 194 | C204: 13873 | D204: Bolívar | E204: Villanueva | F204: [Lineas] | G204: 66 | H204: 63 | I204: 59 | J204: 55 | K204: 54 | L204: 54 | M204: 50 | N204: 8 | O204: 6 | P204: 5 | Q204: 4 | R204: 2 | BF204: 1 | BG204: =MAX(IFERROR(IF(BF204>0,IF(_xlfn.FORECAST.ETS(BG$10,OFFSET($BF204,0,0,1,-10),OFFSET($BF$10,0,0,1,-10),4)<0,0,_xlfn.FORECAST.ETS(BG$10,OFFSET($BF204,0,0,1,-10),OFFSET($BF$10,0,0,1,-10),4)),0),BF204),0) -> 1 | BH204: 1 | BI204: 1 | BJ204: 1 | BK204: 1 | BL204: 1 | BM204: 1 | BN204: 1 | BO204: 1 | BP204: 1 | BQ204: 1 | BR204: 1 | BT204: 194 | BU204: 13873 | BV204: Bolívar | BW204: Villanueva | BX204: [Lineas] | BY204: =AT204 -> 0 | BZ204: =AX204 -> 0 | CA204: =BB204 -> 0 | CB204: =BF204 -> 1 | CC204: =BJ204 -> 1 | CD204: =BN204 -> 1 | CE204: =BR204 -> 1
B205: 195 | C205: 13894 | D205: Bolívar | E205: Zambrano | F205: [Lineas] | G205: 22 | H205: 22 | I205: 20 | J205: 19 | K205: 17 | L205: 17 | M205: 15 | N205: 15 | O205: 13 | P205: 12 | Q205: 10 | R205: 5 | S205: 2 | T205: 2 | U205: 2 | AO205: 2 | AP205: 2 | AQ205: 2 | AR205: 2 | AS205: 2 | AT205: 2 | AU205: 2 | AV205: 2 | AW205: 2 | AX205: 2 | AY205: 2 | AZ205: 2 | BA205: 2 | BB205: 2 | BC205: 2 | BD205: 2 | BE205: 2 | BF205: 1 | BG205: 1 | BH205: 1 | BI205: 1 | BJ205: 1 | BK205: 1 | BL205: 1 | BM205: 1 | BN205: 1 | BO205: 1 | BP205: 1 | BQ205: 1 | BR205: 1 | BT205: 195 | BU205: 13894 | BV205: Bolívar | BW205: Zambrano | BX205: [Lineas] | BY205: 2 | BZ205: 2 | CA205: 2 | CB205: 1 | CC205: 1 | CD205: 1 | CE205: 1
... 916 more rows

Sheet Demanda
E2: =Portada!$F$2 -> Modelo Empresa Eficiente Fija
E3: Estimación y Proyección de Demanda por Servicios
B6: Parámetros de Tráfico
D8: Parámetros Demanda | F8: %
D9: % Tráfico OnNet | F9: 0.35 | G9: porc.onnet
D10: Datos Uplink c/r al Total Datos | F10: 0.15
B12: Salida Demanda Empresa Eficiente a Tarifas
C14: id | D14: Descripción | F14: =+G14-1 -> 2021 | G14: =años.calendario -> 2022 | H14: 2023 | I14: 2024 | J14: 2025 | K14: 2026 | L14: 2027
C15: 1 | D15: Líneas de Telefonía Fija (EOP) | F15: =dda.lin.eop -> 2419905 | G15: 2409097 | H15: 2319898 | I15: 1998861 | J15: 1998861 | K15: 1998861 | L15: 1998861 | M15: [Lineas]
C16: =C15+1 -> 2 | D16: Accesos a Internet Fija (EOP) | F16: =dda.acc.eop -> 3006716 | G16: 3146363 | H16: 3178966 | I16: 3232603 | J16: 3232603 | K16: 3232603 | L16: 3232603 | M16: [Accesos]
C17: 3 | D17: Abonados TV Suscripción (EOP) | F17: =dda.atv.eop -> 2195228.042 | G17: 2237040.881 | H17: 2192388.887 | I17: 2125883.479 | J17: 2125883.479 | K17: 2125883.479 | L17: 2125883.479 | M17: [AboTV]
C18: 4
C19: 5 | D19: Accesos sólo TF | F19: =TRANSPOSE(dda.acc.tf) -> 251301.4813 | G19: 250407.2062 | H19: 240881.3022 | I19: 209933.7316 | J19: 209933.7316 | K19: 209933.7316 | L19: 209933.7316 | M19: [Accesos]
C20: 6 | D20: Accesos sólo IF | F20: =+TRANSPOSE(dda.acc.if) -> 1170451.154 | G20: 1288983.314 | H20: 1347972.347 | I20: 1536823.896 | J20: 1536823.896 | K20: 1536823.896 | L20: 1536823.896 | M20: [Accesos]
C21: 7 | D21: Accesos sólo TV | F21: =TRANSPOSE(dda.acc.tv) -> 793387.0019 | G21: 811603.7795 | H21: 773055.0593 | I21: 785213.3597 | J21: 785213.3597 | K21: 785213.3597 | L21: 785213.3597 | M21: [Accesos]
C22: 8 | D22: Accesos TF + IF | F22: =+TRANSPOSE(dda.acc.tf_if) -> 453750.392 | G22: 451108.1769 | H22: 430272.3921 | I22: 371313.4146 | J22: 371313.4146 | K22: 371313.4146 | L22: 371313.4146 | M22: [Accesos]
C23: 9 | D23: Accesos TF + TV | F23: =+TRANSPOSE(dda.acc.tf_tv) -> 19326.58545 | G23: 19165.59319 | H23: 18612.56661 | I23: 16204.42956 | J23: 16204.42956 | K23: 16204.42956 | L23: 16204.42956 | M23: [Accesos]
C24: 10 | D24: Accesos IF + TV | F24: =TRANSPOSE(dda.acc.if_tv) -> 352964.277 | G24: 376526.0873 | H24: 405255.3956 | I24: 461080.9389 | J24: 461080.9389 | K24: 461080.9389 | L24: 461080.9389 | M24: [Accesos]
C25: 11 | D25: Accesos TF + IF + TV (3play) | F25: =+TRANSPOSE(dda.acc.3play) -> 1029550.177 | G25: 1029745.421 | H25: 995465.8653 | I25: 863384.7504 | J25: 863384.7504 | K25: 863384.7504 | L25: 863384.7504 | M25: [Accesos]
C26: 12 | D26: Total Accesos | F26: =SUM(F19:F25) -> 4070731.069 | G26: =SUM(G19:G25) -> 4227539.579 | H26: 4211514.928 | I26: 4243954.521 | J26: 4243954.521 | K26: 4243954.521 | L26: =SUM(L19:L25) -> 4243954.521 | M26: [Accesos] | N26: dda.acc.tot
C27: 13 | D27: Tráfico Local Entrada | F27: =dda.loc.ent -> 1234353425 | G27: 764695308 | H27: 556680508 | I27: 389283024 | J27: 271457668 | K27: 215474229 | L27: 174987475 | M27: [Minutos]
C28: 14 | D28: Tráfico Local Salida | F28: =dda.loc.sal -> 1258936960 | G28: 784579514 | H28: 576150660 | I28: 404048802 | J28: 284027198 | K28: 228440579 | L28: 188578044 | M28: [Minutos]
C29: 15 | D29: Tráfico Local OnNet | F29: =dda.loc.on -> 677889134 | G29: 422465885 | H29: 310234965 | I29: 217564740 | J29: 152937726 | K29: 123006469 | L29: 101542030 | M29: [Minutos]
C30: 16
C31: 17
C32: 18
C33: 19 | D33: Tráfico LDN Entrada | F33: =dda.ldn.ent -> 885495164 | G33: 818793327 | H33: 829466907 | I33: 795052631 | J33: 779187821 | K33: 831080287 | L33: 893182761 | M33: [Minutos]
C34: 20 | D34: Tráfico LDN Salida | F34: =dda.ldn.sal -> 539563973 | G34: 493781669 | H34: 496756468 | I34: 473959466 | J34: 463192966 | K34: 493585047 | L34: 530042220 | M34: [Minutos]
C35: 21 | D35: Tráfico LDI Entrada | F35: =dda.ldi.ent -> 222311104 | G35: 232459025 | H35: 232004916 | I35: 214282915 | J35: 192800582 | K35: 191758158 | L35: 190715734 | M35: [Minutos]
C36: 22 | D36: Tráfico LDI Salida | F36: =dda.ldi.sal -> 1411862522 | G36: 1288761000 | H36: 1171089564 | I36: 985841586 | J36: 804783462 | K36: 728172384 | L36: 658854271 | M36: [Minutos]
C37: 23
C38: 24 | D38: Tráfico de Datos Up | F38: =dda.dat.up -> 0 | G38: 186179864.4 | H38: 204257524.1 | I38: 220083517.5 | J38: 235074890.2 | K38: 248225119.2 | L38: 261375348.2 | M38: [GB]
C39: 25 | D39: Tráfico de Datos Down | F39: =dda.dat.dw -> 0 | G39: 1055019231 | H39: 1157459303 | I39: 1247139932 | J39: 1332091044 | K39: 1406609009 | L39: 1481126973 | M39: [GB]
C40: 26 | D40: Velocidad Promedio | F40: =dda.dat.speed -> 0 | G40: 101.1259589 | H40: 158.9207854 | I40: 222.7976305 | J40: 274.3900732 | K40: 325.4561173 | L40: 376.1756251 | M40: [Mbps]
C41: 27
C42: 28 | D42: Tráfico Móvil Local Entrada | F42: =N24920 -> 2523298910 | G42: =O24920 -> 1426339454 | H42: 1327064784 | I42: 1176003084 | J42: 980512812 | K42: 779667563 | L42: 578822316 | M42: [Minutos]
C43: 29 | D43: Tráfico Local Móvil Salida | F43: =F24920 -> 218925276 | G43: =G24920 -> 183966307 | H43: 138142019 | I43: 89988741 | J43: 38490603 | K43: 22240250 | L43: =L24920 -> 17296672 | M43: [Minutos]
C44: 30
B47: Accesos a Servicios
B49: Líneas en Servicio de Telefonía Fija Mercado por Municipio (EOP)
B51: id | C51: id DANE | D51: Departamento | E51: Municipio | F51: =+G51-1 -> 2021 | G51: =años.calendario -> 2022 | H51: 2023 | I51: 2024 | J51: 2025 | K51: 2026 | L51: 2027
B52: 1 | C52: 5001 | D52: Antioquia | E52: Medellín | F52: =Proyección!BY11 -> 757469 | G52: =Proyección!BZ11 -> 714165 | H52: =Proyección!CA11 -> 702855 | I52: =Proyección!CB11 -> 619858 | J52: =Proyección!CC11 -> 619858 | K52: =Proyección!CD11 -> 619858 | L52: =Proyección!CE11 -> 619858 | M52: [Lineas]
B53: 2 | C53: 5002 | D53: Antioquia | E53: Abejorral | F53: =Proyección!BY12 -> 585 | G53: =Proyección!BZ12 -> 538 | H53: =Proyección!CA12 -> 423 | I53: =Proyección!CB12 -> 294 | J53: =Proyección!CC12 -> 294 | K53: =Proyección!CD12 -> 294 | L53: =Proyección!CE12 -> 294 | M53: [Lineas]
B54: 3 | C54: 5004 | D54: Antioquia | E54: Abriaquí | F54: =Proyección!BY13 -> 47 | G54: =Proyección!BZ13 -> 84 | H54: =Proyección!CA13 -> 66 | I54: =Proyección!CB13 -> 51 | J54: =Proyección!CC13 -> 51 | K54: =Proyección!CD13 -> 51 | L54: =Proyección!CE13 -> 51 | M54: [Lineas]
B55: 4 | C55: 5021 | D55: Antioquia | E55: Alejandría | F55: =Proyección!BY14 -> 90 | G55: =Proyección!BZ14 -> 72 | H55: =Proyección!CA14 -> 66 | I55: =Proyección!CB14 -> 51 | J55: =Proyección!CC14 -> 51 | K55: =Proyección!CD14 -> 51 | L55: =Proyección!CE14 -> 51 | M55: [Lineas]
B56: 5 | C56: 5030 | D56: Antioquia | E56: Amagá | F56: =Proyección!BY15 -> 1205 | G56: =Proyección!BZ15 -> 969 | H56: =Proyección!CA15 -> 592 | I56: =Proyección!CB15 -> 377 | J56: =Proyección!CC15 -> 377 | K56: =Proyección!CD15 -> 377 | L56: =Proyección!CE15 -> 377 | M56: [Lineas]
B57: 6 | C57: 5031 | D57: Antioquia | E57: Amalfi | F57: =Proyección!BY16 -> 364 | G57: =Proyección!BZ16 -> 417 | H57: =Proyección!CA16 -> 318 | I57: =Proyección!CB16 -> 229 | J57: =Proyección!CC16 -> 229 | K57: =Proyección!CD16 -> 229 | L57: =Proyección!CE16 -> 229 | M57: [Lineas]
B58: 7 | C58: 5034 | D58: Antioquia | E58: Andes | F58: =Proyección!BY17 -> 2330 | G58: =Proyección!BZ17 -> 2680 | H58: =Proyección!CA17 -> 2314 | I58: =Proyección!CB17 -> 1940 | J58: =Proyección!CC17 -> 1940 | K58: =Proyección!CD17 -> 1940 | L58: =Proyección!CE17 -> 1940 | M58: [Lineas]
B59: 8 | C59: 5036 | D59: Antioquia | E59: Angelópolis | F59: =Proyección!BY18 -> 112 | G59: =Proyección!BZ18 -> 72 | H59: =Proyección!CA18 -> 55 | I59: =Proyección!CB18 -> 46 | J59: =Proyección!CC18 -> 46 | K59: =Proyección!CD18 -> 46 | L59: =Proyección!CE18 -> 46 | M59: [Lineas]
B60: 9 | C60: 5038 | D60: Antioquia | E60: Angostura | F60: =Proyección!BY19 -> 135 | G60: =Proyección!BZ19 -> 183 | H60: =Proyección!CA19 -> 139 | I60: =Proyección!CB19 -> 99 | J60: =Proyección!CC19 -> 99 | K60: =Proyección!CD19 -> 99 | L60: =Proyección!CE19 -> 99 | M60: [Lineas]
B61: 10 | C61: 5040 | D61: Antioquia | E61: Anorí | F61: =Proyección!BY20 -> 181 | G61: =Proyección!BZ20 -> 264 | H61: =Proyección!CA20 -> 215 | I61: =Proyección!CB20 -> 127 | J61: =Proyección!CC20 -> 127 | K61: =Proyección!CD20 -> 127 | L61: =Proyección!CE20 -> 127 | M61: [Lineas]
B62: 11 | C62: 5042 | D62: Antioquia | E62: Santafé de Antioquia | F62: =Proyección!BY21 -> 2294 | G62: =Proyección!BZ21 -> 2640 | H62: =Proyección!CA21 -> 2512 | I62: =Proyección!CB21 -> 1998 | J62: =Proyección!CC21 -> 1998 | K62: =Proyección!CD21 -> 1998 | L62: =Proyección!CE21 -> 1998 | M62: [Lineas]
B63: 12 | C63: 5044 | D63: Antioquia | E63: Anza | F63: =Proyección!BY22 -> 68 | G63: =Proyección!BZ22 -> 88 | H63: =Proyección!CA22 -> 80 | I63: =Proyección!CB22 -> 52 | J63: =Proyección!CC22 -> 52 | K63: =Proyección!CD22 -> 52 | L63: =Proyección!CE22 -> 52 | M63: [Lineas]
B64: 13 | C64: 5045 | D64: Antioquia | E64: Apartadó | F64: =Proyección!BY23 -> 8823 | G64: =Proyección!BZ23 -> 14779 | H64: =Proyección!CA23 -> 16089 | I64: =Proyección!CB23 -> 18926 | J64: =Proyección!CC23 -> 18926 | K64: =Proyección!CD23 -> 18926 | L64: =Proyección!CE23 -> 18926 | M64: [Lineas]
B65: 14 | C65: 5051 | D65: Antioquia | E65: Arboletes | F65: =Proyección!BY24 -> 248 | G65: =Proyección!BZ24 -> 203 | H65: =Proyección!CA24 -> 125 | I65: =Proyección!CB24 -> 84 | J65: =Proyección!CC24 -> 84 | K65: =Proyección!CD24 -> 84 | L65: =Proyección!CE24 -> 84 | M65: [Lineas]
B66: 15 | C66: 5055 | D66: Antioquia | E66: Argelia | F66: =Proyección!BY25 -> 91 | G66: =Proyección!BZ25 -> 133 | H66: =Proyección!CA25 -> 106 | I66: =Proyección!CB25 -> 75 | J66: =Proyección!CC25 -> 75 | K66: =Proyección!CD25 -> 75 | L66: =Proyección!CE25 -> 75 | M66: [Lineas]
B67: 16 | C67: 5059 | D67: Antioquia | E67: Armenia | F67: =Proyección!BY26 -> 93 | G67: =Proyección!BZ26 -> 93 | H67: =Proyección!CA26 -> 85 | I67: =Proyección!CB26 -> 85 | J67: =Proyección!CC26 -> 85 | K67: =Proyección!CD26 -> 85 | L67: =Proyección!CE26 -> 85 | M67: [Lineas]
B68: 17 | C68: 5079 | D68: Antioquia | E68: Barbosa | F68: =Proyección!BY27 -> 7483 | G68: =Proyección!BZ27 -> 7833 | H68: =Proyección!CA27 -> 8105 | I68: =Proyección!CB27 -> 7142 | J68: =Proyección!CC27 -> 7142 | K68: =Proyección!CD27 -> 7142 | L68: =Proyección!CE27 -> 7142 | M68: [Lineas]
B69: 18 | C69: 5086 | D69: Antioquia | E69: Belmira | F69: =Proyección!BY28 -> 152 | G69: =Proyección!BZ28 -> 232 | H69: =Proyección!CA28 -> 191 | I69: =Proyección!CB28 -> 145 | J69: =Proyección!CC28 -> 145 | K69: =Proyección!CD28 -> 145 | L69: =Proyección!CE28 -> 145 | M69: [Lineas]
B70: 19 | C70: 5088 | D70: Antioquia | E70: Bello | F70: =Proyección!BY29 -> 117347 | G70: =Proyección!BZ29 -> 126795 | H70: =Proyección!CA29 -> 132905 | I70: =Proyección!CB29 -> 117987 | J70: =Proyección!CC29 -> 117987 | K70: =Proyección!CD29 -> 117987 | L70: =Proyección!CE29 -> 117987 | M70: [Lineas]
B71: 20 | C71: 5091 | D71: Antioquia | E71: Betania | F71: =Proyección!BY30 -> 187 | G71: =Proyección!BZ30 -> 161 | H71: =Proyección!CA30 -> 125 | I71: =Proyección!CB30 -> 88 | J71: =Proyección!CC30 -> 88 | K71: =Proyección!CD30 -> 88 | L71: =Proyección!CE30 -> 88 | M71: [Lineas]
B72: 21 | C72: 5093 | D72: Antioquia | E72: Betulia | F72: =Proyección!BY31 -> 290 | G72: =Proyección!BZ31 -> 375 | H72: =Proyección!CA31 -> 303 | I72: =Proyección!CB31 -> 208 | J72: =Proyección!CC31 -> 208 | K72: =Proyección!CD31 -> 208 | L72: =Proyección!CE31 -> 208 | M72: [Lineas]
B73: 22 | C73: 5101 | D73: Antioquia | E73: Ciudad Bolívar | F73: =Proyección!BY32 -> 1209 | G73: =Proyección!BZ32 -> 1322 | H73: =Proyección!CA32 -> 932 | I73: =Proyección!CB32 -> 490 | J73: =Proyección!CC32 -> 490 | K73: =Proyección!CD32 -> 490 | L73: =Proyección!CE32 -> 490 | M73: [Lineas]
B74: 23 | C74: 5107 | D74: Antioquia | E74: Briceño | F74: =Proyección!BY33 -> 61 | G74: =Proyección!BZ33 -> 95 | H74: =Proyección!CA33 -> 61 | I74: =Proyección!CB33 -> 48 | J74: =Proyección!CC33 -> 48 | K74: =Proyección!CD33 -> 48 | L74: =Proyección!CE33 -> 48 | M74: [Lineas]
B75: 24 | C75: 5113 | D75: Antioquia | E75: Buriticá | F75: =Proyección!BY34 -> 160 | G75: =Proyección!BZ34 -> 163 | H75: =Proyección!CA34 -> 120 | I75: =Proyección!CB34 -> 89 | J75: =Proyección!CC34 -> 89 | K75: =Proyección!CD34 -> 89 | L75: =Proyección!CE34 -> 89 | M75: [Lineas]
B76: 25 | C76: 5120 | D76: Antioquia | E76: Cáceres | F76: =Proyección!BY35 -> 224 | G76: =Proyección!BZ35 -> 456 | H76: =Proyección!CA35 -> 339 | I76: =Proyección!CB35 -> 177 | J76: =Proyección!CC35 -> 177 | K76: =Proyección!CD35 -> 177 | L76: =Proyección!CE35 -> 177 | M76: [Lineas]
B77: 26 | C77: 5125 | D77: Antioquia | E77: Caicedo | F77: =Proyección!BY36 -> 104 | G77: =Proyección!BZ36 -> 130 | H77: =Proyección!CA36 -> 109 | I77: =Proyección!CB36 -> 71 | J77: =Proyección!CC36 -> 71 | K77: =Proyección!CD36 -> 71 | L77: =Proyección!CE36 -> 71 | M77: [Lineas]
B78: 27 | C78: 5129 | D78: Antioquia | E78: Caldas | F78: =Proyección!BY37 -> 20167 | G78: =Proyección!BZ37 -> 20919 | H78: =Proyección!CA37 -> 20734 | I78: =Proyección!CB37 -> 18012 | J78: =Proyección!CC37 -> 18012 | K78: =Proyección!CD37 -> 18012 | L78: =Proyección!CE37 -> 18012 | M78: [Lineas]
B79: 28 | C79: 5134 | D79: Antioquia | E79: Campamento | F79: =Proyección!BY38 -> 87 | G79: =Proyección!BZ38 -> 128 | H79: =Proyección!CA38 -> 108 | I79: =Proyección!CB38 -> 66 | J79: =Proyección!CC38 -> 66 | K79: =Proyección!CD38 -> 66 | L79: =Proyección!CE38 -> 66 | M79: [Lineas]
B80: 29 | C80: 5138 | D80: Antioquia | E80: Cañasgordas | F80: =Proyección!BY39 -> 225 | G80: =Proyección!BZ39 -> 386 | H80: =Proyección!CA39 -> 367 | I80: =Proyección!CB39 -> 274 | J80: =Proyección!CC39 -> 274 | K80: =Proyección!CD39 -> 274 | L80: =Proyección!CE39 -> 274 | M80: [Lineas]
B81: 30 | C81: 5142 | D81: Antioquia | E81: Caracolí | F81: =Proyección!BY40 -> 119 | G81: =Proyección!BZ40 -> 204 | H81: =Proyección!CA40 -> 166 | I81: =Proyección!CB40 -> 124 | J81: =Proyección!CC40 -> 124 | K81: =Proyección!CD40 -> 124 | L81: =Proyección!CE40 -> 124 | M81: [Lineas]
B82: 31 | C82: 5145 | D82: Antioquia | E82: Caramanta | F82: =Proyección!BY41 -> 118 | G82: =Proyección!BZ41 -> 183 | H82: =Proyección!CA41 -> 171 | I82: =Proyección!CB41 -> 94 | J82: =Proyección!CC41 -> 94 | K82: =Proyección!CD41 -> 94 | L82: =Proyección!CE41 -> 94 | M82: [Lineas]
B83: 32 | C83: 5147 | D83: Antioquia | E83: Carepa | F83: =Proyección!BY42 -> 2218 | G83: =Proyección!BZ42 -> 3319 | H83: =Proyección!CA42 -> 4353 | I83: =Proyección!CB42 -> 4001 | J83: =Proyección!CC42 -> 4001 | K83: =Proyección!CD42 -> 4001 | L83: =Proyección!CE42 -> 4001 | M83: [Lineas]
B84: 33 | C84: 5148 | D84: Antioquia | E84: El Carmen de Viboral | F84: =Proyección!BY43 -> 4252 | G84: =Proyección!BZ43 -> 4378 | H84: =Proyección!CA43 -> 4464 | I84: =Proyección!CB43 -> 4058 | J84: =Proyección!CC43 -> 4058 | K84: =Proyección!CD43 -> 4058 | L84: =Proyección!CE43 -> 4058 | M84: [Lineas]
B85: 34 | C85: 5150 | D85: Antioquia | E85: Carolina | F85: =Proyección!BY44 -> 325 | G85: =Proyección!BZ44 -> 364 | H85: =Proyección!CA44 -> 312 | I85: =Proyección!CB44 -> 211 | J85: =Proyección!CC44 -> 211 | K85: =Proyección!CD44 -> 211 | L85: =Proyección!CE44 -> 211 | M85: [Lineas]
B86: 35 | C86: 5154 | D86: Antioquia | E86: Caucasia | F86: =Proyección!BY45 -> 2995 | G86: =Proyección!BZ45 -> 5853 | H86: =Proyección!CA45 -> 5156 | I86: =Proyección!CB45 -> 4906 | J86: =Proyección!CC45 -> 4906 | K86: =Proyección!CD45 -> 4906 | L86: =Proyección!CE45 -> 4906 | M86: [Lineas]
B87: 36 | C87: 5172 | D87: Antioquia | E87: Chigorodó | F87: =Proyección!BY46 -> 2571 | G87: =Proyección!BZ46 -> 3971 | H87: =Proyección!CA46 -> 5493 | I87: =Proyección!CB46 -> 5690 | J87: =Proyección!CC46 -> 5690 | K87: =Proyección!CD46 -> 5690 | L87: =Proyección!CE46 -> 5690 | M87: [Lineas]
B88: 37 | C88: 5190 | D88: Antioquia | E88: Cisneros | F88: =Proyección!BY47 -> 512 | G88: =Proyección!BZ47 -> 707 | H88: =Proyección!CA47 -> 525 | I88: =Proyección!CB47 -> 383 | J88: =Proyección!CC47 -> 383 | K88: =Proyección!CD47 -> 383 | L88: =Proyección!CE47 -> 383 | M88: [Lineas]
B89: 38 | C89: 5197 | D89: Antioquia | E89: Cocorná | F89: =Proyección!BY48 -> 205 | G89: =Proyección!BZ48 -> 182 | H89: =Proyección!CA48 -> 130 | I89: =Proyección!CB48 -> 88 | J89: =Proyección!CC48 -> 88 | K89: =Proyección!CD48 -> 88 | L89: =Proyección!CE48 -> 88 | M89: [Lineas]
B90: 39 | C90: 5206 | D90: Antioquia | E90: Concepción | F90: =Proyección!BY49 -> 134 | G90: =Proyección!BZ49 -> 155 | H90: =Proyección!CA49 -> 125 | I90: =Proyección!CB49 -> 91 | J90: =Proyección!CC49 -> 91 | K90: =Proyección!CD49 -> 91 | L90: =Proyección!CE49 -> 91 | M90: [Lineas]
B91: 40 | C91: 5209 | D91: Antioquia | E91: Concordia | F91: =Proyección!BY50 -> 384 | G91: =Proyección!BZ50 -> 463 | H91: =Proyección!CA50 -> 454 | I91: =Proyección!CB50 -> 358 | J91: =Proyección!CC50 -> 358 | K91: =Proyección!CD50 -> 358 | L91: =Proyección!CE50 -> 358 | M91: [Lineas]
B92: 41 | C92: 5212 | D92: Antioquia | E92: Copacabana | F92: =Proyección!BY51 -> 20207 | G92: =Proyección!BZ51 -> 20807 | H92: =Proyección!CA51 -> 21242 | I92: =Proyección!CB51 -> 18204 | J92: =Proyección!CC51 -> 18204 | K92: =Proyección!CD51 -> 18204 | L92: =Proyección!CE51 -> 18204 | M92: [Lineas]
B93: 42 | C93: 5234 | D93: Antioquia | E93: Dabeiba | F93: =Proyección!BY52 -> 311 | G93: =Proyección!BZ52 -> 425 | H93: =Proyección!CA52 -> 318 | I93: =Proyección!CB52 -> 217 | J93: =Proyección!CC52 -> 217 | K93: =Proyección!CD52 -> 217 | L93: =Proyección!CE52 -> 217 | M93: [Lineas]
B94: 43 | C94: 5237 | D94: Antioquia | E94: Don Matías | F94: =Proyección!BY53 -> 1013 | G94: =Proyección!BZ53 -> 866 | H94: =Proyección!CA53 -> 401 | I94: =Proyección!CB53 -> 237 | J94: =Proyección!CC53 -> 237 | K94: =Proyección!CD53 -> 237 | L94: =Proyección!CE53 -> 237 | M94: [Lineas]
B95: 44 | C95: 5240 | D95: Antioquia | E95: Ebéjico | F95: =Proyección!BY54 -> 442 | G95: =Proyección!BZ54 -> 411 | H95: =Proyección!CA54 -> 393 | I95: =Proyección!CB54 -> 293 | J95: =Proyección!CC54 -> 293 | K95: =Proyección!CD54 -> 293 | L95: =Proyección!CE54 -> 293 | M95: [Lineas]
B96: 45 | C96: 5250 | D96: Antioquia | E96: El Bagre | F96: =Proyección!BY55 -> 605 | G96: =Proyección!BZ55 -> 1020 | H96: =Proyección!CA55 -> 1028 | I96: =Proyección!CB55 -> 649 | J96: =Proyección!CC55 -> 649 | K96: =Proyección!CD55 -> 649 | L96: =Proyección!CE55 -> 649 | M96: [Lineas]
B97: 46 | C97: 5264 | D97: Antioquia | E97: Entrerrios | F97: =Proyección!BY56 -> 305 | G97: =Proyección!BZ56 -> 250 | H97: =Proyección!CA56 -> 189 | I97: =Proyección!CB56 -> 143 | J97: =Proyección!CC56 -> 143 | K97: =Proyección!CD56 -> 143 | L97: =Proyección!CE56 -> 143 | M97: [Lineas]
B98: 47 | C98: 5266 | D98: Antioquia | E98: Envigado | F98: =Proyección!BY57 -> 85123 | G98: =Proyección!BZ57 -> 80942 | H98: =Proyección!CA57 -> 78754 | I98: =Proyección!CB57 -> 69321 | J98: =Proyección!CC57 -> 69321 | K98: =Proyección!CD57 -> 69321 | L98: =Proyección!CE57 -> 69321 | M98: [Lineas]
B99: 48 | C99: 5282 | D99: Antioquia | E99: Fredonia | F99: =Proyección!BY58 -> 1045 | G99: =Proyección!BZ58 -> 982 | H99: =Proyección!CA58 -> 653 | I99: =Proyección!CB58 -> 419 | J99: =Proyección!CC58 -> 419 | K99: =Proyección!CD58 -> 419 | L99: =Proyección!CE58 -> 419 | M99: [Lineas]
B100: 49 | C100: 5284 | D100: Antioquia | E100: Frontino | F100: =Proyección!BY59 -> 867 | G100: =Proyección!BZ59 -> 1093 | H100: =Proyección!CA59 -> 944 | I100: =Proyección!CB59 -> 802 | J100: =Proyección!CC59 -> 802 | K100: =Proyección!CD59 -> 802 | L100: =Proyección!CE59 -> 802 | M100: [Lineas]
B101: 50 | C101: 5306 | D101: Antioquia | E101: Giraldo | F101: =Proyección!BY60 -> 73 | G101: =Proyección!BZ60 -> 67 | H101: =Proyección!CA60 -> 60 | I101: =Proyección!CB60 -> 48 | J101: =Proyección!CC60 -> 48 | K101: =Proyección!CD60 -> 48 | L101: =Proyección!CE60 -> 48 | M101: [Lineas]
B102: 51 | C102: 5308 | D102: Antioquia | E102: Girardota | F102: =Proyección!BY61 -> 9559 | G102: =Proyección!BZ61 -> 9652 | H102: =Proyección!CA61 -> 10018 | I102: =Proyección!CB61 -> 9226 | J102: =Proyección!CC61 -> 9226 | K102: =Proyección!CD61 -> 9226 | L102: =Proyección!CE61 -> 9226 | M102: [Lineas]
B103: 52 | C103: 5310 | D103: Antioquia | E103: Gómez Plata | F103: =Proyección!BY62 -> 430 | G103: =Proyección!BZ62 -> 468 | H103: =Proyección!CA62 -> 337 | I103: =Proyección!CB62 -> 184 | J103: =Proyección!CC62 -> 184 | K103: =Proyección!CD62 -> 184 | L103: =Proyección!CE62 -> 184 | M103: [Lineas]
B104: 53 | C104: 5313 | D104: Antioquia | E104: Granada | F104: =Proyección!BY63 -> 81 | G104: =Proyección!BZ63 -> 90 | H104: =Proyección!CA63 -> 80 | I104: =Proyección!CB63 -> 55 | J104: =Proyección!CC63 -> 55 | K104: =Proyección!CD63 -> 55 | L104: =Proyección!CE63 -> 55 | M104: [Lineas]
B105: 54 | C105: 5315 | D105: Antioquia | E105: Guadalupe | F105: =Proyección!BY64 -> 203 | G105: =Proyección!BZ64 -> 176 | H105: =Proyección!CA64 -> 143 | I105: =Proyección!CB64 -> 77 | J105: =Proyección!CC64 -> 77 | K105: =Proyección!CD64 -> 77 | L105: =Proyección!CE64 -> 77 | M105: [Lineas]
B106: 55 | C106: 5318 | D106: Antioquia | E106: Guarne | F106: =Proyección!BY65 -> 7816 | G106: =Proyección!BZ65 -> 8155 | H106: =Proyección!CA65 -> 8530 | I106: =Proyección!CB65 -> 7307 | J106: =Proyección!CC65 -> 7307 | K106: =Proyección!CD65 -> 7307 | L106: =Proyección!CE65 -> 7307 | M106: [Lineas]
B107: 56 | C107: 5321 | D107: Antioquia | E107: Guatapé | F107: =Proyección!BY66 -> 440 | G107: =Proyección!BZ66 -> 386 | H107: =Proyección!CA66 -> 285 | I107: =Proyección!CB66 -> 162 | J107: =Proyección!CC66 -> 162 | K107: =Proyección!CD66 -> 162 | L107: =Proyección!CE66 -> 162 | M107: [Lineas]
B108: 57 | C108: 5347 | D108: Antioquia | E108: Heliconia | F108: =Proyección!BY67 -> 187 | G108: =Proyección!BZ67 -> 191 | H108: =Proyección!CA67 -> 175 | I108: =Proyección!CB67 -> 116 | J108: =Proyección!CC67 -> 116 | K108: =Proyección!CD67 -> 116 | L108: =Proyección!CE67 -> 116 | M108: [Lineas]
B109: 58 | C109: 5353 | D109: Antioquia | E109: Hispania | F109: =Proyección!BY68 -> 176 | G109: =Proyección!BZ68 -> 178 | H109: =Proyección!CA68 -> 143 | I109: =Proyección!CB68 -> 95 | J109: =Proyección!CC68 -> 95 | K109: =Proyección!CD68 -> 95 | L109: =Proyección!CE68 -> 95 | M109: [Lineas]
B110: 59 | C110: 5360 | D110: Antioquia | E110: Itagui | F110: =Proyección!BY69 -> 86668 | G110: =Proyección!BZ69 -> 81329 | H110: =Proyección!CA69 -> 80934 | I110: =Proyección!CB69 -> 73327 | J110: =Proyección!CC69 -> 73327 | K110: =Proyección!CD69 -> 73327 | L110: =Proyección!CE69 -> 73327 | M110: [Lineas]
B111: 60 | C111: 5361 | D111: Antioquia | E111: Ituango | F111: =Proyección!BY70 -> 346 | G111: =Proyección!BZ70 -> 406 | H111: =Proyección!CA70 -> 331 | I111: =Proyección!CB70 -> 225 | J111: =Proyección!CC70 -> 225 | K111: =Proyección!CD70 -> 225 | L111: =Proyección!CE70 -> 225 | M111: [Lineas]
B112: 61 | C112: 5364 | D112: Antioquia | E112: Jardín | F112: =Proyección!BY71 -> 570 | G112: =Proyección!BZ71 -> 601 | H112: =Proyección!CA71 -> 444 | I112: =Proyección!CB71 -> 331 | J112: =Proyección!CC71 -> 331 | K112: =Proyección!CD71 -> 331 | L112: =Proyección!CE71 -> 331 | M112: [Lineas]
B113: 62 | C113: 5368 | D113: Antioquia | E113: Jericó | F113: =Proyección!BY72 -> 641 | G113: =Proyección!BZ72 -> 580 | H113: =Proyección!CA72 -> 494 | I113: =Proyección!CB72 -> 418 | J113: =Proyección!CC72 -> 418 | K113: =Proyección!CD72 -> 418 | L113: =Proyección!CE72 -> 418 | M113: [Lineas]
B114: 63 | C114: 5376 | D114: Antioquia | E114: La Ceja | F114: =Proyección!BY73 -> 10894 | G114: =Proyección!BZ73 -> 11491 | H114: =Proyección!CA73 -> 11980 | I114: =Proyección!CB73 -> 11886 | J114: =Proyección!CC73 -> 11886 | K114: =Proyección!CD73 -> 11886 | L114: =Proyección!CE73 -> 11886 | M114: [Lineas]
B115: 64 | C115: 5380 | D115: Antioquia | E115: La Estrella | F115: =Proyección!BY74 -> 22964 | G115: =Proyección!BZ74 -> 21300 | H115: =Proyección!CA74 -> 21477 | I115: =Proyección!CB74 -> 19465 | J115: =Proyección!CC74 -> 19465 | K115: =Proyección!CD74 -> 19465 | L115: =Proyección!CE74 -> 19465 | M115: [Lineas]
B116: 65 | C116: 5390 | D116: Antioquia | E116: La Pintada | F116: =Proyección!BY75 -> 403 | G116: =Proyección!BZ75 -> 436 | H116: =Proyección!CA75 -> 338 | I116: =Proyección!CB75 -> 182 | J116: =Proyección!CC75 -> 182 | K116: =Proyección!CD75 -> 182 | L116: =Proyección!CE75 -> 182 | M116: [Lineas]
B117: 66 | C117: 5400 | D117: Antioquia | E117: La Unión | F117: =Proyección!BY76 -> 1336 | G117: =Proyección!BZ76 -> 1200 | H117: =Proyección!CA76 -> 901 | I117: =Proyección!CB76 -> 668 | J117: =Proyección!CC76 -> 668 | K117: =Proyección!CD76 -> 668 | L117: =Proyección!CE76 -> 668 | M117: [Lineas]
B118: 67 | C118: 5411 | D118: Antioquia | E118: Liborina | F118: =Proyección!BY77 -> 185 | G118: =Proyección!BZ77 -> 206 | H118: =Proyección!CA77 -> 178 | I118: =Proyección!CB77 -> 118 | J118: =Proyección!CC77 -> 118 | K118: =Proyección!CD77 -> 118 | L118: =Proyección!CE77 -> 118 | M118: [Lineas]
B119: 68 | C119: 5425 | D119: Antioquia | E119: Maceo | F119: =Proyección!BY78 -> 215 | G119: =Proyección!BZ78 -> 188 | H119: =Proyección!CA78 -> 153 | I119: =Proyección!CB78 -> 110 | J119: =Proyección!CC78 -> 110 | K119: =Proyección!CD78 -> 110 | L119: =Proyección!CE78 -> 110 | M119: [Lineas]
B120: 69 | C120: 5440 | D120: Antioquia | E120: Marinilla | F120: =Proyección!BY79 -> 6215 | G120: =Proyección!BZ79 -> 6294 | H120: =Proyección!CA79 -> 5759 | I120: =Proyección!CB79 -> 4476 | J120: =Proyección!CC79 -> 4476 | K120: =Proyección!CD79 -> 4476 | L120: =Proyección!CE79 -> 4476 | M120: [Lineas]
B121: 70 | C121: 5467 | D121: Antioquia | E121: Montebello | F121: =Proyección!BY80 -> 98 | G121: =Proyección!BZ80 -> 101 | H121: =Proyección!CA80 -> 76 | I121: =Proyección!CB80 -> 47 | J121: =Proyección!CC80 -> 47 | K121: =Proyección!CD80 -> 47 | L121: =Proyección!CE80 -> 47 | M121: [Lineas]
B122: 71 | C122: 5475 | D122: Antioquia | E122: Murindó | F122: =Proyección!BY81 -> 35 | G122: =Proyección!BZ81 -> 57 | H122: =Proyección!CA81 -> 34 | I122: =Proyección!CB81 -> 25 | J122: =Proyección!CC81 -> 25 | K122: =Proyección!CD81 -> 25 | L122: =Proyección!CE81 -> 25 | M122: [Lineas]
B123: 72 | C123: 5480 | D123: Antioquia | E123: Mutatá | F123: =Proyección!BY82 -> 191 | G123: =Proyección!BZ82 -> 329 | H123: =Proyección!CA82 -> 253 | I123: =Proyección!CB82 -> 171 | J123: =Proyección!CC82 -> 171 | K123: =Proyección!CD82 -> 171 | L123: =Proyección!CE82 -> 171 | M123: [Lineas]
B124: 73 | C124: 5483 | D124: Antioquia | E124: Nariño | F124: =Proyección!BY83 -> 45 | G124: =Proyección!BZ83 -> 80 | H124: =Proyección!CA83 -> 65 | I124: =Proyección!CB83 -> 47 | J124: =Proyección!CC83 -> 47 | K124: =Proyección!CD83 -> 47 | L124: =Proyección!CE83 -> 47 | M124: [Lineas]
B125: 74 | C125: 5490 | D125: Antioquia | E125: Necoclí | F125: =Proyección!BY84 -> 607 | G125: =Proyección!BZ84 -> 827 | H125: =Proyección!CA84 -> 557 | I125: =Proyección!CB84 -> 373 | J125: =Proyección!CC84 -> 373 | K125: =Proyección!CD84 -> 373 | L125: =Proyección!CE84 -> 373 | M125: [Lineas]
B126: 75 | C126: 5495 | D126: Antioquia | E126: Nechí | F126: =Proyección!BY85 -> 178 | G126: =Proyección!BZ85 -> 318 | H126: =Proyección!CA85 -> 392 | I126: =Proyección!CB85 -> 247 | J126: =Proyección!CC85 -> 247 | K126: =Proyección!CD85 -> 247 | L126: =Proyección!CE85 -> 247 | M126: [Lineas]
B127: 76 | C127: 5501 | D127: Antioquia | E127: Olaya | F127: =Proyección!BY86 -> 136 | G127: =Proyección!BZ86 -> 203 | H127: =Proyección!CA86 -> 188 | I127: =Proyección!CB86 -> 133 | J127: =Proyección!CC86 -> 133 | K127: =Proyección!CD86 -> 133 | L127: =Proyección!CE86 -> 133 | M127: [Lineas]
B128: 77 | C128: 5541 | D128: Antioquia | E128: Peñol | F128: =Proyección!BY87 -> 502 | G128: =Proyección!BZ87 -> 524 | H128: =Proyección!CA87 -> 426 | I128: =Proyección!CB87 -> 211 | J128: =Proyección!CC87 -> 211 | K128: =Proyección!CD87 -> 211 | L128: =Proyección!CE87 -> 211 | M128: [Lineas]
B129: 78 | C129: 5543 | D129: Antioquia | E129: Peque | F129: =Proyección!BY88 -> 162 | G129: =Proyección!BZ88 -> 188 | H129: =Proyección!CA88 -> 156 | I129: =Proyección!CB88 -> 98 | J129: =Proyección!CC88 -> 98 | K129: =Proyección!CD88 -> 98 | L129: =Proyección!CE88 -> 98 | M129: [Lineas]
B130: 79 | C130: 5576 | D130: Antioquia | E130: Pueblorrico | F130: =Proyección!BY89 -> 205 | G130: =Proyección!BZ89 -> 252 | H130: =Proyección!CA89 -> 241 | I130: =Proyección!CB89 -> 172 | J130: =Proyección!CC89 -> 172 | K130: =Proyección!CD89 -> 172 | L130: =Proyección!CE89 -> 172 | M130: [Lineas]
B131: 80 | C131: 5579 | D131: Antioquia | E131: Puerto Berrío | F131: =Proyección!BY90 -> 1411 | G131: =Proyección!BZ90 -> 2106 | H131: =Proyección!CA90 -> 1613 | I131: =Proyección!CB90 -> 1125 | J131: =Proyección!CC90 -> 1125 | K131: =Proyección!CD90 -> 1125 | L131: =Proyección!CE90 -> 1125 | M131: [Lineas]
B132: 81 | C132: 5585 | D132: Antioquia | E132: Puerto Nare | F132: =Proyección!BY91 -> 352 | G132: =Proyección!BZ91 -> 402 | H132: =Proyección!CA91 -> 297 | I132: =Proyección!CB91 -> 191 | J132: =Proyección!CC91 -> 191 | K132: =Proyección!CD91 -> 191 | L132: =Proyección!CE91 -> 191 | M132: [Lineas]
B133: 82 | C133: 5591 | D133: Antioquia | E133: Puerto Triunfo | F133: =Proyección!BY92 -> 278 | G133: =Proyección!BZ92 -> 376 | H133: =Proyección!CA92 -> 311 | I133: =Proyección!CB92 -> 213 | J133: =Proyección!CC92 -> 213 | K133: =Proyección!CD92 -> 213 | L133: =Proyección!CE92 -> 213 | M133: [Lineas]
B134: 83 | C134: 5604 | D134: Antioquia | E134: Remedios | F134: =Proyección!BY93 -> 502 | G134: =Proyección!BZ93 -> 778 | H134: =Proyección!CA93 -> 606 | I134: =Proyección!CB93 -> 368 | J134: =Proyección!CC93 -> 368 | K134: =Proyección!CD93 -> 368 | L134: =Proyección!CE93 -> 368 | M134: [Lineas]
B135: 84 | C135: 5607 | D135: Antioquia | E135: Retiro | F135: =Proyección!BY94 -> 5448 | G135: =Proyección!BZ94 -> 5865 | H135: =Proyección!CA94 -> 6115 | I135: =Proyección!CB94 -> 5489 | J135: =Proyección!CC94 -> 5489 | K135: =Proyección!CD94 -> 5489 | L135: =Proyección!CE94 -> 5489 | M135: [Lineas]
B136: 85 | C136: 5615 | D136: Antioquia | E136: Rionegro | F136: =Proyección!BY95 -> 34078 | G136: =Proyección!BZ95 -> 35133 | H136: =Proyección!CA95 -> 35572 | I136: =Proyección!CB95 -> 31671 | J136: =Proyección!CC95 -> 31671 | K136: =Proyección!CD95 -> 31671 | L136: =Proyección!CE95 -> 31671 | M136: [Lineas]
B137: 86 | C137: 5628 | D137: Antioquia | E137: Sabanalarga | F137: =Proyección!BY96 -> 106 | G137: =Proyección!BZ96 -> 162 | H137: =Proyección!CA96 -> 117 | I137: =Proyección!CB96 -> 71 | J137: =Proyección!CC96 -> 71 | K137: =Proyección!CD96 -> 71 | L137: =Proyección!CE96 -> 71 | M137: [Lineas]
B138: 87 | C138: 5631 | D138: Antioquia | E138: Sabaneta | F138: =Proyección!BY97 -> 40667 | G138: =Proyección!BZ97 -> 39588 | H138: =Proyección!CA97 -> 38071 | I138: =Proyección!CB97 -> 32235 | J138: =Proyección!CC97 -> 32235 | K138: =Proyección!CD97 -> 32235 | L138: =Proyección!CE97 -> 32235 | M138: [Lineas]
B139: 88 | C139: 5642 | D139: Antioquia | E139: Salgar | F139: =Proyección!BY98 -> 311 | G139: =Proyección!BZ98 -> 319 | H139: =Proyección!CA98 -> 270 | I139: =Proyección!CB98 -> 196 | J139: =Proyección!CC98 -> 196 | K139: =Proyección!CD98 -> 196 | L139: =Proyección!CE98 -> 196 | M139: [Lineas]
B140: 89 | C140: 5647 | D140: Antioquia | E140: San Andrés de Cuerquía | F140: =Proyección!BY99 -> 133 | G140: =Proyección!BZ99 -> 123 | H140: =Proyección!CA99 -> 87 | I140: =Proyección!CB99 -> 70 | J140: =Proyección!CC99 -> 70 | K140: =Proyección!CD99 -> 70 | L140: =Proyección!CE99 -> 70 | M140: [Lineas]
B141: 90 | C141: 5649 | D141: Antioquia | E141: San Carlos | F141: =Proyección!BY100 -> 183 | G141: =Proyección!BZ100 -> 190 | H141: =Proyección!CA100 -> 136 | I141: =Proyección!CB100 -> 69 | J141: =Proyección!CC100 -> 69 | K141: =Proyección!CD100 -> 69 | L141: =Proyección!CE100 -> 69 | M141: [Lineas]
B142: 91 | C142: 5652 | D142: Antioquia | E142: San Francisco | F142: =Proyección!BY101 -> 42 | G142: =Proyección!BZ101 -> 40 | H142: =Proyección!CA101 -> 34 | I142: =Proyección!CB101 -> 29 | J142: =Proyección!CC101 -> 29 | K142: =Proyección!CD101 -> 29 | L142: =Proyección!CE101 -> 29 | M142: [Lineas]
B143: 92 | C143: 5656 | D143: Antioquia | E143: San Jerónimo | F143: =Proyección!BY102 -> 871 | G143: =Proyección!BZ102 -> 743 | H143: =Proyección!CA102 -> 549 | I143: =Proyección!CB102 -> 294 | J143: =Proyección!CC102 -> 294 | K143: =Proyección!CD102 -> 294 | L143: =Proyección!CE102 -> 294 | M143: [Lineas]
B144: 93 | C144: 5658 | D144: Antioquia | E144: San José de La Montaña | F144: =Proyección!BY103 -> 173 | G144: =Proyección!BZ103 -> 204 | H144: =Proyección!CA103 -> 157 | I144: =Proyección!CB103 -> 104 | J144: =Proyección!CC103 -> 104 | K144: =Proyección!CD103 -> 104 | L144: =Proyección!CE103 -> 104 | M144: [Lineas]
B145: 94 | C145: 5659 | D145: Antioquia | E145: San Juan de Urabá | F145: =Proyección!BY104 -> 162 | G145: =Proyección!BZ104 -> 146 | H145: =Proyección!CA104 -> 114 | I145: =Proyección!CB104 -> 64 | J145: =Proyección!CC104 -> 64 | K145: =Proyección!CD104 -> 64 | L145: =Proyección!CE104 -> 64 | M145: [Lineas]
B146: 95 | C146: 5660 | D146: Antioquia | E146: San Luis | F146: =Proyección!BY105 -> 210 | G146: =Proyección!BZ105 -> 270 | H146: =Proyección!CA105 -> 206 | I146: =Proyección!CB105 -> 132 | J146: =Proyección!CC105 -> 132 | K146: =Proyección!CD105 -> 132 | L146: =Proyección!CE105 -> 132 | M146: [Lineas]
B147: 96 | C147: 5664 | D147: Antioquia | E147: San Pedro | F147: =Proyección!BY106 -> 979 | G147: =Proyección!BZ106 -> 918 | H147: =Proyección!CA106 -> 591 | I147: =Proyección!CB106 -> 403 | J147: =Proyección!CC106 -> 403 | K147: =Proyección!CD106 -> 403 | L147: =Proyección!CE106 -> 403 | M147: [Lineas]
B148: 97 | C148: 5665 | D148: Antioquia | E148: San Pedro de Uraba | F148: =Proyección!BY107 -> 296 | G148: =Proyección!BZ107 -> 607 | H148: =Proyección!CA107 -> 514 | I148: =Proyección!CB107 -> 302 | J148: =Proyección!CC107 -> 302 | K148: =Proyección!CD107 -> 302 | L148: =Proyección!CE107 -> 302 | M148: [Lineas]
B149: 98 | C149: 5667 | D149: Antioquia | E149: San Rafael | F149: =Proyección!BY108 -> 300 | G149: =Proyección!BZ108 -> 332 | H149: =Proyección!CA108 -> 238 | I149: =Proyección!CB108 -> 48 | J149: =Proyección!CC108 -> 48 | K149: =Proyección!CD108 -> 48 | L149: =Proyección!CE108 -> 48 | M149: [Lineas]
B150: 99 | C150: 5670 | D150: Antioquia | E150: San Roque | F150: =Proyección!BY109 -> 453 | G150: =Proyección!BZ109 -> 675 | H150: =Proyección!CA109 -> 657 | I150: =Proyección!CB109 -> 485 | J150: =Proyección!CC109 -> 485 | K150: =Proyección!CD109 -> 485 | L150: =Proyección!CE109 -> 485 | M150: [Lineas]
B151: 100 | C151: 5674 | D151: Antioquia | E151: San Vicente | F151: =Proyección!BY110 -> 393 | G151: =Proyección!BZ110 -> 329 | H151: =Proyección!CA110 -> 199 | I151: =Proyección!CB110 -> 115 | J151: =Proyección!CC110 -> 115 | K151: =Proyección!CD110 -> 115 | L151: =Proyección!CE110 -> 115 | M151: [Lineas]
B152: 101 | C152: 5679 | D152: Antioquia | E152: Santa Bárbara | F152: =Proyección!BY111 -> 1141 | G152: =Proyección!BZ111 -> 1148 | H152: =Proyección!CA111 -> 857 | I152: =Proyección!CB111 -> 263 | J152: =Proyección!CC111 -> 263 | K152: =Proyección!CD111 -> 263 | L152: =Proyección!CE111 -> 263 | M152: [Lineas]
B153: 102 | C153: 5686 | D153: Antioquia | E153: Santa Rosa de Osos | F153: =Proyección!BY112 -> 1334 | G153: =Proyección!BZ112 -> 1367 | H153: =Proyección!CA112 -> 982 | I153: =Proyección!CB112 -> 510 | J153: =Proyección!CC112 -> 510 | K153: =Proyección!CD112 -> 510 | L153: =Proyección!CE112 -> 510 | M153: [Lineas]
B154: 103 | C154: 5690 | D154: Antioquia | E154: Santo Domingo | F154: =Proyección!BY113 -> 191 | G154: =Proyección!BZ113 -> 198 | H154: =Proyección!CA113 -> 203 | I154: =Proyección!CB113 -> 171 | J154: =Proyección!CC113 -> 171 | K154: =Proyección!CD113 -> 171 | L154: =Proyección!CE113 -> 171 | M154: [Lineas]
B155: 104 | C155: 5697 | D155: Antioquia | E155: El Santuario | F155: =Proyección!BY114 -> 1731 | G155: =Proyección!BZ114 -> 1220 | H155: =Proyección!CA114 -> 691 | I155: =Proyección!CB114 -> 503 | J155: =Proyección!CC114 -> 503 | K155: =Proyección!CD114 -> 503 | L155: =Proyección!CE114 -> 503 | M155: [Lineas]
B156: 105 | C156: 5736 | D156: Antioquia | E156: Segovia | F156: =Proyección!BY115 -> 712 | G156: =Proyección!BZ115 -> 1203 | H156: =Proyección!CA115 -> 1014 | I156: =Proyección!CB115 -> 716 | J156: =Proyección!CC115 -> 716 | K156: =Proyección!CD115 -> 716 | L156: =Proyección!CE115 -> 716 | M156: [Lineas]
B157: 106 | C157: 5756 | D157: Antioquia | E157: Sonson | F157: =Proyección!BY116 -> 870 | G157: =Proyección!BZ116 -> 953 | H157: =Proyección!CA116 -> 794 | I157: =Proyección!CB116 -> 590 | J157: =Proyección!CC116 -> 590 | K157: =Proyección!CD116 -> 590 | L157: =Proyección!CE116 -> 590 | M157: [Lineas]
B158: 107 | C158: 5761 | D158: Antioquia | E158: Sopetrán | F158: =Proyección!BY117 -> 820 | G158: =Proyección!BZ117 -> 794 | H158: =Proyección!CA117 -> 618 | I158: =Proyección!CB117 -> 452 | J158: =Proyección!CC117 -> 452 | K158: =Proyección!CD117 -> 452 | L158: =Proyección!CE117 -> 452 | M158: [Lineas]
B159: 108 | C159: 5789 | D159: Antioquia | E159: Támesis | F159: =Proyección!BY118 -> 769 | G159: =Proyección!BZ118 -> 870 | H159: =Proyección!CA118 -> 659 | I159: =Proyección!CB118 -> 401 | J159: =Proyección!CC118 -> 401 | K159: =Proyección!CD118 -> 401 | L159: =Proyección!CE118 -> 401 | M159: [Lineas]
B160: 109 | C160: 5790 | D160: Antioquia | E160: Tarazá | F160: =Proyección!BY119 -> 270 | G160: =Proyección!BZ119 -> 641 | H160: =Proyección!CA119 -> 639 | I160: =Proyección!CB119 -> 313 | J160: =Proyección!CC119 -> 313 | K160: =Proyección!CD119 -> 313 | L160: =Proyección!CE119 -> 313 | M160: [Lineas]
B161: 110 | C161: 5792 | D161: Antioquia | E161: Tarso | F161: =Proyección!BY120 -> 247 | G161: =Proyección!BZ120 -> 243 | H161: =Proyección!CA120 -> 206 | I161: =Proyección!CB120 -> 144 | J161: =Proyección!CC120 -> 144 | K161: =Proyección!CD120 -> 144 | L161: =Proyección!CE120 -> 144 | M161: [Lineas]
B162: 111 | C162: 5809 | D162: Antioquia | E162: Titiribí | F162: =Proyección!BY121 -> 423 | G162: =Proyección!BZ121 -> 513 | H162: =Proyección!CA121 -> 514 | I162: =Proyección!CB121 -> 449 | J162: =Proyección!CC121 -> 449 | K162: =Proyección!CD121 -> 449 | L162: =Proyección!CE121 -> 449 | M162: [Lineas]
B163: 112 | C163: 5819 | D163: Antioquia | E163: Toledo | F163: =Proyección!BY122 -> 66 | G163: =Proyección!BZ122 -> 67 | H163: =Proyección!CA122 -> 58 | I163: =Proyección!CB122 -> 55 | J163: =Proyección!CC122 -> 55 | K163: =Proyección!CD122 -> 55 | L163: =Proyección!CE122 -> 55 | M163: [Lineas]
B164: 113 | C164: 5837 | D164: Antioquia | E164: Turbo | F164: =Proyección!BY123 -> 3176 | G164: =Proyección!BZ123 -> 5042 | H164: =Proyección!CA123 -> 5108 | I164: =Proyección!CB123 -> 5272 | J164: =Proyección!CC123 -> 5272 | K164: =Proyección!CD123 -> 5272 | L164: =Proyección!CE123 -> 5272 | M164: [Lineas]
B165: 114 | C165: 5842 | D165: Antioquia | E165: Uramita | F165: =Proyección!BY124 -> 189 | G165: =Proyección!BZ124 -> 200 | H165: =Proyección!CA124 -> 157 | I165: =Proyección!CB124 -> 104 | J165: =Proyección!CC124 -> 104 | K165: =Proyección!CD124 -> 104 | L165: =Proyección!CE124 -> 104 | M165: [Lineas]
B166: 115 | C166: 5847 | D166: Antioquia | E166: Urrao | F166: =Proyección!BY125 -> 681 | G166: =Proyección!BZ125 -> 844 | H166: =Proyección!CA125 -> 703 | I166: =Proyección!CB125 -> 560 | J166: =Proyección!CC125 -> 560 | K166: =Proyección!CD125 -> 560 | L166: =Proyección!CE125 -> 560 | M166: [Lineas]
B167: 116 | C167: 5854 | D167: Antioquia | E167: Valdivia | F167: =Proyección!BY126 -> 132 | G167: =Proyección!BZ126 -> 152 | H167: =Proyección!CA126 -> 84 | I167: =Proyección!CB126 -> 49 | J167: =Proyección!CC126 -> 49 | K167: =Proyección!CD126 -> 49 | L167: =Proyección!CE126 -> 49 | M167: [Lineas]
B168: 117 | C168: 5856 | D168: Antioquia | E168: Valparaíso | F168: =Proyección!BY127 -> 234 | G168: =Proyección!BZ127 -> 276 | H168: =Proyección!CA127 -> 268 | I168: =Proyección!CB127 -> 172 | J168: =Proyección!CC127 -> 172 | K168: =Proyección!CD127 -> 172 | L168: =Proyección!CE127 -> 172 | M168: [Lineas]
B169: 118 | C169: 5858 | D169: Antioquia | E169: Vegachí | F169: =Proyección!BY128 -> 239 | G169: =Proyección!BZ128 -> 353 | H169: =Proyección!CA128 -> 273 | I169: =Proyección!CB128 -> 126 | J169: =Proyección!CC128 -> 126 | K169: =Proyección!CD128 -> 126 | L169: =Proyección!CE128 -> 126 | M169: [Lineas]
B170: 119 | C170: 5861 | D170: Antioquia | E170: Venecia | F170: =Proyección!BY129 -> 737 | G170: =Proyección!BZ129 -> 775 | H170: =Proyección!CA129 -> 636 | I170: =Proyección!CB129 -> 272 | J170: =Proyección!CC129 -> 272 | K170: =Proyección!CD129 -> 272 | L170: =Proyección!CE129 -> 272 | M170: [Lineas]
B171: 120 | C171: 5873 | D171: Antioquia | E171: Vigía del Fuerte | F171: =Proyección!BY130 -> 44 | G171: =Proyección!BZ130 -> 106 | H171: =Proyección!CA130 -> 67 | I171: =Proyección!CB130 -> 45 | J171: =Proyección!CC130 -> 45 | K171: =Proyección!CD130 -> 45 | L171: =Proyección!CE130 -> 45 | M171: [Lineas]
B172: 121 | C172: 5885 | D172: Antioquia | E172: Yalí | F172: =Proyección!BY131 -> 109 | G172: =Proyección!BZ131 -> 132 | H172: =Proyección!CA131 -> 96 | I172: =Proyección!CB131 -> 76 | J172: =Proyección!CC131 -> 76 | K172: =Proyección!CD131 -> 76 | L172: =Proyección!CE131 -> 76 | M172: [Lineas]
B173: 122 | C173: 5887 | D173: Antioquia | E173: Yarumal | F173: =Proyección!BY132 -> 1456 | G173: =Proyección!BZ132 -> 1712 | H173: =Proyección!CA132 -> 1248 | I173: =Proyección!CB132 -> 837 | J173: =Proyección!CC132 -> 837 | K173: =Proyección!CD132 -> 837 | L173: =Proyección!CE132 -> 837 | M173: [Lineas]
